Workbook

Sheet Contents
A1: 80 | M1: ESC USE ONLY
D2: ESSENTIAL SERVICES COMMISSION
D3: Water Price Review - 2023
D4: Financial Model Template
B7: Table of Contents | F7: Water Business: | H7: =+N24 -> Gippsland Water | I7: =+O24 -> CGW
B8: Section & Sheet Titles | F8: Regulatory Period: | H8: 2023-24 to 2027-28 (Fifth) | N8: [Decision] | O8: [Month] | P8: [Year] | Q8: [Version]
F9: Model Name: | H9: =I7&"_Price Review Template_"&O9&P9&Q9 -> CGW_Price Review Template_Oct2021 - v1 | N9: Draft | O9: Oct | P9: 2021 | Q9: - v1 | R9: << Select
B10: 1 | C10: Model Quality Check | F10: Decision type: | H10: =+N9&" Decision" -> Draft Decision | N10: Draft | O10: Jan | P10: 2016 | Q10: - v1
B11: 2 | C11: =+KeyAssumptionsPriceControl_FO!B1 -> Key Assumptions Price Control | N11: Final | O11: Feb | P11: 2017
B12: 3 | C12: =+Expenditure_Detail!B1 -> Expenditure - Detail | F12: Model Key: | O12: Mar | P12: 2018
B13: 4 | C13: =Opex_FO!B1 -> Operating Expenditure - Forecast | O13: Apr | P13: 2019
B14: 5 | C14: =Opex_Breakdown!B1 -> Operating Expenditure - Breakdown | G14: BLUE | H14: =+I7&" - DATA INPUT CELL" -> CGW - DATA INPUT CELL | O14: May | P14: 2020
B15: 6 | C15: =+'Capex_FO input'!B1 -> Capital Expenditure - Forecast Input | O15: Jun | P15: 2021
B16: 7 | C16: =Capex_FO_AC!B1 -> Capital Expenditure - Asset Category Breakdown | G16: PURPLE | H16: NOTES / INSTRUCTIONS | O16: Jul | P16: 2022
B17: 8 | C17: =ExpSummary_FO!B1 -> Expenditure Summary | O17: Aug | P17: 2023
B18: 9 | C18: =RollForward_FO!B1 -> Rolled forward regulatory asset base (RAB) | G18: GREY | H18: MODEL PARAMETERS / ASSUMPTIONS | O18: Sep
B19: 10 | C19: =PrevPerAdj_FO!B1 -> Previous period adjustments | O19: Oct
B20: 11 | C20: =RevenuePriceCap_FO!C1 -> Revenue forecast (price caps) | G20: WHITE | H20: FORMULA / HARDCODED VALUES | O20: Nov
B21: 12 | C21: Revenue forecast (tariff basket) | O21: Dec
B22: 13 | C22: =NotPres_FO!B1 -> Non Prescribed Services | G22: ORANGE | H22: FORMULA DIFFERENT TO ADJACENT CELL
B23: 14 | C23: ='Finance&Tax_FO'!B1 -> Cash, debt and tax assumptions | N23: [Business]
B24: 15 | C24: ='Rev&RAV_FO'!B1 -> Revenue requirement detail | G24: GREEN | H24: DATA FROM 2018 DECISION OR PERFORMANCE REPORT | N24: Gippsland Water | O24: =+VLOOKUP(N24,N25:O42,2,FALSE) -> CGW
B25: 16 | C25: =Indicators_FO!B1 -> Financial indicators | N25: Barwon Water | O25: BW
B26: 17 | C26: =Outcomes!B1 -> Outcomes | G26: RED | H26: ERROR CHECK | N26: Central Highlands Water | O26: CHW
B27: 18 | C27: =GSL!B1 -> Guaranteed Service Levels (GSL) | N27: Greater Western Water | O27: GWW
B28: 19 | C28: Dashboard - Pricing | N28: Coliban Water | O28: CW
B29: 20 | C29: Dashboard - Opex | N29: East Gippsland Water | O29: EGW
B30: 21 | C30: Dashboard - Capex | N30: Gippsland Water | O30: CGW
B31: 22 | C31: Dashboard - Data | N31: Goulburn Valley Water | O31: GVW
B32: 23 | C32: Household Bill | N32: GWM Water | O32: GWMW | P32: diff model
N33: Lower Murray Water - Urban | O33: LMW-U | P33: diff model
N34: Lower Murray Water - Rural | O34: LMW-R
N35: North East Water | O35: NEW
N36: South East Water | O36: SEW
N37: South Gippsland Water | O37: SGW
N38: Southern Rural Water | O38: SRW | P38: diff model
N39: Wannon Water | O39: WNW
N40: Westernport Water | O40: WPW
N41: Yarra Valley Water | O41: YVW

Sheet Adjustments log (hidden)
A3: 1 | B3: Operating expenditure
B4: $m 2022-23
C6: 2023-24 | D6: 2024-25 | E6: 2025-26 | F6: 2026-27 | G6: 2027-28 | H6: Total
B7: Proposed - controllable operating expenditure | H7: =SUM(C7:G7) -> 0
B8: DD adjustments
B9: xx | H9: =SUM(C9:G9) -> 0
B10: xx | H10: =SUM(C10:G10) -> 0
B11: xx | H11: =SUM(C11:G11) -> 0
B12: xx | H12: =SUM(C12:G12) -> 0
B13: xx | H13: =SUM(C13:G13) -> 0
B14: FD adjustments
B15: xx | H15: =SUM(C15:G15) -> 0
B16: xx | H16: =SUM(C16:G16) -> 0
B17: xx | H17: =SUM(C17:G17) -> 0
B18: xx | H18: =SUM(C18:G18) -> 0
B19: xx | H19: 0
B20: Total adjustments | C20: =SUM(C8:C19) -> 0 | D20: 0 | E20: 0 | F20: 0 | G20: 0 | H20: 0
B21: Final decision - controllable operating expenditure | C21: =C7+C20 -> 0 | D21: 0 | E21: 0 | F21: 0 | G21: 0 | H21: 0
B23: Proposed - non-controllable operating expenditure | H23: =SUM(C23:G23) -> 0
B24: DD adjustments
B25: xx | H25: =SUM(C25:G25) -> 0
B26: xx | H26: =SUM(C26:G26) -> 0
B27: xx | H27: =SUM(C27:G27) -> 0
B28: xx | H28: =SUM(C28:G28) -> 0
B29: FD adjustments
B30: xx | H30: =SUM(C30:G30) -> 0
B31: xx | H31: =SUM(C31:G31) -> 0
B32: Total adjustments | C32: =SUM(C24:C31) -> 0 | D32: 0 | E32: 0 | F32: 0 | G32: 0 | H32: 0
B33: Final decision - non-controllable operating expenditure | C33: =C23+C32 -> 0 | D33: 0 | E33: 0 | F33: 0 | G33: 0 | H33: 0
B35: Proposed - total operating expenditure | C35: =C7+C23 -> 0 | D35: 0 | E35: 0 | F35: 0 | G35: 0 | H35: 0
B36: Total adjustments | C36: =C20+C32 -> 0 | D36: 0 | E36: 0 | F36: 0 | G36: 0 | H36: 0
B37: Final decision - total operating expenditure | C37: =SUM(C35:C36) -> 0 | D37: 0 | E37: 0 | F37: 0 | G37: 0 | H37: 0
B39: Check
A42: 2 | B42: Capital expenditure
B43: $m 2022-23
C45: 2023-24 | D45: 2024-25 | E45: 2025-26 | F45: 2026-27 | G45: 2027-28 | H45: Total
B46: Proposed - capital expenditure | H46: =SUM(C46:G46) -> 0
B47: DD adjustments
B48: xx | H48: =SUM(C48:G48) -> 0
B49: xx | H49: =SUM(C49:G49) -> 0
B50: xx | H50: =SUM(C50:G50) -> 0
B51: xx | H51: =SUM(C51:G51) -> 0
B52: FD adjustments
B53: xx | H53: =SUM(C53:G53) -> 0
B54: xx
B55: Total adjustments | C55: =SUM(C47:C54) -> 0 | D55: 0 | E55: 0 | F55: 0 | G55: 0 | H55: 0
B56: Draft decision - capital expenditure | C56: =C46+C55 -> 0 | D56: 0 | E56: 0 | F56: 0 | G56: 0 | H56: 0
B58: Check

Sheet Model Quality Check
A1: 80 | B1: Model Quality Check
B2: =+Contents!H7 -> Gippsland Water
B3: Go to Table of Contents
K4: FIRST REG PERIOD | O4: SECOND REG PERIOD | T4: THIRD REG PERIOD | Y4: FOURTH REG PERIOD | AD4: FIFTH REG PERIOD | AI4: SIXTH REG PERIOD
F6: Straight Line | J6: 2006 | K6: 2007 | L6: 2008 | M6: 2009 | N6: 2010 | O6: 2011 | P6: 2012 | Q6: 2013 | R6: 2014 | S6: 2015 | T6: 2016 | U6: 2017 | V6: 2018 | W6: 2019 | X6: 2020 | Y6: 2021 | Z6: 2022 | AA6: 2023 | AB6: 2024 | AC6: 2025 | AD6: 2026 | AE6: 2027 | AF6: 2028 | AG6: 2029 | AH6: 2030 | AI6: 2031 | AJ6: 2032 | AK6: 2033
F7: Declining Balance | J7: =+CONCATENATE(J6-1,"-",RIGHT(J6,2)) -> 2005-06 | K7: 2006-07 | L7: 2007-08 | M7: 2008-09 | N7: 2009-10 | O7: 2010-11 | P7: 2011-12 | Q7: 2012-13 | R7: 2013-14 | S7: 2014-15 | T7: 2015-16 | U7: 2016-17 | V7: 2017-18 | W7: =+CONCATENATE(W6-1,"-",RIGHT(W6,2)) -> 2018-19 | X7: 2019-20 | Y7: 2020-21 | Z7: 2021-22 | AA7: 2022-23 | AB7: 2023-24 | AC7: 2024-25 | AD7: 2025-26 | AE7: 2026-27 | AF7: =+CONCATENATE(AF6-1,"-",RIGHT(AF6,2)) -> 2027-28 | AG7: 2028-29 | AH7: 2029-30 | AI7: 2030-31 | AJ7: 2031-32 | AK7: 2032-33
D9: Model ready for submission: | I9: =SUM(AA15:AK49) -> 1 | R9: (If No, please ensure that the error check is corrected at the source)
D11: All financial indicators satisfied: | I11: =SUM(AB54:AK59) -> 5
E14: 1. | F14: Opex_FO
G15: Reconciliation to 'Opex_Breakdown' tab row 37 | AB15: =Opex_FO!AC100 -> 0 | AC15: =Opex_FO!AD100 -> 0 | AD15: =Opex_FO!AE100 -> 0 | AE15: =Opex_FO!AF100 -> 0 | AF15: =Opex_FO!AG100 -> 0 | AG15: =Opex_FO!AH100 -> 0 | AH15: =Opex_FO!AI100 -> 0 | AI15: =Opex_FO!AJ100 -> 0 | AJ15: =Opex_FO!AK100 -> 0 | AK15: =Opex_FO!AL100 -> 0
E17: 2. | F17: Opex_Breakdown
G18: Reconciliation to 'Opex_FO' tab row 95 | AB18: =Opex_Breakdown!AC42 -> 0 | AC18: =Opex_Breakdown!AD42 -> 0 | AD18: =Opex_Breakdown!AE42 -> 0 | AE18: =Opex_Breakdown!AF42 -> 0 | AF18: =Opex_Breakdown!AG42 -> 0 | AG18: =Opex_Breakdown!AH42 -> 0 | AH18: =Opex_Breakdown!AI42 -> 0 | AI18: =Opex_Breakdown!AJ42 -> 0 | AJ18: =Opex_Breakdown!AK42 -> 0 | AK18: =Opex_Breakdown!AL42 -> 0
G20: Reconciliation of Opex by service and function | AB20: =Opex_Breakdown!AC27 -> 0 | AC20: =Opex_Breakdown!AD27 -> 0 | AD20: =Opex_Breakdown!AE27 -> 0 | AE20: =Opex_Breakdown!AF27 -> 0 | AF20: =Opex_Breakdown!AG27 -> 0 | AG20: =Opex_Breakdown!AH27 -> 0 | AH20: =Opex_Breakdown!AI27 -> 0 | AI20: =Opex_Breakdown!AJ27 -> 0 | AJ20: =Opex_Breakdown!AK27 -> 0 | AK20: =Opex_Breakdown!AL27 -> 0
E22: 3. | F22: Capex_FO input
G23: Reconciliation of total prescribed capex between cost driver and capital type | AB23: ='Capex_FO input'!D26 -> 0 | AC23: ='Capex_FO input'!E26 -> 0 | AD23: ='Capex_FO input'!F26 -> 0 | AE23: ='Capex_FO input'!G26 -> 0 | AF23: ='Capex_FO input'!H26 -> 0 | AG23: ='Capex_FO input'!I26 -> 0 | AH23: ='Capex_FO input'!J26 -> 0 | AI23: ='Capex_FO input'!K26 -> 0 | AJ23: ='Capex_FO input'!L26 -> 0 | AK23: ='Capex_FO input'!M26 -> 0
E25: 4. | F25: Capex_FO_AC
G26: Reconciliation to 'Capex_FO input' tab row 29 | AA26: =Capex_FO_AC!AB30 -> 0 | AB26: =Capex_FO_AC!AC30 -> 0 | AC26: =Capex_FO_AC!AD30 -> 0 | AD26: =Capex_FO_AC!AE30 -> 0 | AE26: =Capex_FO_AC!AF30 -> 0 | AF26: =Capex_FO_AC!AG30 -> 0 | AG26: =Capex_FO_AC!AH30 -> 0 | AH26: =Capex_FO_AC!AI30 -> 0 | AI26: =Capex_FO_AC!AJ30 -> 0 | AJ26: =Capex_FO_AC!AK30 -> 0 | AK26: =Capex_FO_AC!AL30 -> 0
E28: 5. | F28: RollForward_FO
G29: Reconciliation of existing assets book value to RAB | AB29: =IF(ROUND(RollForward_FO!G84,2)=ROUND(RollForward_FO!G82,2),0,1) -> 1
E31: 6. | F31: RevenuePriceCap_FO
G32: Price control - Fifth period | AB32: =IF(KeyAssumptionsPriceControl_FO!I48=1,IF(RevenuePriceCap_FO!AD34="PRICE CONTROL OK",0,1),0) -> 0 | AC32: =IF(KeyAssumptionsPriceControl_FO!I48=1,RevenuePriceCap_FO!AD34,"") -> PRICE CONTROL OK
G34: Price control - Sixth period | AB34: =IF(KeyAssumptionsPriceControl_FO!I48=1,IF(RevenuePriceCap_FO!AI34="PRICE CONTROL OK",0,1),0) -> 0 | AC34: =IF(KeyAssumptionsPriceControl_FO!I48=1,RevenuePriceCap_FO!AI34,"") -> PRICE CONTROL OK
G36: Tariff revenue reconciliation | AB36: =RevenuePriceCap_FO!AC458 -> 0 | AC36: =RevenuePriceCap_FO!AD458 -> 0 | AD36: =RevenuePriceCap_FO!AE458 -> 0 | AE36: =RevenuePriceCap_FO!AF458 -> 0 | AF36: =RevenuePriceCap_FO!AG458 -> 0 | AG36: =RevenuePriceCap_FO!AH458 -> 0 | AH36: =RevenuePriceCap_FO!AI458 -> 0 | AI36: =RevenuePriceCap_FO!AJ458 -> 0 | AJ36: =RevenuePriceCap_FO!AK458 -> 0 | AK36: =RevenuePriceCap_FO!AL458 -> 0
E38: 7. | F38: RevenueTariffBasket_FO
G39: Price control - Fifth period | AB39: =IF(KeyAssumptionsPriceControl_FO!I48=2,IF(RevenueTariffBasket_FO!AD34="PRICE CONTROL OK",0,1),0) -> 0 | AC39: =IF(KeyAssumptionsPriceControl_FO!I48=2,RevenueTariffBasket_FO!AD34,"") -> 
G41: Price control - Sixth period | AB41: =IF(KeyAssumptionsPriceControl_FO!I48=2,IF(RevenueTariffBasket_FO!AI41="PRICE CONTROL OK",0,1),0) -> 0 | AC41: =IF(KeyAssumptionsPriceControl_FO!I48=2,RevenueTariffBasket_FO!AI34,"") -> 
G43: Tariff revenue reconciliation | AB43: =RevenueTariffBasket_FO!AC458 -> 0 | AC43: =RevenueTariffBasket_FO!AD458 -> 0 | AD43: =RevenueTariffBasket_FO!AE458 -> 0 | AE43: =RevenueTariffBasket_FO!AF458 -> 0 | AF43: =RevenueTariffBasket_FO!AG458 -> 0 | AG43: =RevenueTariffBasket_FO!AH458 -> 0 | AH43: =RevenueTariffBasket_FO!AI458 -> 0 | AI43: =RevenueTariffBasket_FO!AJ458 -> 0 | AJ43: =RevenueTariffBasket_FO!AK458 -> 0 | AK43: =RevenueTariffBasket_FO!AL458 -> 0
E45: 8. | F45: Rev&RAV_FO
G46: Rolled forward RAV reconciliation | AB46: ='Rev&RAV_FO'!AC80 -> 0 | AC46: ='Rev&RAV_FO'!AD80 -> 0 | AD46: ='Rev&RAV_FO'!AE80 -> 0 | AE46: ='Rev&RAV_FO'!AF80 -> 0 | AF46: ='Rev&RAV_FO'!AG80 -> 0 | AG46: ='Rev&RAV_FO'!AH80 -> 0 | AH46: ='Rev&RAV_FO'!AI80 -> 0 | AI46: ='Rev&RAV_FO'!AJ80 -> 0 | AJ46: ='Rev&RAV_FO'!AK80 -> 0 | AK46: ='Rev&RAV_FO'!AL80 -> 0
E48: 9. | F48: GSL
G49: Reconciliation to 'Opex_Breakdown' tab row 23 | AB49: =IF(ROUND(GSL!AC40,2)=ROUND(GSL!AC39,2),0,1) -> 0 | AC49: =IF(ROUND(GSL!AD40,2)=ROUND(GSL!AD39,2),0,1) -> 0 | AD49: =IF(ROUND(GSL!AE40,2)=ROUND(GSL!AE39,2),0,1) -> 0 | AE49: =IF(ROUND(GSL!AF40,2)=ROUND(GSL!AF39,2),0,1) -> 0 | AF49: =IF(ROUND(GSL!AG40,2)=ROUND(GSL!AG39,2),0,1) -> 0 | AG49: =IF(ROUND(GSL!AH40,2)=ROUND(GSL!AH39,2),0,1) -> 0 | AH49: =IF(ROUND(GSL!AI40,2)=ROUND(GSL!AI39,2),0,1) -> 0 | AI49: =IF(ROUND(GSL!AJ40,2)=ROUND(GSL!AJ39,2),0,1) -> 0 | AJ49: =IF(ROUND(GSL!AK40,2)=ROUND(GSL!AK39,2),0,1) -> 0 | AK49: =IF(ROUND(GSL!AL40,2)=ROUND(GSL!AL39,2),0,1) -> 0
E53: 1. | F53: Primary Indicator
G54: FFO interest cover | AB54: =Indicators_FO!AC$226 -> 0 | AC54: =Indicators_FO!AD$226 -> 0 | AD54: =Indicators_FO!AE$226 -> 0 | AE54: =Indicators_FO!AF$226 -> 0 | AF54: =Indicators_FO!AG$226 -> 0 | AG54: =Indicators_FO!AH$226 -> 0 | AH54: =Indicators_FO!AI$226 -> 0 | AI54: =Indicators_FO!AJ$226 -> 0 | AJ54: =Indicators_FO!AK$226 -> 0 | AK54: =Indicators_FO!AL$226 -> 0
E56: 2. | F56: Secondary indicators
G57: Net debt / RAV | AB57: =Indicators_FO!AC$235 -> 0 | AC57: =Indicators_FO!AD$235 -> 0 | AD57: =Indicators_FO!AE$235 -> 0 | AE57: =Indicators_FO!AF$235 -> 0 | AF57: =Indicators_FO!AG$235 -> 0 | AG57: =Indicators_FO!AH$235 -> 0 | AH57: =Indicators_FO!AI$235 -> 0 | AI57: =Indicators_FO!AJ$235 -> 0 | AJ57: =Indicators_FO!AK$235 -> 0 | AK57: =Indicators_FO!AL$235 -> 0
G58: FFO / Net debt | AB58: =Indicators_FO!AC$243 -> 1 | AC58: =Indicators_FO!AD$243 -> 1 | AD58: =Indicators_FO!AE$243 -> 0 | AE58: =Indicators_FO!AF$243 -> 0 | AF58: =Indicators_FO!AG$243 -> 0 | AG58: =Indicators_FO!AH$243 -> 0 | AH58: =Indicators_FO!AI$243 -> 0 | AI58: =Indicators_FO!AJ$243 -> 1 | AJ58: =Indicators_FO!AK$243 -> 1 | AK58: =Indicators_FO!AL$243 -> 1
G59: Internal financing ratio | AB59: =Indicators_FO!AC$252 -> 0 | AC59: =Indicators_FO!AD$252 -> 0 | AD59: =Indicators_FO!AE$252 -> 0 | AE59: =Indicators_FO!AF$252 -> 0 | AF59: =Indicators_FO!AG$252 -> 0 | AG59: =Indicators_FO!AH$252 -> 0 | AH59: =Indicators_FO!AI$252 -> 0 | AI59: =Indicators_FO!AJ$252 -> 0 | AJ59: =Indicators_FO!AK$252 -> 0 | AK59: =Indicators_FO!AL$252 -> 0

Sheet KeyAssumptionsPriceControl_FO
A1: 80 | B1: Key Assumptions Price Control
B2: =+Contents!H7 -> Gippsland Water
B3: Go to Table of Contents
L4: FIRST REG PERIOD | P4: SECOND REG PERIOD | U4: THIRD REG PERIOD | Z4: FOURTH REG PERIOD | AE4: FIFTH REG PERIOD | AJ4: SIXTH REG PERIOD
F6: Straight Line | K6: 2006 | L6: 2007 | M6: 2008 | N6: 2009 | O6: 2010 | P6: 2011 | Q6: 2012 | R6: 2013 | S6: 2014 | T6: 2015 | U6: 2016 | V6: 2017 | W6: 2018 | X6: 2019 | Y6: 2020 | Z6: 2021 | AA6: 2022 | AB6: 2023 | AC6: 2024 | AD6: 2025 | AE6: 2026 | AF6: 2027 | AG6: 2028 | AH6: 2029 | AI6: 2030 | AJ6: 2031 | AK6: 2032 | AL6: 2033
F7: Declining Balance | I7: 2003-04 | J7: 2004-05 | K7: =+CONCATENATE(K6-1,"-",RIGHT(K6,2)) -> 2005-06 | L7: =+CONCATENATE(L6-1,"-",RIGHT(L6,2)) -> 2006-07 | M7: 2007-08 | N7: 2008-09 | O7: 2009-10 | P7: 2010-11 | Q7: 2011-12 | R7: 2012-13 | S7: 2013-14 | T7: 2014-15 | U7: 2015-16 | V7: 2016-17 | W7: 2017-18 | X7: 2018-19 | Y7: 2019-20 | Z7: 2020-21 | AA7: 2021-22 | AB7: 2022-23 | AC7: 2023-24 | AD7: 2024-25 | AE7: 2025-26 | AF7: 2026-27 | AG7: 2027-28 | AH7: =+CONCATENATE(AH6-1,"-",RIGHT(AH6,2)) -> 2028-29 | AI7: =+CONCATENATE(AI6-1,"-",RIGHT(AI6,2)) -> 2029-30 | AJ7: =+CONCATENATE(AJ6-1,"-",RIGHT(AJ6,2)) -> 2030-31 | AK7: =+CONCATENATE(AK6-1,"-",RIGHT(AK6,2)) -> 2031-32 | AL7: =+CONCATENATE(AL6-1,"-",RIGHT(AL6,2)) -> 2032-33
E11: Inflation assumptions
AB12: Estimate
F13: March quarter annual CPI | I13: 141.3 | J13: 144.1 | K13: 147.5 | L13: 151.9 | M13: 155.6 | N13: 162.2 | O13: 166.2 | P13: 171 | Q13: 176.7 | R13: 99.9 | S13: 102.4 | T13: 105.4 | U13: 106.8 | V13: 108.2 | W13: 110.5 | X13: 112.6 | Y13: 114.1 | Z13: 116.6 | AA13: 117.9 | AB13: 123.9
F14: Inflation | J14: =+J13/I13-1 -> 0.01981599434 | K14: 0.02359472588 | L14: 0.02983050847 | M14: 0.02435813035 | N14: 0.04241645244 | O14: 0.02466091245 | P14: 0.02888086643 | Q14: 0.03333333333 | R14: 0.01584606678 | S14: =+IF(S13=0,$Z$44,S13/R13-1) -> 0.02502502503 | T14: 0.029296875 | U14: 0.01328273245 | V14: 0.01310861423 | W14: 0.02125693161 | X14: 0.01900452489 | Y14: 0.01332149201 | Z14: 0.02191060473 | AA14: 0.01114922813 | AB14: 0.05089058524 | AC14: =+IF(AC13=0,$AC$44,AC13/AB13-1) -> 0.03 | AD14: 0.03 | AE14: 0.03 | AF14: 0.03 | AG14: 0.03 | AH14: 0.03 | AI14: 0.03 | AJ14: 0.03 | AK14: 0.03 | AL14: 0.03
F15: Inflation factor | I15: 0.7871866295 | J15: 0.8027855153 | K15: 0.8217270195 | L15: 0.8462395543 | M15: 0.8668523677 | N15: 0.9036211699 | O15: 0.9259052925 | P15: 0.9526462396 | Q15: 0.9844011142 | R15: =+R13/$AB$13 -> 0.8062953995 | S15: 0.8264729621 | T15: 0.8506860371 | U15: 0.8619854722 | V15: 0.8732849072 | W15: 0.8918482647 | X15: 0.9087974173 | Y15: 0.9209039548 | Z15: 0.9410815174 | AA15: 0.9515738499 | AB15: 1 | AC15: =+AB15*(1+AC14) -> 1.03 | AD15: 1.0609 | AE15: 1.092727 | AF15: 1.12550881 | AG15: 1.159274074 | AH15: 1.194052297 | AI15: 1.229873865 | AJ15: 1.266770081 | AK15: 1.304773184 | AL15: 1.343916379
I16: CPI index re-referenced in 2012-13, shaded values have been hardcoded to lock in RAB value.
E21: Cost of debt - 10 year trailing average (Nominal)
AA22: Estimate | AB22: Estimate | AC22: Estimate | AD22: Estimate | AE22: Estimate | AF22: Estimate | AG22: Estimate | AH22: Estimate | AI22: Estimate | AJ22: Estimate | AK22: Estimate | AL22: Estimate
E23: Cost of debt | L23: 0.06981666667 | M23: 0.07414 | N23: 0.0691525788 | O23: 0.07361870984 | P23: 0.07046784142 | Q23: 0.06308887941 | R23: 0.0526945046 | S23: 0.070525 | T23: 0.05360833333 | U23: 0.05270138413 | V23: 0.04908333333 | W23: 0.045283 | X23: 0.046133 | Y23: 0.03305833333 | Z23: 0.03045 | AA23: 0.03753333333 | AB23: =AA23 -> 0.03753333333 | AC23: =AB23 -> 0.03753333333 | AD23: =AC23 -> 0.03753333333 | AE23: =AD23 -> 0.03753333333 | AF23: =AE23 -> 0.03753333333 | AG23: =AF23 -> 0.03753333333 | AH23: =AG23 -> 0.03753333333 | AI23: =AH23 -> 0.03753333333 | AJ23: =AI23 -> 0.03753333333 | AK23: =AJ23 -> 0.03753333333 | AL23: =AK23 -> 0.03753333333
E24: Re-financing weightings - average 10 yrs | L24: =1/10 -> 0.1 | M24: =1/10 -> 0.1 | N24: =1/10 -> 0.1 | O24: =1/10 -> 0.1 | P24: =1/10 -> 0.1 | Q24: 0.1 | R24: 0.1 | S24: 0.1 | T24: 0.1 | U24: 0.1 | V24: 0.1 | W24: 0.1 | X24: 0.1 | Y24: 0.1 | Z24: 0.1 | AA24: 0.1 | AB24: 0.1 | AC24: 0.1 | AD24: 0.1 | AE24: 0.1 | AF24: 0.1 | AG24: 0.1 | AH24: 0.1 | AI24: 0.1 | AJ24: 0.1 | AK24: 0.1 | AL24: 0.1
E26: Cost of debt - 10 year trailing average | V26: =IF(U23<>"",SUMPRODUCT(L23:U23,L24:U24),"") -> 0.06498138982 | W26: 0.06290805649 | X26: 0.06002235649 | Y26: 0.05772039861 | Z26: 0.05366436096 | AA26: 0.04966257681 | AB26: =IF(AA23<>"",SUMPRODUCT(R23:AA23,R24:AA24),"") -> 0.04710702221 | AC26: =IF(AB23<>"",SUMPRODUCT(S23:AB23,S24:AB24),"") -> 0.04559090508 | AD26: =IF(AC23<>"",SUMPRODUCT(T23:AC23,T24:AC24),"") -> 0.04229173841 | AE26: 0.04068423841 | AF26: 0.03916743333 | AG26: 0.03801243333 | AH26: 0.03723746667 | AI26: 0.0363775 | AJ26: 0.036825 | AK26: 0.03753333333 | AL26: 0.03753333333
E30: WACC assumptions (retained for historical purposes only) | Z30: Regulatory Rate of Return (RRR) - Nominal
K32: 1st period | M32: 2nd period | O32: 3rd period | Z32: Cost of Debt | AC32: =+AC26 -> 0.04559090508 | AD32: =+AD26 -> 0.04229173841 | AE32: 0.04068423841 | AF32: 0.03916743333 | AG32: 0.03801243333 | AH32: 0.03723746667 | AI32: 0.0363775 | AJ32: 0.036825 | AK32: 0.03753333333 | AL32: 0.03753333333
E33: Parameters
F34: Risk Free Rate (Real) | K34: =Determination_Lookup!W8 -> 0.0267 | M34: =Determination_Lookup!X8 -> 0.0323 | O34: =Determination_Lookup!Y8 -> 0.005959
F35: Debt Premium | K35: =Determination_Lookup!W9 -> 0.0116 | M35: =Determination_Lookup!X9 -> 0.0175 | O35: =Determination_Lookup!Y9 -> 0.0399
F36: Equity Premium | K36: =Determination_Lookup!W10 -> 0.06 | M36: =Determination_Lookup!X10 -> 0.06 | O36: =Determination_Lookup!Y10 -> 0.06 | Z36: Regulatory Rate of Return (RRR) - Real
F37: Equity Beta | K37: =Determination_Lookup!W11 -> 0.75 | M37: =Determination_Lookup!X11 -> 0.65 | O37: =Determination_Lookup!Y11 -> 0.65
F38: Gearing (Debt/Assets) | K38: =Determination_Lookup!W12 -> 0.6 | M38: =Determination_Lookup!X12 -> 0.6 | O38: =Determination_Lookup!Y12 -> 0.6 | Z38: Cost of Debt | AC38: =(1+AC32)/(1+AC44)-1 -> 0.01513680105 | AD38: =(1+AD32)/(1+AD44)-1 -> 0.01193372661 | AE38: 0.010373047 | AF38: 0.008900420712 | AG38: 0.007779061489 | AH38: 0.007026666667 | AI38: 0.006191747573 | AJ38: 0.006626213592 | AK38: 0.007313915858 | AL38: 0.007313915858
F39: Forecast Inflation | K39: =Determination_Lookup!W13 -> 0.0255 | M39: =Determination_Lookup!X13 -> 0.029 | O39: =Determination_Lookup!Y13 -> 0.0275
F40: Franking credit value | K40: =Determination_Lookup!W14 -> 0.5 | M40: =Determination_Lookup!X14 -> 0.5 | O40: =Determination_Lookup!Y14 -> 0.5 | Z40: Return on Equity | AC40: =IF(AE64<>0,(AE64/100),IF(AE62<>0,(AE62/100),(AE60/100))) -> 0.045 | AD40: =+$AC$40 -> 0.045 | AE40: 0.045 | AF40: 0.045 | AG40: 0.045 | AH40: 0.045 | AI40: 0.045 | AJ40: 0.045 | AK40: 0.045 | AL40: 0.045
E42: 'Vanilla' After Tax WACC (Real) | K42: =ROUND(((K34+K36*K37)*(1-K38))+((K34+K35)*K38),3) -> 0.052 | M42: =ROUND(((M34+M36*M37)*(1-M38))+((M34+M35)*M38),3) -> 0.058 | O42: =ROUND(((O34+O36*O37)*(1-O38))+((O34+O35)*O38),3) -> 0.045 | Z42: RRR (real) | AC42: =ROUND((AC40*(1-AC43)+AC38*AC43),4) -> 0.0271 | AD42: 0.0252 | AE42: 0.0242 | AF42: 0.0233 | AG42: 0.0227 | AH42: 0.0222 | AI42: 0.0217 | AJ42: 0.022 | AK42: 0.0224 | AL42: 0.0224
Z43: Gearing | AC43: 0.6 | AD43: =+AC43 -> 0.6 | AE43: 0.6 | AF43: 0.6 | AG43: 0.6 | AH43: 0.6 | AI43: 0.6 | AJ43: 0.6 | AK43: 0.6 | AL43: 0.6
Z44: Forecast Inflation | AC44: 0.03 | AD44: =+AC44 -> 0.03 | AE44: 0.03 | AF44: 0.03 | AG44: 0.03 | AH44: 0.03 | AI44: 0.03 | AJ44: 0.03 | AK44: 0.03 | AL44: 0.03
L45: Regulatory Rate of Return (RRR) [retained for historical purposes only]
E46: Form of price control selected
O47: 4th period
E48: Price caps | I48: 1 | L48: Cost of Debt | O48: =Determination_Lookup!W25 -> 0.03618998679 | Z48: PREMO Assessment Matrix (linked to Regulatory Rate of Return calculation above)
L49: Return on Equity | O49: =Determination_Lookup!W26 -> 0.045 | U49: PREMO Graded Scoring System (for reference only)
E50: Revenue cap / Hybrid Tariff Basket | L50: Gearing | O50: =Determination_Lookup!W27 -> 0.6
L51: Forecast Inflation | O51: =Determination_Lookup!W28 -> 0.023 | AB51: Water business self-assessment
L52: RRR (real) | O52: =Determination_Lookup!W29 -> 0.0397
AB53: Leading | AC53: Advanced | AD53: Standard | AE53: Basic
Z54: ESC assessment of submission | AA54: Leading | AB54: 4.9
U55: Risk | AA55: Advanced | AB55: 4.3 | AC55: 4.5
U56: Engagement | V56: [Select] | AA56: Standard | AB56: 3.7 | AC56: 3.9 | AD56: 4.1
U57: Management | V57: [Select] | AA57: Basic | AD57: 3.5 | AE57: 3.7
U58: Outcomes | V58: [Select]
U60: Total Score | Z60: Water business self-assessment (Maximum allowable ROE) | AD60: Advanced | AE60: =+VLOOKUP(AD60,$AD$71:$AE$75,2,FALSE) -> 4.5
Z62: ROE Override (Must be less than Maximum allowable ROE) | AE62: =+IF(AD62<=AE60,AD62,"CHECK") -> 0
U64: Rating | Z64: ESC assessment of submission | AD64: [Select] | AE64: =IFERROR(IF(AD64=AD60,AE60,VLOOKUP(AD60&AD64,AD78:AE82,2,FALSE)),0) -> 0
AD66: Difference | AE66: =IFERROR(IF(AE64=0,"",AE64-AE60),"") -> 
U70: ESC USE ONLY | AD70: Business self assessment
AD71: [Select]
AD72: Leading | AE72: =+AB54 -> 4.9
AD73: Advanced | AE73: =+AC55 -> 4.5
AD74: Standard | AE74: =+AD56 -> 4.1
AD75: Basic | AE75: =+AE57 -> 3.7
AD77: downgrading
AD78: =AD53&AA57 -> StandardBasic | AE78: =+AD57 -> 3.5
AD79: =+AC53&AA56 -> AdvancedStandard | AE79: =+AC56 -> 3.9
AD80: =+AB53&AA55 -> LeadingAdvanced | AE80: =+AB55 -> 4.3
AD81: =+AB53&AA56 -> LeadingStandard | AE81: =+AB56 -> 3.7
AD82: =+AD60&"Basic" -> AdvancedBasic | AE82: CHECK

Sheet Expenditure_Detail
A1: 80 | B1: Expenditure - Detail
B2: =Model_Name -> Gippsland Water
B3: Go to Table of Contents
L4: FIRST REG PERIOD | P4: SECOND REG PERIOD | U4: THIRD REG PERIOD | Z4: FOURTH REG PERIOD | AE4: FIFTH REG PERIOD | AJ4: SIXTH REG PERIOD
K5: 2006 | L5: 2007 | M5: 2008 | N5: 2009 | O5: 2010 | P5: 2011 | Q5: 2012 | R5: 2013 | S5: 2014 | T5: 2015 | U5: 2016 | V5: 2017 | W5: 2018 | X5: 2019 | Y5: 2020 | Z5: 2021 | AA5: 2022 | AB5: 2023 | AC5: 2024 | AD5: 2025 | AE5: 2026 | AF5: 2027 | AG5: 2028 | AH5: 2029 | AI5: 2030 | AJ5: 2031 | AK5: 2032 | AL5: 2033
B6: $m, 01/01/23 | K6: =+CONCATENATE(K5-1,"-",RIGHT(K5,2)) -> 2005-06 | L6: =+CONCATENATE(L5-1,"-",RIGHT(L5,2)) -> 2006-07 | M6: 2007-08 | N6: 2008-09 | O6: 2009-10 | P6: 2010-11 | Q6: 2011-12 | R6: 2012-13 | S6: 2013-14 | T6: 2014-15 | U6: 2015-16 | V6: 2016-17 | W6: 2017-18 | X6: 2018-19 | Y6: 2019-20 | Z6: 2020-21 | AA6: 2021-22 | AB6: 2022-23 | AC6: 2023-24 | AD6: 2024-25 | AE6: 2025-26 | AF6: 2026-27 | AG6: 2027-28 | AH6: =+CONCATENATE(AH5-1,"-",RIGHT(AH5,2)) -> 2028-29 | AI6: =+CONCATENATE(AI5-1,"-",RIGHT(AI5,2)) -> 2029-30 | AJ6: =+CONCATENATE(AJ5-1,"-",RIGHT(AJ5,2)) -> 2030-31 | AK6: =+CONCATENATE(AK5-1,"-",RIGHT(AK5,2)) -> 2031-32 | AL6: =+CONCATENATE(AL5-1,"-",RIGHT(AL5,2)) -> 2032-33
B8: This worksheet outlines the key cost drivers of operating expenditure - capitalised costs are excluded. This tab does not link to the Rev&RAV_FO worksheet
C11: Expenditure Summary
D13: Total Labour costs | W13: =W34 -> 29.27251196 | X13: 30.82519544 | Y13: 33.57828885 | Z13: 32.16722722 | AA13: 32.9654244 | AB13: 33.93066163 | AC13: 35.66096389 | AD13: 36.5891368 | AE13: 37.59403352 | AF13: 37.93483865 | AG13: 38.35269891 | AH13: =AH34 -> 34.01458295 | AI13: =AI34 -> 34.01458295 | AJ13: =AJ34 -> 34.01458295 | AK13: =AK34 -> 34.01458295 | AL13: =AL34 -> 34.01458295
D14: Total Energy costs | W14: =W92 -> 3.570115 | X14: 4.95095696 | Y14: 4.54401902 | Z14: 4.32221761 | AA14: 3.94631449 | AB14: 3.725839832 | AC14: 3.774586386 | AD14: 4.135482991 | AE14: 4.634649764 | AF14: =AF92 -> 4.67086786 | AG14: 4.496845111 | AH14: =AH92 -> 4.496845111 | AI14: =AI92 -> 4.496845111 | AJ14: =AJ92 -> 4.496845111 | AK14: =AK92 -> 4.496845111 | AL14: =AL92 -> 4.496845111
D15: Total IT costs | W15: =W103 -> 5.9454777 | X15: 6.052095676 | Y15: 6.317601728 | Z15: 6.374222179 | AA15: 6.796753001 | AB15: 7.371592002 | AC15: 8.276329421 | AD15: 8.65262912 | AE15: 8.817126931 | AF15: 8.74419681 | AG15: 8.798487 | AH15: =AH103 -> 8.798487 | AI15: =AI103 -> 8.798487 | AJ15: =AJ103 -> 8.798487 | AK15: =AK103 -> 8.798487 | AL15: =AL103 -> 8.798487
D16: Total Chemical costs | W16: =W114 -> 3.758725203 | X16: 3.987477672 | Y16: 3.732444499 | Z16: 4.080469969 | AA16: 4.543080004 | AB16: 4.97941228 | AC16: 4.837626705 | AD16: 4.896582194 | AE16: 4.837626705 | AF16: 4.896582194 | AG16: 4.837626705 | AH16: =AH114 -> 4.837626705 | AI16: =AI114 -> 4.837626705 | AJ16: =AJ114 -> 4.837626705 | AK16: =AK114 -> 4.837626705 | AL16: =AL114 -> 4.837626705
C21: Labour assumptions
D23: Current FTEs (at 30 June) | W23: 235.56 | X23: 257.68 | Y23: 259.68 | Z23: 264.31 | AA23: 266.4947368
D24: Actual and forecast labour costs for current FTEs ($m) | W24: 29.27251196 | X24: 30.82519544 | Y24: 33.57828885 | Z24: 32.16722722 | AA24: 32.9654244 | AB24: 32.33051609 | AC24: 32.71224874 | AD24: 33.08950689 | AE24: 33.49060828 | AF24: 33.77987442 | AG24: 34.01458295 | AH24: 34.01458295 | AI24: 34.01458295 | AJ24: 34.01458295 | AK24: 34.01458295 | AL24: 34.01458295
D25: Cost per FTE ($000) | W25: =+W24/W23*10^3 -> 124.2677533 | X25: =+X24/X23*10^3 -> 119.6258749 | Y25: =+Y24/Y23*10^3 -> 129.3064112 | Z25: =+Z24/Z23*10^3 -> 121.7026492 | AA25: =+AA24/AA23*10^3 -> 123.7000955 | AB25: =+AB24/$AA$23*10^3 -> 121.3176533 | AC25: 122.7500743 | AD25: 124.1657051 | AE25: 125.6708057 | AF25: 126.7562535 | AG25: 127.6369783 | AH25: 127.6369783 | AI25: 127.6369783 | AJ25: 127.6369783 | AK25: 127.6369783 | AL25: 127.6369783
D26: Annual growth in labour costs for current FTEs | X26: =+X25/W25-1 -> -0.03735384518 | Y26: 0.08092343157 | Z26: -0.05880421449 | AA26: 0.01641251273 | AB26: -0.01925982518 | AC26: 0.01180719317 | AD26: 0.01153262678 | AE26: 0.01212170941 | AF26: 0.008637231482 | AG26: 0.006948176621 | AH26: =+AH25/AG25-1 -> 0 | AI26: =+AI25/AH25-1 -> 0 | AJ26: =+AJ25/AI25-1 -> 0 | AK26: =+AK25/AJ25-1 -> 0 | AL26: =+AL25/AK25-1 -> 0
D28: Change in FTEs in future periods (net no. annual change) | AB28: 32.45842105 | AC28: 4.4 | AD28: 2.2 | AE28: 7.9 | AF28: 1.8 | AG28: 2.4 | AH28: 0 | AI28: 0 | AJ28: 0 | AK28: 0 | AL28: 0
D29: Increase or decrease in labour costs ($m) | AB29: 1.600145537 | AC29: 2.948715149 | AD29: 3.499629901 | AE29: 4.103425239 | AF29: 4.154964232 | AG29: 4.338115962 | AH29: 0 | AI29: 0 | AJ29: 0 | AK29: 0 | AL29: 0
D33: Total FTEs | W33: =+W23 -> 235.56 | X33: 257.68 | Y33: 259.68 | Z33: 264.31 | AA33: 266.4947368 | AB33: =+$AA$23+SUM($AB28:AB28) -> 298.9531579 | AC33: =+$AA$23+SUM($AB28:AC28) -> 303.3531579 | AD33: =+$AA$23+SUM($AB28:AD28) -> 305.5531579 | AE33: =+$AA$23+SUM($AB28:AE28) -> 313.4531579 | AF33: =+$AA$23+SUM($AB28:AF28) -> 315.2531579 | AG33: =+$AA$23+SUM($AB28:AG28) -> 317.6531579 | AH33: =+$AA$23+SUM($AB28:AH28) -> 317.6531579 | AI33: =+$AA$23+SUM($AB28:AI28) -> 317.6531579 | AJ33: =+$AA$23+SUM($AB28:AJ28) -> 317.6531579 | AK33: =+$AA$23+SUM($AB28:AK28) -> 317.6531579 | AL33: =+$AA$23+SUM($AB28:AL28) -> 317.6531579
D34: Total labour costs ($m) | W34: 29.27251196 | X34: 30.82519544 | Y34: 33.57828885 | Z34: 32.16722722 | AA34: 32.9654244 | AB34: =+AB29+AB24 -> 33.93066163 | AC34: 35.66096389 | AD34: 36.5891368 | AE34: 37.59403352 | AF34: 37.93483865 | AG34: 38.35269891 | AH34: 34.01458295 | AI34: 34.01458295 | AJ34: 34.01458295 | AK34: 34.01458295 | AL34: 34.01458295
D35: Cost per FTE | W35: =+W34/W33 -> 0.1242677533 | X35: 0.1196258749 | Y35: 0.1293064112 | Z35: 0.1217026492 | AA35: 0.1237000955 | AB35: 0.1134982546 | AC35: 0.1175559343 | AD35: 0.1197472055 | AE35: 0.1199350926 | AF35: 0.1203313518 | AG35: 0.1207376598 | AH35: =+AH34/AH33 -> 0.1070808903 | AI35: =+AI34/AI33 -> 0.1070808903 | AJ35: =+AJ34/AJ33 -> 0.1070808903 | AK35: =+AK34/AK33 -> 0.1070808903 | AL35: =+AL34/AL33 -> 0.1070808903
D36: Annual growth in total labour costs | X36: =+X34/W34-1 -> 0.05304237211 | Y36: 0.08931308875 | Z36: -0.04202303579 | AA36: 0.02481398775 | AB36: 0.02928029121 | AC36: 0.05099524082 | AD36: 0.02602770105 | AE36: 0.02746434635 | AF36: 0.009065404733 | AG36: 0.0110152113 | AH36: =+AH34/AG34-1 -> -0.1131111 | AI36: 0 | AJ36: 0 | AK36: 0 | AL36: 0
D37: Annual growth in total labour costs per FTE | X37: =+X35/W35-1 -> -0.03735384518 | Y37: 0.08092343157 | Z37: -0.05880421449 | AA37: 0.01641251273 | AB37: -0.08247237703 | AC37: 0.03575103143 | AD37: 0.01864024364 | AE37: 0.001569031111 | AF37: 0.00330394705 | AG37: 0.003376576375 | AH37: -0.1131111 | AI37: 0 | AJ37: 0 | AK37: 0 | AL37: 0
C42: Energy assumptions
D44: Electricity - traditional sources
D46: BASE LOAD
D48: Large sites
D49: Total kWh | W49: 22786082.05 | X49: 21487401.59 | Y49: 19840108.29 | Z49: 20741048.24 | AA49: 22597931.85 | AB49: 19503580.53 | AC49: 19044127.07 | AD49: 18981700.73 | AE49: 18745462.84 | AF49: 18989153.85 | AG49: 18513012.85 | AH49: 18513012.85 | AI49: 18513012.85 | AJ49: 18513012.85 | AK49: 18513012.85 | AL49: 18513012.85
D50: Total electricity costs ($m) | W50: 2.999480481 | X50: 4.15961356 | Y50: 3.817719137 | Z50: 3.631369677 | AA50: 3.315549579 | AB50: 2.994830778 | AC50: 2.994185874 | AD50: 3.314902223 | AE50: 3.76629123 | AF50: 3.744187666 | AG50: 3.505706781 | AH50: 3.505706781 | AI50: 3.505706781 | AJ50: 3.505706781 | AK50: 3.505706781 | AL50: 3.505706781
D51: Average c/kWh | W51: =+W50/W49*100*10^6 -> 13.16365172 | X51: 19.35838329 | Y51: 19.24243094 | Z51: 17.50812994 | AA51: 14.671916 | AB51: 15.35528707 | AC51: =+AC50/AC49*100*10^6 -> 15.7223582 | AD51: 17.46367342 | AE51: 20.0917484 | AF51: 19.71750661 | AG51: 18.93644654 | AH51: 18.93644654 | AI51: 18.93644654 | AJ51: 18.93644654 | AK51: 18.93644654 | AL51: 18.93644654
D52: % increase p.a. | X52: =+X51/W51-1 -> 0.4705937006 | Y52: =+Y51/X51-1 -> -0.005989774378 | Z52: =+Z51/Y51-1 -> -0.09012899727 | AA52: =+AA51/Z51-1 -> -0.1619941106 | AB52: =+AB51/AA51-1 -> 0.0465768115 | AC52: =+AC51/AB51-1 -> 0.02390519476 | AD52: 0.1107540738 | AE52: 0.1504880975 | AF52: -0.01862664133 | AG52: -0.03961251742 | AH52: 0 | AI52: 0 | AJ52: 0 | AK52: 0 | AL52: 0
D54: Medium sites
D55: Total kWh
D56: Total electricity costs ($m)
D57: Average c/kWh | W57: =+W56/W55*100*10^6 ->  | AC57: =+AC56/AC55*100*10^6 -> 
D58: % increase p.a. | X58: =+X57/W57-1 ->  | Y58: =+Y57/X57-1 ->  | Z58: =+Z57/Y57-1 ->  | AA58: =+AA57/Z57-1 ->  | AB58: =+AB57/AA57-1 ->  | AC58: =+AC57/AB57-1 -> 
D60: Small sites
D61: Total kWh | W61: 2307735.965 | X61: 2555049.57 | Y61: 2679316.122 | Z61: 2757686.943 | AA61: 2813797.604 | AB61: 3107826.278 | AC61: 3347128.901 | AD61: 3544857.827 | AE61: 3782811.88 | AF61: 4066088.394 | AG61: 4379177.201 | AH61: 4379177.201 | AI61: 4379177.201 | AJ61: 4379177.201 | AK61: 4379177.201 | AL61: 4379177.201
D62: Total electricity costs ($m) | W62: 0.5706345191 | X62: 0.7913434004 | Y62: 0.7262998834 | Z62: 0.6908479327 | AA62: 0.6307649112 | AB62: 0.731009054 | AC62: 0.7804005125 | AD62: 0.8205807677 | AE62: 0.8683585345 | AF62: 0.9266801936 | AG62: 0.9911383298 | AH62: 0.9911383298 | AI62: 0.9911383298 | AJ62: 0.9911383298 | AK62: 0.9911383298 | AL62: 0.9911383298
D63: Average c/kWh | W63: =+W62/W61*100*10^6 -> 24.72702804 | X63: 30.97174355 | Y63: 27.1076592 | Z63: 25.05171714 | AA63: 22.41685438 | AB63: 23.52155457 | AC63: =+AC62/AC61*100*10^6 -> 23.31552012 | AD63: 23.14848177 | AE63: 22.95537188 | AF63: 22.79045864 | AG63: 22.63298068 | AH63: 22.63298068 | AI63: 22.63298068 | AJ63: 22.63298068 | AK63: 22.63298068 | AL63: 22.63298068
D64: % increase p.a. | X64: =+X63/W63-1 -> 0.2525461411 | Y64: =+Y63/X63-1 -> -0.1247616021 | Z64: =+Z63/Y63-1 -> -0.0758435852 | AA64: =+AA63/Z63-1 -> -0.1051769327 | AB64: =+AB63/AA63-1 -> 0.04927989359 | AC64: =+AC63/AB63-1 -> -0.008759389211 | AD64: -0.007164255995 | AE64: -0.008342226834 | AF64: -0.007184080741 | AG64: -0.006909819445 | AH64: 0 | AI64: 0 | AJ64: 0 | AK64: 0 | AL64: 0
D67: NEW PROJECTS
D69: Large sites
D70: Total kWh
D71: Total electricity costs ($m)
D72: Average c/kWh | W72: =+W71/W70*100*10^6 ->  | AC72: =+AC71/AC70*100*10^6 -> 
D73: % increase p.a. | X73: =+X72/W72-1 ->  | Y73: =+Y72/X72-1 ->  | Z73: =+Z72/Y72-1 ->  | AA73: =+AA72/Z72-1 ->  | AB73: =+AB72/AA72-1 ->  | AC73: =+AC72/AB72-1 -> 
D75: Medium sites
D76: Total kWh
D77: Total electricity costs ($m)
D78: Average c/kWh | W78: =+W77/W76*100*10^6 ->  | AC78: =+AC77/AC76*100*10^6 -> 
D79: % increase p.a. | X79: =+X78/W78-1 ->  | Y79: =+Y78/X78-1 ->  | Z79: =+Z78/Y78-1 ->  | AA79: =+AA78/Z78-1 ->  | AB79: =+AB78/AA78-1 ->  | AC79: =+AC78/AB78-1 -> 
D81: Small sites
D82: Total kWh
D83: Total electricity costs ($m)
D84: Average c/kWh | W84: =+W83/W82*100*10^6 ->  | X84: =+X83/X82*100*10^6 ->  | AH84: =+AH83/AH82*100*10^6 ->  | AI84: =+AI83/AI82*100*10^6 ->  | AJ84: =+AJ83/AJ82*100*10^6 ->  | AK84: =+AK83/AK82*100*10^6 ->  | AL84: =+AL83/AL82*100*10^6 -> 
D85: % increase p.a. | X85: =+X84/W84-1 ->  | Y85: =+Y84/X84-1 ->  | Z85: =+Z84/Y84-1 ->  | AA85: =+AA84/Z84-1 ->  | AB85: =+AB84/AA84-1 ->  | AC85: =+AC84/AB84-1 -> 
D88: Greenhouse Gas Offsets
D89: % increase p.a. | X89: =X88/W88-1 ->  | AH89: =AH88/AG88-1 ->  | AI89: =AI88/AH88-1 ->  | AJ89: =AJ88/AI88-1 ->  | AK89: =AK88/AJ88-1 ->  | AL89: =AL88/AK88-1 -> 
D92: TOTAL ENERGY COSTS | W92: =+SUM(W50,W56,W62,W71,W77,W83,W88) -> 3.570115 | X92: 4.95095696 | Y92: 4.54401902 | Z92: 4.32221761 | AA92: 3.94631449 | AB92: 3.725839832 | AC92: 3.774586386 | AD92: 4.135482991 | AE92: 4.634649764 | AF92: 4.67086786 | AG92: =+SUM(AG50,AG56,AG62,AG71,AG77,AG83,AG88) -> 4.496845111 | AH92: 4.496845111 | AI92: 4.496845111 | AJ92: 4.496845111 | AK92: 4.496845111 | AL92: 4.496845111
D93: % increase p.a. | W93: =W92/V92-1 ->  | X93: 0.3867780058 | Y93: -0.08219379471 | Z93: -0.0488117257 | AA93: -0.08696996633 | AB93: -0.05586849659 | AC93: 0.01308337343 | AD93: 0.09561222556 | AE93: 0.1207033795 | AF93: 0.00781463485 | AG93: -0.03725704816 | AH93: =AH92/AG92-1 -> 0 | AI93: =AI92/AH92-1 -> 0 | AJ93: =AJ92/AI92-1 -> 0 | AK93: =AK92/AJ92-1 -> 0 | AL93: =AL92/AK92-1 -> 0
C98: IT cost assumptions
D100: Water related IT costs | W100: 0 | X100: 0 | Y100: 0 | Z100: 0 | AA100: 0 | AB100: 0 | AC100: 0 | AD100: 0 | AE100: 0 | AF100: 0 | AG100: 0 | AH100: 0 | AI100: 0 | AJ100: 0 | AK100: 0 | AL100: 0
D101: Sewerage and trade waste related IT costs | W101: 0 | X101: 0 | Y101: 0 | Z101: 0 | AA101: 0 | AB101: 0 | AC101: 0 | AD101: 0 | AE101: 0 | AF101: 0 | AG101: 0 | AH101: 0 | AI101: 0 | AJ101: 0 | AK101: 0 | AL101: 0
D102: Other IT costs | W102: 5.9454777 | X102: 6.052095676 | Y102: 6.317601728 | Z102: 6.374222179 | AA102: 6.796753001 | AB102: 7.371592002 | AC102: 8.276329421 | AD102: 8.65262912 | AE102: 8.817126931 | AF102: 8.74419681 | AG102: 8.798487 | AH102: 8.798487 | AI102: 8.798487 | AJ102: 8.798487 | AK102: 8.798487 | AL102: 8.798487
D103: Total IT costs | W103: =SUM(W100:W102) -> 5.9454777 | X103: 6.052095676 | Y103: 6.317601728 | Z103: 6.374222179 | AA103: 6.796753001 | AB103: 7.371592002 | AC103: =SUM(AC100:AC102) -> 8.276329421 | AD103: 8.65262912 | AE103: 8.817126931 | AF103: 8.74419681 | AG103: 8.798487 | AH103: 8.798487 | AI103: 8.798487 | AJ103: 8.798487 | AK103: 8.798487 | AL103: 8.798487
D104: % increase p.a. | X104: =X103/W103-1 -> 0.01793261724 | Y104: 0.04387010152 | Z104: 0.00896233307 | AA104: 0.06628743249 | AB104: 0.08457553205 | AC104: 0.1227329751 | AD104: 0.04546697941 | AE104: 0.0190113096 | AF104: -0.008271415601 | AG104: 0.006208710955 | AH104: =AH103/AG103-1 -> 0 | AI104: =AI103/AH103-1 -> 0 | AJ104: =AJ103/AI103-1 -> 0 | AK104: =AK103/AJ103-1 -> 0 | AL104: =AL103/AK103-1 -> 0
C109: Chemical cost assumptions
D111: Water related chemical costs | W111: 1.634136644 | X111: 1.729549645 | Y111: 1.685239206 | Z111: 1.942208753 | AA111: 2.346175728 | AB111: 2.09666277 | AC111: 2.16866277 | AD111: 2.16866277 | AE111: 2.16866277 | AF111: 2.16866277 | AG111: 2.16866277 | AH111: 2.16866277 | AI111: 2.16866277 | AJ111: 2.16866277 | AK111: 2.16866277 | AL111: 2.16866277
D112: Sewerage and trade waste related chemical costs | W112: 2.124588559 | X112: 2.257928028 | Y112: 2.047205292 | Z112: 2.138261216 | AA112: 2.196904276 | AB112: 2.88274951 | AC112: 2.668963935 | AD112: 2.727919424 | AE112: 2.668963935 | AF112: 2.727919424 | AG112: 2.668963935 | AH112: 2.668963935 | AI112: 2.668963935 | AJ112: 2.668963935 | AK112: 2.668963935 | AL112: 2.668963935
D113: Other chemical costs | W113: 0 | X113: 0 | Y113: 0 | Z113: 0 | AA113: 0 | AB113: 0 | AC113: 0 | AD113: 0 | AE113: 0 | AF113: 0 | AG113: 0 | AH113: 0 | AI113: 0 | AJ113: 0 | AK113: 0 | AL113: 0
D114: Total chemical costs | W114: =SUM(W111:W113) -> 3.758725203 | X114: 3.987477672 | Y114: 3.732444499 | Z114: 4.080469969 | AA114: 4.543080004 | AB114: 4.97941228 | AC114: =SUM(AC111:AC113) -> 4.837626705 | AD114: 4.896582194 | AE114: 4.837626705 | AF114: 4.896582194 | AG114: 4.837626705 | AH114: 4.837626705 | AI114: 4.837626705 | AJ114: 4.837626705 | AK114: 4.837626705 | AL114: 4.837626705
D115: % increase p.a. | X115: =X114/W114-1 -> 0.06085905641 | Y115: -0.06395852077 | Z115: 0.09324330754 | AA115: 0.1133717534 | AB115: 0.0960432735 | AC115: -0.02847435935 | AD115: 0.01218686199 | AE115: -0.01204013058 | AF115: 0.01218686199 | AG115: -0.01204013058 | AH115: =AH114/AG114-1 -> 0 | AI115: =AI114/AH114-1 -> 0 | AJ115: =AJ114/AI114-1 -> 0 | AK115: =AK114/AJ114-1 -> 0 | AL115: =AL114/AK114-1 -> 0

Sheet Opex_FO
A1: 80 | B1: Operating Expenditure - Forecast
B2: =Model_Name -> Gippsland Water
B3: Go to Table of Contents
L4: FIRST REG PERIOD | P4: SECOND REG PERIOD | U4: THIRD REG PERIOD | Z4: FOURTH REG PERIOD | AE4: FIFTH REG PERIOD | AJ4: SIXTH REG PERIOD
K5: 2006 | L5: 2007 | M5: 2008 | N5: 2009 | O5: 2010 | P5: 2011 | Q5: 2012 | R5: 2013 | S5: 2014 | T5: 2015 | U5: 2016 | V5: 2017 | W5: 2018 | X5: 2019 | Y5: 2020 | Z5: 2021 | AA5: 2022 | AB5: 2023 | AC5: 2024 | AD5: 2025 | AE5: 2026 | AF5: 2027 | AG5: 2028 | AH5: 2029 | AI5: 2030 | AJ5: 2031 | AK5: 2032 | AL5: 2033
B6: =Expenditure_Detail!$B$6 -> $m, 01/01/23 | K6: =+CONCATENATE(K5-1,"-",RIGHT(K5,2)) -> 2005-06 | L6: =+CONCATENATE(L5-1,"-",RIGHT(L5,2)) -> 2006-07 | M6: 2007-08 | N6: 2008-09 | O6: 2009-10 | P6: 2010-11 | Q6: 2011-12 | R6: 2012-13 | S6: 2013-14 | T6: 2014-15 | U6: 2015-16 | V6: 2016-17 | W6: 2017-18 | X6: 2018-19 | Y6: 2019-20 | Z6: 2020-21 | AA6: 2021-22 | AB6: 2022-23 | AC6: 2023-24 | AD6: 2024-25 | AE6: 2025-26 | AF6: 2026-27 | AG6: 2027-28 | AH6: =+CONCATENATE(AH5-1,"-",RIGHT(AH5,2)) -> 2028-29 | AI6: =+CONCATENATE(AI5-1,"-",RIGHT(AI5,2)) -> 2029-30 | AJ6: =+CONCATENATE(AJ5-1,"-",RIGHT(AJ5,2)) -> 2030-31 | AK6: =+CONCATENATE(AK5-1,"-",RIGHT(AK5,2)) -> 2031-32 | AL6: =+CONCATENATE(AL5-1,"-",RIGHT(AL5,2)) -> 2032-33
C9: Parameters | G9: 4th period | I9: 5th period
D11: Cost efficiency improvement rate (% per annum) | G11: =Determination_Lookup!X33 -> 0.01002742186 | I11: =IFERROR(AVERAGE(AC11:AG11),"-") -> 0.004544184633 | AC11: 0.02850449144 | AD11: 0.002173368876 | AE11: -0.005386689412 | AF11: -0.002714557455 | AG11: 0.0001443097167 | AH11: -0.001165982473 | AI11: 0.001644175823 | AJ11: -0.0007822697047 | AK11: 0.009832437825 | AL11: -0.009625386183
D13: Opex growth forecast (% per annum) | G13: =Determination_Lookup!X34 -> 0.01229960541 | I13: =IFERROR(AVERAGE(AC13:AG13),"-") -> 0 | Y13: =IF(Y15="","",Y15/X15-1) -> 0.01490706005 | Z13: =IF(Z15="","",Z15/Y15-1) -> 0.02331753818 | AA13: =IF(AA15="","",AA15/Z15-1) -> 0.01565703888 | AB13: 0.012 | AC13: 0 | AD13: 0 | AE13: 0 | AF13: 0 | AG13: 0 | AH13: 0 | AI13: 0 | AJ13: 0 | AK13: 0 | AL13: 0
F14: Net baseline opex growth | G14: =IFERROR(G13-G11,"-") -> 0.002272183556 | I14: =IFERROR(I13-I11,"-") -> -0.004544184633
D15: Water customers (No.) - Residential & Non-Residential - [BED 1] | W15: =+Determination_Lookup!M20 -> 69788 | X15: =+Determination_Lookup!N20 -> 70906 | Y15: =+Determination_Lookup!O20 -> 71963 | Z15: 73641 | AA15: 74794 | AB15: 75867.5 | AC15: 77077.5 | AD15: 78287.5 | AE15: 79497.5 | AF15: 80707.5 | AG15: 81917.5 | AH15: 83127.5 | AI15: 84337.5 | AJ15: 85547.5 | AK15: 86757.5 | AL15: 87967.5
D16: Water customer change (% per annum) | Z16: =Z15/Y15-1 -> 0.02331753818 | AA16: 0.01565703888 | AB16: 0.01435275557 | AC16: 0.01594885821 | AD16: 0.01569848529 | AE16: 0.01545585183 | AF16: 0.01522060442 | AG16: 0.01499241087 | AH16: 0.01477095859 | AI16: 0.0145559532 | AJ16: 0.01434711724 | AK16: 0.0141441889 | AL16: 0.01394692102
D17: Sewer customers (No.) - Residential & Non-Residential - [BED 2] | W17: =+Determination_Lookup!M21 -> 62469 | X17: =+Determination_Lookup!N21 -> 63600 | Y17: =+Determination_Lookup!O21 -> 64559 | Z17: 66195 | AA17: 67261 | AB17: 68386.5 | AC17: 69569.5 | AD17: 70752.5 | AE17: 71935.5 | AF17: 73118.5 | AG17: 74301.5 | AH17: 75484.5 | AI17: 76667.5 | AJ17: 77850.5 | AK17: 79033.5 | AL17: 80216.5
D18: Sewer customer Change (% per annum) | Z18: =Z17/Y17-1 -> 0.0253411608 | AA18: =AA17/Z17-1 -> 0.01610393534 | AB18: =AB17/AA17-1 -> 0.01673332243 | AC18: =AC17/AB17-1 -> 0.01729873586 | AD18: =AD17/AC17-1 -> 0.01700457816 | AE18: =AE17/AD17-1 -> 0.01672025723 | AF18: =AF17/AE17-1 -> 0.01644528779 | AG18: =AG17/AF17-1 -> 0.01617921593 | AH18: =AH17/AG17-1 -> 0.01592161666 | AI18: =AI17/AH17-1 -> 0.01567209162 | AJ18: =AJ17/AI17-1 -> 0.01543026706 | AK18: =AK17/AJ17-1 -> 0.01519579193 | AL18: =AL17/AK17-1 -> 0.01496833621
D19: Total metered volume of water delivered to customers (ML) - [BED 10] | W19: =+Determination_Lookup!M22 -> 15875 | X19: =+Determination_Lookup!N22 -> 16882 | Y19: =+Determination_Lookup!O22 -> 15527.5 | Z19: 40922.6 | AA19: 57384 | AB19: 64339.39373 | AC19: 67604.90856 | AD19: 67786.95106 | AE19: 67975.79576 | AF19: 68152.03385 | AG19: 68340.30398 | AH19: 67235.95088 | AI19: 67431.59778 | AJ19: 67627.24468 | AK19: 67822.89157 | AL19: 68018.53847
D20: Residential, Non-Residential & Recycled (Residential & Non-Residential)
D21: Total metered volume change (% per annum) | X21: =X19/W19-1 -> 0.06343307087 | Y21: -0.08023338467 | Z21: 1.635491869 | AA21: 0.4022569436 | AB21: 0.121207893 | AC21: 0.05075451664 | AD21: 0.002692740838 | AE21: 0.002785856209 | AF21: 0.002592659547 | AG21: 0.002762501935 | AH21: -0.01615961646 | AI21: 0.00290985546 | AJ21: 0.002901412769 | AK21: 0.002893018927 | AL21: 0.002884673511
C24: Baseline Forecast
D26: Baseline year - total prescribed operating expenditure in 2021-22: | AA26: =+Opex_Breakdown!AA37 -> 85.97630368
D28: Less non-controllable expenditure items incurred in 2021-22:
E29: External bulk water charges (excl. temporary purchases) | AA29: =+Opex_Breakdown!AA29 -> 0
E30: External temporary water purchases | AA30: =+Opex_Breakdown!AA30 -> 0 | AC30: Comparison with approved 2021-22 total controllable opex
E31: Licence fees | AA31: =+Opex_Breakdown!AA31 -> 0.552486063 | AC31: per 2018 determination model
E32: Environment Contribution | AA32: =+Opex_Breakdown!AA32 -> 6.25542726
E33: Other non-controllable | AA33: =+Opex_Breakdown!AA33 -> 0
AA34: =SUM(AA29:AA33) -> 6.807913323 | AD34: 2021-22 | AE34: Difference | AF34: %
D36: Baseline year - total controllable operating expenditure in 2021-22: | AA36: =+AA26-AA34 -> 79.16839036 | AD36: =Determination_Lookup!Q18 -> 79.4514098 | AE36: =+AA52-AD36 -> -0.7691369507 | AF36: =+AE36/AD36 -> -0.00968059538
D38: Adjustments for non-recurring expenditure items incurred in 2021-22 and any efficiency savings to be realised from 2021-22: | AC38: ($, 2022-23)
D40: 1 | E40: Price Submission Consultant Costs | AA40: 0.9040887692
D41: 2 | E41: Extreme Weather Events | AA41: 0.2
D42: 3 | E42: Training & Devlopment (Uplift to normal BAU year) | AA42: -0.3527299344
D43: 4 | E43: Covid Affected discretionary spend (Fleet, Travel & Accomodation, Groceries & Refreshemnt & Functions (Uplift to normal BAU year) | AA43: -0.2652413285
D44: 5
D45: 6
D46: 7
D47: 8
D48: 9
D49: 10
AA50: =SUM(AA40:AA49) -> 0.4861175063
D52: Adjusted baseline controllable operating expenditure (2021-22) | AA52: =+AA36-AA50 -> 78.68227285
D54: Adjusted baseline controllable operating expenditure (Forecast) | AB54: =+AA52*(1+$AB$13-$G$11) -> 78.83747978 | AC54: =+AB$54*(1+AC$13-AC$11) -> 76.59025751 | AD54: 76.42379863 | AE54: 76.8354699 | AF54: 77.0440442 | AG54: 77.03292599 | AH54: 77.12274503 | AI54: 76.99594168 | AJ54: 77.05617327 | AK54: 76.29852324 | AL54: 77.03292599
C58: Operating expenditure - reconciliation
D61: Adjusted baseline controllable operating expenditure (Forecast) | AC61: =+AC54 -> 76.59025751 | AD61: 76.42379863 | AE61: 76.8354699 | AF61: 77.0440442 | AG61: 77.03292599 | AH61: 77.12274503 | AI61: 76.99594168 | AJ61: 77.05617327 | AK61: 76.29852324 | AL61: 77.03292599
H62: Controllable
D63: Forecast variations to baseline operating expenditure (above or below baseline) | H63: only
D65: 1 | E65: Chemicals | H65: Water | AC65: 0.168 | AD65: 0.168 | AE65: 0.168 | AF65: 0.168 | AG65: 0.168 | AH65: 0.168 | AI65: 0.168 | AJ65: 0.168 | AK65: 0.168 | AL65: 0.168
D66: 2 | E66: Chemicals | H66: Sewerage | AC66: 0.252 | AD66: 0.252 | AE66: 0.252 | AF66: 0.252 | AG66: 0.252 | AH66: 0.252 | AI66: 0.252 | AJ66: 0.252 | AK66: 0.252 | AL66: 0.252
D67: 3 | E67: Community Involvement | H67: Water | AC67: 0.1512794261 | AD67: 0.1395589292 | AE67: 0.1526779278 | AF67: 0.1407286112 | AG67: 0.1536149917 | AH67: 0.1536149917 | AI67: 0.1536149917 | AJ67: 0.1536149917 | AK67: 0.1536149917 | AL67: 0.1536149917
D68: 4 | E68: Community Involvement | H68: Sewerage | AC68: 0.2142560238 | AD68: 0.1976563636 | AE68: 0.2162367123 | AF68: 0.1993129764 | AG68: 0.2175638696 | AH68: 0.2175638696 | AI68: 0.2175638696 | AJ68: 0.2175638696 | AK68: 0.2175638696 | AL68: 0.2175638696
D69: 5 | E69: Electricity Prices | H69: Water | AC69: 0 | AD69: 0 | AE69: 0.2125184744 | AF69: 0.2285510663 | AG69: 0.214595495 | AH69: 0.214595495 | AI69: 0.214595495 | AJ69: 0.214595495 | AK69: 0.214595495 | AL69: 0.214595495
D70: 6 | E70: Electricity Prices | H70: Sewerage | AC70: 0 | AD70: 0 | AE70: 0.2756840168 | AF70: 0.292218008 | AG70: 0.1296589219 | AH70: 0.1296589219 | AI70: 0.1296589219 | AJ70: 0.1296589219 | AK70: 0.1296589219 | AL70: 0.1296589219
D71: 7 | E71: Growth | H71: Water | AC71: 0.1148600592 | AD71: 0.1155391752 | AE71: 0.1531289699 | AF71: 0.15389833 | AG71: 0.1922080001 | AH71: 0.1922080001 | AI71: 0.1922080001 | AJ71: 0.1922080001 | AK71: 0.1922080001 | AL71: 0.1922080001
D72: 8 | E72: Growth | H72: Sewerage | AC72: 0.7548923619 | AD72: 0.7768721889 | AE72: 0.8616373592 | AF72: 0.8627269988 | AG72: 0.9169847243 | AH72: 0.9169847243 | AI72: 0.9169847243 | AJ72: 0.9169847243 | AK72: 0.9169847243 | AL72: 0.9169847243
D73: 9 | E73: Business Continuity | H73: Water | AC73: 2.421364901 | AD73: 2.665586461 | AE73: 2.847624437 | AF73: 2.879476064 | AG73: 2.995185418 | AH73: 2.995185418 | AI73: 2.995185418 | AJ73: 2.995185418 | AK73: 2.995185418 | AL73: 2.995185418
D74: 10 | E74: Business Continuity | H74: Sewerage | AC74: 1.318392861 | AD74: 1.62943543 | AE74: 1.889353207 | AF74: 1.83327035 | AG74: 1.863406832 | AH74: 1.863406832 | AI74: 1.863406832 | AJ74: 1.863406832 | AK74: 1.863406832 | AL74: 1.863406832
D75: 11 | E75: IT Investment | H75: Water | AC75: 0.4407604409 | AD75: 0.6087576595 | AE75: 0.6282163773 | AF75: 0.6421281552 | AG75: 0.6560597109 | AH75: 0.6560597109 | AI75: 0.6560597109 | AJ75: 0.6560597109 | AK75: 0.6560597109 | AL75: 0.6560597109
D76: 12 | E76: IT Investment | H76: Sewerage | AC76: 0.6242460191 | AD76: 0.8621793389 | AE76: 0.8897385888 | AF76: 0.9094417454 | AG76: 0.9291729131 | AH76: 0.9291729131 | AI76: 0.9291729131 | AJ76: 0.9291729131 | AK76: 0.9291729131 | AL76: 0.9291729131
D77: 13 | E77: Regulatory Costs | H77: Water | AC77: 0.06519443057 | AD77: 0.1182250641 | AE77: 0.09428419553 | AF77: 0.4419772712 | AG77: 0.140575528 | AH77: 0.1036071261 | AI77: 0.1557978111 | AJ77: 0.1310072357 | AK77: 0.442846579 | AL77: 0.140575528
D78: 14 | E78: Regulatory Costs | H78: Sewerage | AC78: 0.09233442926 | AD78: 0.1674413554 | AE78: 0.1335340658 | AF78: 0.6259694077 | AG78: 0.1990961656 | AH78: 0.146738069 | AI78: 0.2206553819 | AJ78: 0.1855446583 | AK78: 0.6272006024 | AL78: 0.1990961656
D79: 15 | E79: Recreation Charges | H79: Water | AC79: -0.057 | AD79: -0.057 | AE79: -0.057 | AF79: -0.057 | AG79: -0.057 | AH79: -0.057 | AI79: -0.057 | AJ79: -0.057 | AK79: -0.057 | AL79: -0.057
D81: Total changes required to baseline operating expenditure | AC81: =SUM(AC65:AC80) -> 6.560580953 | AD81: 7.644251966 | AE81: 8.717634331 | AF81: 9.572698984 | AG81: 8.97112257 | AH81: 8.881796072 | AI81: 9.00790407 | AJ81: 8.948002771 | AK81: 9.701498058 | AL81: 8.97112257
D84: Total controllable operating expenditure | AC84: =+AC81+AC61 -> 83.15083847 | AD84: 84.0680506 | AE84: 85.55310423 | AF84: 86.61674318 | AG84: 86.00404856 | AH84: 86.00454111 | AI84: 86.00384575 | AJ84: 86.00417604 | AK84: 86.0000213 | AL84: 86.00404856
D86: Non-controllable operating expenditure
D87: External bulk water charges (excl. temporary purchases) | AC87: =+Opex_Breakdown!AC29 -> 0 | AD87: =+Opex_Breakdown!AD29 -> 0 | AE87: =+Opex_Breakdown!AE29 -> 0 | AF87: =+Opex_Breakdown!AF29 -> 0 | AG87: =+Opex_Breakdown!AG29 -> 0 | AH87: =+Opex_Breakdown!AH29 -> 0 | AI87: =+Opex_Breakdown!AI29 -> 0 | AJ87: =+Opex_Breakdown!AJ29 -> 0 | AK87: =+Opex_Breakdown!AK29 -> 0 | AL87: =+Opex_Breakdown!AL29 -> 0
D88: External temporary water purchases | AC88: =+Opex_Breakdown!AC30 -> 0 | AD88: =+Opex_Breakdown!AD30 -> 0 | AE88: =+Opex_Breakdown!AE30 -> 0 | AF88: =+Opex_Breakdown!AF30 -> 0 | AG88: =+Opex_Breakdown!AG30 -> 0 | AH88: =+Opex_Breakdown!AH30 -> 0 | AI88: =+Opex_Breakdown!AI30 -> 0 | AJ88: =+Opex_Breakdown!AJ30 -> 0 | AK88: =+Opex_Breakdown!AK30 -> 0 | AL88: =+Opex_Breakdown!AL30 -> 0
D89: Licence fees | AC89: =+Opex_Breakdown!AC31 -> 0.4444305137 | AD89: =+Opex_Breakdown!AD31 -> 0.4444305137 | AE89: =+Opex_Breakdown!AE31 -> 0.4444305137 | AF89: =+Opex_Breakdown!AF31 -> 0.4444305137 | AG89: =+Opex_Breakdown!AG31 -> 0.4444305137 | AH89: =+Opex_Breakdown!AH31 -> 0.4444305137 | AI89: =+Opex_Breakdown!AI31 -> 0.4444305137 | AJ89: =+Opex_Breakdown!AJ31 -> 0.4444305137 | AK89: =+Opex_Breakdown!AK31 -> 0.4444305137 | AL89: =+Opex_Breakdown!AL31 -> 0.4444305137
D90: Environment Contribution | AC90: =+Opex_Breakdown!AC32 -> 5.778640777 | AD90: =+Opex_Breakdown!AD32 -> 5.610330851 | AE90: =+Opex_Breakdown!AE32 -> 5.446923156 | AF90: =+Opex_Breakdown!AF32 -> 5.288274909 | AG90: =+Opex_Breakdown!AG32 -> 5.134247485 | AH90: =+Opex_Breakdown!AH32 -> 5.134247485 | AI90: =+Opex_Breakdown!AI32 -> 5.134247485 | AJ90: =+Opex_Breakdown!AJ32 -> 5.134247485 | AK90: =+Opex_Breakdown!AK32 -> 5.134247485 | AL90: =+Opex_Breakdown!AL32 -> 5.134247485
D91: Other non-controllable | AC91: =+Opex_Breakdown!AC33 -> 0 | AD91: =+Opex_Breakdown!AD33 -> 0 | AE91: =+Opex_Breakdown!AE33 -> 0 | AF91: =+Opex_Breakdown!AF33 -> 0 | AG91: =+Opex_Breakdown!AG33 -> 0 | AH91: =+Opex_Breakdown!AH33 -> 0 | AI91: =+Opex_Breakdown!AI33 -> 0 | AJ91: =+Opex_Breakdown!AJ33 -> 0 | AK91: =+Opex_Breakdown!AK33 -> 0 | AL91: =+Opex_Breakdown!AL33 -> 0
D92: Total non-controllable operating expenditure | AC92: =SUM(AC87:AC91) -> 6.22307129 | AD92: 6.054761365 | AE92: 5.89135367 | AF92: 5.732705423 | AG92: 5.578677998 | AH92: =SUM(AH87:AH91) -> 5.578677998 | AI92: =SUM(AI87:AI91) -> 5.578677998 | AJ92: =SUM(AJ87:AJ91) -> 5.578677998 | AK92: =SUM(AK87:AK91) -> 5.578677998 | AL92: =SUM(AL87:AL91) -> 5.578677998
D95: Total prescribed operating expenditure | AC95: =+AC92+AC84 -> 89.37390976 | AD95: 90.12281196 | AE95: 91.4444579 | AF95: 92.3494486 | AG95: 91.58272656 | AH95: 91.5832191 | AI95: 91.58252375 | AJ95: 91.58285404 | AK95: 91.5786993 | AL95: 91.58272656
AB98: To reconcile to 'Opex_Breakdown' tab row 37 >> | AC98: =+Opex_Breakdown!AC37 -> 89.37390976 | AD98: =+Opex_Breakdown!AD37 -> 90.12372478 | AE98: =+Opex_Breakdown!AE37 -> 91.44311322 | AF98: =+Opex_Breakdown!AF37 -> 92.34696016 | AG98: =+Opex_Breakdown!AG37 -> 91.58029909 | AH98: =+Opex_Breakdown!AH37 -> 91.58029909 | AI98: =+Opex_Breakdown!AI37 -> 91.58029909 | AJ98: =+Opex_Breakdown!AJ37 -> 91.58029909 | AK98: =+Opex_Breakdown!AK37 -> 91.58029909 | AL98: =+Opex_Breakdown!AL37 -> 91.58029909
AB99: Difference | AC99: =+AC98-AC95 -> 0 | AD99: 0.0009128149279 | AE99: -0.001344678497 | AF99: -0.00248844191 | AG99: -0.002427472723 | AH99: -0.002920015752 | AI99: -0.002224660887 | AJ99: -0.002554954448 | AK99: 0.001599790869 | AL99: -0.002427472723
AB100: Test | AC100: =IF(ROUND(AC98,2)=ROUND(AC95,2),0,1) -> 0 | AD100: =IF(ROUND(AD98,2)=ROUND(AD95,2),0,1) -> 0 | AE100: 0 | AF100: 0 | AG100: 0 | AH100: 0 | AI100: 0 | AJ100: 0 | AK100: 0 | AL100: 0
AC139: =+AC$160 -> 2023-24 | AD139: 2024-25 | AE139: 2025-26 | AF139: 2026-27 | AG139: 2027-28 | AH139: 2028-29 | AI139: 2029-30 | AJ139: 2030-31 | AK139: 2031-32 | AL139: 2032-33
AB140: Total controllable opex | AC140: =+AC84 -> 83.15083847 | AD140: 84.0680506 | AE140: 85.55310423 | AF140: 86.61674318 | AG140: 86.00404856 | AH140: 86.00454111 | AI140: 86.00384575 | AJ140: 86.00417604 | AK140: 86.0000213 | AL140: 86.00404856
AB141: Change - $ | AD141: =+AD140-AC140 -> 0.9172121309 | AE141: 1.485053632 | AF141: 1.06363895 | AG141: -0.6126946177 | AH141: 0.0004925430292 | AI141: -0.0006953548648 | AJ141: 0.0003302935608 | AK141: -0.004154745317 | AL141: 0.004027263592
AB142: Change - % | AC142: =IFERROR(AC141/AB140,"") ->  | AD142: 0.01103070213 | AE142: 0.01766489911 | AF142: 0.01243249979 | AG142: -0.007073627975 | AH142: 5.726974921e-06 | AI142: -8.085094762e-06 | AJ142: 3.840451063e-06 | AK142: -4.830864626e-05 | AL142: 4.682863482e-05
AC144: =+AC$160 -> 2023-24 | AD144: 2024-25 | AE144: 2025-26 | AF144: 2026-27 | AG144: 2027-28 | AH144: 2028-29 | AI144: 2029-30 | AJ144: 2030-31 | AK144: 2031-32 | AL144: 2032-33
AB145: Total non-controllable opex | AC145: =+AC92 -> 6.22307129 | AD145: 6.054761365 | AE145: 5.89135367 | AF145: 5.732705423 | AG145: 5.578677998 | AH145: 5.578677998 | AI145: 5.578677998 | AJ145: 5.578677998 | AK145: 5.578677998 | AL145: 5.578677998
AB146: Change - $ | AD146: =+AD145-AC145 -> -0.1683099255 | AE146: -0.1634076947 | AF146: -0.1586482473 | AG146: -0.1540274245 | AH146: 0 | AI146: 0 | AJ146: 0 | AK146: 0 | AL146: 0
AB147: Change - % | AC147: =IFERROR(AC146/AB145,"") ->  | AD147: -0.02704611882 | AE147: -0.02698829646 | AF147: -0.02692899733 | AG147: -0.02686819105 | AH147: 0 | AI147: 0 | AJ147: 0 | AK147: 0 | AL147: 0
AC149: =+AC$160 -> 2023-24 | AD149: 2024-25 | AE149: 2025-26 | AF149: 2026-27 | AG149: 2027-28 | AH149: 2028-29 | AI149: 2029-30 | AJ149: 2030-31 | AK149: 2031-32 | AL149: 2032-33
AB150: Total prescribed opex | AC150: =+AC140+AC145 -> 89.37390976 | AD150: 90.12281196 | AE150: 91.4444579 | AF150: 92.3494486 | AG150: 91.58272656 | AH150: 91.5832191 | AI150: 91.58252375 | AJ150: 91.58285404 | AK150: 91.5786993 | AL150: 91.58272656
AB151: Change - $ | AD151: =+AD150-AC150 -> 0.7489022053 | AE151: 1.321645938 | AF151: 0.9049907031 | AG151: -0.7667220422 | AH151: 0.0004925430292 | AI151: -0.0006953548648 | AJ151: 0.0003302935608 | AK151: -0.004154745317 | AL151: 0.004027263592
AB152: Change - % | AC152: =IFERROR(AC151/AB150,"") ->  | AD152: 0.008379427591 | AE152: 0.01466494341 | AF152: 0.009896616196 | AG152: -0.008302399785 | AH152: 5.378121483e-06 | AI152: -7.592601261e-06 | AJ152: 3.606512982e-06 | AK152: -4.536597336e-05 | AL152: 4.397598593e-05
AB155: Controllable vs. Non-controllable opex - % | AC155: =+AC$160 -> 2023-24 | AD155: 2024-25 | AE155: 2025-26 | AF155: 2026-27 | AG155: 2027-28 | AH155: 2028-29 | AI155: 2029-30 | AJ155: 2030-31 | AK155: 2031-32 | AL155: 2032-33
AB156: Controllable opex - % | AC156: =+AC84/AC95 -> 0.9303703809 | AD156: 0.9328165507 | AE156: 0.9355745137 | AF156: 0.937923772 | AG156: 0.9390859149 | AH156: 0.9390862425 | AI156: 0.93908578 | AJ156: 0.9390859997 | AK156: 0.9390832362 | AL156: 0.9390859149
AB157: Non-controllable opex - % | AC157: =+AC92/AC95 -> 0.06962961906 | AD157: 0.06718344926 | AE157: 0.06442548631 | AF157: 0.06207622795 | AG157: 0.06091408509 | AH157: 0.06091375749 | AI157: 0.06091421998 | AJ157: 0.0609140003 | AK157: 0.06091676385 | AL157: 0.06091408509
AC158: =SUM(AC156:AC157) -> 1 | AD158: 1 | AE158: 1 | AF158: 1 | AG158: 1 | AH158: 1 | AI158: 1 | AJ158: 1 | AK158: 1 | AL158: 1
AA160: =+AA6 -> 2021-22 | AB160: 2022-23 | AC160: 2023-24 | AD160: 2024-25 | AE160: 2025-26 | AF160: 2026-27 | AG160: 2027-28 | AH160: =+AH6 -> 2028-29 | AI160: =+AI6 -> 2029-30 | AJ160: =+AJ6 -> 2030-31 | AK160: =+AK6 -> 2031-32 | AL160: =+AL6 -> 2032-33
Y161: Fourth reg period opex | Z161: Third Reg period Opex | AA161: =+AA169-SUM(AA162:AA168) -> 85.97630368 | AB161: =+AB169-SUM(AB162:AB168) -> 86.09469069
Z162: Adjusted baseline opex | AC162: =+AC61 -> 76.59025751 | AD162: 76.42379863 | AE162: 76.8354699 | AF162: 77.0440442 | AG162: 77.03292599 | AH162: 77.12274503 | AI162: 76.99594168 | AJ162: 77.05617327 | AK162: 76.29852324 | AL162: 77.03292599
Z163: Forecast variations to baseline operating expenditure | AC163: =+AC81 -> 6.560580953 | AD163: 7.644251966 | AE163: 8.717634331 | AF163: 9.572698984 | AG163: 8.97112257 | AH163: 8.881796072 | AI163: 9.00790407 | AJ163: 8.948002771 | AK163: 9.701498058 | AL163: 8.97112257
Z164: Licence fees | AA164: =+AA193 -> 0 | AB164: =+AB193 -> 0 | AC164: =+AC89 -> 0.4444305137 | AD164: 0.4444305137 | AE164: 0.4444305137 | AF164: 0.4444305137 | AG164: 0.4444305137 | AH164: =+AH89 -> 0.4444305137 | AI164: 0.4444305137 | AJ164: 0.4444305137 | AK164: 0.4444305137 | AL164: 0.4444305137
Z165: Environment Contribution | AA165: =+AA194 -> 0 | AB165: =+AB194 -> 0 | AC165: =+AC90 -> 5.778640777 | AD165: 5.610330851 | AE165: 5.446923156 | AF165: 5.288274909 | AG165: 5.134247485 | AH165: 5.134247485 | AI165: 5.134247485 | AJ165: 5.134247485 | AK165: 5.134247485 | AL165: 5.134247485
Z166: External bulk water charges | AA166: =+AA191 -> 0 | AB166: =+AB191 -> 0 | AC166: =+AC87 -> 0 | AD166: 0 | AE166: 0 | AF166: 0 | AG166: 0 | AH166: =+AH87 -> 0 | AI166: 0 | AJ166: 0 | AK166: 0 | AL166: 0
Z167: External temporary water purchases | AA167: =+AA192 -> 0 | AB167: =+AB192 -> 0 | AC167: =+AC88 -> 0 | AD167: 0 | AE167: 0 | AF167: 0 | AG167: 0 | AH167: 0 | AI167: 0 | AJ167: 0 | AK167: 0 | AL167: 0
Z168: Other non-controllable | AA168: =+AA195 -> 0 | AB168: =+AB195 -> 0 | AC168: =+AC91 -> 0 | AD168: 0 | AE168: 0 | AF168: 0 | AG168: 0 | AH168: =+AH91 -> 0 | AI168: =+AI91 -> 0 | AJ168: =+AJ91 -> 0 | AK168: =+AK91 -> 0 | AL168: =+AL91 -> 0
Z169: Total prescribed opex | AA169: =+Opex_Breakdown!AA37 -> 85.97630368 | AB169: =+Opex_Breakdown!AB37 -> 86.09469069 | AC169: =SUM(AC162:AC168) -> 89.37390976 | AD169: 90.12281196 | AE169: 91.4444579 | AF169: 92.3494486 | AG169: 91.58272656 | AH169: =SUM(AH162:AH168) -> 91.5832191 | AI169: =SUM(AI162:AI168) -> 91.58252375 | AJ169: =SUM(AJ162:AJ168) -> 91.58285404 | AK169: =SUM(AK162:AK168) -> 91.5786993 | AL169: =SUM(AL162:AL168) -> 91.58272656
AC171: =+AC$160 -> 2023-24 | AD171: 2024-25 | AE171: 2025-26 | AF171: 2026-27 | AG171: 2027-28 | AH171: 2028-29 | AI171: 2029-30 | AJ171: 2030-31 | AK171: 2031-32 | AL171: 2032-33
AB172: Adjusted baseline opex | AC172: =+AC162/AC$169 -> 0.8569643839 | AD172: 0.8479961618 | AE172: 0.840241953 | AF172: 0.8342664235 | AG172: 0.8411294235 | AH172: 0.8421056367 | AI172: 0.8407274503 | AJ172: 0.8413820914 | AK172: 0.8331470509 | AL172: 0.8411294235
AB173: Forecast variations to baseline operating expenditure | AC173: =+AC163/AC$169 -> 0.07340599702 | AD173: 0.08482038897 | AE173: 0.09533256067 | AF173: 0.1036573486 | AG173: 0.09795649144 | AH173: 0.09698060582 | AI173: 0.09835832975 | AJ173: 0.09770390827 | AK173: 0.1059361853 | AL173: 0.09795649144
AB174: Licence fees | AC174: =+AC164/AC$169 -> 0.004972709764 | AD174: 0.004931387559 | AE174: 0.004860114259 | AF174: 0.004812486923 | AG174: 0.004852776614 | AH174: 0.004852750515 | AI174: 0.004852787361 | AJ174: 0.004852769859 | AK174: 0.00485299002 | AL174: 0.004852776614
AB175: Environment Contribution | AC175: =+AC165/AC$169 -> 0.0646569093 | AD175: 0.0622520617 | AE175: 0.05956537205 | AF175: 0.05726374103 | AG175: 0.05606130847 | AH175: 0.05606100697 | AI175: 0.05606143262 | AJ175: 0.05606123044 | AK175: 0.05606377383 | AL175: 0.05606130847
AB176: External bulk water charges (excl. temporary purchases) | AC176: =+AC166/AC$169 -> 0 | AD176: 0 | AE176: 0 | AF176: 0 | AG176: 0 | AH176: 0 | AI176: 0 | AJ176: 0 | AK176: 0 | AL176: 0
AB177: External temporary water purchases | AC177: =+AC167/AC$169 -> 0 | AD177: 0 | AE177: 0 | AF177: 0 | AG177: 0 | AH177: 0 | AI177: 0 | AJ177: 0 | AK177: 0 | AL177: 0
AB178: Other non-controllable | AC178: =+AC168/AC$169 -> 0 | AD178: 0 | AE178: 0 | AF178: 0 | AG178: 0 | AH178: 0 | AI178: 0 | AJ178: 0 | AK178: 0 | AL178: 0
AB179: Total prescribed opex | AC179: =+AC169/AC$169 -> 1 | AD179: 1 | AE179: 1 | AF179: 1 | AG179: 1 | AH179: 1 | AI179: 1 | AJ179: 1 | AK179: 1 | AL179: 1
AC181: =+AC$160 -> 2023-24 | AD181: 2024-25 | AE181: 2025-26 | AF181: 2026-27 | AG181: 2027-28 | AH181: 2028-29 | AI181: 2029-30 | AJ181: 2030-31 | AK181: 2031-32 | AL181: 2032-33
AB182: Water | AC182: =+SUMIF($H$65:$H$80,$AB182,AC$65:AC$80) -> 3.304459258 | AD182: =+SUMIF($H$65:$H$80,$AB182,AD$65:AD$80) -> 3.758667289 | AE182: 4.199450381 | AF182: 4.597759498 | AG182: 4.463239144 | AH182: 4.426270742 | AI182: 4.478461427 | AJ182: 4.453670852 | AK182: 4.765510195 | AL182: 4.463239144
AB183: Sewerage | AC183: 3.256121695 | AD183: 3.885584677 | AE183: 4.51818395 | AF183: 4.974939486 | AG183: 4.507883427 | AH183: 4.45552533 | AI183: 4.529442643 | AJ183: 4.494331919 | AK183: 4.935987863 | AL183: 4.507883427
AB184: Recycled Water | AC184: 0 | AD184: 0 | AE184: 0 | AF184: 0 | AG184: 0 | AH184: 0 | AI184: 0 | AJ184: 0 | AK184: 0 | AL184: 0
AB185: Rural water | AC185: 0 | AD185: 0 | AE185: 0 | AF185: 0 | AG185: 0 | AH185: 0 | AI185: 0 | AJ185: 0 | AK185: 0 | AL185: 0
AB186: Bulk Water | AC186: 0 | AD186: 0 | AE186: 0 | AF186: 0 | AG186: 0 | AH186: 0 | AI186: 0 | AJ186: 0 | AK186: 0 | AL186: 0
AB187: Forecast variations to baseline operating expenditure | AC187: =SUM(AC182:AC186) -> 6.560580953 | AD187: 7.644251966 | AE187: 8.717634331 | AF187: 9.572698984 | AG187: 8.97112257 | AH187: 8.881796072 | AI187: 9.00790407 | AJ187: 8.948002771 | AK187: 9.701498058 | AL187: 8.97112257
AA190: =+AA6 -> 2021-22 | AB190: 2022-23 | AC190: 2023-24 | AD190: 2024-25 | AE190: 2025-26 | AF190: 2026-27 | AG190: 2027-28 | AH190: =+AH6 -> 2028-29 | AI190: =+AI6 -> 2029-30 | AJ190: =+AJ6 -> 2030-31 | AK190: =+AK6 -> 2031-32 | AL190: =+AL6 -> 2032-33
Z191: External bulk water charges (excl. temporary purchases) | AA191: =+AA87 -> 0 | AB191: 0 | AC191: 0 | AD191: 0 | AE191: 0 | AF191: 0 | AG191: 0 | AH191: =+AH87 -> 0 | AI191: 0 | AJ191: 0 | AK191: 0 | AL191: 0
Z192: External temporary water purchases | AA192: =+AA88 -> 0 | AB192: 0 | AC192: 0 | AD192: 0 | AE192: 0 | AF192: 0 | AG192: 0 | AH192: 0 | AI192: 0 | AJ192: 0 | AK192: 0 | AL192: 0
Z193: Licence fees | AA193: =+AA89 -> 0 | AB193: 0 | AC193: 0.4444305137 | AD193: 0.4444305137 | AE193: 0.4444305137 | AF193: 0.4444305137 | AG193: 0.4444305137 | AH193: 0.4444305137 | AI193: 0.4444305137 | AJ193: 0.4444305137 | AK193: 0.4444305137 | AL193: 0.4444305137
Z194: Environment Contribution | AA194: =+AA90 -> 0 | AB194: 0 | AC194: 5.778640777 | AD194: 5.610330851 | AE194: 5.446923156 | AF194: 5.288274909 | AG194: 5.134247485 | AH194: 5.134247485 | AI194: 5.134247485 | AJ194: 5.134247485 | AK194: 5.134247485 | AL194: 5.134247485
Z195: Other non-controllable | AA195: =+AA91 -> 0 | AB195: 0 | AC195: 0 | AD195: 0 | AE195: 0 | AF195: 0 | AG195: 0 | AH195: 0 | AI195: 0 | AJ195: 0 | AK195: 0 | AL195: 0
Z196: Total Non-controllable operating expenditure | AA196: =SUM(AA191:AA195) -> 0 | AB196: 0 | AC196: 6.22307129 | AD196: 6.054761365 | AE196: 5.89135367 | AF196: 5.732705423 | AG196: 5.578677998 | AH196: =SUM(AH191:AH195) -> 5.578677998 | AI196: =SUM(AI191:AI195) -> 5.578677998 | AJ196: =SUM(AJ191:AJ195) -> 5.578677998 | AK196: =SUM(AK191:AK195) -> 5.578677998 | AL196: =SUM(AL191:AL195) -> 5.578677998
AB198: Check | AC198: =IF(ROUND(AC169,2)=ROUND(AC95,2),0,1) -> 0 | AD198: =IF(ROUND(AD169,2)=ROUND(AD95,2),0,1) -> 0 | AE198: 0 | AF198: 0 | AG198: 0 | AH198: 0 | AI198: 0 | AJ198: 0 | AK198: 0 | AL198: 0
AC199: =IF(ROUND(AC187,2)=ROUND(AC163,2),0,1) -> 0 | AD199: =IF(ROUND(AD187,2)=ROUND(AD163,2),0,1) -> 0 | AE199: 0 | AF199: 0 | AG199: 0 | AH199: 0 | AI199: 0 | AJ199: 0 | AK199: 0 | AL199: 0
AC200: =IF(ROUND(AC150,2)=ROUND(AC169,2),0,1) -> 0 | AD200: =IF(ROUND(AD150,2)=ROUND(AD169,2),0,1) -> 0 | AE200: 0 | AF200: 0 | AG200: 0 | AH200: 0 | AI200: 0 | AJ200: 0 | AK200: 0 | AL200: 0
AC201: =IF(ROUND(AC196,2)=ROUND(AC145,2),0,1) -> 0 | AD201: =IF(ROUND(AD196,2)=ROUND(AD145,2),0,1) -> 0 | AE201: 0 | AF201: 0 | AG201: 0 | AH201: 0 | AI201: 0 | AJ201: 0 | AK201: 0 | AL201: 0

Sheet Opex_Breakdown
A1: 80 | B1: Operating Expenditure - Breakdown
B2: =+Contents!H7 -> Gippsland Water
B3: Go to Table of Contents
L4: FIRST REG PERIOD | P4: SECOND REG PERIOD | U4: THIRD REG PERIOD | Z4: FOURTH REG PERIOD | AE4: FIFTH REG PERIOD | AJ4: SIXTH REG PERIOD
K6: 2006 | L6: 2007 | M6: 2008 | N6: 2009 | O6: 2010 | P6: 2011 | Q6: 2012 | R6: 2013 | S6: 2014 | T6: 2015 | U6: 2016 | V6: 2017 | W6: 2018 | X6: 2019 | Y6: 2020 | Z6: 2021 | AA6: 2022 | AB6: 2023 | AC6: 2024 | AD6: 2025 | AE6: 2026 | AF6: 2027 | AG6: 2028 | AH6: 2029 | AI6: 2030 | AJ6: 2031 | AK6: 2032 | AL6: 2033
B7: =Expenditure_Detail!$B$6 -> $m, 01/01/23 | K7: =+CONCATENATE(K6-1,"-",RIGHT(K6,2)) -> 2005-06 | L7: =+CONCATENATE(L6-1,"-",RIGHT(L6,2)) -> 2006-07 | M7: 2007-08 | N7: 2008-09 | O7: 2009-10 | P7: 2010-11 | Q7: 2011-12 | R7: 2012-13 | S7: 2013-14 | T7: 2014-15 | U7: 2015-16 | V7: 2016-17 | W7: 2017-18 | X7: =+CONCATENATE(X6-1,"-",RIGHT(X6,2)) -> 2018-19 | Y7: 2019-20 | Z7: 2020-21 | AA7: 2021-22 | AB7: 2022-23 | AC7: 2023-24 | AD7: 2024-25 | AE7: 2025-26 | AF7: 2026-27 | AG7: 2027-28 | AH7: =+CONCATENATE(AH6-1,"-",RIGHT(AH6,2)) -> 2028-29 | AI7: =+CONCATENATE(AI6-1,"-",RIGHT(AI6,2)) -> 2029-30 | AJ7: =+CONCATENATE(AJ6-1,"-",RIGHT(AJ6,2)) -> 2030-31 | AK7: =+CONCATENATE(AK6-1,"-",RIGHT(AK6,2)) -> 2031-32 | AL7: =+CONCATENATE(AL6-1,"-",RIGHT(AL6,2)) -> 2032-33
D10: Operating Expenditure Summary
E12: =C48 -> Water | W12: =+W57-W50-W54 -> 33.4453387 | X12: 36.3954649 | Y12: 36.92348249 | Z12: 34.74178274 | AA12: 34.11800915 | AB12: 34.11602203 | AC12: =+AC57-AC50-AC54 -> 35.87313082 | AD12: 36.25324816 | AE12: 36.90109997 | AF12: 37.37011989 | AG12: 37.58795226 | AH12: 37.58795226 | AI12: 37.58795226 | AJ12: 37.58795226 | AK12: 37.58795226 | AL12: 37.58795226
E13: =C59 -> Sewerage | W13: =W68-W61-W65 -> 43.36257944 | X13: 45.08382764 | Y13: 47.67958676 | Z13: 43.80260272 | AA13: 45.05038121 | AB13: 45.58223815 | AC13: =AC68-AC61-AC65 -> 47.27770765 | AD13: 47.81571526 | AE13: 48.65065958 | AF13: 49.24413485 | AG13: 48.41366883 | AH13: 48.41366883 | AI13: 48.41366883 | AJ13: 48.41366883 | AK13: 48.41366883 | AL13: 48.41366883
E14: =C70 -> Recycled Water | W14: =W79-W72-W76 -> 0 | X14: 0 | Y14: 0 | Z14: 0 | AA14: 0 | AB14: 0 | AC14: =AC79-AC72-AC76 -> 0 | AD14: 0 | AE14: 0 | AF14: 0 | AG14: 0 | AH14: 0 | AI14: 0 | AJ14: 0 | AK14: 0 | AL14: 0
E15: =C81 -> Rural Water | W15: =W90-W83-W87 -> 0 | X15: 0 | Y15: 0 | Z15: 0 | AA15: 0 | AB15: 0 | AC15: =AC90-AC83-AC87 -> 0 | AD15: 0 | AE15: 0 | AF15: 0 | AG15: 0 | AH15: 0 | AI15: 0 | AJ15: 0 | AK15: 0 | AL15: 0
E16: Bulk Water | W16: =W100-W97 -> 0 | X16: 0 | Y16: 0 | Z16: 0 | AA16: 0 | AB16: 0 | AC16: =AC100-AC97 -> 0 | AD16: 0 | AE16: 0 | AF16: 0 | AG16: 0 | AH16: 0 | AI16: 0 | AJ16: 0 | AK16: 0 | AL16: 0
E17: Total controllable operating expenditure | W17: =SUM(W12:W16) -> 76.80791814 | X17: 81.47929254 | Y17: 84.60306925 | Z17: 78.54438546 | AA17: 79.16839036 | AB17: 79.69826018 | AC17: 83.15083847 | AD17: 84.06896341 | AE17: 85.55175955 | AF17: 86.61425474 | AG17: 86.00162109 | AH17: =SUM(AH12:AH16) -> 86.00162109 | AI17: =SUM(AI12:AI16) -> 86.00162109 | AJ17: =SUM(AJ12:AJ16) -> 86.00162109 | AK17: =SUM(AK12:AK16) -> 86.00162109 | AL17: =SUM(AL12:AL16) -> 86.00162109
E20: Operations & Maintenance | W20: =W49+W60+W71+W82+W93 -> 19.0895931 | X20: 20.5381958 | Y20: 21.34508286 | Z20: 19.11550602 | AA20: 18.64769984 | AB20: 19.15070241 | AC20: 19.39503896 | AD20: 19.75758594 | AE20: 19.96944472 | AF20: 20.21945199 | AG20: 20.15762055 | AH20: =AH49+AH60+AH71+AH82+AH93 -> 20.15762055 | AI20: =AI49+AI60+AI71+AI82+AI93 -> 20.15762055 | AJ20: =AJ49+AJ60+AJ71+AJ82+AJ93 -> 20.15762055 | AK20: =AK49+AK60+AK71+AK82+AK93 -> 20.15762055 | AL20: =AL49+AL60+AL71+AL82+AL93 -> 20.15762055
E21: Treatment | W21: =W51+W62+W73+W84+W94 -> 30.33727293 | X21: 31.95814075 | Y21: 32.40952153 | Z21: 30.2159706 | AA21: 30.13632526 | AB21: 27.81786275 | AC21: 27.69867279 | AD21: 28.18245787 | AE21: 28.7260331 | AF21: 28.72841647 | AG21: 28.61363104 | AH21: =AH51+AH62+AH73+AH84+AH94 -> 28.61363104 | AI21: 28.61363104 | AJ21: 28.61363104 | AK21: 28.61363104 | AL21: 28.61363104
E22: Customer Service and billing | W22: =W52+W63+W74+W85+W95 -> 3.421555023 | X22: 3.5041742 | Y22: 3.623271696 | Z22: 3.256267989 | AA22: 3.180600634 | AB22: 3.659648102 | AC22: 3.689644832 | AD22: 3.607485228 | AE22: 3.641392146 | AF22: 3.658803094 | AG22: 3.707230945 | AH22: 3.707230945 | AI22: 3.707230945 | AJ22: 3.707230945 | AK22: 3.707230945 | AL22: 3.707230945
E23: GSL Payments | W23: =W53+W64+W75+W86+W96 -> 0 | X23: 0 | Y23: 0 | Z23: 0 | AA23: 0 | AB23: 0 | AC23: 0 | AD23: 0 | AE23: 0 | AF23: 0 | AG23: 0 | AH23: 0 | AI23: 0 | AJ23: 0 | AK23: 0 | AL23: 0
E24: Corporate | W24: =W55+W66+W77+W88+W98 -> 23.95949709 | X24: 25.47878178 | Y24: 27.22519316 | Z24: 25.95664086 | AA24: 27.20376462 | AB24: 29.07004692 | AC24: 32.36748189 | AD24: 32.52143438 | AE24: 33.21488959 | AF24: 34.00758319 | AG24: 33.52313855 | AH24: =AH55+AH66+AH77+AH88+AH98 -> 33.52313855 | AI24: 33.52313855 | AJ24: 33.52313855 | AK24: 33.52313855 | AL24: 33.52313855
E25: Other operating expenditure | W25: =W56+W67+W78+W89+W99 -> 0 | X25: 0 | Y25: 0 | Z25: 0 | AA25: 0 | AB25: 0 | AC25: 0 | AD25: 0 | AE25: 0 | AF25: 0 | AG25: 0 | AH25: 0 | AI25: 0 | AJ25: 0 | AK25: 0 | AL25: 0
E26: Total controllable operating expenditure | W26: =SUM(W20:W25) -> 76.80791814 | X26: 81.47929254 | Y26: 84.60306925 | Z26: 78.54438546 | AA26: 79.16839036 | AB26: 79.69826018 | AC26: 83.15083847 | AD26: 84.06896341 | AE26: 85.55175955 | AF26: 86.61425474 | AG26: 86.00162109 | AH26: =SUM(AH20:AH25) -> 86.00162109 | AI26: =SUM(AI20:AI25) -> 86.00162109 | AJ26: =SUM(AJ20:AJ25) -> 86.00162109 | AK26: =SUM(AK20:AK25) -> 86.00162109 | AL26: =SUM(AL20:AL25) -> 86.00162109
AC27: =IF(ROUND(AC26,2)=ROUND(AC17,2),0,1) -> 0 | AD27: =IF(ROUND(AD26,2)=ROUND(AD17,2),0,1) -> 0 | AE27: 0 | AF27: 0 | AG27: 0 | AH27: 0 | AI27: 0 | AJ27: 0 | AK27: 0 | AL27: 0
E29: External bulk water charges (excl. temporary purchases) | W29: =W50+W61+W72+W83 -> 0 | X29: =X50+X61+X72+X83 -> 0 | Y29: =Y50+Y61+Y72+Y83 -> 0 | Z29: 0 | AA29: 0 | AB29: 0 | AC29: 0 | AD29: 0 | AE29: 0 | AF29: 0 | AG29: 0 | AH29: =AH50+AH61+AH72+AH83 -> 0 | AI29: =AI50+AI61+AI72+AI83 -> 0 | AJ29: =AJ50+AJ61+AJ72+AJ83 -> 0 | AK29: =AK50+AK61+AK72+AK83 -> 0 | AL29: =AL50+AL61+AL72+AL83 -> 0
E30: External temporary water purchases | W30: =+W102 -> 0 | X30: 0 | Y30: 0 | Z30: 0 | AA30: 0 | AB30: 0 | AC30: 0 | AD30: 0 | AE30: 0 | AF30: 0 | AG30: 0 | AH30: =+AH102 -> 0 | AI30: =+AI102 -> 0 | AJ30: =+AJ102 -> 0 | AK30: =+AK102 -> 0 | AL30: =+AL102 -> 0
E31: Licence fees | W31: =+W109 -> 0.4429832693 | X31: 0.4700844675 | Y31: 0.4245812041 | Z31: 0.4419462526 | AA31: 0.552486063 | AB31: 0.4444305137 | AC31: 0.4444305137 | AD31: 0.4444305137 | AE31: 0.4444305137 | AF31: 0.4444305137 | AG31: 0.4444305137 | AH31: =+AH109 -> 0.4444305137 | AI31: =+AI109 -> 0.4444305137 | AJ31: =+AJ109 -> 0.4444305137 | AK31: =+AK109 -> 0.4444305137 | AL31: =+AL109 -> 0.4444305137
E32: Environment Contribution | W32: =W111 -> 5.202677612 | X32: 5.700940497 | Y32: 5.626016994 | Z32: 6.325170445 | AA32: 6.25542726 | AB32: 5.952 | AC32: 5.778640777 | AD32: 5.610330851 | AE32: 5.446923156 | AF32: 5.288274909 | AG32: 5.134247485 | AH32: =AH111 -> 5.134247485 | AI32: =AI111 -> 5.134247485 | AJ32: =AJ111 -> 5.134247485 | AK32: =AK111 -> 5.134247485 | AL32: =AL111 -> 5.134247485
E33: Other non-controllable | W33: =+W124 -> 0 | X33: 0 | Y33: 0 | Z33: 0 | AA33: 0 | AB33: 0 | AC33: 0 | AD33: 0 | AE33: 0 | AF33: 0 | AG33: =+AG124 -> 0 | AH33: 0 | AI33: 0 | AJ33: 0 | AK33: 0 | AL33: 0
E34: Total non-controllable operating expenditure | W34: =SUM(W29:W33) -> 5.645660881 | X34: 6.171024965 | Y34: 6.050598199 | Z34: 6.767116698 | AA34: 6.807913323 | AB34: 6.396430514 | AC34: 6.22307129 | AD34: 6.054761365 | AE34: 5.89135367 | AF34: 5.732705423 | AG34: 5.578677998 | AH34: =SUM(AH29:AH33) -> 5.578677998 | AI34: =SUM(AI29:AI33) -> 5.578677998 | AJ34: =SUM(AJ29:AJ33) -> 5.578677998 | AK34: =SUM(AK29:AK33) -> 5.578677998 | AL34: =SUM(AL29:AL33) -> 5.578677998
E37: Total prescribed operating expenditure | W37: =+W34+W17 -> 82.45357902 | X37: 87.6503175 | Y37: 90.65366745 | Z37: 85.31150216 | AA37: 85.97630368 | AB37: 86.09469069 | AC37: 89.37390976 | AD37: 90.12372478 | AE37: 91.44311322 | AF37: 92.34696016 | AG37: 91.58029909 | AH37: =+AH34+AH17 -> 91.58029909 | AI37: =+AI34+AI17 -> 91.58029909 | AJ37: =+AJ34+AJ17 -> 91.58029909 | AK37: =+AK34+AK17 -> 91.58029909 | AL37: =+AL34+AL17 -> 91.58029909
AB40: To reconcile to 'Opex_FO' tab row 95>> | AC40: =+Opex_FO!AC95 -> 89.37390976 | AD40: =+Opex_FO!AD95 -> 90.12281196 | AE40: =+Opex_FO!AE95 -> 91.4444579 | AF40: =+Opex_FO!AF95 -> 92.3494486 | AG40: =+Opex_FO!AG95 -> 91.58272656 | AH40: =+Opex_FO!AH95 -> 91.5832191 | AI40: =+Opex_FO!AI95 -> 91.58252375 | AJ40: =+Opex_FO!AJ95 -> 91.58285404 | AK40: =+Opex_FO!AK95 -> 91.5786993 | AL40: =+Opex_FO!AL95 -> 91.58272656
AB41: Difference | AC41: =+AC40-AC37 -> 0 | AD41: -0.0009128149279 | AE41: 0.001344678497 | AF41: 0.00248844191 | AG41: 0.002427472723 | AH41: =+AH40-AH37 -> 0.002920015752 | AI41: =+AI40-AI37 -> 0.002224660887 | AJ41: =+AJ40-AJ37 -> 0.002554954448 | AK41: =+AK40-AK37 -> -0.001599790869 | AL41: =+AL40-AL37 -> 0.002427472723
AB42: Test | AC42: =IF(ROUND(AC40,2)=ROUND(AC37,2),0,1) -> 0 | AD42: 0 | AE42: 0 | AF42: 0 | AG42: 0 | AH42: 0 | AI42: 0 | AJ42: 0 | AK42: 0 | AL42: 0
B46: Total operating expenditure
C48: Water
D49: Operations & Maintenance | W49: 11.29379835 | X49: 13.2573985 | Y49: 12.95667061 | Z49: 11.54977486 | AA49: 11.08910292 | AB49: 11.16919859 | AC49: 11.34807872 | AD49: 11.5096525 | AE49: 11.76046832 | AF49: 11.85129704 | AG49: 11.95795928 | AH49: 11.95795928 | AI49: 11.95795928 | AJ49: 11.95795928 | AK49: 11.95795928 | AL49: 11.95795928
D50: External bulk charges (excl. temporary purchases) | W50: =+W131 -> 0 | X50: 0 | Y50: 0 | Z50: 0 | AA50: 0 | AB50: 0 | AC50: 0 | AD50: 0 | AE50: 0 | AF50: 0 | AG50: 0 | AH50: =+AH131 -> 0 | AI50: 0 | AJ50: 0 | AK50: 0 | AL50: 0 | AM50: see reconciliation below
D51: Treatment | W51: 10.19077028 | X51: 10.43994981 | Y51: 10.59836868 | Z51: 10.31408054 | AA51: 10.55077918 | AB51: 9.608307422 | AC51: 9.727164557 | AD51: 9.865143579 | AE51: 9.923749589 | AF51: 9.952307883 | AG51: 9.958823811 | AH51: 9.958823811 | AI51: 9.958823811 | AJ51: 9.958823811 | AK51: 9.958823811 | AL51: 9.958823811
D52: Customer Service and billing | W52: 1.49462602 | X52: 1.535261364 | Y52: 1.57017544 | Z52: 1.4354607 | AA52: 1.306196081 | AB52: 1.491436898 | AC52: 1.514234612 | AD52: 1.485618631 | AE52: 1.503424443 | AF52: 1.51208594 | AG52: 1.560463785 | AH52: 1.560463785 | AI52: 1.560463785 | AJ52: 1.560463785 | AK52: 1.560463785 | AL52: 1.560463785
D53: GSL Payments | W53: 0 | X53: 0 | Y53: 0 | Z53: 0 | AA53: 0 | AB53: 0 | AC53: 0 | AD53: 0 | AE53: 0 | AF53: 0 | AG53: 0 | AH53: 0 | AI53: 0 | AJ53: 0 | AK53: 0 | AL53: 0
D54: Licence Fees | W54: 0.08197435858 | X54: 0.09378765426 | Y54: 0.06893559546 | Z54: 0.07779390216 | AA54: 0.1211433553 | AB54: 0.08310910155 | AC54: 0.08343382638 | AD54: 0.0835941045 | AE54: 0.08371367925 | AF54: 0.08375930122 | AG54: 0.08462630116 | AH54: 0.08462630116 | AI54: 0.08462630116 | AJ54: 0.08462630116 | AK54: 0.08462630116 | AL54: 0.08462630116
D55: Corporate | W55: 10.46614406 | X55: 11.16285522 | Y55: 11.79826776 | Z55: 11.44246665 | AA55: 11.17193097 | AB55: 11.84707912 | AC55: 13.28365293 | AD55: 13.39283345 | AE55: 13.71345762 | AF55: 14.05442903 | AG55: 14.11070538 | AH55: 14.11070538 | AI55: 14.11070538 | AJ55: 14.11070538 | AK55: 14.11070538 | AL55: 14.11070538
D56: Other operating expenditure | W56: 0 | X56: 0 | Y56: 0 | Z56: 0 | AA56: 0 | AB56: 0 | AC56: 0 | AD56: 0 | AE56: 0 | AF56: 0 | AG56: 0 | AH56: 0 | AI56: 0 | AJ56: 0 | AK56: 0 | AL56: 0
C57: =+CONCATENATE("Total ",C48) -> Total Water | K57: =+SUM(K49:K56) -> 0 | L57: =+SUM(L49:L56) -> 0 | M57: 0 | N57: 0 | O57: 0 | P57: 0 | Q57: 0 | R57: 0 | S57: 0 | T57: 0 | U57: 0 | V57: 0 | W57: =+SUM(W49:W56) -> 33.52731306 | X57: 36.48925255 | Y57: 36.99241809 | Z57: 34.81957665 | AA57: 34.2391525 | AB57: 34.19913113 | AC57: 35.95656464 | AD57: 36.33684226 | AE57: 36.98481365 | AF57: 37.45387919 | AG57: 37.67257856 | AH57: =+SUM(AH49:AH56) -> 37.67257856 | AI57: =+SUM(AI49:AI56) -> 37.67257856 | AJ57: =+SUM(AJ49:AJ56) -> 37.67257856 | AK57: =+SUM(AK49:AK56) -> 37.67257856 | AL57: =+SUM(AL49:AL56) -> 37.67257856
C59: Sewerage
D60: =+D49 -> Operations & Maintenance | W60: 7.795794751 | X60: 7.280797298 | Y60: 8.388412254 | Z60: 7.56573116 | AA60: 7.558596927 | AB60: 7.981503818 | AC60: 8.046960237 | AD60: 8.24793344 | AE60: 8.208976403 | AF60: 8.368154946 | AG60: 8.199661268 | AH60: 8.199661268 | AI60: 8.199661268 | AJ60: 8.199661268 | AK60: 8.199661268 | AL60: 8.199661268
D61: =+D50 -> External bulk charges (excl. temporary purchases) | W61: =+W132 -> 0 | X61: 0 | Y61: 0 | Z61: 0 | AA61: 0 | AB61: 0 | AC61: 0 | AD61: 0 | AE61: 0 | AF61: 0 | AG61: 0 | AH61: =+AH132 -> 0 | AI61: 0 | AJ61: 0 | AK61: 0 | AL61: 0 | AM61: see reconciliation below
D62: Treatment | W62: 20.14650265 | X62: 21.51819094 | Y62: 21.81115285 | Z62: 19.90189006 | AA62: 19.58554608 | AB62: 18.20955533 | AC62: 17.97150823 | AD62: 18.31731429 | AE62: 18.80228351 | AF62: 18.77610859 | AG62: 18.65480723 | AH62: 18.65480723 | AI62: 18.65480723 | AJ62: 18.65480723 | AK62: 18.65480723 | AL62: 18.65480723
D63: Customer Service and billing | W63: 1.926929003 | X63: 1.968912836 | Y63: 2.053096256 | Z63: 1.820807289 | AA63: 1.874404553 | AB63: 2.168211204 | AC63: 2.17541022 | AD63: 2.121866597 | AE63: 2.137967703 | AF63: 2.146717153 | AG63: 2.146767161 | AH63: 2.146767161 | AI63: 2.146767161 | AJ63: 2.146767161 | AK63: 2.146767161 | AL63: 2.146767161
D64: GSL Payments | W64: 0 | X64: 0 | Y64: 0 | Z64: 0 | AA64: 0 | AB64: 0 | AC64: 0 | AD64: 0 | AE64: 0 | AF64: 0 | AG64: 0 | AH64: 0 | AI64: 0 | AJ64: 0 | AK64: 0 | AL64: 0
D65: Licence Fees | W65: 0.3610089107 | X65: 0.3762968133 | Y65: 0.3556456087 | Z65: 0.3641523505 | AA65: 0.4313427077 | AB65: 0.3613214122 | AC65: 0.3609966873 | AD65: 0.3608364092 | AE65: 0.3607168345 | AF65: 0.3606712125 | AG65: 0.3598042125 | AH65: 0.3598042125 | AI65: 0.3598042125 | AJ65: 0.3598042125 | AK65: 0.3598042125 | AL65: 0.3598042125
D66: Corporate | W66: 13.49335303 | X66: 14.31592656 | Y66: 15.4269254 | Z66: 14.51417421 | AA66: 16.03183365 | AB66: 17.2229678 | AC66: 19.08382896 | AD66: 19.12860093 | AE66: 19.50143197 | AF66: 19.95315416 | AG66: 19.41243317 | AH66: 19.41243317 | AI66: 19.41243317 | AJ66: 19.41243317 | AK66: 19.41243317 | AL66: 19.41243317
D67: Other operating expenditure | W67: 0 | X67: 0 | Y67: 0 | Z67: 0 | AA67: 0 | AB67: 0 | AC67: 0 | AD67: 0 | AE67: 0 | AF67: 0 | AG67: 0 | AH67: 0 | AI67: 0 | AJ67: 0 | AK67: 0 | AL67: 0
C68: =+CONCATENATE("Total ",C59) -> Total Sewerage | W68: =+SUM(W60:W67) -> 43.72358835 | X68: 45.46012445 | Y68: 48.03523237 | Z68: 44.16675507 | AA68: 45.48172392 | AB68: 45.94355956 | AC68: 47.63870434 | AD68: 48.17655167 | AE68: 49.01137642 | AF68: 49.60480606 | AG68: 48.77347304 | AH68: =+SUM(AH60:AH67) -> 48.77347304 | AI68: =+SUM(AI60:AI67) -> 48.77347304 | AJ68: =+SUM(AJ60:AJ67) -> 48.77347304 | AK68: =+SUM(AK60:AK67) -> 48.77347304 | AL68: =+SUM(AL60:AL67) -> 48.77347304
C70: Recycled Water
D71: =+D60 -> Operations & Maintenance
D72: =+D61 -> External bulk charges (excl. temporary purchases) | W72: =+W133 -> 0 | X72: 0 | Y72: 0 | Z72: 0 | AA72: 0 | AB72: 0 | AC72: 0 | AD72: 0 | AE72: 0 | AF72: 0 | AG72: 0 | AH72: =+AH133 -> 0 | AI72: 0 | AJ72: 0 | AK72: 0 | AL72: 0 | AM72: see reconciliation below
D73: Treatment
D74: Customer Service and billing
D75: GSL Payments
D76: Licence Fees
D77: Corporate
D78: Other operating expenditure
C79: =+CONCATENATE("Total ",C70) -> Total Recycled Water | W79: =+SUM(W71:W78) -> 0 | X79: 0 | Y79: 0 | Z79: 0 | AA79: 0 | AB79: 0 | AC79: 0 | AD79: 0 | AE79: 0 | AF79: 0 | AG79: 0 | AH79: =+SUM(AH71:AH78) -> 0 | AI79: =+SUM(AI71:AI78) -> 0 | AJ79: =+SUM(AJ71:AJ78) -> 0 | AK79: =+SUM(AK71:AK78) -> 0 | AL79: =+SUM(AL71:AL78) -> 0
C81: Rural Water
D82: =+D60 -> Operations & Maintenance
D83: =+D61 -> External bulk charges (excl. temporary purchases) | W83: =+W134 -> 0 | X83: 0 | Y83: 0 | Z83: 0 | AA83: 0 | AB83: 0 | AC83: 0 | AD83: 0 | AE83: 0 | AF83: 0 | AG83: 0 | AH83: =+AH134 -> 0 | AI83: 0 | AJ83: 0 | AK83: 0 | AL83: 0 | AM83: see reconciliation below
D84: Treatment
D85: Customer Service and billing
D86: GSL Payments
D87: Licence Fees
D88: Corporate
D89: Other operating expenditure
C90: =+CONCATENATE("Total ",C81) -> Total Rural Water | W90: =+SUM(W82:W89) -> 0 | X90: 0 | Y90: 0 | Z90: 0 | AA90: 0 | AB90: 0 | AC90: 0 | AD90: 0 | AE90: 0 | AF90: 0 | AG90: 0 | AH90: =+SUM(AH82:AH89) -> 0 | AI90: =+SUM(AI82:AI89) -> 0 | AJ90: =+SUM(AJ82:AJ89) -> 0 | AK90: =+SUM(AK82:AK89) -> 0 | AL90: =+SUM(AL82:AL89) -> 0
C92: Bulk Water
D93: Operations & Maintenance
D94: Treatment
D95: Customer Service and billing
D96: GSL Payments
D97: Licence Fees
D98: Corporate
D99: Other operating expenditure
C100: Total Bulk water | W100: =+SUM(W93:W99) -> 0 | X100: 0 | Y100: 0 | Z100: 0 | AA100: 0 | AB100: 0 | AC100: 0 | AD100: 0 | AE100: 0 | AF100: 0 | AG100: 0 | AH100: =+SUM(AH93:AH99) -> 0 | AI100: =+SUM(AI93:AI99) -> 0 | AJ100: =+SUM(AJ93:AJ99) -> 0 | AK100: =+SUM(AK93:AK99) -> 0 | AL100: =+SUM(AL93:AL99) -> 0
C102: External temporary water purchases
C105: Licence fees
D106: Essential Services Commission | W106: 0.07822294751 | X106: 0.1056142966 | Y106: 0.06320528834 | Z106: 0.09176994597 | AA106: 0.2034208696 | AB106: 0.113319 | AC106: 0.113319 | AD106: 0.113319 | AE106: 0.113319 | AF106: 0.113319 | AG106: 0.113319 | AH106: 0.113319 | AI106: 0.113319 | AJ106: 0.113319 | AK106: 0.113319 | AL106: 0.113319
D107: Department of Human Services | W107: 0.04780449958 | X107: 0.04751553996 | Y107: 0.04154504908 | Z107: 0.03733895455 | AA107: 0.03760330321 | AB107: 0.03692757448 | AC107: 0.03692757448 | AD107: 0.03692757448 | AE107: 0.03692757448 | AF107: 0.03692757448 | AG107: 0.03692757448 | AH107: 0.03692757448 | AI107: 0.03692757448 | AJ107: 0.03692757448 | AK107: 0.03692757448 | AL107: 0.03692757448
D108: Environment Protection Authority | W108: 0.3169558222 | X108: 0.316954631 | Y108: 0.3198308667 | Z108: 0.3128373521 | AA108: 0.3114618903 | AB108: 0.2941839392 | AC108: 0.2941839392 | AD108: 0.2941839392 | AE108: 0.2941839392 | AF108: 0.2941839392 | AG108: 0.2941839392 | AH108: 0.2941839392 | AI108: 0.2941839392 | AJ108: 0.2941839392 | AK108: 0.2941839392 | AL108: 0.2941839392
C109: =+CONCATENATE("Total ",C105) -> Total Licence fees | W109: =+SUM(W106:W108) -> 0.4429832693 | X109: 0.4700844675 | Y109: 0.4245812041 | Z109: 0.4419462526 | AA109: 0.552486063 | AB109: 0.4444305137 | AC109: 0.4444305137 | AD109: 0.4444305137 | AE109: 0.4444305137 | AF109: 0.4444305137 | AG109: 0.4444305137 | AH109: =+SUM(AH106:AH108) -> 0.4444305137 | AI109: =+SUM(AI106:AI108) -> 0.4444305137 | AJ109: =+SUM(AJ106:AJ108) -> 0.4444305137 | AK109: =+SUM(AK106:AK108) -> 0.4444305137 | AL109: =+SUM(AL106:AL108) -> 0.4444305137
C111: Environment Contribution | W111: 5.202677612 | X111: 5.700940497 | Y111: 5.626016994 | Z111: 6.325170445 | AA111: 6.25542726 | AB111: 5.952 | AC111: 5.778640777 | AD111: 5.610330851 | AE111: 5.446923156 | AF111: 5.288274909 | AG111: 5.134247485 | AH111: 5.134247485 | AI111: 5.134247485 | AJ111: 5.134247485 | AK111: 5.134247485 | AL111: 5.134247485
C113: Other non-controllable
D114: [Non-controllable 1]
D115: [Non-controllable 2]
D116: [Non-controllable 3]
D117: [Non-controllable 4]
D118: [Non-controllable 5]
D119: [Non-controllable 6]
D120: [Non-controllable 7]
D121: [Non-controllable 8]
D122: [Non-controllable 9]
D123: [Non-controllable 10]
W124: =SUM(W114:W123) -> 0 | X124: 0 | Y124: 0 | Z124: 0 | AA124: 0 | AB124: 0 | AC124: 0 | AD124: 0 | AE124: 0 | AF124: 0 | AG124: 0 | AH124: =SUM(AH114:AH123) -> 0 | AI124: =SUM(AI114:AI123) -> 0 | AJ124: =SUM(AJ114:AJ123) -> 0 | AK124: =SUM(AK114:AK123) -> 0 | AL124: =SUM(AL114:AL123) -> 0
C127: External bulk charges (excl. temporary purchases)
C128: Reconciliation
C130: Service | W130: =+W7 -> 2017-18 | X130: =+X7 -> 2018-19 | Y130: 2019-20 | Z130: 2020-21 | AA130: 2021-22 | AB130: 2022-23 | AC130: 2023-24 | AD130: 2024-25 | AE130: 2025-26 | AF130: 2026-27 | AG130: 2027-28 | AH130: =+AH7 -> 2028-29 | AI130: =+AI7 -> 2029-30 | AJ130: =+AJ7 -> 2030-31 | AK130: =+AK7 -> 2031-32 | AL130: =+AL7 -> 2032-33
D131: Water | W131: =+SUMIF($I$138:$I$179,$D$131,W$138:W$179) -> 0 | X131: 0 | Y131: 0 | Z131: 0 | AA131: 0 | AB131: 0 | AC131: 0 | AD131: 0 | AE131: 0 | AF131: 0 | AG131: 0 | AH131: 0 | AI131: 0 | AJ131: 0 | AK131: 0 | AL131: 0
D132: Sewerage | W132: =+SUMIF($I$138:$I$179,$D$132,W$138:W$179) -> 0 | X132: 0 | Y132: 0 | Z132: 0 | AA132: 0 | AB132: 0 | AC132: 0 | AD132: 0 | AE132: 0 | AF132: 0 | AG132: 0 | AH132: 0 | AI132: 0 | AJ132: 0 | AK132: 0 | AL132: 0
D133: Recycled Water | W133: =+SUMIF($I$138:$I$179,$D$133,W$138:W$179) -> 0 | X133: 0 | Y133: 0 | Z133: 0 | AA133: 0 | AB133: 0 | AC133: 0 | AD133: 0 | AE133: 0 | AF133: 0 | AG133: 0 | AH133: 0 | AI133: 0 | AJ133: 0 | AK133: 0 | AL133: 0
D134: Rural Water | W134: =+SUMIF($I$138:$I$179,$D$134,W$138:W$179) -> 0 | X134: 0 | Y134: 0 | Z134: 0 | AA134: 0 | AB134: 0 | AC134: 0 | AD134: 0 | AE134: 0 | AF134: 0 | AG134: 0 | AH134: 0 | AI134: 0 | AJ134: 0 | AK134: 0 | AL134: 0
C135: Total External Bulk Charges | W135: =SUM(W131:W134) -> 0 | X135: 0 | Y135: 0 | Z135: 0 | AA135: 0 | AB135: 0 | AC135: 0 | AD135: 0 | AE135: 0 | AF135: 0 | AG135: 0 | AH135: =SUM(AH131:AH134) -> 0 | AI135: =SUM(AI131:AI134) -> 0 | AJ135: =SUM(AJ131:AJ134) -> 0 | AK135: =SUM(AK131:AK134) -> 0 | AL135: =SUM(AL131:AL134) -> 0
C137: Description | H137: Source | I137: Service | J137: Price
B138: 1 | H138: [Source] | I138: [Service] | J138: [Price] | AO138: ESC USE ONLY
B139: 2 | H139: [Source] | I139: [Service] | J139: [Price]
B140: 3 | H140: [Source] | I140: [Service] | J140: [Price] | AO140: [Service]
B141: 4 | H141: [Source] | I141: [Service] | J141: [Price] | AO141: Water
B142: 5 | H142: [Source] | I142: [Service] | J142: [Price] | AO142: Sewerage
B143: 6 | H143: [Source] | I143: [Service] | J143: [Price] | AO143: Recycled Water
B144: 7 | H144: [Source] | I144: [Service] | J144: [Price] | AO144: Rural Water
B145: 8 | H145: [Source] | I145: [Service] | J145: [Price]
B146: 9 | H146: [Source] | I146: [Service] | J146: [Price] | AO146: [Source]
B147: 10 | H147: [Source] | I147: [Service] | J147: [Price] | AO147: Melbourne Water
B148: 11 | H148: [Source] | I148: [Service] | J148: [Price] | AO148: Goulburn-Murray Water
B149: 12 | H149: [Source] | I149: [Service] | J149: [Price] | AO149: Other Sources
B150: 13 | H150: [Source] | I150: [Service] | J150: [Price]
B151: 14 | H151: [Source] | I151: [Service] | J151: [Price]
B152: 15 | H152: [Source] | I152: [Service] | J152: [Price]
B153: 16 | H153: [Source] | I153: [Service] | J153: [Price]
B154: 17 | H154: [Source] | I154: [Service] | J154: [Price]
B155: 18 | H155: [Source] | I155: [Service] | J155: [Price]
B156: 19 | H156: [Source] | I156: [Service] | J156: [Price]
B157: 20 | H157: [Source] | I157: [Service] | J157: [Price]
B158: 21 | H158: [Source] | I158: [Service] | J158: [Price]
B159: 22 | H159: [Source] | I159: [Service] | J159: [Price]
B160: 23 | H160: [Source] | I160: [Service] | J160: [Price]
B161: 24 | H161: [Source] | I161: [Service] | J161: [Price]
B162: 25 | H162: [Source] | I162: [Service] | J162: [Price]
B163: 26 | H163: [Source] | I163: [Service] | J163: [Price]
B164: 27 | H164: [Source] | I164: [Service] | J164: [Price]
B165: 28 | H165: [Source] | I165: [Service] | J165: [Price]
B166: 29 | H166: [Source] | I166: [Service] | J166: [Price]
B167: 30 | H167: [Source] | I167: [Service] | J167: [Price]
B168: 31 | H168: [Source] | I168: [Service] | J168: [Price]
B169: 32 | H169: [Source] | I169: [Service] | J169: [Price]
B170: 33 | H170: [Source] | I170: [Service] | J170: [Price]
B171: 34 | H171: [Source] | I171: [Service] | J171: [Price]
B172: 35 | H172: [Source] | I172: [Service] | J172: [Price]
B173: 36 | H173: [Source] | I173: [Service] | J173: [Price]
B174: 37 | H174: [Source] | I174: [Service] | J174: [Price]
B175: 38 | H175: [Source] | I175: [Service] | J175: [Price]
B176: 39 | H176: [Source] | I176: [Service] | J176: [Price]
B177: 40 | H177: [Source] | I177: [Service] | J177: [Price]

Sheet Capex_FO input
B1: Capital Expenditure - Forecast Input | Q1: =Q36 -> Gross capital expenditure | AB1: =AB36 -> Government contributions | AM1: =AM36 -> Customer contributions | AX1: =AX36 -> Net capital expenditure | BI1: =BI36 -> Regulatory Depreciation | BT1: =BT36 -> Accumulated capex | CE1: =CE36 -> Gross capital expenditure | CP1: =CP36 -> Tax Depreciation
B2: =+Contents!H7 -> Gippsland Water | Q2: =Q37 -> $m, 01/01/23 | AB2: =AB37 -> $m, 01/01/23 | AM2: =AM37 -> $m, 01/01/23 | AX2: =AX37 -> $m, 01/01/23 | BI2: =BI37 -> $m, 01/01/23 | BT2: =BT37 -> $m, 01/01/23 | CE2: =CE37 -> Nominal,$ | CP2: =CP37 -> Nominal,$
B3: Go to Table of Contents | Q3: =Q39 -> 2023-24 | R3: =R39 -> 2024-25 | S3: 2025-26 | T3: 2026-27 | U3: 2027-28 | V3: 2028-29 | W3: 2029-30 | X3: 2030-31 | Y3: =Y39 -> 2031-32 | Z3: =Z39 -> 2032-33 | AB3: 2023-24 | AC3: 2024-25 | AD3: 2025-26 | AE3: 2026-27 | AF3: 2027-28 | AG3: 2028-29 | AH3: 2029-30 | AI3: 2030-31 | AJ3: 2031-32 | AK3: 2032-33 | AM3: 2023-24 | AN3: 2024-25 | AO3: 2025-26 | AP3: 2026-27 | AQ3: 2027-28 | AR3: 2028-29 | AS3: 2029-30 | AT3: 2030-31 | AU3: 2031-32 | AV3: 2032-33 | AX3: 2023-24 | AY3: 2024-25 | AZ3: 2025-26 | BA3: 2026-27 | BB3: 2027-28 | BC3: 2028-29 | BD3: 2029-30 | BE3: 2030-31 | BF3: 2031-32 | BG3: 2032-33 | BI3: 2023-24 | BJ3: 2024-25 | BK3: 2025-26 | BL3: 2026-27 | BM3: 2027-28 | BN3: 2028-29 | BO3: 2029-30 | BP3: 2030-31 | BQ3: 2031-32 | BR3: 2032-33 | BT3: 2023-24 | BU3: 2024-25 | BV3: 2025-26 | BW3: 2026-27 | BX3: 2027-28 | BY3: 2028-29 | BZ3: 2029-30 | CA3: 2030-31 | CB3: =CB39 -> 2031-32 | CC3: =CC39 -> 2032-33 | CE3: 2023-24 | CF3: 2024-25 | CG3: 2025-26 | CH3: 2026-27 | CI3: 2027-28 | CJ3: 2028-29 | CK3: 2029-30 | CL3: 2030-31 | CM3: =CM39 -> 2031-32 | CN3: =CN39 -> 2032-33 | CP3: 2023-24 | CQ3: 2024-25 | CR3: =CR39 -> 2025-26 | CS3: 2026-27 | CT3: 2027-28 | CU3: 2028-29 | CV3: 2029-30 | CW3: 2030-31 | CX3: =CX39 -> 2031-32 | CY3: =CY39 -> 2032-33
C7: Input Summary | F7: FIFTH REG PERIOD | K7: SIXTH REG PERIOD
D9: =+Q39 -> 2023-24 | E9: =+R39 -> 2024-25 | F9: 2025-26 | G9: 2026-27 | H9: 2027-28 | I9: 2028-29 | J9: 2029-30 | K9: 2030-31 | L9: =+Y39 -> 2031-32 | M9: =+Z39 -> 2032-33
C10: By Cost Driver
C11: Net capital expenditure - Renewals | D11: =+SUMIF($F$42:$F$1016,"Renewals",AX$42:AX$1016) -> 23.4985065 | E11: 22.642144 | F11: 24.13314218 | G11: 18.74371513 | H11: 21.58726217 | I11: 31.71369598 | J11: 34.16246955 | K11: 32.17249212 | L11: =+SUMIF($F$42:$F$1016,"Renewals",BF$42:BF$1016) -> 24.05246929 | M11: =+SUMIF($F$42:$F$1016,"Renewals",BG$42:BG$1016) -> 25.19697899
C12: Net capital expenditure - Growth | D12: =+SUMIF($F$42:$F$1016,"Growth",AX$42:AX$1016) -> 25.52507427 | E12: 9.929778317 | F12: 11.72685246 | G12: 11.08606495 | H12: 0.1891841637 | I12: 7.41094175 | J12: 19.85751377 | K12: 19.3547238 | L12: =+SUMIF($F$42:$F$1016,"Growth",BF$42:BF$1016) -> 17.40449369 | M12: =+SUMIF($F$42:$F$1016,"Growth",BG$42:BG$1016) -> 4.57042068
C13: Net capital expenditure - Improvements / Compliance | D13: =+SUMIF($F$42:$F$1016,"Improvements / Compliance",AX$42:AX$1016) -> 10.22790922 | E13: 10.12984856 | F13: 15.62428356 | G13: 13.58296941 | H13: 7.987320311 | I13: 11.0510264 | J13: 17.66960469 | K13: 9.969434521 | L13: =+SUMIF($F$42:$F$1016,"Improvements / Compliance",BF$42:BF$1016) -> 16.97817078 | M13: =+SUMIF($F$42:$F$1016,"Improvements / Compliance",BG$42:BG$1016) -> 8.43557465
C14: Government Contributions | D14: =+AB41 -> 0 | E14: 0 | F14: 0 | G14: 0 | H14: 0 | I14: 0 | J14: 0 | K14: 0 | L14: =+AJ41 -> 0 | M14: =+AK41 -> 0
C15: Customer Contributions | D15: =+AM41 -> 0.3255664384 | E15: 6.2120235 | F15: 11.64357493 | G15: 13.35902626 | H15: 9.552634929 | I15: 6.00698236 | J15: 6.175242 | K15: 7.541412 | L15: =+AU41 -> 7.226142 | M15: =+AV41 -> 6.017607
C16: Total prescribed capex | D16: =SUM(D11:D15) -> 59.57705644 | E16: 48.91379438 | F16: 63.12785313 | G16: 56.77177575 | H16: 39.31640157 | I16: 56.18264649 | J16: 77.86483001 | K16: 69.03806244 | L16: =SUM(L11:L15) -> 65.66127576 | M16: =SUM(M11:M15) -> 44.22058132
C18: By Capital Type
C19: Top 10 Major Projects | D19: =+SUMIF($H$42:$H$1016,$C$19,Q$42:Q$1016) -> 20.05139914 | E19: 13.58948778 | F19: 27.68781776 | G19: 22.92226622 | H19: 8.143594239 | I19: 0.16248423 | J19: 0.052545 | K19: 0.052545 | L19: =+SUMIF($H$42:$H$1016,$C$19,Y$42:Y$1016) -> 0.052545 | M19: =+SUMIF($H$42:$H$1016,$C$19,Z$42:Z$1016) -> 0.052545
C20: Significant projects | D20: =+SUMIF($H$42:$H$1016,$C$20,Q$42:Q$1016) -> 0 | E20: 0 | F20: 0 | G20: 0 | H20: 0 | I20: 0 | J20: 0 | K20: 0 | L20: =+SUMIF($H$42:$H$1016,$C$20,Y$42:Y$1016) -> 0 | M20: =+SUMIF($H$42:$H$1016,$C$20,Z$42:Z$1016) -> 0
C21: Capital Programs / Allocation | D21: =+SUMIF($H$42:$H$1016,$C$21,Q$42:Q$1016) -> 24.46472332 | E21: 23.56560305 | F21: 23.68878464 | G21: 23.00588008 | H21: 24.88158579 | I21: 31.11837177 | J21: 30.14294358 | K21: 31.12183474 | L21: =+SUMIF($H$42:$H$1016,$C$21,Y$42:Y$1016) -> 31.66757227 | M21: =+SUMIF($H$42:$H$1016,$C$21,Z$42:Z$1016) -> 30.11055365
C22: Other Capital expenditure | D22: =+SUMIF($H$42:$H$1016,$C$22,Q$42:Q$1016) -> 15.06093398 | E22: 11.75870355 | F22: 11.75125073 | G22: 10.84362946 | H22: 6.291221537 | I22: 24.90179049 | J22: 47.66934143 | K22: 37.8636827 | L22: =+SUMIF($H$42:$H$1016,$C$22,Y$42:Y$1016) -> 33.94115849 | M22: =+SUMIF($H$42:$H$1016,$C$22,Z$42:Z$1016) -> 14.05748267
C23: Total prescribed capex | D23: =SUM(D19:D22) -> 59.57705644 | E23: 48.91379438 | F23: 63.12785313 | G23: 56.77177575 | H23: 39.31640157 | I23: 56.18264649 | J23: 77.86483001 | K23: 69.03806244 | L23: =SUM(L19:L22) -> 65.66127576 | M23: =SUM(M19:M22) -> 44.22058132
C25: Difference | D25: =+D23-D16 -> 0 | E25: 0 | F25: 0 | G25: 0 | H25: 0 | I25: 0 | J25: 0 | K25: 0 | L25: =+L23-L16 -> 0 | M25: =+M23-M16 -> 0
C26: Test | D26: =IF(+D23=D16,0,1) -> 0 | E26: 0 | F26: 0 | G26: 0 | H26: 0 | I26: 0 | J26: 0 | K26: 0 | L26: 0 | M26: 0
C29: Total prescribed capex | D29: =+D23 -> 59.57705644 | E29: 48.91379438 | F29: 63.12785313 | G29: 56.77177575 | H29: 39.31640157 | I29: 56.18264649 | J29: 77.86483001 | K29: 69.03806244 | L29: =+L23 -> 65.66127576 | M29: =+M23 -> 44.22058132
C32: Regulatory Depreciation | D32: =+BI41 -> 0.7195387601 | E32: 1.960627545 | F32: 3.041692022 | G32: 4.278454523 | H32: 5.773999641 | I32: 7.227960302 | J32: 8.652104112 | K32: 10.1440289 | L32: =+BQ41 -> 11.50364619 | M32: =+BR41 -> 12.64781509
B35: =Expenditure_Detail!$B$6 -> $m, 01/01/23
Q36: Gross capital expenditure | AB36: Government contributions | AM36: Customer contributions | AX36: Net capital expenditure | BI36: Regulatory Depreciation | BT36: Accumulated capex | CE36: Gross capital expenditure | CP36: Tax Depreciation
Q37: =Expenditure_Detail!$B$6 -> $m, 01/01/23 | AB37: =Expenditure_Detail!$B$6 -> $m, 01/01/23 | AM37: =Expenditure_Detail!$B$6 -> $m, 01/01/23 | AX37: =Expenditure_Detail!$B$6 -> $m, 01/01/23 | BI37: =Expenditure_Detail!$B$6 -> $m, 01/01/23 | BT37: =Expenditure_Detail!$B$6 -> $m, 01/01/23 | CE37: Nominal,$ | CP37: Nominal,$
Q39: 2023-24 | R39: 2024-25 | S39: 2025-26 | T39: 2026-27 | U39: 2027-28 | V39: 2028-29 | W39: 2029-30 | X39: 2030-31 | Y39: 2031-32 | Z39: 2032-33 | AB39: 2023-24 | AC39: 2024-25 | AD39: 2025-26 | AE39: 2026-27 | AF39: 2027-28 | AG39: 2028-29 | AH39: 2029-30 | AI39: 2030-31 | AJ39: 2031-32 | AK39: 2032-33 | AM39: 2023-24 | AN39: 2024-25 | AO39: 2025-26 | AP39: 2026-27 | AQ39: 2027-28 | AR39: 2028-29 | AS39: 2029-30 | AT39: 2030-31 | AU39: 2031-32 | AV39: 2032-33 | AX39: 2023-24 | AY39: 2024-25 | AZ39: 2025-26 | BA39: 2026-27 | BB39: 2027-28 | BC39: 2028-29 | BD39: 2029-30 | BE39: 2030-31 | BF39: 2031-32 | BG39: 2032-33 | BI39: 2023-24 | BJ39: 2024-25 | BK39: 2025-26 | BL39: 2026-27 | BM39: 2027-28 | BN39: 2028-29 | BO39: 2029-30 | BP39: 2030-31 | BQ39: 2031-32 | BR39: 2032-33 | BT39: 2023-24 | BU39: 2024-25 | BV39: 2025-26 | BW39: 2026-27 | BX39: 2027-28 | BY39: 2028-29 | BZ39: 2029-30 | CA39: 2030-31 | CB39: 2031-32 | CC39: 2032-33 | CE39: 2023-24 | CF39: 2024-25 | CG39: 2025-26 | CH39: 2026-27 | CI39: 2027-28 | CJ39: 2028-29 | CK39: 2029-30 | CL39: 2030-31 | CM39: 2031-32 | CN39: 2032-33 | CP39: 2023-24 | CQ39: 2024-25 | CR39: 2025-26 | CS39: 2026-27 | CT39: 2027-28 | CU39: 2028-29 | CV39: 2029-30 | CW39: 2030-31 | CX39: 2031-32 | CY39: 2032-33
BI40: 1 | BJ40: 2 | BK40: 3 | BL40: 4 | BM40: 5 | BN40: 6 | BO40: 7 | BP40: 8 | BQ40: 9 | BR40: 10 | CP40: 1 | CQ40: 2 | CR40: 3 | CS40: 4 | CT40: 5 | CU40: 6 | CV40: 7 | CW40: 8 | CX40: 9 | CY40: 10
C41: Project/program Name | E41: Service | F41: Major cost driver | G41: Asset category | H41: Capital type | J41: Reg Depreciation Method | K41: Year asset operational | L41: Asset life (Regulatory) | M41: Asset life (Tax) | Q41: =SUM(Q42:Q1016) -> 59.57705644 | R41: 48.91379438 | S41: 63.12785313 | T41: 56.77177575 | U41: 39.31640157 | V41: 56.18264649 | W41: 77.86483001 | X41: 69.03806244 | Y41: =SUM(Y42:Y1016) -> 65.66127576 | Z41: =SUM(Z42:Z1016) -> 44.22058132 | AB41: =SUM(AB42:AB1016) -> 0 | AC41: 0 | AD41: 0 | AE41: 0 | AF41: 0 | AG41: 0 | AH41: 0 | AI41: 0 | AJ41: 0 | AK41: 0 | AM41: =SUM(AM42:AM1016) -> 0.3255664384 | AN41: 6.2120235 | AO41: 11.64357493 | AP41: 13.35902626 | AQ41: 9.552634929 | AR41: 6.00698236 | AS41: 6.175242 | AT41: 7.541412 | AU41: 7.226142 | AV41: 6.017607 | AX41: =SUM(AX42:AX1016) -> 59.25149 | AY41: 42.70177088 | AZ41: 51.4842782 | BA41: 43.4127495 | BB41: 29.76376664 | BC41: 50.17566413 | BD41: 71.68958801 | BE41: 61.49665044 | BF41: 58.43513376 | BG41: 38.20297432 | BI41: =SUM(BI42:BI1016) -> 0.7195387601 | BJ41: 1.960627545 | BK41: 3.041692022 | BL41: 4.278454523 | BM41: 5.773999641 | BN41: 7.227960302 | BO41: 8.652104112 | BP41: 10.1440289 | BQ41: =SUM(BQ42:BQ1016) -> 11.50364619 | BR41: =SUM(BR42:BR1016) -> 12.64781509 | BT41: =SUM(BT42:BT1016) -> 49.5256573 | BU41: 29.3592446 | BV41: 35.39212179 | BW41: 57.60540027 | BX41: 54.73163127 | BY41: 50.17566413 | BZ41: 71.68958801 | CA41: 61.49665044 | CB41: =SUM(CB42:CB1016) -> 58.43513376 | CC41: =SUM(CC42:CC1016) -> 38.20297432 | CE41: =SUM(CE42:CE1016) -> 61.36436813 | CF41: 51.89264446 | CG41: 68.98150957 | CH41: 63.89713377 | CI41: 45.57848503 | CJ41: 67.08501807 | CK41: 95.76391946 | CL41: 87.45535197 | CM41: =SUM(CM42:CM1016) -> 85.67307183 | CN41: =SUM(CN42:CN1016) -> 59.42876355 | CP41: =SUM(CP42:CP1016) -> 0.8804537016 | CQ41: 2.541744238 | CR41: 4.242826082 | CS41: 5.919965136 | CT41: 7.294891891 | CU41: 8.73171227 | CV41: 10.58352089 | CW41: 12.58725467 | CX41: =SUM(CX42:CX1016) -> 14.4926947 | CY41: =SUM(CY42:CY1016) -> 16.15064097
C42: SWOP - Renewal Program | E42: Sewerage | F42: Renewals | G42: Pipelines/network | H42: Top 10 Major Projects | I42: 0 | J42: Straight line | K42: 2027-28 | L42: 60 | M42: 60 | Q42: 0.3255664384 | R42: 0.2469615 | S42: 5.678512928 | T42: 7.393964256 | U42: 3.587572929 | V42: 0.04192036 | W42: 0 | X42: 0 | Y42: 0 | Z42: 0 | AB42: 0 | AC42: 0 | AD42: 0 | AE42: 0 | AF42: 0 | AG42: 0 | AH42: 0 | AI42: 0 | AJ42: 0 | AK42: 0 | AM42: 0.3255664384 | AN42: 0.2469615 | AO42: 5.678512928 | AP42: 7.393964256 | AQ42: 3.587572929 | AR42: 0.04192036 | AS42: 0 | AT42: 0 | AU42: 0 | AV42: 0 | AX42: =+Q42-AB42-AM42 -> 0 | AY42: =+R42-AC42-AN42 -> 0 | AZ42: =+S42-AD42-AO42 -> 0 | BA42: =+T42-AE42-AP42 -> 0 | BB42: =+U42-AF42-AQ42 -> 0 | BC42: =+V42-AG42-AR42 -> 0 | BD42: =+W42-AH42-AS42 -> 0 | BE42: =+X42-AI42-AT42 -> 0 | BF42: =+Y42-AJ42-AU42 -> 0 | BG42: =+Z42-AK42-AV42 -> 0 | BI42: =IF($L42=0,0, IF($L42<=0.5,BT42, IF($J42="straight line", IF((LEFT(BI$39,4)*1)-INT($L42)<LEFT($BI$39,4)*1,0,((OFFSET(BT42,0,-INT($L42+0.5),1,1))/$L42)*(IF($L42-INT($L42)>0.5,$L42-0.5-INT($L42),IF($L42-INT($L42)<=0.5,$L42-0.5-INT($L42)+1,0)))) +BT42/$L42*0.5, IF($J42="Declining Balance",-$BI$38,0)))) -> 0 | BJ42: =IF($L42=0,0, IF($L42<=0.5,BU42, IF(AND($J42="straight line",$L42<1.51),(BT42-((BT42/$L42)*0.5))+BU42/$L42*0.5, IF($J42="straight line", IF((LEFT(BJ$39,4)*1)-INT($L42)<LEFT($BI$39,4)*1,0,((OFFSET(BU42,0,-INT($L42+0.5),1,1))/$L42)*(IF($L42-INT($L42)>0.5,$L42-0.5-INT($L42),IF($L42-INT($L42)<=0.5,$L42-0.5-INT($L42)+1,0)))) +BU42/$L42*0.5 +SUM(OFFSET(BU42,0,MAX(-INT($L42+(0.5-(10^-12))),-BJ$40)+1,1,MIN(INT($L42+(0.5-(10^-12))),BJ$40)-1))*1/$L42, IF($J42="Declining Balance",-$BI$38,0))))) -> 0 | BK42: =IF($L42=0,0, IF($L42<=0.5,BV42, IF(AND($J42="straight line",$L42<1.51),(BU42-((BU42/$L42)*0.5))+BV42/$L42*0.5, IF($J42="straight line", IF((LEFT(BK$39,4)*1)-INT($L42)<LEFT($BI$39,4)*1,0,((OFFSET(BV42,0,-INT($L42+0.5),1,1))/$L42)*(IF($L42-INT($L42)>0.5,$L42-0.5-INT($L42),IF($L42-INT($L42)<=0.5,$L42-0.5-INT($L42)+1,0)))) +BV42/$L42*0.5 +SUM(OFFSET(BV42,0,MAX(-INT($L42+(0.5-(10^-12))),-BK$40)+1,1,MIN(INT($L42+(0.5-(10^-12))),BK$40)-1))*1/$L42, IF($J42="Declining Balance",-$BI$38,0))))) -> 0 | BL42: =IF($L42=0,0, IF($L42<=0.5,BW42, IF(AND($J42="straight line",$L42<1.51),(BV42-((BV42/$L42)*0.5))+BW42/$L42*0.5, IF($J42="straight line", IF((LEFT(BL$39,4)*1)-INT($L42)<LEFT($BI$39,4)*1,0,((OFFSET(BW42,0,-INT($L42+0.5),1,1))/$L42)*(IF($L42-INT($L42)>0.5,$L42-0.5-INT($L42),IF($L42-INT($L42)<=0.5,$L42-0.5-INT($L42)+1,0)))) +BW42/$L42*0.5 +SUM(OFFSET(BW42,0,MAX(-INT($L42+(0.5-(10^-12))),-BL$40)+1,1,MIN(INT($L42+(0.5-(10^-12))),BL$40)-1))*1/$L42, IF($J42="Declining Balance",-$BI$38,0))))) -> 0 | BM42: =IF($L42=0,0, IF($L42<=0.5,BX42, IF(AND($J42="straight line",$L42<1.51),(BW42-((BW42/$L42)*0.5))+BX42/$L42*0.5, IF($J42="straight line", IF((LEFT(BM$39,4)*1)-INT($L42)<LEFT($BI$39,4)*1,0,((OFFSET(BX42,0,-INT($L42+0.5),1,1))/$L42)*(IF($L42-INT($L42)>0.5,$L42-0.5-INT($L42),IF($L42-INT($L42)<=0.5,$L42-0.5-INT($L42)+1,0)))) +BX42/$L42*0.5 +SUM(OFFSET(BX42,0,MAX(-INT($L42+(0.5-(10^-12))),-BM$40)+1,1,MIN(INT($L42+(0.5-(10^-12))),BM$40)-1))*1/$L42, IF($J42="Declining Balance",-$BI$38,0))))) -> 0 | BN42: =IF($L42=0,0, IF($L42<=0.5,BY42, IF(AND($J42="straight line",$L42<1.51),(BX42-((BX42/$L42)*0.5))+BY42/$L42*0.5, IF($J42="straight line", IF((LEFT(BN$39,4)*1)-INT($L42)<LEFT($BI$39,4)*1,0,((OFFSET(BY42,0,-INT($L42+0.5),1,1))/$L42)*(IF($L42-INT($L42)>0.5,$L42-0.5-INT($L42),IF($L42-INT($L42)<=0.5,$L42-0.5-INT($L42)+1,0)))) +BY42/$L42*0.5 +SUM(OFFSET(BY42,0,MAX(-INT($L42+(0.5-(10^-12))),-BN$40)+1,1,MIN(INT($L42+(0.5-(10^-12))),BN$40)-1))*1/$L42, IF($J42="Declining Balance",-$BI$38,0))))) -> 0 | BO42: =IF($L42=0,0, IF($L42<=0.5,BZ42, IF(AND($J42="straight line",$L42<1.51),(BY42-((BY42/$L42)*0.5))+BZ42/$L42*0.5, IF($J42="straight line", IF((LEFT(BO$39,4)*1)-INT($L42)<LEFT($BI$39,4)*1,0,((OFFSET(BZ42,0,-INT($L42+0.5),1,1))/$L42)*(IF($L42-INT($L42)>0.5,$L42-0.5-INT($L42),IF($L42-INT($L42)<=0.5,$L42-0.5-INT($L42)+1,0)))) +BZ42/$L42*0.5 +SUM(OFFSET(BZ42,0,MAX(-INT($L42+(0.5-(10^-12))),-BO$40)+1,1,MIN(INT($L42+(0.5-(10^-12))),BO$40)-1))*1/$L42, IF($J42="Declining Balance",-$BI$38,0))))) -> 0 | BP42: =IF($L42=0,0, IF($L42<=0.5,CA42, IF(AND($J42="straight line",$L42<1.51),(BZ42-((BZ42/$L42)*0.5))+CA42/$L42*0.5, IF($J42="straight line", IF((LEFT(BP$39,4)*1)-INT($L42)<LEFT($BI$39,4)*1,0,((OFFSET(CA42,0,-INT($L42+0.5),1,1))/$L42)*(IF($L42-INT($L42)>0.5,$L42-0.5-INT($L42),IF($L42-INT($L42)<=0.5,$L42-0.5-INT($L42)+1,0)))) +CA42/$L42*0.5 +SUM(OFFSET(CA42,0,MAX(-INT($L42+(0.5-(10^-12))),-BP$40)+1,1,MIN(INT($L42+(0.5-(10^-12))),BP$40)-1))*1/$L42, IF($J42="Declining Balance",-$BI$38,0))))) -> 0 | BQ42: =IF($L42=0,0, IF($L42<=0.5,CB42, IF(AND($J42="straight line",$L42<1.51),(CA42-((CA42/$L42)*0.5))+CB42/$L42*0.5, IF($J42="straight line", IF((LEFT(BQ$39,4)*1)-INT($L42)<LEFT($BI$39,4)*1,0,((OFFSET(CB42,0,-INT($L42+0.5),1,1))/$L42)*(IF($L42-INT($L42)>0.5,$L42-0.5-INT($L42),IF($L42-INT($L42)<=0.5,$L42-0.5-INT($L42)+1,0)))) +CB42/$L42*0.5 +SUM(OFFSET(CB42,0,MAX(-INT($L42+(0.5-(10^-12))),-BQ$40)+1,1,MIN(INT($L42+(0.5-(10^-12))),BQ$40)-1))*1/$L42, IF($J42="Declining Balance",-$BI$38,0))))) -> 0 | BR42: =IF($L42=0,0, IF($L42<=0.5,CC42, IF(AND($J42="straight line",$L42<1.51),(CB42-((CB42/$L42)*0.5))+CC42/$L42*0.5, IF($J42="straight line", IF((LEFT(BR$39,4)*1)-INT($L42)<LEFT($BI$39,4)*1,0,((OFFSET(CC42,0,-INT($L42+0.5),1,1))/$L42)*(IF($L42-INT($L42)>0.5,$L42-0.5-INT($L42),IF($L42-INT($L42)<=0.5,$L42-0.5-INT($L42)+1,0)))) +CC42/$L42*0.5 +SUM(OFFSET(CC42,0,MAX(-INT($L42+(0.5-(10^-12))),-BR$40)+1,1,MIN(INT($L42+(0.5-(10^-12))),BR$40)-1))*1/$L42, IF($J42="Declining Balance",-$BI$38,0))))) -> 0 | BT42: =+IF($K42="Ongoing",AX42,IF(RIGHT($K42,2)=RIGHT(BT$39,2),SUM($AX42:AX42),0)+IF(RIGHT(BT$39,2)>RIGHT($K42,2),AX42,0)) -> 0 | BU42: =+IF($K42="Ongoing",AY42,IF(RIGHT($K42,2)=RIGHT(BU$39,2),SUM($AX42:AY42),0)+IF(RIGHT(BU$39,2)>RIGHT($K42,2),AY42,0)) -> 0 | BV42: =+IF($K42="Ongoing",AZ42,IF(RIGHT($K42,2)=RIGHT(BV$39,2),SUM($AX42:AZ42),0)+IF(RIGHT(BV$39,2)>RIGHT($K42,2),AZ42,0)) -> 0 | BW42: =+IF($K42="Ongoing",BA42,IF(RIGHT($K42,2)=RIGHT(BW$39,2),SUM($AX42:BA42),0)+IF(RIGHT(BW$39,2)>RIGHT($K42,2),BA42,0)) -> 0 | BX42: =+IF($K42="Ongoing",BB42,IF(RIGHT($K42,2)=RIGHT(BX$39,2),SUM($AX42:BB42),0)+IF(RIGHT(BX$39,2)>RIGHT($K42,2),BB42,0)) -> 0 | BY42: =+IF($K42="Ongoing",BC42,IF(RIGHT($K42,2)=RIGHT(BY$39,2),SUM($AX42:BC42),0)+IF(RIGHT(BY$39,2)>RIGHT($K42,2),BC42,0)) -> 0 | BZ42: =+IF($K42="Ongoing",BD42,IF(RIGHT($K42,2)=RIGHT(BZ$39,2),SUM($AX42:BD42),0)+IF(RIGHT(BZ$39,2)>RIGHT($K42,2),BD42,0)) -> 0 | CA42: =+IF($K42="Ongoing",BE42,IF(RIGHT($K42,2)=RIGHT(CA$39,2),SUM($AX42:BE42),0)+IF(RIGHT(CA$39,2)>RIGHT($K42,2),BE42,0)) -> 0 | CB42: =+IF($K42="Ongoing",BF42,IF(RIGHT($K42,2)=RIGHT(CB$39,2),SUM($AX42:BF42),0)+IF(RIGHT(CB$39,2)>RIGHT($K42,2),BF42,0)) -> 0 | CC42: =+IF($K42="Ongoing",BG42,IF(RIGHT($K42,2)=RIGHT(CC$39,2),SUM($AX42:BG42),0)+IF(RIGHT(CC$39,2)>RIGHT($K42,2),BG42,0)) -> 0 | CE42: =+Q42*KeyAssumptionsPriceControl_FO!AC$15 -> 0.3353334316 | CF42: =+R42*KeyAssumptionsPriceControl_FO!AD$15 -> 0.2620014553 | CG42: =+S42*KeyAssumptionsPriceControl_FO!AE$15 -> 6.205064397 | CH42: =+T42*KeyAssumptionsPriceControl_FO!AF$15 -> 8.321971911 | CI42: =+U42*KeyAssumptionsPriceControl_FO!AG$15 -> 4.158980286 | CJ42: =+V42*KeyAssumptionsPriceControl_FO!AH$15 -> 0.05005510213 | CK42: =+W42*KeyAssumptionsPriceControl_FO!AI$15 -> 0 | CL42: =+X42*KeyAssumptionsPriceControl_FO!AJ$15 -> 0 | CM42: =+Y42*KeyAssumptionsPriceControl_FO!AK$15 -> 0 | CN42: =+Z42*KeyAssumptionsPriceControl_FO!AL$15 -> 0 | CP42: =IF($M42=0,0, IF($M42<=0.5,CE42, IF($J42="straight line", IF((LEFT(CP$39,4)*1)-INT($M42)<LEFT($CP$39,4)*1,0,((OFFSET(CE42,0,-INT($M42+0.5),1,1))/$M42)*(IF($M42-INT($M42)>0.5,$M42-0.5-INT($M42),IF($M42-INT($M42)<=0.5,$M42-0.5-INT($M42)+1,0)))) +CE42/$M42*0.5, IF($J42="Declining Balance",-$CP$38,0)))) -> 0.002794445263 | CQ42: =IF($M42=0,0, IF($M42<=0.5,CF42, IF(AND($J42="straight line",$M42<1.51),(CE42-((CE42/$M42)*0.5))+CF42/$M42*0.5, IF($J42="straight line", IF((LEFT(CQ$39,4)*1)-INT($M42)<LEFT($CP$39,4)*1,0,((OFFSET(CF42,0,-INT($M42+0.5),1,1))/$M42)*(IF($M42-INT($M42)>0.5,$M42-0.5-INT($M42),IF($M42-INT($M42)<=0.5,$M42-0.5-INT($M42)+1,0)))) +CF42/$M42*0.5 +SUM(OFFSET(CF42,0,MAX(-INT($M42+(0.5-(10^-12))),-CQ$40)+1,1,MIN(INT($M42+(0.5-(10^-12))),CQ$40)-1))*1/$M42, IF($J42="Declining Balance",-$CP$38,0))))) -> 0.007772235987 | CR42: =IF($M42=0,0, IF($M42<=0.5,CG42, IF(AND($J42="straight line",$M42<1.51),(CF42-((CF42/$M42)*0.5))+CG42/$M42*0.5, IF($J42="straight line", IF((LEFT(CR$39,4)*1)-INT($M42)<LEFT($CP$39,4)*1,0,((OFFSET(CG42,0,-INT($M42+0.5),1,1))/$M42)*(IF($M42-INT($M42)>0.5,$M42-0.5-INT($M42),IF($M42-INT($M42)<=0.5,$M42-0.5-INT($M42)+1,0)))) +CG42/$M42*0.5 +SUM(OFFSET(CG42,0,MAX(-INT($M42+(0.5-(10^-12))),-CR$40)+1,1,MIN(INT($M42+(0.5-(10^-12))),CR$40)-1))*1/$M42, IF($J42="Declining Balance",-$CP$38,0))))) -> 0.06166445142 | CS42: =IF($M42=0,0, IF($M42<=0.5,CH42, IF(AND($J42="straight line",$M42<1.51),(CG42-((CG42/$M42)*0.5))+CH42/$M42*0.5, IF($J42="straight line", IF((LEFT(CS$39,4)*1)-INT($M42)<LEFT($CP$39,4)*1,0,((OFFSET(CH42,0,-INT($M42+0.5),1,1))/$M42)*(IF($M42-INT($M42)>0.5,$M42-0.5-INT($M42),IF($M42-INT($M42)<=0.5,$M42-0.5-INT($M42)+1,0)))) +CH42/$M42*0.5 +SUM(OFFSET(CH42,0,MAX(-INT($M42+(0.5-(10^-12))),-CS$40)+1,1,MIN(INT($M42+(0.5-(10^-12))),CS$40)-1))*1/$M42, IF($J42="Declining Balance",-$CP$38,0))))) -> 0.1827230873 | CT42: =IF($M42=0,0, IF($M42<=0.5,CI42, IF(AND($J42="straight line",$M42<1.51),(CH42-((CH42/$M42)*0.5))+CI42/$M42*0.5, IF($J42="straight line", IF((LEFT(CT$39,4)*1)-INT($M42)<LEFT($CP$39,4)*1,0,((OFFSET(CI42,0,-INT($M42+0.5),1,1))/$M42)*(IF($M42-INT($M42)>0.5,$M42-0.5-INT($M42),IF($M42-INT($M42)<=0.5,$M42-0.5-INT($M42)+1,0)))) +CI42/$M42*0.5 +SUM(OFFSET(CI42,0,MAX(-INT($M42+(0.5-(10^-12))),-CT$40)+1,1,MIN(INT($M42+(0.5-(10^-12))),CT$40)-1))*1/$M42, IF($J42="Declining Balance",-$CP$38,0))))) -> 0.2867310223 | CU42: =IF($M42=0,0, IF($M42<=0.5,CJ42, IF(AND($J42="straight line",$M42<1.51),(CI42-((CI42/$M42)*0.5))+CJ42/$M42*0.5, IF($J42="straight line", IF((LEFT(CU$39,4)*1)-INT($M42)<LEFT($CP$39,4)*1,0,((OFFSET(CJ42,0,-INT($M42+0.5),1,1))/$M42)*(IF($M42-INT($M42)>0.5,$M42-0.5-INT($M42),IF($M42-INT($M42)<=0.5,$M42-0.5-INT($M42)+1,0)))) +CJ42/$M42*0.5 +SUM(OFFSET(CJ42,0,MAX(-INT($M42+(0.5-(10^-12))),-CU$40)+1,1,MIN(INT($M42+(0.5-(10^-12))),CU$40)-1))*1/$M42, IF($J42="Declining Balance",-$CP$38,0))))) -> 0.3218063172 | CV42: =IF($M42=0,0, IF($M42<=0.5,CK42, IF(AND($J42="straight line",$M42<1.51),(CJ42-((CJ42/$M42)*0.5))+CK42/$M42*0.5, IF($J42="straight line", IF((LEFT(CV$39,4)*1)-INT($M42)<LEFT($CP$39,4)*1,0,((OFFSET(CK42,0,-INT($M42+0.5),1,1))/$M42)*(IF($M42-INT($M42)>0.5,$M42-0.5-INT($M42),IF($M42-INT($M42)<=0.5,$M42-0.5-INT($M42)+1,0)))) +CK42/$M42*0.5 +SUM(OFFSET(CK42,0,MAX(-INT($M42+(0.5-(10^-12))),-CV$40)+1,1,MIN(INT($M42+(0.5-(10^-12))),CV$40)-1))*1/$M42, IF($J42="Declining Balance",-$CP$38,0))))) -> 0.322223443 | CW42: =IF($M42=0,0, IF($M42<=0.5,CL42, IF(AND($J42="straight line",$M42<1.51),(CK42-((CK42/$M42)*0.5))+CL42/$M42*0.5, IF($J42="straight line", IF((LEFT(CW$39,4)*1)-INT($M42)<LEFT($CP$39,4)*1,0,((OFFSET(CL42,0,-INT($M42+0.5),1,1))/$M42)*(IF($M42-INT($M42)>0.5,$M42-0.5-INT($M42),IF($M42-INT($M42)<=0.5,$M42-0.5-INT($M42)+1,0)))) +CL42/$M42*0.5 +SUM(OFFSET(CL42,0,MAX(-INT($M42+(0.5-(10^-12))),-CW$40)+1,1,MIN(INT($M42+(0.5-(10^-12))),CW$40)-1))*1/$M42, IF($J42="Declining Balance",-$CP$38,0))))) -> 0.322223443 | CX42: =IF($M42=0,0, IF($M42<=0.5,CM42, IF(AND($J42="straight line",$M42<1.51),(CL42-((CL42/$M42)*0.5))+CM42/$M42*0.5, IF($J42="straight line", IF((LEFT(CX$39,4)*1)-INT($M42)<LEFT($CP$39,4)*1,0,((OFFSET(CM42,0,-INT($M42+0.5),1,1))/$M42)*(IF($M42-INT($M42)>0.5,$M42-0.5-INT($M42),IF($M42-INT($M42)<=0.5,$M42-0.5-INT($M42)+1,0)))) +CM42/$M42*0.5 +SUM(OFFSET(CM42,0,MAX(-INT($M42+(0.5-(10^-12))),-CX$40)+1,1,MIN(INT($M42+(0.5-(10^-12))),CX$40)-1))*1/$M42, IF($J42="Declining Balance",-$CP$38,0))))) -> 0.322223443 | CY42: =IF($M42=0,0, IF($M42<=0.5,CN42, IF(AND($J42="straight line",$M42<1.51),(CM42-((CM42/$M42)*0.5))+CN42/$M42*0.5, IF($J42="straight line", IF((LEFT(CY$39,4)*1)-INT($M42)<LEFT($CP$39,4)*1,0,((OFFSET(CN42,0,-INT($M42+0.5),1,1))/$M42)*(IF($M42-INT($M42)>0.5,$M42-0.5-INT($M42),IF($M42-INT($M42)<=0.5,$M42-0.5-INT($M42)+1,0)))) +CN42/$M42*0.5 +SUM(OFFSET(CN42,0,MAX(-INT($M42+(0.5-(10^-12))),-CY$40)+1,1,MIN(INT($M42+(0.5-(10^-12))),CY$40)-1))*1/$M42, IF($J42="Declining Balance",-$CP$38,0))))) -> 0.322223443
C43: Moe Sewer - Yarragon Township SPS (Factory Rd SPS) Rising Main and Pump Pump Station Capacity Upgrade | E43: Sewerage | F43: Growth | G43: Pipelines/network | H43: Top 10 Major Projects | I43: 0 | J43: Straight line | K43: 2027-28 | L43: 60 | M43: 60 | Q43: 0.52545 | R43: 0.3 | S43: 3.693727354 | T43: 7.546082714 | U43: 2.20395277 | V43: 0 | W43: 0 | X43: 0 | Y43: 0 | Z43: 0 | AB43: 0 | AC43: 0 | AD43: 0 | AE43: 0 | AF43: 0 | AG43: 0 | AH43: 0 | AI43: 0 | AJ43: 0 | AK43: 0 | AM43: 0 | AN43: 0 | AO43: 0 | AP43: 0 | AQ43: 0 | AR43: 0 | AS43: 0 | AT43: 0 | AU43: 0 | AV43: 0 | AX43: 0.52545 | AY43: 0.3 | AZ43: 3.693727354 | BA43: 7.546082714 | BB43: 2.20395277 | BC43: 0 | BD43: 0 | BE43: 0 | BF43: 0 | BG43: 0 | BI43: =IF($L43=0,0, IF($L43<=0.5,BT43, IF($J43="straight line", IF((LEFT(BI$39,4)*1)-INT($L43)<LEFT($BI$39,4)*1,0,((OFFSET(BT43,0,-INT($L43+0.5),1,1))/$L43)*(IF($L43-INT($L43)>0.5,$L43-0.5-INT($L43),IF($L43-INT($L43)<=0.5,$L43-0.5-INT($L43)+1,0)))) +BT43/$L43*0.5, IF($J43="Declining Balance",-$BI$38,0)))) -> 0 | BJ43: =IF($L43=0,0, IF($L43<=0.5,BU43, IF(AND($J43="straight line",$L43<1.51),(BT43-((BT43/$L43)*0.5))+BU43/$L43*0.5, IF($J43="straight line", IF((LEFT(BJ$39,4)*1)-INT($L43)<LEFT($BI$39,4)*1,0,((OFFSET(BU43,0,-INT($L43+0.5),1,1))/$L43)*(IF($L43-INT($L43)>0.5,$L43-0.5-INT($L43),IF($L43-INT($L43)<=0.5,$L43-0.5-INT($L43)+1,0)))) +BU43/$L43*0.5 +SUM(OFFSET(BU43,0,MAX(-INT($L43+(0.5-(10^-12))),-BJ$40)+1,1,MIN(INT($L43+(0.5-(10^-12))),BJ$40)-1))*1/$L43, IF($J43="Declining Balance",-$BI$38,0))))) -> 0 | BK43: 0 | BL43: 0 | BM43: 0.118910107 | BN43: 0.237820214 | BO43: 0.237820214 | BP43: 0.237820214 | BQ43: 0.237820214 | BR43: 0.237820214 | BT43: =+IF($K43="Ongoing",AX43,IF(RIGHT($K43,2)=RIGHT(BT$39,2),SUM($AX43:AX43),0)+IF(RIGHT(BT$39,2)>RIGHT($K43,2),AX43,0)) -> 0 | BU43: =+IF($K43="Ongoing",AY43,IF(RIGHT($K43,2)=RIGHT(BU$39,2),SUM($AX43:AY43),0)+IF(RIGHT(BU$39,2)>RIGHT($K43,2),AY43,0)) -> 0 | BV43: =+IF($K43="Ongoing",AZ43,IF(RIGHT($K43,2)=RIGHT(BV$39,2),SUM($AX43:AZ43),0)+IF(RIGHT(BV$39,2)>RIGHT($K43,2),AZ43,0)) -> 0 | BW43: =+IF($K43="Ongoing",BA43,IF(RIGHT($K43,2)=RIGHT(BW$39,2),SUM($AX43:BA43),0)+IF(RIGHT(BW$39,2)>RIGHT($K43,2),BA43,0)) -> 0 | BX43: =+IF($K43="Ongoing",BB43,IF(RIGHT($K43,2)=RIGHT(BX$39,2),SUM($AX43:BB43),0)+IF(RIGHT(BX$39,2)>RIGHT($K43,2),BB43,0)) -> 14.26921284 | BY43: =+IF($K43="Ongoing",BC43,IF(RIGHT($K43,2)=RIGHT(BY$39,2),SUM($AX43:BC43),0)+IF(RIGHT(BY$39,2)>RIGHT($K43,2),BC43,0)) -> 0 | BZ43: =+IF($K43="Ongoing",BD43,IF(RIGHT($K43,2)=RIGHT(BZ$39,2),SUM($AX43:BD43),0)+IF(RIGHT(BZ$39,2)>RIGHT($K43,2),BD43,0)) -> 0 | CA43: =+IF($K43="Ongoing",BE43,IF(RIGHT($K43,2)=RIGHT(CA$39,2),SUM($AX43:BE43),0)+IF(RIGHT(CA$39,2)>RIGHT($K43,2),BE43,0)) -> 0 | CB43: =+IF($K43="Ongoing",BF43,IF(RIGHT($K43,2)=RIGHT(CB$39,2),SUM($AX43:BF43),0)+IF(RIGHT(CB$39,2)>RIGHT($K43,2),BF43,0)) -> 0 | CC43: =+IF($K43="Ongoing",BG43,IF(RIGHT($K43,2)=RIGHT(CC$39,2),SUM($AX43:BG43),0)+IF(RIGHT(CC$39,2)>RIGHT($K43,2),BG43,0)) -> 0 | CE43: =+Q43*KeyAssumptionsPriceControl_FO!AC$15 -> 0.5412135 | CF43: =+R43*KeyAssumptionsPriceControl_FO!AD$15 -> 0.31827 | CG43: =+S43*KeyAssumptionsPriceControl_FO!AE$15 -> 4.03623561 | CH43: =+T43*KeyAssumptionsPriceControl_FO!AF$15 -> 8.493182576 | CI43: =+U43*KeyAssumptionsPriceControl_FO!AG$15 -> 2.554985307 | CJ43: =+V43*KeyAssumptionsPriceControl_FO!AH$15 -> 0 | CK43: =+W43*KeyAssumptionsPriceControl_FO!AI$15 -> 0 | CL43: =+X43*KeyAssumptionsPriceControl_FO!AJ$15 -> 0 | CM43: =+Y43*KeyAssumptionsPriceControl_FO!AK$15 -> 0 | CN43: =+Z43*KeyAssumptionsPriceControl_FO!AL$15 -> 0 | CP43: 0.0045101125 | CQ43: 0.011672475 | CR43: 0.04796002175 | CS43: 0.15237184 | CT43: 0.2444399057 | CU43: 0.2657314499 | CV43: 0.2657314499 | CW43: 0.2657314499 | CX43: 0.2657314499 | CY43: 0.2657314499
C44: Traralgon Water - Connect Tgon and Morwell Water Networks - STAGE 1 | E44: Water | F44: Improvements / Compliance | G44: Pipelines/network | H44: Top 10 Major Projects | I44: 0 | J44: Straight line | K44: 2027-28 | L44: 60 | M44: 60 | Q44: 0.693594 | R44: 0.4 | S44: 4.0239088 | T44: 4.0239088 | U44: 2.0119544 | V44: 0.10014362 | W44: 0 | X44: 0 | Y44: 0 | Z44: 0 | AB44: 0 | AC44: 0 | AD44: 0 | AE44: 0 | AF44: 0 | AG44: 0 | AH44: 0 | AI44: 0 | AJ44: 0 | AK44: 0 | AM44: 0 | AN44: 0 | AO44: 0 | AP44: 0 | AQ44: 0 | AR44: 0 | AS44: 0 | AT44: 0 | AU44: 0 | AV44: 0 | AX44: 0.693594 | AY44: 0.4 | AZ44: 4.0239088 | BA44: 4.0239088 | BB44: 2.0119544 | BC44: 0.10014362 | BD44: 0 | BE44: 0 | BF44: 0 | BG44: 0 | BI44: 0 | BJ44: 0 | BK44: 0 | BL44: 0 | BM44: 0.09294471667 | BN44: 0.1867239635 | BO44: 0.1875584937 | BP44: 0.1875584937 | BQ44: 0.1875584937 | BR44: 0.1875584937 | BT44: =+IF($K44="Ongoing",AX44,IF(RIGHT($K44,2)=RIGHT(BT$39,2),SUM($AX44:AX44),0)+IF(RIGHT(BT$39,2)>RIGHT($K44,2),AX44,0)) -> 0 | BU44: =+IF($K44="Ongoing",AY44,IF(RIGHT($K44,2)=RIGHT(BU$39,2),SUM($AX44:AY44),0)+IF(RIGHT(BU$39,2)>RIGHT($K44,2),AY44,0)) -> 0 | BV44: =+IF($K44="Ongoing",AZ44,IF(RIGHT($K44,2)=RIGHT(BV$39,2),SUM($AX44:AZ44),0)+IF(RIGHT(BV$39,2)>RIGHT($K44,2),AZ44,0)) -> 0 | BW44: =+IF($K44="Ongoing",BA44,IF(RIGHT($K44,2)=RIGHT(BW$39,2),SUM($AX44:BA44),0)+IF(RIGHT(BW$39,2)>RIGHT($K44,2),BA44,0)) -> 0 | BX44: =+IF($K44="Ongoing",BB44,IF(RIGHT($K44,2)=RIGHT(BX$39,2),SUM($AX44:BB44),0)+IF(RIGHT(BX$39,2)>RIGHT($K44,2),BB44,0)) -> 11.153366 | BY44: =+IF($K44="Ongoing",BC44,IF(RIGHT($K44,2)=RIGHT(BY$39,2),SUM($AX44:BC44),0)+IF(RIGHT(BY$39,2)>RIGHT($K44,2),BC44,0)) -> 0.10014362 | BZ44: =+IF($K44="Ongoing",BD44,IF(RIGHT($K44,2)=RIGHT(BZ$39,2),SUM($AX44:BD44),0)+IF(RIGHT(BZ$39,2)>RIGHT($K44,2),BD44,0)) -> 0 | CA44: =+IF($K44="Ongoing",BE44,IF(RIGHT($K44,2)=RIGHT(CA$39,2),SUM($AX44:BE44),0)+IF(RIGHT(CA$39,2)>RIGHT($K44,2),BE44,0)) -> 0 | CB44: =+IF($K44="Ongoing",BF44,IF(RIGHT($K44,2)=RIGHT(CB$39,2),SUM($AX44:BF44),0)+IF(RIGHT(CB$39,2)>RIGHT($K44,2),BF44,0)) -> 0 | CC44: =+IF($K44="Ongoing",BG44,IF(RIGHT($K44,2)=RIGHT(CC$39,2),SUM($AX44:BG44),0)+IF(RIGHT(CC$39,2)>RIGHT($K44,2),BG44,0)) -> 0 | CE44: =+Q44*KeyAssumptionsPriceControl_FO!AC$15 -> 0.71440182 | CF44: =+R44*KeyAssumptionsPriceControl_FO!AD$15 -> 0.42436 | CG44: =+S44*KeyAssumptionsPriceControl_FO!AE$15 -> 4.397033791 | CH44: =+T44*KeyAssumptionsPriceControl_FO!AF$15 -> 4.528944805 | CI44: =+U44*KeyAssumptionsPriceControl_FO!AG$15 -> 2.332406575 | CJ44: =+V44*KeyAssumptionsPriceControl_FO!AH$15 -> 0.1195767194 | CK44: =+W44*KeyAssumptionsPriceControl_FO!AI$15 -> 0 | CL44: =+X44*KeyAssumptionsPriceControl_FO!AJ$15 -> 0 | CM44: =+Y44*KeyAssumptionsPriceControl_FO!AK$15 -> 0 | CN44: =+Z44*KeyAssumptionsPriceControl_FO!AL$15 -> 0 | CP44: 0.0059533485 | CQ44: 0.01544303033 | CR44: 0.05562131193 | CS44: 0.1300044669 | CT44: 0.1871823951 | CU44: 0.2076155892 | CV44: 0.2086120618 | CW44: 0.2086120618 | CX44: 0.2086120618 | CY44: 0.2086120618
E45: Water | F45: Growth | G45: Headworks | H45: Top 10 Major Projects | I45: 0 | J45: Straight line | K45: 2023-24 | L45: 1000 | M45: 1000 | Q45: 10 | R45: 0 | S45: 0 | T45: 0 | U45: 0 | V45: 0 | W45: 0 | X45: 0 | Y45: 0 | Z45: 0 | AB45: 0 | AC45: 0 | AD45: 0 | AE45: 0 | AF45: 0 | AG45: 0 | AH45: 0 | AI45: 0 | AJ45: 0 | AK45: 0 | AM45: 0 | AN45: 0 | AO45: 0 | AP45: 0 | AQ45: 0 | AR45: 0 | AS45: 0 | AT45: 0 | AU45: 0 | AV45: 0 | AX45: 10 | AY45: 0 | AZ45: 0 | BA45: 0 | BB45: 0 | BC45: 0 | BD45: 0 | BE45: 0 | BF45: 0 | BG45: 0 | BI45: 0.005 | BJ45: 0.01 | BK45: 0.01 | BL45: 0.01 | BM45: 0.01 | BN45: 0.01 | BO45: 0.01 | BP45: 0.01 | BQ45: 0.01 | BR45: 0.01 | BT45: =+IF($K45="Ongoing",AX45,IF(RIGHT($K45,2)=RIGHT(BT$39,2),SUM($AX45:AX45),0)+IF(RIGHT(BT$39,2)>RIGHT($K45,2),AX45,0)) -> 10 | BU45: =+IF($K45="Ongoing",AY45,IF(RIGHT($K45,2)=RIGHT(BU$39,2),SUM($AX45:AY45),0)+IF(RIGHT(BU$39,2)>RIGHT($K45,2),AY45,0)) -> 0 | BV45: =+IF($K45="Ongoing",AZ45,IF(RIGHT($K45,2)=RIGHT(BV$39,2),SUM($AX45:AZ45),0)+IF(RIGHT(BV$39,2)>RIGHT($K45,2),AZ45,0)) -> 0 | BW45: =+IF($K45="Ongoing",BA45,IF(RIGHT($K45,2)=RIGHT(BW$39,2),SUM($AX45:BA45),0)+IF(RIGHT(BW$39,2)>RIGHT($K45,2),BA45,0)) -> 0 | BX45: =+IF($K45="Ongoing",BB45,IF(RIGHT($K45,2)=RIGHT(BX$39,2),SUM($AX45:BB45),0)+IF(RIGHT(BX$39,2)>RIGHT($K45,2),BB45,0)) -> 0 | BY45: =+IF($K45="Ongoing",BC45,IF(RIGHT($K45,2)=RIGHT(BY$39,2),SUM($AX45:BC45),0)+IF(RIGHT(BY$39,2)>RIGHT($K45,2),BC45,0)) -> 0 | BZ45: =+IF($K45="Ongoing",BD45,IF(RIGHT($K45,2)=RIGHT(BZ$39,2),SUM($AX45:BD45),0)+IF(RIGHT(BZ$39,2)>RIGHT($K45,2),BD45,0)) -> 0 | CA45: =+IF($K45="Ongoing",BE45,IF(RIGHT($K45,2)=RIGHT(CA$39,2),SUM($AX45:BE45),0)+IF(RIGHT(CA$39,2)>RIGHT($K45,2),BE45,0)) -> 0 | CB45: =+IF($K45="Ongoing",BF45,IF(RIGHT($K45,2)=RIGHT(CB$39,2),SUM($AX45:BF45),0)+IF(RIGHT(CB$39,2)>RIGHT($K45,2),BF45,0)) -> 0 | CC45: =+IF($K45="Ongoing",BG45,IF(RIGHT($K45,2)=RIGHT(CC$39,2),SUM($AX45:BG45),0)+IF(RIGHT(CC$39,2)>RIGHT($K45,2),BG45,0)) -> 0 | CE45: =+Q45*KeyAssumptionsPriceControl_FO!AC$15 -> 10.3 | CF45: =+R45*KeyAssumptionsPriceControl_FO!AD$15 -> 0 | CG45: =+S45*KeyAssumptionsPriceControl_FO!AE$15 -> 0 | CH45: =+T45*KeyAssumptionsPriceControl_FO!AF$15 -> 0 | CI45: =+U45*KeyAssumptionsPriceControl_FO!AG$15 -> 0 | CJ45: =+V45*KeyAssumptionsPriceControl_FO!AH$15 -> 0 | CK45: =+W45*KeyAssumptionsPriceControl_FO!AI$15 -> 0 | CL45: =+X45*KeyAssumptionsPriceControl_FO!AJ$15 -> 0 | CM45: =+Y45*KeyAssumptionsPriceControl_FO!AK$15 -> 0 | CN45: =+Z45*KeyAssumptionsPriceControl_FO!AL$15 -> 0 | CP45: 0.00515 | CQ45: 0.0103 | CR45: 0.0103 | CS45: 0.0103 | CT45: 0.0103 | CU45: 0.0103 | CV45: 0.0103 | CW45: 0.0103 | CX45: 0.0103 | CY45: 0.0103
C46: Warragul Sewer - WWTP upgrade - Stage 1a | E46: Sewerage | F46: Growth | G46: Treatment | H46: Top 10 Major Projects | I46: 0 | J46: Straight line | K46: 2026-27 | L46: 60 | M46: 60 | Q46: 5.000023219 | R46: 3.586380997 | S46: 0.8710563303 | T46: 0.3363069162 | U46: 0.1672218498 | V46: 0 | W46: 0 | X46: 0 | Y46: 0 | Z46: 0 | AB46: 0 | AC46: 0 | AD46: 0 | AE46: 0 | AF46: 0 | AG46: 0 | AH46: 0 | AI46: 0 | AJ46: 0 | AK46: 0 | AM46: 0 | AN46: 0 | AO46: 0 | AP46: 0 | AQ46: 0 | AR46: 0 | AS46: 0 | AT46: 0 | AU46: 0 | AV46: 0 | AX46: 5.000023219 | AY46: 3.586380997 | AZ46: 0.8710563303 | BA46: 0.3363069162 | BB46: 0.1672218498 | BC46: 0 | BD46: 0 | BE46: 0 | BF46: 0 | BG46: 0 | BI46: 0 | BJ46: 0 | BK46: 0 | BL46: 0.08161472885 | BM46: 0.1646229731 | BN46: 0.1660164885 | BO46: 0.1660164885 | BP46: 0.1660164885 | BQ46: 0.1660164885 | BR46: 0.1660164885 | BT46: =+IF($K46="Ongoing",AX46,IF(RIGHT($K46,2)=RIGHT(BT$39,2),SUM($AX46:AX46),0)+IF(RIGHT(BT$39,2)>RIGHT($K46,2),AX46,0)) -> 0 | BU46: =+IF($K46="Ongoing",AY46,IF(RIGHT($K46,2)=RIGHT(BU$39,2),SUM($AX46:AY46),0)+IF(RIGHT(BU$39,2)>RIGHT($K46,2),AY46,0)) -> 0 | BV46: =+IF($K46="Ongoing",AZ46,IF(RIGHT($K46,2)=RIGHT(BV$39,2),SUM($AX46:AZ46),0)+IF(RIGHT(BV$39,2)>RIGHT($K46,2),AZ46,0)) -> 0 | BW46: =+IF($K46="Ongoing",BA46,IF(RIGHT($K46,2)=RIGHT(BW$39,2),SUM($AX46:BA46),0)+IF(RIGHT(BW$39,2)>RIGHT($K46,2),BA46,0)) -> 9.793767462 | BX46: =+IF($K46="Ongoing",BB46,IF(RIGHT($K46,2)=RIGHT(BX$39,2),SUM($AX46:BB46),0)+IF(RIGHT(BX$39,2)>RIGHT($K46,2),BB46,0)) -> 0.1672218498 | BY46: =+IF($K46="Ongoing",BC46,IF(RIGHT($K46,2)=RIGHT(BY$39,2),SUM($AX46:BC46),0)+IF(RIGHT(BY$39,2)>RIGHT($K46,2),BC46,0)) -> 0 | BZ46: =+IF($K46="Ongoing",BD46,IF(RIGHT($K46,2)=RIGHT(BZ$39,2),SUM($AX46:BD46),0)+IF(RIGHT(BZ$39,2)>RIGHT($K46,2),BD46,0)) -> 0 | CA46: =+IF($K46="Ongoing",BE46,IF(RIGHT($K46,2)=RIGHT(CA$39,2),SUM($AX46:BE46),0)+IF(RIGHT(CA$39,2)>RIGHT($K46,2),BE46,0)) -> 0 | CB46: =+IF($K46="Ongoing",BF46,IF(RIGHT($K46,2)=RIGHT(CB$39,2),SUM($AX46:BF46),0)+IF(RIGHT(CB$39,2)>RIGHT($K46,2),BF46,0)) -> 0 | CC46: =+IF($K46="Ongoing",BG46,IF(RIGHT($K46,2)=RIGHT(CC$39,2),SUM($AX46:BG46),0)+IF(RIGHT(CC$39,2)>RIGHT($K46,2),BG46,0)) -> 0 | CE46: =+Q46*KeyAssumptionsPriceControl_FO!AC$15 -> 5.150023915 | CF46: =+R46*KeyAssumptionsPriceControl_FO!AD$15 -> 3.8047916 | CG46: =+S46*KeyAssumptionsPriceControl_FO!AE$15 -> 0.9518267706 | CH46: =+T46*KeyAssumptionsPriceControl_FO!AF$15 -> 0.378516397 | CI46: =+U46*KeyAssumptionsPriceControl_FO!AG$15 -> 0.1938559551 | CJ46: =+V46*KeyAssumptionsPriceControl_FO!AH$15 -> 0 | CK46: =+W46*KeyAssumptionsPriceControl_FO!AI$15 -> 0 | CL46: =+X46*KeyAssumptionsPriceControl_FO!AJ$15 -> 0 | CM46: =+Y46*KeyAssumptionsPriceControl_FO!AK$15 -> 0 | CN46: =+Z46*KeyAssumptionsPriceControl_FO!AL$15 -> 0 | CP46: 0.04291686596 | CQ46: 0.1175403286 | CR46: 0.157178815 | CS46: 0.1682650081 | CT46: 0.1730347777 | CU46: 0.174650244 | CV46: 0.174650244 | CW46: 0.174650244 | CX46: 0.174650244 | CY46: 0.174650244
C47: Traralgon Water - New Basin at Clarkes Storage | E47: Water | F47: Growth | G47: Treatment | H47: Top 10 Major Projects | I47: 0 | J47: Straight line | K47: 2026-27 | L47: 60 | M47: 60 | Q47: 0.633085 | R47: 2.61321 | S47: 5.22642 | T47: 0.85790233 | U47: 0 | V47: 0 | W47: 0 | X47: 0 | Y47: 0 | Z47: 0 | AB47: 0 | AC47: 0 | AD47: 0 | AE47: 0 | AF47: 0 | AG47: 0 | AH47: 0 | AI47: 0 | AJ47: 0 | AK47: 0 | AM47: 0 | AN47: 0 | AO47: 0 | AP47: 0 | AQ47: 0 | AR47: 0 | AS47: 0 | AT47: 0 | AU47: 0 | AV47: 0 | AX47: 0.633085 | AY47: 2.61321 | AZ47: 5.22642 | BA47: 0.85790233 | BB47: 0 | BC47: 0 | BD47: 0 | BE47: 0 | BF47: 0 | BG47: 0 | BI47: 0 | BJ47: 0 | BK47: 0 | BL47: 0.07775514442 | BM47: 0.1555102888 | BN47: 0.1555102888 | BO47: 0.1555102888 | BP47: 0.1555102888 | BQ47: 0.1555102888 | BR47: 0.1555102888 | BT47: =+IF($K47="Ongoing",AX47,IF(RIGHT($K47,2)=RIGHT(BT$39,2),SUM($AX47:AX47),0)+IF(RIGHT(BT$39,2)>RIGHT($K47,2),AX47,0)) -> 0 | BU47: =+IF($K47="Ongoing",AY47,IF(RIGHT($K47,2)=RIGHT(BU$39,2),SUM($AX47:AY47),0)+IF(RIGHT(BU$39,2)>RIGHT($K47,2),AY47,0)) -> 0 | BV47: =+IF($K47="Ongoing",AZ47,IF(RIGHT($K47,2)=RIGHT(BV$39,2),SUM($AX47:AZ47),0)+IF(RIGHT(BV$39,2)>RIGHT($K47,2),AZ47,0)) -> 0 | BW47: =+IF($K47="Ongoing",BA47,IF(RIGHT($K47,2)=RIGHT(BW$39,2),SUM($AX47:BA47),0)+IF(RIGHT(BW$39,2)>RIGHT($K47,2),BA47,0)) -> 9.33061733 | BX47: =+IF($K47="Ongoing",BB47,IF(RIGHT($K47,2)=RIGHT(BX$39,2),SUM($AX47:BB47),0)+IF(RIGHT(BX$39,2)>RIGHT($K47,2),BB47,0)) -> 0 | BY47: =+IF($K47="Ongoing",BC47,IF(RIGHT($K47,2)=RIGHT(BY$39,2),SUM($AX47:BC47),0)+IF(RIGHT(BY$39,2)>RIGHT($K47,2),BC47,0)) -> 0 | BZ47: =+IF($K47="Ongoing",BD47,IF(RIGHT($K47,2)=RIGHT(BZ$39,2),SUM($AX47:BD47),0)+IF(RIGHT(BZ$39,2)>RIGHT($K47,2),BD47,0)) -> 0 | CA47: =+IF($K47="Ongoing",BE47,IF(RIGHT($K47,2)=RIGHT(CA$39,2),SUM($AX47:BE47),0)+IF(RIGHT(CA$39,2)>RIGHT($K47,2),BE47,0)) -> 0 | CB47: =+IF($K47="Ongoing",BF47,IF(RIGHT($K47,2)=RIGHT(CB$39,2),SUM($AX47:BF47),0)+IF(RIGHT(CB$39,2)>RIGHT($K47,2),BF47,0)) -> 0 | CC47: =+IF($K47="Ongoing",BG47,IF(RIGHT($K47,2)=RIGHT(CC$39,2),SUM($AX47:BG47),0)+IF(RIGHT(CC$39,2)>RIGHT($K47,2),BG47,0)) -> 0 | CE47: =+Q47*KeyAssumptionsPriceControl_FO!AC$15 -> 0.65207755 | CF47: =+R47*KeyAssumptionsPriceControl_FO!AD$15 -> 2.772354489 | CG47: =+S47*KeyAssumptionsPriceControl_FO!AE$15 -> 5.711050247 | CH47: =+T47*KeyAssumptionsPriceControl_FO!AF$15 -> 0.9655766305 | CI47: =+U47*KeyAssumptionsPriceControl_FO!AG$15 -> 0 | CJ47: =+V47*KeyAssumptionsPriceControl_FO!AH$15 -> 0 | CK47: =+W47*KeyAssumptionsPriceControl_FO!AI$15 -> 0 | CL47: =+X47*KeyAssumptionsPriceControl_FO!AJ$15 -> 0 | CM47: =+Y47*KeyAssumptionsPriceControl_FO!AK$15 -> 0 | CN47: =+Z47*KeyAssumptionsPriceControl_FO!AL$15 -> 0 | CP47: 0.005433979583 | CQ47: 0.03397091324 | CR47: 0.1046659527 | CS47: 0.16030451 | CT47: 0.1683509819 | CU47: 0.1683509819 | CV47: 0.1683509819 | CW47: 0.1683509819 | CX47: 0.1683509819 | CY47: 0.1683509819
C48: Traralgon Tyers Interconnect | E48: Water | F48: Improvements / Compliance | G48: Pipelines/network | H48: Top 10 Major Projects | I48: 0 | J48: Straight line | K48: 2026-27 | L48: 60 | M48: 60 | Q48: 0.609522 | R48: 0.9008343 | S48: 4.5041715 | T48: 0.6005562 | U48: 0.06770725 | V48: 0 | W48: 0 | X48: 0 | Y48: 0 | Z48: 0 | AB48: 0 | AC48: 0 | AD48: 0 | AE48: 0 | AF48: 0 | AG48: 0 | AH48: 0 | AI48: 0 | AJ48: 0 | AK48: 0 | AM48: 0 | AN48: 0 | AO48: 0 | AP48: 0 | AQ48: 0 | AR48: 0 | AS48: 0 | AT48: 0 | AU48: 0 | AV48: 0 | AX48: 0.609522 | AY48: 0.9008343 | AZ48: 4.5041715 | BA48: 0.6005562 | BB48: 0.06770725 | BC48: 0 | BD48: 0 | BE48: 0 | BF48: 0 | BG48: 0 | BI48: 0 | BJ48: 0 | BK48: 0 | BL48: 0.0551257 | BM48: 0.1108156271 | BN48: 0.1113798542 | BO48: 0.1113798542 | BP48: 0.1113798542 | BQ48: 0.1113798542 | BR48: 0.1113798542 | BT48: =+IF($K48="Ongoing",AX48,IF(RIGHT($K48,2)=RIGHT(BT$39,2),SUM($AX48:AX48),0)+IF(RIGHT(BT$39,2)>RIGHT($K48,2),AX48,0)) -> 0 | BU48: =+IF($K48="Ongoing",AY48,IF(RIGHT($K48,2)=RIGHT(BU$39,2),SUM($AX48:AY48),0)+IF(RIGHT(BU$39,2)>RIGHT($K48,2),AY48,0)) -> 0 | BV48: =+IF($K48="Ongoing",AZ48,IF(RIGHT($K48,2)=RIGHT(BV$39,2),SUM($AX48:AZ48),0)+IF(RIGHT(BV$39,2)>RIGHT($K48,2),AZ48,0)) -> 0 | BW48: =+IF($K48="Ongoing",BA48,IF(RIGHT($K48,2)=RIGHT(BW$39,2),SUM($AX48:BA48),0)+IF(RIGHT(BW$39,2)>RIGHT($K48,2),BA48,0)) -> 6.615084 | BX48: =+IF($K48="Ongoing",BB48,IF(RIGHT($K48,2)=RIGHT(BX$39,2),SUM($AX48:BB48),0)+IF(RIGHT(BX$39,2)>RIGHT($K48,2),BB48,0)) -> 0.06770725 | BY48: =+IF($K48="Ongoing",BC48,IF(RIGHT($K48,2)=RIGHT(BY$39,2),SUM($AX48:BC48),0)+IF(RIGHT(BY$39,2)>RIGHT($K48,2),BC48,0)) -> 0 | BZ48: =+IF($K48="Ongoing",BD48,IF(RIGHT($K48,2)=RIGHT(BZ$39,2),SUM($AX48:BD48),0)+IF(RIGHT(BZ$39,2)>RIGHT($K48,2),BD48,0)) -> 0 | CA48: =+IF($K48="Ongoing",BE48,IF(RIGHT($K48,2)=RIGHT(CA$39,2),SUM($AX48:BE48),0)+IF(RIGHT(CA$39,2)>RIGHT($K48,2),BE48,0)) -> 0 | CB48: =+IF($K48="Ongoing",BF48,IF(RIGHT($K48,2)=RIGHT(CB$39,2),SUM($AX48:BF48),0)+IF(RIGHT(CB$39,2)>RIGHT($K48,2),BF48,0)) -> 0 | CC48: =+IF($K48="Ongoing",BG48,IF(RIGHT($K48,2)=RIGHT(CC$39,2),SUM($AX48:BG48),0)+IF(RIGHT(CC$39,2)>RIGHT($K48,2),BG48,0)) -> 0 | CE48: =+Q48*KeyAssumptionsPriceControl_FO!AC$15 -> 0.62780766 | CF48: =+R48*KeyAssumptionsPriceControl_FO!AD$15 -> 0.9556951089 | CG48: =+S48*KeyAssumptionsPriceControl_FO!AE$15 -> 4.921829811 | CH48: =+T48*KeyAssumptionsPriceControl_FO!AF$15 -> 0.675931294 | CI48: =+U48*KeyAssumptionsPriceControl_FO!AG$15 -> 0.07849125957 | CJ48: =+V48*KeyAssumptionsPriceControl_FO!AH$15 -> 0 | CK48: =+W48*KeyAssumptionsPriceControl_FO!AI$15 -> 0 | CL48: =+X48*KeyAssumptionsPriceControl_FO!AJ$15 -> 0 | CM48: =+Y48*KeyAssumptionsPriceControl_FO!AK$15 -> 0 | CN48: =+Z48*KeyAssumptionsPriceControl_FO!AL$15 -> 0 | CP48: 0.0052317305 | CQ48: 0.01842758691 | CR48: 0.06740696124 | CS48: 0.1140549704 | CT48: 0.1203418251 | CU48: 0.1209959189 | CV48: 0.1209959189 | CW48: 0.1209959189 | CX48: 0.1209959189 | CY48: 0.1209959189
C49: Warragul Sewer - North East Branch Augmentation to Sutton St | E49: Sewerage | F49: Growth | G49: Pipelines/network | H49: Top 10 Major Projects | I49: 0 | J49: Straight line | K49: 2025-26 | L49: 60 | M49: 60 | Q49: 0.7779425 | R49: 4.055885 | S49: 1.08332092 | T49: 0 | U49: 0 | V49: 0 | W49: 0 | X49: 0 | Y49: 0 | Z49: 0 | AB49: 0 | AC49: 0 | AD49: 0 | AE49: 0 | AF49: 0 | AG49: 0 | AH49: 0 | AI49: 0 | AJ49: 0 | AK49: 0 | AM49: 0 | AN49: 0 | AO49: 0 | AP49: 0 | AQ49: 0 | AR49: 0 | AS49: 0 | AT49: 0 | AU49: 0 | AV49: 0 | AX49: 0.7779425 | AY49: 4.055885 | AZ49: 1.08332092 | BA49: 0 | BB49: 0 | BC49: 0 | BD49: 0 | BE49: 0 | BF49: 0 | BG49: 0 | BI49: 0 | BJ49: 0 | BK49: 0.04930957017 | BL49: 0.09861914033 | BM49: 0.09861914033 | BN49: 0.09861914033 | BO49: 0.09861914033 | BP49: 0.09861914033 | BQ49: 0.09861914033 | BR49: 0.09861914033 | BT49: =+IF($K49="Ongoing",AX49,IF(RIGHT($K49,2)=RIGHT(BT$39,2),SUM($AX49:AX49),0)+IF(RIGHT(BT$39,2)>RIGHT($K49,2),AX49,0)) -> 0 | BU49: =+IF($K49="Ongoing",AY49,IF(RIGHT($K49,2)=RIGHT(BU$39,2),SUM($AX49:AY49),0)+IF(RIGHT(BU$39,2)>RIGHT($K49,2),AY49,0)) -> 0 | BV49: =+IF($K49="Ongoing",AZ49,IF(RIGHT($K49,2)=RIGHT(BV$39,2),SUM($AX49:AZ49),0)+IF(RIGHT(BV$39,2)>RIGHT($K49,2),AZ49,0)) -> 5.91714842 | BW49: =+IF($K49="Ongoing",BA49,IF(RIGHT($K49,2)=RIGHT(BW$39,2),SUM($AX49:BA49),0)+IF(RIGHT(BW$39,2)>RIGHT($K49,2),BA49,0)) -> 0 | BX49: =+IF($K49="Ongoing",BB49,IF(RIGHT($K49,2)=RIGHT(BX$39,2),SUM($AX49:BB49),0)+IF(RIGHT(BX$39,2)>RIGHT($K49,2),BB49,0)) -> 0 | BY49: =+IF($K49="Ongoing",BC49,IF(RIGHT($K49,2)=RIGHT(BY$39,2),SUM($AX49:BC49),0)+IF(RIGHT(BY$39,2)>RIGHT($K49,2),BC49,0)) -> 0 | BZ49: =+IF($K49="Ongoing",BD49,IF(RIGHT($K49,2)=RIGHT(BZ$39,2),SUM($AX49:BD49),0)+IF(RIGHT(BZ$39,2)>RIGHT($K49,2),BD49,0)) -> 0 | CA49: =+IF($K49="Ongoing",BE49,IF(RIGHT($K49,2)=RIGHT(CA$39,2),SUM($AX49:BE49),0)+IF(RIGHT(CA$39,2)>RIGHT($K49,2),BE49,0)) -> 0 | CB49: =+IF($K49="Ongoing",BF49,IF(RIGHT($K49,2)=RIGHT(CB$39,2),SUM($AX49:BF49),0)+IF(RIGHT(CB$39,2)>RIGHT($K49,2),BF49,0)) -> 0 | CC49: =+IF($K49="Ongoing",BG49,IF(RIGHT($K49,2)=RIGHT(CC$39,2),SUM($AX49:BG49),0)+IF(RIGHT(CC$39,2)>RIGHT($K49,2),BG49,0)) -> 0 | CE49: =+Q49*KeyAssumptionsPriceControl_FO!AC$15 -> 0.801280775 | CF49: =+R49*KeyAssumptionsPriceControl_FO!AD$15 -> 4.302888397 | CG49: =+S49*KeyAssumptionsPriceControl_FO!AE$15 -> 1.183774019 | CH49: =+T49*KeyAssumptionsPriceControl_FO!AF$15 -> 0 | CI49: =+U49*KeyAssumptionsPriceControl_FO!AG$15 -> 0 | CJ49: =+V49*KeyAssumptionsPriceControl_FO!AH$15 -> 0 | CK49: =+W49*KeyAssumptionsPriceControl_FO!AI$15 -> 0 | CL49: =+X49*KeyAssumptionsPriceControl_FO!AJ$15 -> 0 | CM49: =+Y49*KeyAssumptionsPriceControl_FO!AK$15 -> 0 | CN49: =+Z49*KeyAssumptionsPriceControl_FO!AL$15 -> 0 | CP49: 0.006677339792 | CQ49: 0.04921208289 | CR49: 0.09493426968 | CS49: 0.1047990532 | CT49: 0.1047990532 | CU49: 0.1047990532 | CV49: 0.1047990532 | CW49: 0.1047990532 | CX49: 0.1047990532 | CY49: 0.1047990532
C50: Drouin Water - Drouin West Watermain | E50: Water | F50: Growth | G50: Pipelines/network | H50: Top 10 Major Projects | I50: 0 | J50: Straight line | K50: 2026-27 | L50: 60 | M50: 60 | Q50: 0.25 | R50: 0.25 | S50: 1.370483944 | T50: 2.111 | U50: 0.05264004 | V50: 0 | W50: 0 | X50: 0 | Y50: 0 | Z50: 0 | AB50: 0 | AC50: 0 | AD50: 0 | AE50: 0 | AF50: 0 | AG50: 0 | AH50: 0 | AI50: 0 | AJ50: 0 | AK50: 0 | AM50: 0 | AN50: 0 | AO50: 0 | AP50: 0 | AQ50: 0 | AR50: 0 | AS50: 0 | AT50: 0 | AU50: 0 | AV50: 0 | AX50: 0.25 | AY50: 0.25 | AZ50: 1.370483944 | BA50: 2.111 | BB50: 0.05264004 | BC50: 0 | BD50: 0 | BE50: 0 | BF50: 0 | BG50: 0 | BI50: 0 | BJ50: 0 | BK50: 0 | BL50: 0.03317903287 | BM50: 0.06679673274 | BN50: 0.06723539974 | BO50: 0.06723539974 | BP50: 0.06723539974 | BQ50: 0.06723539974 | BR50: 0.06723539974 | BT50: =+IF($K50="Ongoing",AX50,IF(RIGHT($K50,2)=RIGHT(BT$39,2),SUM($AX50:AX50),0)+IF(RIGHT(BT$39,2)>RIGHT($K50,2),AX50,0)) -> 0 | BU50: =+IF($K50="Ongoing",AY50,IF(RIGHT($K50,2)=RIGHT(BU$39,2),SUM($AX50:AY50),0)+IF(RIGHT(BU$39,2)>RIGHT($K50,2),AY50,0)) -> 0 | BV50: =+IF($K50="Ongoing",AZ50,IF(RIGHT($K50,2)=RIGHT(BV$39,2),SUM($AX50:AZ50),0)+IF(RIGHT(BV$39,2)>RIGHT($K50,2),AZ50,0)) -> 0 | BW50: =+IF($K50="Ongoing",BA50,IF(RIGHT($K50,2)=RIGHT(BW$39,2),SUM($AX50:BA50),0)+IF(RIGHT(BW$39,2)>RIGHT($K50,2),BA50,0)) -> 3.981483944 | BX50: =+IF($K50="Ongoing",BB50,IF(RIGHT($K50,2)=RIGHT(BX$39,2),SUM($AX50:BB50),0)+IF(RIGHT(BX$39,2)>RIGHT($K50,2),BB50,0)) -> 0.05264004 | BY50: =+IF($K50="Ongoing",BC50,IF(RIGHT($K50,2)=RIGHT(BY$39,2),SUM($AX50:BC50),0)+IF(RIGHT(BY$39,2)>RIGHT($K50,2),BC50,0)) -> 0 | BZ50: =+IF($K50="Ongoing",BD50,IF(RIGHT($K50,2)=RIGHT(BZ$39,2),SUM($AX50:BD50),0)+IF(RIGHT(BZ$39,2)>RIGHT($K50,2),BD50,0)) -> 0 | CA50: =+IF($K50="Ongoing",BE50,IF(RIGHT($K50,2)=RIGHT(CA$39,2),SUM($AX50:BE50),0)+IF(RIGHT(CA$39,2)>RIGHT($K50,2),BE50,0)) -> 0 | CB50: =+IF($K50="Ongoing",BF50,IF(RIGHT($K50,2)=RIGHT(CB$39,2),SUM($AX50:BF50),0)+IF(RIGHT(CB$39,2)>RIGHT($K50,2),BF50,0)) -> 0 | CC50: =+IF($K50="Ongoing",BG50,IF(RIGHT($K50,2)=RIGHT(CC$39,2),SUM($AX50:BG50),0)+IF(RIGHT(CC$39,2)>RIGHT($K50,2),BG50,0)) -> 0 | CE50: =+Q50*KeyAssumptionsPriceControl_FO!AC$15 -> 0.2575 | CF50: =+R50*KeyAssumptionsPriceControl_FO!AD$15 -> 0.265225 | CG50: =+S50*KeyAssumptionsPriceControl_FO!AE$15 -> 1.497564809 | CH50: =+T50*KeyAssumptionsPriceControl_FO!AF$15 -> 2.375949098 | CI50: =+U50*KeyAssumptionsPriceControl_FO!AG$15 -> 0.06102423364 | CJ50: =+V50*KeyAssumptionsPriceControl_FO!AH$15 -> 0 | CK50: =+W50*KeyAssumptionsPriceControl_FO!AI$15 -> 0 | CL50: =+X50*KeyAssumptionsPriceControl_FO!AJ$15 -> 0 | CM50: =+Y50*KeyAssumptionsPriceControl_FO!AK$15 -> 0 | CN50: =+Z50*KeyAssumptionsPriceControl_FO!AL$15 -> 0 | CP50: 0.002145833333 | CQ50: 0.006501875 | CR50: 0.02119179008 | CS50: 0.05347107264 | CT50: 0.07377918373 | CU50: 0.07428771901 | CV50: 0.07428771901 | CW50: 0.07428771901 | CX50: 0.07428771901 | CY50: 0.07428771901
C51: Corporate SCADA System Replacement | E51: Water | F51: Renewals | G51: Corporate | H51: Top 10 Major Projects | I51: 0 | J51: Straight line | K51: 2027-28 | L51: 10 | M51: 10 | Q51: 0.6181079929 | R51: 0.6181079929 | S51: 0.6181079929 | T51: 0.0262725 | U51: 0.0262725 | V51: 0.010210125 | W51: 0.0262725 | X51: 0.0262725 | Y51: 0.0262725 | Z51: 0.0262725 | AB51: 0 | AC51: 0 | AD51: 0 | AE51: 0 | AF51: 0 | AG51: 0 | AH51: 0 | AI51: 0 | AJ51: 0 | AK51: 0 | AM51: 0 | AN51: 0 | AO51: 0 | AP51: 0 | AQ51: 0 | AR51: 0 | AS51: 0 | AT51: 0 | AU51: 0 | AV51: 0 | AX51: 0.6181079929 | AY51: 0.6181079929 | AZ51: 0.6181079929 | BA51: 0.0262725 | BB51: 0.0262725 | BC51: 0.010210125 | BD51: 0.0262725 | BE51: 0.0262725 | BF51: 0.0262725 | BG51: 0.0262725 | BI51: 0 | BJ51: 0 | BK51: 0 | BL51: 0 | BM51: 0.09534344893 | BN51: 0.1911974041 | BO51: 0.1930215354 | BP51: 0.1956487854 | BQ51: 0.1982760354 | BR51: 0.2009032854 | BT51: =+IF($K51="Ongoing",AX51,IF(RIGHT($K51,2)=RIGHT(BT$39,2),SUM($AX51:AX51),0)+IF(RIGHT(BT$39,2)>RIGHT($K51,2),AX51,0)) -> 0 | BU51: =+IF($K51="Ongoing",AY51,IF(RIGHT($K51,2)=RIGHT(BU$39,2),SUM($AX51:AY51),0)+IF(RIGHT(BU$39,2)>RIGHT($K51,2),AY51,0)) -> 0 | BV51: =+IF($K51="Ongoing",AZ51,IF(RIGHT($K51,2)=RIGHT(BV$39,2),SUM($AX51:AZ51),0)+IF(RIGHT(BV$39,2)>RIGHT($K51,2),AZ51,0)) -> 0 | BW51: =+IF($K51="Ongoing",BA51,IF(RIGHT($K51,2)=RIGHT(BW$39,2),SUM($AX51:BA51),0)+IF(RIGHT(BW$39,2)>RIGHT($K51,2),BA51,0)) -> 0 | BX51: =+IF($K51="Ongoing",BB51,IF(RIGHT($K51,2)=RIGHT(BX$39,2),SUM($AX51:BB51),0)+IF(RIGHT(BX$39,2)>RIGHT($K51,2),BB51,0)) -> 1.906868979 | BY51: =+IF($K51="Ongoing",BC51,IF(RIGHT($K51,2)=RIGHT(BY$39,2),SUM($AX51:BC51),0)+IF(RIGHT(BY$39,2)>RIGHT($K51,2),BC51,0)) -> 0.010210125 | BZ51: =+IF($K51="Ongoing",BD51,IF(RIGHT($K51,2)=RIGHT(BZ$39,2),SUM($AX51:BD51),0)+IF(RIGHT(BZ$39,2)>RIGHT($K51,2),BD51,0)) -> 0.0262725 | CA51: =+IF($K51="Ongoing",BE51,IF(RIGHT($K51,2)=RIGHT(CA$39,2),SUM($AX51:BE51),0)+IF(RIGHT(CA$39,2)>RIGHT($K51,2),BE51,0)) -> 0.0262725 | CB51: =+IF($K51="Ongoing",BF51,IF(RIGHT($K51,2)=RIGHT(CB$39,2),SUM($AX51:BF51),0)+IF(RIGHT(CB$39,2)>RIGHT($K51,2),BF51,0)) -> 0.0262725 | CC51: =+IF($K51="Ongoing",BG51,IF(RIGHT($K51,2)=RIGHT(CC$39,2),SUM($AX51:BG51),0)+IF(RIGHT(CC$39,2)>RIGHT($K51,2),BG51,0)) -> 0.0262725 | CE51: =+Q51*KeyAssumptionsPriceControl_FO!AC$15 -> 0.6366512327 | CF51: =+R51*KeyAssumptionsPriceControl_FO!AD$15 -> 0.6557507697 | CG51: =+S51*KeyAssumptionsPriceControl_FO!AE$15 -> 0.6754232928 | CH51: =+T51*KeyAssumptionsPriceControl_FO!AF$15 -> 0.02956993021 | CI51: =+U51*KeyAssumptionsPriceControl_FO!AG$15 -> 0.03045702812 | CJ51: =+V51*KeyAssumptionsPriceControl_FO!AH$15 -> 0.0121914232 | CK51: =+W51*KeyAssumptionsPriceControl_FO!AI$15 -> 0.03231186113 | CL51: =+X51*KeyAssumptionsPriceControl_FO!AJ$15 -> 0.03328121696 | CM51: =+Y51*KeyAssumptionsPriceControl_FO!AK$15 -> 0.03427965347 | CN51: =+Z51*KeyAssumptionsPriceControl_FO!AL$15 -> 0.03530804308 | CP51: 0.03183256163 | CQ51: 0.09645266175 | CR51: 0.1630113649 | CS51: 0.198261026 | CT51: 0.2012623739 | CU51: 0.2033947965 | CV51: 0.2056199607 | CW51: 0.2088996146 | CX51: 0.2122776581 | CY51: 0.215757043
C53: Corporate SCADA System Replacement | E53: Sewerage | F53: Renewals | G53: Corporate | H53: Top 10 Major Projects | J53: Straight line | K53: 2027-28 | L53: 10 | M53: 10 | Q53: 0.6181079929 | R53: 0.6181079929 | S53: 0.6181079929 | T53: 0.0262725 | U53: 0.0262725 | V53: 0.010210125 | W53: 0.0262725 | X53: 0.0262725 | Y53: 0.0262725 | Z53: 0.0262725 | AB53: 0 | AC53: 0 | AD53: 0 | AE53: 0 | AF53: 0 | AG53: 0 | AH53: 0 | AI53: 0 | AJ53: 0 | AK53: 0 | AM53: 0 | AN53: 0 | AO53: 0 | AP53: 0 | AQ53: 0 | AR53: 0 | AS53: 0 | AT53: 0 | AU53: 0 | AV53: 0 | AX53: =+Q53-AB53-AM53 -> 0.6181079929 | AY53: =+R53-AC53-AN53 -> 0.6181079929 | AZ53: =+S53-AD53-AO53 -> 0.6181079929 | BA53: =+T53-AE53-AP53 -> 0.0262725 | BB53: =+U53-AF53-AQ53 -> 0.0262725 | BC53: =+V53-AG53-AR53 -> 0.010210125 | BD53: =+W53-AH53-AS53 -> 0.0262725 | BE53: =+X53-AI53-AT53 -> 0.0262725 | BF53: =+Y53-AJ53-AU53 -> 0.0262725 | BG53: =+Z53-AK53-AV53 -> 0.0262725 | BI53: =IF($L53=0,0, IF($L53<=0.5,BT53, IF($J53="straight line", IF((LEFT(BI$39,4)*1)-INT($L53)<LEFT($BI$39,4)*1,0,((OFFSET(BT53,0,-INT($L53+0.5),1,1))/$L53)*(IF($L53-INT($L53)>0.5,$L53-0.5-INT($L53),IF($L53-INT($L53)<=0.5,$L53-0.5-INT($L53)+1,0)))) +BT53/$L53*0.5, IF($J53="Declining Balance",-$BI$38,0)))) -> 0 | BJ53: =IF($L53=0,0, IF($L53<=0.5,BU53, IF(AND($J53="straight line",$L53<1.51),(BT53-((BT53/$L53)*0.5))+BU53/$L53*0.5, IF($J53="straight line", IF((LEFT(BJ$39,4)*1)-INT($L53)<LEFT($BI$39,4)*1,0,((OFFSET(BU53,0,-INT($L53+0.5),1,1))/$L53)*(IF($L53-INT($L53)>0.5,$L53-0.5-INT($L53),IF($L53-INT($L53)<=0.5,$L53-0.5-INT($L53)+1,0)))) +BU53/$L53*0.5 +SUM(OFFSET(BU53,0,MAX(-INT($L53+(0.5-(10^-12))),-BJ$40)+1,1,MIN(INT($L53+(0.5-(10^-12))),BJ$40)-1))*1/$L53, IF($J53="Declining Balance",-$BI$38,0))))) -> 0 | BK53: =IF($L53=0,0, IF($L53<=0.5,BV53, IF(AND($J53="straight line",$L53<1.51),(BU53-((BU53/$L53)*0.5))+BV53/$L53*0.5, IF($J53="straight line", IF((LEFT(BK$39,4)*1)-INT($L53)<LEFT($BI$39,4)*1,0,((OFFSET(BV53,0,-INT($L53+0.5),1,1))/$L53)*(IF($L53-INT($L53)>0.5,$L53-0.5-INT($L53),IF($L53-INT($L53)<=0.5,$L53-0.5-INT($L53)+1,0)))) +BV53/$L53*0.5 +SUM(OFFSET(BV53,0,MAX(-INT($L53+(0.5-(10^-12))),-BK$40)+1,1,MIN(INT($L53+(0.5-(10^-12))),BK$40)-1))*1/$L53, IF($J53="Declining Balance",-$BI$38,0))))) -> 0 | BL53: =IF($L53=0,0, IF($L53<=0.5,BW53, IF(AND($J53="straight line",$L53<1.51),(BV53-((BV53/$L53)*0.5))+BW53/$L53*0.5, IF($J53="straight line", IF((LEFT(BL$39,4)*1)-INT($L53)<LEFT($BI$39,4)*1,0,((OFFSET(BW53,0,-INT($L53+0.5),1,1))/$L53)*(IF($L53-INT($L53)>0.5,$L53-0.5-INT($L53),IF($L53-INT($L53)<=0.5,$L53-0.5-INT($L53)+1,0)))) +BW53/$L53*0.5 +SUM(OFFSET(BW53,0,MAX(-INT($L53+(0.5-(10^-12))),-BL$40)+1,1,MIN(INT($L53+(0.5-(10^-12))),BL$40)-1))*1/$L53, IF($J53="Declining Balance",-$BI$38,0))))) -> 0 | BM53: =IF($L53=0,0, IF($L53<=0.5,BX53, IF(AND($J53="straight line",$L53<1.51),(BW53-((BW53/$L53)*0.5))+BX53/$L53*0.5, IF($J53="straight line", IF((LEFT(BM$39,4)*1)-INT($L53)<LEFT($BI$39,4)*1,0,((OFFSET(BX53,0,-INT($L53+0.5),1,1))/$L53)*(IF($L53-INT($L53)>0.5,$L53-0.5-INT($L53),IF($L53-INT($L53)<=0.5,$L53-0.5-INT($L53)+1,0)))) +BX53/$L53*0.5 +SUM(OFFSET(BX53,0,MAX(-INT($L53+(0.5-(10^-12))),-BM$40)+1,1,MIN(INT($L53+(0.5-(10^-12))),BM$40)-1))*1/$L53, IF($J53="Declining Balance",-$BI$38,0))))) -> 0.09534344893 | BN53: =IF($L53=0,0, IF($L53<=0.5,BY53, IF(AND($J53="straight line",$L53<1.51),(BX53-((BX53/$L53)*0.5))+BY53/$L53*0.5, IF($J53="straight line", IF((LEFT(BN$39,4)*1)-INT($L53)<LEFT($BI$39,4)*1,0,((OFFSET(BY53,0,-INT($L53+0.5),1,1))/$L53)*(IF($L53-INT($L53)>0.5,$L53-0.5-INT($L53),IF($L53-INT($L53)<=0.5,$L53-0.5-INT($L53)+1,0)))) +BY53/$L53*0.5 +SUM(OFFSET(BY53,0,MAX(-INT($L53+(0.5-(10^-12))),-BN$40)+1,1,MIN(INT($L53+(0.5-(10^-12))),BN$40)-1))*1/$L53, IF($J53="Declining Balance",-$BI$38,0))))) -> 0.1911974041 | BO53: =IF($L53=0,0, IF($L53<=0.5,BZ53, IF(AND($J53="straight line",$L53<1.51),(BY53-((BY53/$L53)*0.5))+BZ53/$L53*0.5, IF($J53="straight line", IF((LEFT(BO$39,4)*1)-INT($L53)<LEFT($BI$39,4)*1,0,((OFFSET(BZ53,0,-INT($L53+0.5),1,1))/$L53)*(IF($L53-INT($L53)>0.5,$L53-0.5-INT($L53),IF($L53-INT($L53)<=0.5,$L53-0.5-INT($L53)+1,0)))) +BZ53/$L53*0.5 +SUM(OFFSET(BZ53,0,MAX(-INT($L53+(0.5-(10^-12))),-BO$40)+1,1,MIN(INT($L53+(0.5-(10^-12))),BO$40)-1))*1/$L53, IF($J53="Declining Balance",-$BI$38,0))))) -> 0.1930215354 | BP53: =IF($L53=0,0, IF($L53<=0.5,CA53, IF(AND($J53="straight line",$L53<1.51),(BZ53-((BZ53/$L53)*0.5))+CA53/$L53*0.5, IF($J53="straight line", IF((LEFT(BP$39,4)*1)-INT($L53)<LEFT($BI$39,4)*1,0,((OFFSET(CA53,0,-INT($L53+0.5),1,1))/$L53)*(IF($L53-INT($L53)>0.5,$L53-0.5-INT($L53),IF($L53-INT($L53)<=0.5,$L53-0.5-INT($L53)+1,0)))) +CA53/$L53*0.5 +SUM(OFFSET(CA53,0,MAX(-INT($L53+(0.5-(10^-12))),-BP$40)+1,1,MIN(INT($L53+(0.5-(10^-12))),BP$40)-1))*1/$L53, IF($J53="Declining Balance",-$BI$38,0))))) -> 0.1956487854 | BQ53: =IF($L53=0,0, IF($L53<=0.5,CB53, IF(AND($J53="straight line",$L53<1.51),(CA53-((CA53/$L53)*0.5))+CB53/$L53*0.5, IF($J53="straight line", IF((LEFT(BQ$39,4)*1)-INT($L53)<LEFT($BI$39,4)*1,0,((OFFSET(CB53,0,-INT($L53+0.5),1,1))/$L53)*(IF($L53-INT($L53)>0.5,$L53-0.5-INT($L53),IF($L53-INT($L53)<=0.5,$L53-0.5-INT($L53)+1,0)))) +CB53/$L53*0.5 +SUM(OFFSET(CB53,0,MAX(-INT($L53+(0.5-(10^-12))),-BQ$40)+1,1,MIN(INT($L53+(0.5-(10^-12))),BQ$40)-1))*1/$L53, IF($J53="Declining Balance",-$BI$38,0))))) -> 0.1982760354 | BR53: =IF($L53=0,0, IF($L53<=0.5,CC53, IF(AND($J53="straight line",$L53<1.51),(CB53-((CB53/$L53)*0.5))+CC53/$L53*0.5, IF($J53="straight line", IF((LEFT(BR$39,4)*1)-INT($L53)<LEFT($BI$39,4)*1,0,((OFFSET(CC53,0,-INT($L53+0.5),1,1))/$L53)*(IF($L53-INT($L53)>0.5,$L53-0.5-INT($L53),IF($L53-INT($L53)<=0.5,$L53-0.5-INT($L53)+1,0)))) +CC53/$L53*0.5 +SUM(OFFSET(CC53,0,MAX(-INT($L53+(0.5-(10^-12))),-BR$40)+1,1,MIN(INT($L53+(0.5-(10^-12))),BR$40)-1))*1/$L53, IF($J53="Declining Balance",-$BI$38,0))))) -> 0.2009032854 | BT53: =+IF($K53="Ongoing",AX53,IF(RIGHT($K53,2)=RIGHT(BT$39,2),SUM($AX53:AX53),0)+IF(RIGHT(BT$39,2)>RIGHT($K53,2),AX53,0)) -> 0 | BU53: =+IF($K53="Ongoing",AY53,IF(RIGHT($K53,2)=RIGHT(BU$39,2),SUM($AX53:AY53),0)+IF(RIGHT(BU$39,2)>RIGHT($K53,2),AY53,0)) -> 0 | BV53: =+IF($K53="Ongoing",AZ53,IF(RIGHT($K53,2)=RIGHT(BV$39,2),SUM($AX53:AZ53),0)+IF(RIGHT(BV$39,2)>RIGHT($K53,2),AZ53,0)) -> 0 | BW53: =+IF($K53="Ongoing",BA53,IF(RIGHT($K53,2)=RIGHT(BW$39,2),SUM($AX53:BA53),0)+IF(RIGHT(BW$39,2)>RIGHT($K53,2),BA53,0)) -> 0 | BX53: =+IF($K53="Ongoing",BB53,IF(RIGHT($K53,2)=RIGHT(BX$39,2),SUM($AX53:BB53),0)+IF(RIGHT(BX$39,2)>RIGHT($K53,2),BB53,0)) -> 1.906868979 | BY53: =+IF($K53="Ongoing",BC53,IF(RIGHT($K53,2)=RIGHT(BY$39,2),SUM($AX53:BC53),0)+IF(RIGHT(BY$39,2)>RIGHT($K53,2),BC53,0)) -> 0.010210125 | BZ53: =+IF($K53="Ongoing",BD53,IF(RIGHT($K53,2)=RIGHT(BZ$39,2),SUM($AX53:BD53),0)+IF(RIGHT(BZ$39,2)>RIGHT($K53,2),BD53,0)) -> 0.0262725 | CA53: =+IF($K53="Ongoing",BE53,IF(RIGHT($K53,2)=RIGHT(CA$39,2),SUM($AX53:BE53),0)+IF(RIGHT(CA$39,2)>RIGHT($K53,2),BE53,0)) -> 0.0262725 | CB53: =+IF($K53="Ongoing",BF53,IF(RIGHT($K53,2)=RIGHT(CB$39,2),SUM($AX53:BF53),0)+IF(RIGHT(CB$39,2)>RIGHT($K53,2),BF53,0)) -> 0.0262725 | CC53: =+IF($K53="Ongoing",BG53,IF(RIGHT($K53,2)=RIGHT(CC$39,2),SUM($AX53:BG53),0)+IF(RIGHT(CC$39,2)>RIGHT($K53,2),BG53,0)) -> 0.0262725 | CE53: =+Q53*KeyAssumptionsPriceControl_FO!AC$15 -> 0.6366512327 | CF53: =+R53*KeyAssumptionsPriceControl_FO!AD$15 -> 0.6557507697 | CG53: =+S53*KeyAssumptionsPriceControl_FO!AE$15 -> 0.6754232928 | CH53: =+T53*KeyAssumptionsPriceControl_FO!AF$15 -> 0.02956993021 | CI53: =+U53*KeyAssumptionsPriceControl_FO!AG$15 -> 0.03045702812 | CJ53: =+V53*KeyAssumptionsPriceControl_FO!AH$15 -> 0.0121914232 | CK53: =+W53*KeyAssumptionsPriceControl_FO!AI$15 -> 0.03231186113 | CL53: =+X53*KeyAssumptionsPriceControl_FO!AJ$15 -> 0.03328121696 | CM53: =+Y53*KeyAssumptionsPriceControl_FO!AK$15 -> 0.03427965347 | CN53: =+Z53*KeyAssumptionsPriceControl_FO!AL$15 -> 0.03530804308 | CP53: =IF($M53=0,0, IF($M53<=0.5,CE53, IF($J53="straight line", IF((LEFT(CP$39,4)*1)-INT($M53)<LEFT($CP$39,4)*1,0,((OFFSET(CE53,0,-INT($M53+0.5),1,1))/$M53)*(IF($M53-INT($M53)>0.5,$M53-0.5-INT($M53),IF($M53-INT($M53)<=0.5,$M53-0.5-INT($M53)+1,0)))) +CE53/$M53*0.5, IF($J53="Declining Balance",-$CP$38,0)))) -> 0.03183256163 | CQ53: =IF($M53=0,0, IF($M53<=0.5,CF53, IF(AND($J53="straight line",$M53<1.51),(CE53-((CE53/$M53)*0.5))+CF53/$M53*0.5, IF($J53="straight line", IF((LEFT(CQ$39,4)*1)-INT($M53)<LEFT($CP$39,4)*1,0,((OFFSET(CF53,0,-INT($M53+0.5),1,1))/$M53)*(IF($M53-INT($M53)>0.5,$M53-0.5-INT($M53),IF($M53-INT($M53)<=0.5,$M53-0.5-INT($M53)+1,0)))) +CF53/$M53*0.5 +SUM(OFFSET(CF53,0,MAX(-INT($M53+(0.5-(10^-12))),-CQ$40)+1,1,MIN(INT($M53+(0.5-(10^-12))),CQ$40)-1))*1/$M53, IF($J53="Declining Balance",-$CP$38,0))))) -> 0.09645266175 | CR53: =IF($M53=0,0, IF($M53<=0.5,CG53, IF(AND($J53="straight line",$M53<1.51),(CF53-((CF53/$M53)*0.5))+CG53/$M53*0.5, IF($J53="straight line", IF((LEFT(CR$39,4)*1)-INT($M53)<LEFT($CP$39,4)*1,0,((OFFSET(CG53,0,-INT($M53+0.5),1,1))/$M53)*(IF($M53-INT($M53)>0.5,$M53-0.5-INT($M53),IF($M53-INT($M53)<=0.5,$M53-0.5-INT($M53)+1,0)))) +CG53/$M53*0.5 +SUM(OFFSET(CG53,0,MAX(-INT($M53+(0.5-(10^-12))),-CR$40)+1,1,MIN(INT($M53+(0.5-(10^-12))),CR$40)-1))*1/$M53, IF($J53="Declining Balance",-$CP$38,0))))) -> 0.1630113649 | CS53: =IF($M53=0,0, IF($M53<=0.5,CH53, IF(AND($J53="straight line",$M53<1.51),(CG53-((CG53/$M53)*0.5))+CH53/$M53*0.5, IF($J53="straight line", IF((LEFT(CS$39,4)*1)-INT($M53)<LEFT($CP$39,4)*1,0,((OFFSET(CH53,0,-INT($M53+0.5),1,1))/$M53)*(IF($M53-INT($M53)>0.5,$M53-0.5-INT($M53),IF($M53-INT($M53)<=0.5,$M53-0.5-INT($M53)+1,0)))) +CH53/$M53*0.5 +SUM(OFFSET(CH53,0,MAX(-INT($M53+(0.5-(10^-12))),-CS$40)+1,1,MIN(INT($M53+(0.5-(10^-12))),CS$40)-1))*1/$M53, IF($J53="Declining Balance",-$CP$38,0))))) -> 0.198261026 | CT53: =IF($M53=0,0, IF($M53<=0.5,CI53, IF(AND($J53="straight line",$M53<1.51),(CH53-((CH53/$M53)*0.5))+CI53/$M53*0.5, IF($J53="straight line", IF((LEFT(CT$39,4)*1)-INT($M53)<LEFT($CP$39,4)*1,0,((OFFSET(CI53,0,-INT($M53+0.5),1,1))/$M53)*(IF($M53-INT($M53)>0.5,$M53-0.5-INT($M53),IF($M53-INT($M53)<=0.5,$M53-0.5-INT($M53)+1,0)))) +CI53/$M53*0.5 +SUM(OFFSET(CI53,0,MAX(-INT($M53+(0.5-(10^-12))),-CT$40)+1,1,MIN(INT($M53+(0.5-(10^-12))),CT$40)-1))*1/$M53, IF($J53="Declining Balance",-$CP$38,0))))) -> 0.2012623739 | CU53: =IF($M53=0,0, IF($M53<=0.5,CJ53, IF(AND($J53="straight line",$M53<1.51),(CI53-((CI53/$M53)*0.5))+CJ53/$M53*0.5, IF($J53="straight line", IF((LEFT(CU$39,4)*1)-INT($M53)<LEFT($CP$39,4)*1,0,((OFFSET(CJ53,0,-INT($M53+0.5),1,1))/$M53)*(IF($M53-INT($M53)>0.5,$M53-0.5-INT($M53),IF($M53-INT($M53)<=0.5,$M53-0.5-INT($M53)+1,0)))) +CJ53/$M53*0.5 +SUM(OFFSET(CJ53,0,MAX(-INT($M53+(0.5-(10^-12))),-CU$40)+1,1,MIN(INT($M53+(0.5-(10^-12))),CU$40)-1))*1/$M53, IF($J53="Declining Balance",-$CP$38,0))))) -> 0.2033947965 | CV53: =IF($M53=0,0, IF($M53<=0.5,CK53, IF(AND($J53="straight line",$M53<1.51),(CJ53-((CJ53/$M53)*0.5))+CK53/$M53*0.5, IF($J53="straight line", IF((LEFT(CV$39,4)*1)-INT($M53)<LEFT($CP$39,4)*1,0,((OFFSET(CK53,0,-INT($M53+0.5),1,1))/$M53)*(IF($M53-INT($M53)>0.5,$M53-0.5-INT($M53),IF($M53-INT($M53)<=0.5,$M53-0.5-INT($M53)+1,0)))) +CK53/$M53*0.5 +SUM(OFFSET(CK53,0,MAX(-INT($M53+(0.5-(10^-12))),-CV$40)+1,1,MIN(INT($M53+(0.5-(10^-12))),CV$40)-1))*1/$M53, IF($J53="Declining Balance",-$CP$38,0))))) -> 0.2056199607 | CW53: =IF($M53=0,0, IF($M53<=0.5,CL53, IF(AND($J53="straight line",$M53<1.51),(CK53-((CK53/$M53)*0.5))+CL53/$M53*0.5, IF($J53="straight line", IF((LEFT(CW$39,4)*1)-INT($M53)<LEFT($CP$39,4)*1,0,((OFFSET(CL53,0,-INT($M53+0.5),1,1))/$M53)*(IF($M53-INT($M53)>0.5,$M53-0.5-INT($M53),IF($M53-INT($M53)<=0.5,$M53-0.5-INT($M53)+1,0)))) +CL53/$M53*0.5 +SUM(OFFSET(CL53,0,MAX(-INT($M53+(0.5-(10^-12))),-CW$40)+1,1,MIN(INT($M53+(0.5-(10^-12))),CW$40)-1))*1/$M53, IF($J53="Declining Balance",-$CP$38,0))))) -> 0.2088996146 | CX53: =IF($M53=0,0, IF($M53<=0.5,CM53, IF(AND($J53="straight line",$M53<1.51),(CL53-((CL53/$M53)*0.5))+CM53/$M53*0.5, IF($J53="straight line", IF((LEFT(CX$39,4)*1)-INT($M53)<LEFT($CP$39,4)*1,0,((OFFSET(CM53,0,-INT($M53+0.5),1,1))/$M53)*(IF($M53-INT($M53)>0.5,$M53-0.5-INT($M53),IF($M53-INT($M53)<=0.5,$M53-0.5-INT($M53)+1,0)))) +CM53/$M53*0.5 +SUM(OFFSET(CM53,0,MAX(-INT($M53+(0.5-(10^-12))),-CX$40)+1,1,MIN(INT($M53+(0.5-(10^-12))),CX$40)-1))*1/$M53, IF($J53="Declining Balance",-$CP$38,0))))) -> 0.2122776581 | CY53: =IF($M53=0,0, IF($M53<=0.5,CN53, IF(AND($J53="straight line",$M53<1.51),(CM53-((CM53/$M53)*0.5))+CN53/$M53*0.5, IF($J53="straight line", IF((LEFT(CY$39,4)*1)-INT($M53)<LEFT($CP$39,4)*1,0,((OFFSET(CN53,0,-INT($M53+0.5),1,1))/$M53)*(IF($M53-INT($M53)>0.5,$M53-0.5-INT($M53),IF($M53-INT($M53)<=0.5,$M53-0.5-INT($M53)+1,0)))) +CN53/$M53*0.5 +SUM(OFFSET(CN53,0,MAX(-INT($M53+(0.5-(10^-12))),-CY$40)+1,1,MIN(INT($M53+(0.5-(10^-12))),CY$40)-1))*1/$M53, IF($J53="Declining Balance",-$CP$38,0))))) -> 0.215757043
C54: Energy Program | E54: Water | F54: Improvements / Compliance | G54: Corporate | H54: Capital Programs / Allocation | J54: Straight line | K54: Ongoing | L54: 20 | M54: 20 | Q54: 1.0509 | R54: 1.0509 | S54: 1.0509 | T54: 1.0509 | U54: 1.0509 | V54: 0.52545 | W54: 0.52545 | X54: 0.52545 | Y54: 0.52545 | Z54: 0.52545 | AB54: 0 | AC54: 0 | AD54: 0 | AE54: 0 | AF54: 0 | AG54: 0 | AH54: 0 | AI54: 0 | AJ54: 0 | AK54: 0 | AM54: 0 | AN54: 0 | AO54: 0 | AP54: 0 | AQ54: 0 | AR54: 0 | AS54: 0 | AT54: 0 | AU54: 0 | AV54: 0 | AX54: 1.0509 | AY54: 1.0509 | AZ54: 1.0509 | BA54: 1.0509 | BB54: 1.0509 | BC54: 0.52545 | BD54: 0.52545 | BE54: 0.52545 | BF54: 0.52545 | BG54: 0.52545 | BI54: 0.0262725 | BJ54: 0.0788175 | BK54: 0.1313625 | BL54: 0.1839075 | BM54: 0.2364525 | BN54: 0.27586125 | BO54: 0.30213375 | BP54: 0.32840625 | BQ54: 0.35467875 | BR54: 0.38095125 | BT54: =+IF($K54="Ongoing",AX54,IF(RIGHT($K54,2)=RIGHT(BT$39,2),SUM($AX54:AX54),0)+IF(RIGHT(BT$39,2)>RIGHT($K54,2),AX54,0)) -> 1.0509 | BU54: =+IF($K54="Ongoing",AY54,IF(RIGHT($K54,2)=RIGHT(BU$39,2),SUM($AX54:AY54),0)+IF(RIGHT(BU$39,2)>RIGHT($K54,2),AY54,0)) -> 1.0509 | BV54: =+IF($K54="Ongoing",AZ54,IF(RIGHT($K54,2)=RIGHT(BV$39,2),SUM($AX54:AZ54),0)+IF(RIGHT(BV$39,2)>RIGHT($K54,2),AZ54,0)) -> 1.0509 | BW54: =+IF($K54="Ongoing",BA54,IF(RIGHT($K54,2)=RIGHT(BW$39,2),SUM($AX54:BA54),0)+IF(RIGHT(BW$39,2)>RIGHT($K54,2),BA54,0)) -> 1.0509 | BX54: =+IF($K54="Ongoing",BB54,IF(RIGHT($K54,2)=RIGHT(BX$39,2),SUM($AX54:BB54),0)+IF(RIGHT(BX$39,2)>RIGHT($K54,2),BB54,0)) -> 1.0509 | BY54: =+IF($K54="Ongoing",BC54,IF(RIGHT($K54,2)=RIGHT(BY$39,2),SUM($AX54:BC54),0)+IF(RIGHT(BY$39,2)>RIGHT($K54,2),BC54,0)) -> 0.52545 | BZ54: =+IF($K54="Ongoing",BD54,IF(RIGHT($K54,2)=RIGHT(BZ$39,2),SUM($AX54:BD54),0)+IF(RIGHT(BZ$39,2)>RIGHT($K54,2),BD54,0)) -> 0.52545 | CA54: =+IF($K54="Ongoing",BE54,IF(RIGHT($K54,2)=RIGHT(CA$39,2),SUM($AX54:BE54),0)+IF(RIGHT(CA$39,2)>RIGHT($K54,2),BE54,0)) -> 0.52545 | CB54: =+IF($K54="Ongoing",BF54,IF(RIGHT($K54,2)=RIGHT(CB$39,2),SUM($AX54:BF54),0)+IF(RIGHT(CB$39,2)>RIGHT($K54,2),BF54,0)) -> 0.52545 | CC54: =+IF($K54="Ongoing",BG54,IF(RIGHT($K54,2)=RIGHT(CC$39,2),SUM($AX54:BG54),0)+IF(RIGHT(CC$39,2)>RIGHT($K54,2),BG54,0)) -> 0.52545 | CE54: =+Q54*KeyAssumptionsPriceControl_FO!AC$15 -> 1.082427 | CF54: =+R54*KeyAssumptionsPriceControl_FO!AD$15 -> 1.11489981 | CG54: =+S54*KeyAssumptionsPriceControl_FO!AE$15 -> 1.148346804 | CH54: =+T54*KeyAssumptionsPriceControl_FO!AF$15 -> 1.182797208 | CI54: =+U54*KeyAssumptionsPriceControl_FO!AG$15 -> 1.218281125 | CJ54: =+V54*KeyAssumptionsPriceControl_FO!AH$15 -> 0.6274147792 | CK54: =+W54*KeyAssumptionsPriceControl_FO!AI$15 -> 0.6462372226 | CL54: =+X54*KeyAssumptionsPriceControl_FO!AJ$15 -> 0.6656243393 | CM54: =+Y54*KeyAssumptionsPriceControl_FO!AK$15 -> 0.6855930694 | CN54: =+Z54*KeyAssumptionsPriceControl_FO!AL$15 -> 0.7061608615 | CP54: 0.027060675 | CQ54: 0.08199384525 | CR54: 0.1385750106 | CS54: 0.1968536109 | CT54: 0.2568805693 | CU54: 0.3030229669 | CV54: 0.3348642669 | CW54: 0.3676608059 | CX54: 0.4014412412 | CY54: 0.4362350894
C55: Energy Program | E55: Sewerage | F55: Improvements / Compliance | G55: Corporate | H55: Capital Programs / Allocation | J55: Straight line | K55: Ongoing | L55: 20 | M55: 20 | Q55: 1.0509 | R55: 1.0509 | S55: 1.0509 | T55: 1.0509 | U55: 1.0509 | V55: 0.52545 | W55: 0.52545 | X55: 0.52545 | Y55: 0.52545 | Z55: 0.52545 | AB55: 0 | AC55: 0 | AD55: 0 | AE55: 0 | AF55: 0 | AG55: 0 | AH55: 0 | AI55: 0 | AJ55: 0 | AK55: 0 | AM55: 0 | AN55: 0 | AO55: 0 | AP55: 0 | AQ55: 0 | AR55: 0 | AS55: 0 | AT55: 0 | AU55: 0 | AV55: 0 | AX55: 1.0509 | AY55: 1.0509 | AZ55: 1.0509 | BA55: 1.0509 | BB55: 1.0509 | BC55: 0.52545 | BD55: 0.52545 | BE55: 0.52545 | BF55: 0.52545 | BG55: 0.52545 | BI55: 0.0262725 | BJ55: 0.0788175 | BK55: 0.1313625 | BL55: 0.1839075 | BM55: 0.2364525 | BN55: 0.27586125 | BO55: 0.30213375 | BP55: 0.32840625 | BQ55: 0.35467875 | BR55: 0.38095125 | BT55: =+IF($K55="Ongoing",AX55,IF(RIGHT($K55,2)=RIGHT(BT$39,2),SUM($AX55:AX55),0)+IF(RIGHT(BT$39,2)>RIGHT($K55,2),AX55,0)) -> 1.0509 | BU55: =+IF($K55="Ongoing",AY55,IF(RIGHT($K55,2)=RIGHT(BU$39,2),SUM($AX55:AY55),0)+IF(RIGHT(BU$39,2)>RIGHT($K55,2),AY55,0)) -> 1.0509 | BV55: =+IF($K55="Ongoing",AZ55,IF(RIGHT($K55,2)=RIGHT(BV$39,2),SUM($AX55:AZ55),0)+IF(RIGHT(BV$39,2)>RIGHT($K55,2),AZ55,0)) -> 1.0509 | BW55: =+IF($K55="Ongoing",BA55,IF(RIGHT($K55,2)=RIGHT(BW$39,2),SUM($AX55:BA55),0)+IF(RIGHT(BW$39,2)>RIGHT($K55,2),BA55,0)) -> 1.0509 | BX55: =+IF($K55="Ongoing",BB55,IF(RIGHT($K55,2)=RIGHT(BX$39,2),SUM($AX55:BB55),0)+IF(RIGHT(BX$39,2)>RIGHT($K55,2),BB55,0)) -> 1.0509 | BY55: =+IF($K55="Ongoing",BC55,IF(RIGHT($K55,2)=RIGHT(BY$39,2),SUM($AX55:BC55),0)+IF(RIGHT(BY$39,2)>RIGHT($K55,2),BC55,0)) -> 0.52545 | BZ55: =+IF($K55="Ongoing",BD55,IF(RIGHT($K55,2)=RIGHT(BZ$39,2),SUM($AX55:BD55),0)+IF(RIGHT(BZ$39,2)>RIGHT($K55,2),BD55,0)) -> 0.52545 | CA55: =+IF($K55="Ongoing",BE55,IF(RIGHT($K55,2)=RIGHT(CA$39,2),SUM($AX55:BE55),0)+IF(RIGHT(CA$39,2)>RIGHT($K55,2),BE55,0)) -> 0.52545 | CB55: =+IF($K55="Ongoing",BF55,IF(RIGHT($K55,2)=RIGHT(CB$39,2),SUM($AX55:BF55),0)+IF(RIGHT(CB$39,2)>RIGHT($K55,2),BF55,0)) -> 0.52545 | CC55: =+IF($K55="Ongoing",BG55,IF(RIGHT($K55,2)=RIGHT(CC$39,2),SUM($AX55:BG55),0)+IF(RIGHT(CC$39,2)>RIGHT($K55,2),BG55,0)) -> 0.52545 | CE55: =+Q55*KeyAssumptionsPriceControl_FO!AC$15 -> 1.082427 | CF55: =+R55*KeyAssumptionsPriceControl_FO!AD$15 -> 1.11489981 | CG55: =+S55*KeyAssumptionsPriceControl_FO!AE$15 -> 1.148346804 | CH55: =+T55*KeyAssumptionsPriceControl_FO!AF$15 -> 1.182797208 | CI55: =+U55*KeyAssumptionsPriceControl_FO!AG$15 -> 1.218281125 | CJ55: =+V55*KeyAssumptionsPriceControl_FO!AH$15 -> 0.6274147792 | CK55: =+W55*KeyAssumptionsPriceControl_FO!AI$15 -> 0.6462372226 | CL55: =+X55*KeyAssumptionsPriceControl_FO!AJ$15 -> 0.6656243393 | CM55: =+Y55*KeyAssumptionsPriceControl_FO!AK$15 -> 0.6855930694 | CN55: =+Z55*KeyAssumptionsPriceControl_FO!AL$15 -> 0.7061608615 | CP55: 0.027060675 | CQ55: 0.08199384525 | CR55: 0.1385750106 | CS55: 0.1968536109 | CT55: 0.2568805693 | CU55: 0.3030229669 | CV55: 0.3348642669 | CW55: 0.3676608059 | CX55: 0.4014412412 | CY55: 0.4362350894
C56: Energy Program | E56: Water | F56: Renewals | G56: Corporate | H56: Capital Programs / Allocation | J56: Straight line | K56: Ongoing | L56: 20 | M56: 20 | Q56: 0.0052545 | R56: 0 | S56: 0 | T56: 0 | U56: 0 | V56: 0 | W56: 0 | X56: 0 | Y56: 0 | Z56: 0 | AB56: 0 | AC56: 0 | AD56: 0 | AE56: 0 | AF56: 0 | AG56: 0 | AH56: 0 | AI56: 0 | AJ56: 0 | AK56: 0 | AM56: 0 | AN56: 0 | AO56: 0 | AP56: 0 | AQ56: 0 | AR56: 0 | AS56: 0 | AT56: 0 | AU56: 0 | AV56: 0 | AX56: 0.0052545 | AY56: 0 | AZ56: 0 | BA56: 0 | BB56: 0 | BC56: 0 | BD56: 0 | BE56: 0 | BF56: 0 | BG56: 0 | BI56: 0.0001313625 | BJ56: 0.000262725 | BK56: 0.000262725 | BL56: 0.000262725 | BM56: 0.000262725 | BN56: 0.000262725 | BO56: 0.000262725 | BP56: 0.000262725 | BQ56: 0.000262725 | BR56: 0.000262725 | BT56: =+IF($K56="Ongoing",AX56,IF(RIGHT($K56,2)=RIGHT(BT$39,2),SUM($AX56:AX56),0)+IF(RIGHT(BT$39,2)>RIGHT($K56,2),AX56,0)) -> 0.0052545 | BU56: =+IF($K56="Ongoing",AY56,IF(RIGHT($K56,2)=RIGHT(BU$39,2),SUM($AX56:AY56),0)+IF(RIGHT(BU$39,2)>RIGHT($K56,2),AY56,0)) -> 0 | BV56: =+IF($K56="Ongoing",AZ56,IF(RIGHT($K56,2)=RIGHT(BV$39,2),SUM($AX56:AZ56),0)+IF(RIGHT(BV$39,2)>RIGHT($K56,2),AZ56,0)) -> 0 | BW56: =+IF($K56="Ongoing",BA56,IF(RIGHT($K56,2)=RIGHT(BW$39,2),SUM($AX56:BA56),0)+IF(RIGHT(BW$39,2)>RIGHT($K56,2),BA56,0)) -> 0 | BX56: =+IF($K56="Ongoing",BB56,IF(RIGHT($K56,2)=RIGHT(BX$39,2),SUM($AX56:BB56),0)+IF(RIGHT(BX$39,2)>RIGHT($K56,2),BB56,0)) -> 0 | BY56: =+IF($K56="Ongoing",BC56,IF(RIGHT($K56,2)=RIGHT(BY$39,2),SUM($AX56:BC56),0)+IF(RIGHT(BY$39,2)>RIGHT($K56,2),BC56,0)) -> 0 | BZ56: =+IF($K56="Ongoing",BD56,IF(RIGHT($K56,2)=RIGHT(BZ$39,2),SUM($AX56:BD56),0)+IF(RIGHT(BZ$39,2)>RIGHT($K56,2),BD56,0)) -> 0 | CA56: =+IF($K56="Ongoing",BE56,IF(RIGHT($K56,2)=RIGHT(CA$39,2),SUM($AX56:BE56),0)+IF(RIGHT(CA$39,2)>RIGHT($K56,2),BE56,0)) -> 0 | CB56: =+IF($K56="Ongoing",BF56,IF(RIGHT($K56,2)=RIGHT(CB$39,2),SUM($AX56:BF56),0)+IF(RIGHT(CB$39,2)>RIGHT($K56,2),BF56,0)) -> 0 | CC56: =+IF($K56="Ongoing",BG56,IF(RIGHT($K56,2)=RIGHT(CC$39,2),SUM($AX56:BG56),0)+IF(RIGHT(CC$39,2)>RIGHT($K56,2),BG56,0)) -> 0 | CE56: =+Q56*KeyAssumptionsPriceControl_FO!AC$15 -> 0.005412135 | CF56: =+R56*KeyAssumptionsPriceControl_FO!AD$15 -> 0 | CG56: =+S56*KeyAssumptionsPriceControl_FO!AE$15 -> 0 | CH56: =+T56*KeyAssumptionsPriceControl_FO!AF$15 -> 0 | CI56: =+U56*KeyAssumptionsPriceControl_FO!AG$15 -> 0 | CJ56: =+V56*KeyAssumptionsPriceControl_FO!AH$15 -> 0 | CK56: =+W56*KeyAssumptionsPriceControl_FO!AI$15 -> 0 | CL56: =+X56*KeyAssumptionsPriceControl_FO!AJ$15 -> 0 | CM56: =+Y56*KeyAssumptionsPriceControl_FO!AK$15 -> 0 | CN56: =+Z56*KeyAssumptionsPriceControl_FO!AL$15 -> 0 | CP56: 0.000135303375 | CQ56: 0.00027060675 | CR56: 0.00027060675 | CS56: 0.00027060675 | CT56: 0.00027060675 | CU56: 0.00027060675 | CV56: 0.00027060675 | CW56: 0.00027060675 | CX56: 0.00027060675 | CY56: 0.00027060675
C57: Energy Program | E57: Sewerage | F57: Renewals | G57: Corporate | H57: Capital Programs / Allocation | J57: Straight line | K57: Ongoing | L57: 20 | M57: 20 | Q57: 0.0052545 | R57: 0 | S57: 0 | T57: 0 | U57: 0 | V57: 0 | W57: 0 | X57: 0 | Y57: 0 | Z57: 0 | AB57: 0 | AC57: 0 | AD57: 0 | AE57: 0 | AF57: 0 | AG57: 0 | AH57: 0 | AI57: 0 | AJ57: 0 | AK57: 0 | AM57: 0 | AN57: 0 | AO57: 0 | AP57: 0 | AQ57: 0 | AR57: 0 | AS57: 0 | AT57: 0 | AU57: 0 | AV57: 0 | AX57: 0.0052545 | AY57: 0 | AZ57: 0 | BA57: 0 | BB57: 0 | BC57: 0 | BD57: 0 | BE57: 0 | BF57: 0 | BG57: 0 | BI57: 0.0001313625 | BJ57: 0.000262725 | BK57: 0.000262725 | BL57: 0.000262725 | BM57: 0.000262725 | BN57: 0.000262725 | BO57: 0.000262725 | BP57: 0.000262725 | BQ57: 0.000262725 | BR57: 0.000262725 | BT57: =+IF($K57="Ongoing",AX57,IF(RIGHT($K57,2)=RIGHT(BT$39,2),SUM($AX57:AX57),0)+IF(RIGHT(BT$39,2)>RIGHT($K57,2),AX57,0)) -> 0.0052545 | BU57: =+IF($K57="Ongoing",AY57,IF(RIGHT($K57,2)=RIGHT(BU$39,2),SUM($AX57:AY57),0)+IF(RIGHT(BU$39,2)>RIGHT($K57,2),AY57,0)) -> 0 | BV57: =+IF($K57="Ongoing",AZ57,IF(RIGHT($K57,2)=RIGHT(BV$39,2),SUM($AX57:AZ57),0)+IF(RIGHT(BV$39,2)>RIGHT($K57,2),AZ57,0)) -> 0 | BW57: =+IF($K57="Ongoing",BA57,IF(RIGHT($K57,2)=RIGHT(BW$39,2),SUM($AX57:BA57),0)+IF(RIGHT(BW$39,2)>RIGHT($K57,2),BA57,0)) -> 0 | BX57: =+IF($K57="Ongoing",BB57,IF(RIGHT($K57,2)=RIGHT(BX$39,2),SUM($AX57:BB57),0)+IF(RIGHT(BX$39,2)>RIGHT($K57,2),BB57,0)) -> 0 | BY57: =+IF($K57="Ongoing",BC57,IF(RIGHT($K57,2)=RIGHT(BY$39,2),SUM($AX57:BC57),0)+IF(RIGHT(BY$39,2)>RIGHT($K57,2),BC57,0)) -> 0 | BZ57: =+IF($K57="Ongoing",BD57,IF(RIGHT($K57,2)=RIGHT(BZ$39,2),SUM($AX57:BD57),0)+IF(RIGHT(BZ$39,2)>RIGHT($K57,2),BD57,0)) -> 0 | CA57: =+IF($K57="Ongoing",BE57,IF(RIGHT($K57,2)=RIGHT(CA$39,2),SUM($AX57:BE57),0)+IF(RIGHT(CA$39,2)>RIGHT($K57,2),BE57,0)) -> 0 | CB57: =+IF($K57="Ongoing",BF57,IF(RIGHT($K57,2)=RIGHT(CB$39,2),SUM($AX57:BF57),0)+IF(RIGHT(CB$39,2)>RIGHT($K57,2),BF57,0)) -> 0 | CC57: =+IF($K57="Ongoing",BG57,IF(RIGHT($K57,2)=RIGHT(CC$39,2),SUM($AX57:BG57),0)+IF(RIGHT(CC$39,2)>RIGHT($K57,2),BG57,0)) -> 0 | CE57: =+Q57*KeyAssumptionsPriceControl_FO!AC$15 -> 0.005412135 | CF57: =+R57*KeyAssumptionsPriceControl_FO!AD$15 -> 0 | CG57: =+S57*KeyAssumptionsPriceControl_FO!AE$15 -> 0 | CH57: =+T57*KeyAssumptionsPriceControl_FO!AF$15 -> 0 | CI57: =+U57*KeyAssumptionsPriceControl_FO!AG$15 -> 0 | CJ57: =+V57*KeyAssumptionsPriceControl_FO!AH$15 -> 0 | CK57: =+W57*KeyAssumptionsPriceControl_FO!AI$15 -> 0 | CL57: =+X57*KeyAssumptionsPriceControl_FO!AJ$15 -> 0 | CM57: =+Y57*KeyAssumptionsPriceControl_FO!AK$15 -> 0 | CN57: =+Z57*KeyAssumptionsPriceControl_FO!AL$15 -> 0 | CP57: 0.000135303375 | CQ57: 0.00027060675 | CR57: 0.00027060675 | CS57: 0.00027060675 | CT57: 0.00027060675 | CU57: 0.00027060675 | CV57: 0.00027060675 | CW57: 0.00027060675 | CX57: 0.00027060675 | CY57: 0.00027060675
C58: Fleet and Facility Program | E58: Water | F58: Improvements / Compliance | G58: Corporate | H58: Capital Programs / Allocation | J58: Straight line | K58: Ongoing | L58: 10 | M58: 10 | Q58: 0.04045965 | R58: 0.0546468 | S58: 0.0262725 | T58: 0.0262725 | U58: 0.0262725 | V58: 0.0262725 | W58: 0.0262725 | X58: 0.0262725 | Y58: 0.0262725 | Z58: 0.0262725 | AB58: 0 | AC58: 0 | AD58: 0 | AE58: 0 | AF58: 0 | AG58: 0 | AH58: 0 | AI58: 0 | AJ58: 0 | AK58: 0 | AM58: 0 | AN58: 0 | AO58: 0 | AP58: 0 | AQ58: 0 | AR58: 0 | AS58: 0 | AT58: 0 | AU58: 0 | AV58: 0 | AX58: 0.04045965 | AY58: 0.0546468 | AZ58: 0.0262725 | BA58: 0.0262725 | BB58: 0.0262725 | BC58: 0.0262725 | BD58: 0.0262725 | BE58: 0.0262725 | BF58: 0.0262725 | BG58: 0.0262725 | BI58: 0.0020229825 | BJ58: 0.006778305 | BK58: 0.01082427 | BL58: 0.01345152 | BM58: 0.01607877 | BN58: 0.01870602 | BO58: 0.02133327 | BP58: 0.02396052 | BQ58: 0.02658777 | BR58: 0.02921502 | BT58: =+IF($K58="Ongoing",AX58,IF(RIGHT($K58,2)=RIGHT(BT$39,2),SUM($AX58:AX58),0)+IF(RIGHT(BT$39,2)>RIGHT($K58,2),AX58,0)) -> 0.04045965 | BU58: =+IF($K58="Ongoing",AY58,IF(RIGHT($K58,2)=RIGHT(BU$39,2),SUM($AX58:AY58),0)+IF(RIGHT(BU$39,2)>RIGHT($K58,2),AY58,0)) -> 0.0546468 | BV58: =+IF($K58="Ongoing",AZ58,IF(RIGHT($K58,2)=RIGHT(BV$39,2),SUM($AX58:AZ58),0)+IF(RIGHT(BV$39,2)>RIGHT($K58,2),AZ58,0)) -> 0.0262725 | BW58: =+IF($K58="Ongoing",BA58,IF(RIGHT($K58,2)=RIGHT(BW$39,2),SUM($AX58:BA58),0)+IF(RIGHT(BW$39,2)>RIGHT($K58,2),BA58,0)) -> 0.0262725 | BX58: =+IF($K58="Ongoing",BB58,IF(RIGHT($K58,2)=RIGHT(BX$39,2),SUM($AX58:BB58),0)+IF(RIGHT(BX$39,2)>RIGHT($K58,2),BB58,0)) -> 0.0262725 | BY58: =+IF($K58="Ongoing",BC58,IF(RIGHT($K58,2)=RIGHT(BY$39,2),SUM($AX58:BC58),0)+IF(RIGHT(BY$39,2)>RIGHT($K58,2),BC58,0)) -> 0.0262725 | BZ58: =+IF($K58="Ongoing",BD58,IF(RIGHT($K58,2)=RIGHT(BZ$39,2),SUM($AX58:BD58),0)+IF(RIGHT(BZ$39,2)>RIGHT($K58,2),BD58,0)) -> 0.0262725 | CA58: =+IF($K58="Ongoing",BE58,IF(RIGHT($K58,2)=RIGHT(CA$39,2),SUM($AX58:BE58),0)+IF(RIGHT(CA$39,2)>RIGHT($K58,2),BE58,0)) -> 0.0262725 | CB58: =+IF($K58="Ongoing",BF58,IF(RIGHT($K58,2)=RIGHT(CB$39,2),SUM($AX58:BF58),0)+IF(RIGHT(CB$39,2)>RIGHT($K58,2),BF58,0)) -> 0.0262725 | CC58: =+IF($K58="Ongoing",BG58,IF(RIGHT($K58,2)=RIGHT(CC$39,2),SUM($AX58:BG58),0)+IF(RIGHT(CC$39,2)>RIGHT($K58,2),BG58,0)) -> 0.0262725 | CE58: =+Q58*KeyAssumptionsPriceControl_FO!AC$15 -> 0.0416734395 | CF58: =+R58*KeyAssumptionsPriceControl_FO!AD$15 -> 0.05797479012 | CG58: =+S58*KeyAssumptionsPriceControl_FO!AE$15 -> 0.02870867011 | CH58: =+T58*KeyAssumptionsPriceControl_FO!AF$15 -> 0.02956993021 | CI58: =+U58*KeyAssumptionsPriceControl_FO!AG$15 -> 0.03045702812 | CJ58: =+V58*KeyAssumptionsPriceControl_FO!AH$15 -> 0.03137073896 | CK58: =+W58*KeyAssumptionsPriceControl_FO!AI$15 -> 0.03231186113 | CL58: =+X58*KeyAssumptionsPriceControl_FO!AJ$15 -> 0.03328121696 | CM58: =+Y58*KeyAssumptionsPriceControl_FO!AK$15 -> 0.03427965347 | CN58: =+Z58*KeyAssumptionsPriceControl_FO!AL$15 -> 0.03530804308 | CP58: 0.002083671975 | CQ58: 0.007066083456 | CR58: 0.01140025647 | CS58: 0.01431418648 | CT58: 0.0173155344 | CU58: 0.02040692275 | CV58: 0.02359105276 | CW58: 0.02687070666 | CX58: 0.03024875018 | CY58: 0.03372813501
C59: Fleet and Facility Program | E59: Sewerage | F59: Improvements / Compliance | G59: Corporate | H59: Capital Programs / Allocation | J59: Straight line | K59: Ongoing | L59: 10 | M59: 10 | Q59: 0.04045965 | R59: 0.0546468 | S59: 0.0262725 | T59: 0.0262725 | U59: 0.0262725 | V59: 0.0262725 | W59: 0.0262725 | X59: 0.0262725 | Y59: 0.0262725 | Z59: 0.0262725 | AB59: 0 | AC59: 0 | AD59: 0 | AE59: 0 | AF59: 0 | AG59: 0 | AH59: 0 | AI59: 0 | AJ59: 0 | AK59: 0 | AM59: 0 | AN59: 0 | AO59: 0 | AP59: 0 | AQ59: 0 | AR59: 0 | AS59: 0 | AT59: 0 | AU59: 0 | AV59: 0 | AX59: 0.04045965 | AY59: 0.0546468 | AZ59: 0.0262725 | BA59: 0.0262725 | BB59: 0.0262725 | BC59: 0.0262725 | BD59: 0.0262725 | BE59: 0.0262725 | BF59: 0.0262725 | BG59: 0.0262725 | BI59: 0.0020229825 | BJ59: 0.006778305 | BK59: 0.01082427 | BL59: 0.01345152 | BM59: 0.01607877 | BN59: 0.01870602 | BO59: 0.02133327 | BP59: 0.02396052 | BQ59: 0.02658777 | BR59: 0.02921502 | BT59: =+IF($K59="Ongoing",AX59,IF(RIGHT($K59,2)=RIGHT(BT$39,2),SUM($AX59:AX59),0)+IF(RIGHT(BT$39,2)>RIGHT($K59,2),AX59,0)) -> 0.04045965 | BU59: =+IF($K59="Ongoing",AY59,IF(RIGHT($K59,2)=RIGHT(BU$39,2),SUM($AX59:AY59),0)+IF(RIGHT(BU$39,2)>RIGHT($K59,2),AY59,0)) -> 0.0546468 | BV59: =+IF($K59="Ongoing",AZ59,IF(RIGHT($K59,2)=RIGHT(BV$39,2),SUM($AX59:AZ59),0)+IF(RIGHT(BV$39,2)>RIGHT($K59,2),AZ59,0)) -> 0.0262725 | BW59: =+IF($K59="Ongoing",BA59,IF(RIGHT($K59,2)=RIGHT(BW$39,2),SUM($AX59:BA59),0)+IF(RIGHT(BW$39,2)>RIGHT($K59,2),BA59,0)) -> 0.0262725 | BX59: =+IF($K59="Ongoing",BB59,IF(RIGHT($K59,2)=RIGHT(BX$39,2),SUM($AX59:BB59),0)+IF(RIGHT(BX$39,2)>RIGHT($K59,2),BB59,0)) -> 0.0262725 | BY59: =+IF($K59="Ongoing",BC59,IF(RIGHT($K59,2)=RIGHT(BY$39,2),SUM($AX59:BC59),0)+IF(RIGHT(BY$39,2)>RIGHT($K59,2),BC59,0)) -> 0.0262725 | BZ59: =+IF($K59="Ongoing",BD59,IF(RIGHT($K59,2)=RIGHT(BZ$39,2),SUM($AX59:BD59),0)+IF(RIGHT(BZ$39,2)>RIGHT($K59,2),BD59,0)) -> 0.0262725 | CA59: =+IF($K59="Ongoing",BE59,IF(RIGHT($K59,2)=RIGHT(CA$39,2),SUM($AX59:BE59),0)+IF(RIGHT(CA$39,2)>RIGHT($K59,2),BE59,0)) -> 0.0262725 | CB59: =+IF($K59="Ongoing",BF59,IF(RIGHT($K59,2)=RIGHT(CB$39,2),SUM($AX59:BF59),0)+IF(RIGHT(CB$39,2)>RIGHT($K59,2),BF59,0)) -> 0.0262725 | CC59: =+IF($K59="Ongoing",BG59,IF(RIGHT($K59,2)=RIGHT(CC$39,2),SUM($AX59:BG59),0)+IF(RIGHT(CC$39,2)>RIGHT($K59,2),BG59,0)) -> 0.0262725 | CE59: =+Q59*KeyAssumptionsPriceControl_FO!AC$15 -> 0.0416734395 | CF59: =+R59*KeyAssumptionsPriceControl_FO!AD$15 -> 0.05797479012 | CG59: =+S59*KeyAssumptionsPriceControl_FO!AE$15 -> 0.02870867011 | CH59: =+T59*KeyAssumptionsPriceControl_FO!AF$15 -> 0.02956993021 | CI59: =+U59*KeyAssumptionsPriceControl_FO!AG$15 -> 0.03045702812 | CJ59: =+V59*KeyAssumptionsPriceControl_FO!AH$15 -> 0.03137073896 | CK59: =+W59*KeyAssumptionsPriceControl_FO!AI$15 -> 0.03231186113 | CL59: =+X59*KeyAssumptionsPriceControl_FO!AJ$15 -> 0.03328121696 | CM59: =+Y59*KeyAssumptionsPriceControl_FO!AK$15 -> 0.03427965347 | CN59: =+Z59*KeyAssumptionsPriceControl_FO!AL$15 -> 0.03530804308 | CP59: 0.002083671975 | CQ59: 0.007066083456 | CR59: 0.01140025647 | CS59: 0.01431418648 | CT59: 0.0173155344 | CU59: 0.02040692275 | CV59: 0.02359105276 | CW59: 0.02687070666 | CX59: 0.03024875018 | CY59: 0.03372813501
C60: Fleet and Facility Program | E60: Water | F60: Renewals | G60: Corporate | H60: Capital Programs / Allocation | J60: Straight line | K60: Ongoing | L60: 10 | M60: 10 | Q60: 1.625945344 | R60: 0.8899694407 | S60: 1.199928744 | T60: 0.6069664844 | U60: 0.9872771005 | V60: 1.337886489 | W60: 0.7988439722 | X60: 1.178909948 | Y60: 0.6691503729 | Z60: 0.8201915118 | AB60: 0 | AC60: 0 | AD60: 0 | AE60: 0 | AF60: 0 | AG60: 0 | AH60: 0 | AI60: 0 | AJ60: 0 | AK60: 0 | AM60: 0 | AN60: 0 | AO60: 0 | AP60: 0 | AQ60: 0 | AR60: 0 | AS60: 0 | AT60: 0 | AU60: 0 | AV60: 0 | AX60: 1.625945344 | AY60: 0.8899694407 | AZ60: 1.199928744 | BA60: 0.6069664844 | BB60: 0.9872771005 | BC60: 1.337886489 | BD60: 0.7988439722 | BE60: 1.178909948 | BF60: 0.6691503729 | BG60: 0.8201915118 | BI60: 0.08129726722 | BJ60: 0.2070930065 | BK60: 0.3115879157 | BL60: 0.4019326771 | BM60: 0.4816448564 | BN60: 0.5979030358 | BO60: 0.7047395589 | BP60: 0.8036272549 | BQ60: 0.8960302709 | BR60: 0.9704973651 | BT60: =+IF($K60="Ongoing",AX60,IF(RIGHT($K60,2)=RIGHT(BT$39,2),SUM($AX60:AX60),0)+IF(RIGHT(BT$39,2)>RIGHT($K60,2),AX60,0)) -> 1.625945344 | BU60: =+IF($K60="Ongoing",AY60,IF(RIGHT($K60,2)=RIGHT(BU$39,2),SUM($AX60:AY60),0)+IF(RIGHT(BU$39,2)>RIGHT($K60,2),AY60,0)) -> 0.8899694407 | BV60: =+IF($K60="Ongoing",AZ60,IF(RIGHT($K60,2)=RIGHT(BV$39,2),SUM($AX60:AZ60),0)+IF(RIGHT(BV$39,2)>RIGHT($K60,2),AZ60,0)) -> 1.199928744 | BW60: =+IF($K60="Ongoing",BA60,IF(RIGHT($K60,2)=RIGHT(BW$39,2),SUM($AX60:BA60),0)+IF(RIGHT(BW$39,2)>RIGHT($K60,2),BA60,0)) -> 0.6069664844 | BX60: =+IF($K60="Ongoing",BB60,IF(RIGHT($K60,2)=RIGHT(BX$39,2),SUM($AX60:BB60),0)+IF(RIGHT(BX$39,2)>RIGHT($K60,2),BB60,0)) -> 0.9872771005 | BY60: =+IF($K60="Ongoing",BC60,IF(RIGHT($K60,2)=RIGHT(BY$39,2),SUM($AX60:BC60),0)+IF(RIGHT(BY$39,2)>RIGHT($K60,2),BC60,0)) -> 1.337886489 | BZ60: =+IF($K60="Ongoing",BD60,IF(RIGHT($K60,2)=RIGHT(BZ$39,2),SUM($AX60:BD60),0)+IF(RIGHT(BZ$39,2)>RIGHT($K60,2),BD60,0)) -> 0.7988439722 | CA60: =+IF($K60="Ongoing",BE60,IF(RIGHT($K60,2)=RIGHT(CA$39,2),SUM($AX60:BE60),0)+IF(RIGHT(CA$39,2)>RIGHT($K60,2),BE60,0)) -> 1.178909948 | CB60: =+IF($K60="Ongoing",BF60,IF(RIGHT($K60,2)=RIGHT(CB$39,2),SUM($AX60:BF60),0)+IF(RIGHT(CB$39,2)>RIGHT($K60,2),BF60,0)) -> 0.6691503729 | CC60: =+IF($K60="Ongoing",BG60,IF(RIGHT($K60,2)=RIGHT(CC$39,2),SUM($AX60:BG60),0)+IF(RIGHT(CC$39,2)>RIGHT($K60,2),BG60,0)) -> 0.8201915118 | CE60: =+Q60*KeyAssumptionsPriceControl_FO!AC$15 -> 1.674723705 | CF60: =+R60*KeyAssumptionsPriceControl_FO!AD$15 -> 0.9441685796 | CG60: =+S60*KeyAssumptionsPriceControl_FO!AE$15 -> 1.311194536 | CH60: =+T60*KeyAssumptionsPriceControl_FO!AF$15 -> 0.6831461256 | CI60: =+U60*KeyAssumptionsPriceControl_FO!AG$15 -> 1.144524747 | CJ60: =+V60*KeyAssumptionsPriceControl_FO!AH$15 -> 1.597506434 | CK60: =+W60*KeyAssumptionsPriceControl_FO!AI$15 -> 0.982477324 | CL60: =+X60*KeyAssumptionsPriceControl_FO!AJ$15 -> 1.49340785 | CM60: =+Y60*KeyAssumptionsPriceControl_FO!AK$15 -> 0.8730894625 | CN60: =+Z60*KeyAssumptionsPriceControl_FO!AL$15 -> 1.102268807 | CP60: 0.08373618524 | CQ60: 0.2146807995 | CR60: 0.3274489553 | CS60: 0.4271659884 | CT60: 0.518549532 | CU60: 0.655651091 | CV60: 0.784650279 | CW60: 0.9084445377 | CX60: 1.026769403 | CY60: 1.125537317
C61: Fleet and Facility Program | E61: Sewerage | F61: Renewals | G61: Corporate | H61: Capital Programs / Allocation | J61: Straight line | K61: Ongoing | L61: 10 | M61: 10 | Q61: 1.625945344 | R61: 0.8899694407 | S61: 1.199928744 | T61: 0.6069664844 | U61: 0.9872771005 | V61: 1.337886489 | W61: 0.7988439722 | X61: 1.178909948 | Y61: 0.6691503729 | Z61: 0.8201915118 | AB61: 0 | AC61: 0 | AD61: 0 | AE61: 0 | AF61: 0 | AG61: 0 | AH61: 0 | AI61: 0 | AJ61: 0 | AK61: 0 | AM61: 0 | AN61: 0 | AO61: 0 | AP61: 0 | AQ61: 0 | AR61: 0 | AS61: 0 | AT61: 0 | AU61: 0 | AV61: 0 | AX61: 1.625945344 | AY61: 0.8899694407 | AZ61: 1.199928744 | BA61: 0.6069664844 | BB61: 0.9872771005 | BC61: 1.337886489 | BD61: 0.7988439722 | BE61: 1.178909948 | BF61: 0.6691503729 | BG61: 0.8201915118 | BI61: 0.08129726722 | BJ61: 0.2070930065 | BK61: 0.3115879157 | BL61: 0.4019326771 | BM61: 0.4816448564 | BN61: 0.5979030358 | BO61: 0.7047395589 | BP61: 0.8036272549 | BQ61: 0.8960302709 | BR61: 0.9704973651 | BT61: =+IF($K61="Ongoing",AX61,IF(RIGHT($K61,2)=RIGHT(BT$39,2),SUM($AX61:AX61),0)+IF(RIGHT(BT$39,2)>RIGHT($K61,2),AX61,0)) -> 1.625945344 | BU61: =+IF($K61="Ongoing",AY61,IF(RIGHT($K61,2)=RIGHT(BU$39,2),SUM($AX61:AY61),0)+IF(RIGHT(BU$39,2)>RIGHT($K61,2),AY61,0)) -> 0.8899694407 | BV61: =+IF($K61="Ongoing",AZ61,IF(RIGHT($K61,2)=RIGHT(BV$39,2),SUM($AX61:AZ61),0)+IF(RIGHT(BV$39,2)>RIGHT($K61,2),AZ61,0)) -> 1.199928744 | BW61: =+IF($K61="Ongoing",BA61,IF(RIGHT($K61,2)=RIGHT(BW$39,2),SUM($AX61:BA61),0)+IF(RIGHT(BW$39,2)>RIGHT($K61,2),BA61,0)) -> 0.6069664844 | BX61: =+IF($K61="Ongoing",BB61,IF(RIGHT($K61,2)=RIGHT(BX$39,2),SUM($AX61:BB61),0)+IF(RIGHT(BX$39,2)>RIGHT($K61,2),BB61,0)) -> 0.9872771005 | BY61: =+IF($K61="Ongoing",BC61,IF(RIGHT($K61,2)=RIGHT(BY$39,2),SUM($AX61:BC61),0)+IF(RIGHT(BY$39,2)>RIGHT($K61,2),BC61,0)) -> 1.337886489 | BZ61: =+IF($K61="Ongoing",BD61,IF(RIGHT($K61,2)=RIGHT(BZ$39,2),SUM($AX61:BD61),0)+IF(RIGHT(BZ$39,2)>RIGHT($K61,2),BD61,0)) -> 0.7988439722 | CA61: =+IF($K61="Ongoing",BE61,IF(RIGHT($K61,2)=RIGHT(CA$39,2),SUM($AX61:BE61),0)+IF(RIGHT(CA$39,2)>RIGHT($K61,2),BE61,0)) -> 1.178909948 | CB61: =+IF($K61="Ongoing",BF61,IF(RIGHT($K61,2)=RIGHT(CB$39,2),SUM($AX61:BF61),0)+IF(RIGHT(CB$39,2)>RIGHT($K61,2),BF61,0)) -> 0.6691503729 | CC61: =+IF($K61="Ongoing",BG61,IF(RIGHT($K61,2)=RIGHT(CC$39,2),SUM($AX61:BG61),0)+IF(RIGHT(CC$39,2)>RIGHT($K61,2),BG61,0)) -> 0.8201915118 | CE61: =+Q61*KeyAssumptionsPriceControl_FO!AC$15 -> 1.674723705 | CF61: =+R61*KeyAssumptionsPriceControl_FO!AD$15 -> 0.9441685796 | CG61: =+S61*KeyAssumptionsPriceControl_FO!AE$15 -> 1.311194536 | CH61: =+T61*KeyAssumptionsPriceControl_FO!AF$15 -> 0.6831461256 | CI61: =+U61*KeyAssumptionsPriceControl_FO!AG$15 -> 1.144524747 | CJ61: =+V61*KeyAssumptionsPriceControl_FO!AH$15 -> 1.597506434 | CK61: =+W61*KeyAssumptionsPriceControl_FO!AI$15 -> 0.982477324 | CL61: =+X61*KeyAssumptionsPriceControl_FO!AJ$15 -> 1.49340785 | CM61: =+Y61*KeyAssumptionsPriceControl_FO!AK$15 -> 0.8730894625 | CN61: =+Z61*KeyAssumptionsPriceControl_FO!AL$15 -> 1.102268807 | CP61: 0.08373618524 | CQ61: 0.2146807995 | CR61: 0.3274489553 | CS61: 0.4271659884 | CT61: 0.518549532 | CU61: 0.655651091 | CV61: 0.784650279 | CW61: 0.9084445377 | CX61: 1.026769403 | CY61: 1.125537317
C62: Growth Program | E62: Sewerage | F62: Growth | G62: Pipelines/network | H62: Capital Programs / Allocation | J62: Straight line | K62: Ongoing | L62: 60 | M62: 60 | Q62: 0.788175 | R62: 0.788175 | S62: 0.75633273 | T62: 0.75633273 | U62: 0.75633273 | V62: 1.17669273 | W62: 1.17669273 | X62: 1.17669273 | Y62: 1.17669273 | Z62: 1.17669273 | AB62: 0 | AC62: 0 | AD62: 0 | AE62: 0 | AF62: 0 | AG62: 0 | AH62: 0 | AI62: 0 | AJ62: 0 | AK62: 0 | AM62: 0 | AN62: 0 | AO62: 0 | AP62: 0 | AQ62: 0 | AR62: 0 | AS62: 0 | AT62: 0 | AU62: 0 | AV62: 0 | AX62: 0.788175 | AY62: 0.788175 | AZ62: 0.75633273 | BA62: 0.75633273 | BB62: 0.75633273 | BC62: 1.17669273 | BD62: 1.17669273 | BE62: 1.17669273 | BF62: 1.17669273 | BG62: 1.17669273 | BI62: 0.006568125 | BJ62: 0.019704375 | BK62: 0.03257527275 | BL62: 0.04518081825 | BM62: 0.05778636375 | BN62: 0.07389490925 | BO62: 0.09350645475 | BP62: 0.1131180003 | BQ62: 0.1327295458 | BR62: 0.1523410912 | BT62: =+IF($K62="Ongoing",AX62,IF(RIGHT($K62,2)=RIGHT(BT$39,2),SUM($AX62:AX62),0)+IF(RIGHT(BT$39,2)>RIGHT($K62,2),AX62,0)) -> 0.788175 | BU62: =+IF($K62="Ongoing",AY62,IF(RIGHT($K62,2)=RIGHT(BU$39,2),SUM($AX62:AY62),0)+IF(RIGHT(BU$39,2)>RIGHT($K62,2),AY62,0)) -> 0.788175 | BV62: =+IF($K62="Ongoing",AZ62,IF(RIGHT($K62,2)=RIGHT(BV$39,2),SUM($AX62:AZ62),0)+IF(RIGHT(BV$39,2)>RIGHT($K62,2),AZ62,0)) -> 0.75633273 | BW62: =+IF($K62="Ongoing",BA62,IF(RIGHT($K62,2)=RIGHT(BW$39,2),SUM($AX62:BA62),0)+IF(RIGHT(BW$39,2)>RIGHT($K62,2),BA62,0)) -> 0.75633273 | BX62: =+IF($K62="Ongoing",BB62,IF(RIGHT($K62,2)=RIGHT(BX$39,2),SUM($AX62:BB62),0)+IF(RIGHT(BX$39,2)>RIGHT($K62,2),BB62,0)) -> 0.75633273 | BY62: =+IF($K62="Ongoing",BC62,IF(RIGHT($K62,2)=RIGHT(BY$39,2),SUM($AX62:BC62),0)+IF(RIGHT(BY$39,2)>RIGHT($K62,2),BC62,0)) -> 1.17669273 | BZ62: =+IF($K62="Ongoing",BD62,IF(RIGHT($K62,2)=RIGHT(BZ$39,2),SUM($AX62:BD62),0)+IF(RIGHT(BZ$39,2)>RIGHT($K62,2),BD62,0)) -> 1.17669273 | CA62: =+IF($K62="Ongoing",BE62,IF(RIGHT($K62,2)=RIGHT(CA$39,2),SUM($AX62:BE62),0)+IF(RIGHT(CA$39,2)>RIGHT($K62,2),BE62,0)) -> 1.17669273 | CB62: =+IF($K62="Ongoing",BF62,IF(RIGHT($K62,2)=RIGHT(CB$39,2),SUM($AX62:BF62),0)+IF(RIGHT(CB$39,2)>RIGHT($K62,2),BF62,0)) -> 1.17669273 | CC62: =+IF($K62="Ongoing",BG62,IF(RIGHT($K62,2)=RIGHT(CC$39,2),SUM($AX62:BG62),0)+IF(RIGHT(CC$39,2)>RIGHT($K62,2),BG62,0)) -> 1.17669273 | CE62: =+Q62*KeyAssumptionsPriceControl_FO!AC$15 -> 0.81182025 | CF62: =+R62*KeyAssumptionsPriceControl_FO!AD$15 -> 0.8361748575 | CG62: =+S62*KeyAssumptionsPriceControl_FO!AE$15 -> 0.8264651951 | CH62: =+T62*KeyAssumptionsPriceControl_FO!AF$15 -> 0.8512591509 | CI62: =+U62*KeyAssumptionsPriceControl_FO!AG$15 -> 0.8767969254 | CJ62: =+V62*KeyAssumptionsPriceControl_FO!AH$15 -> 1.405032657 | CK62: =+W62*KeyAssumptionsPriceControl_FO!AI$15 -> 1.447183636 | CL62: =+X62*KeyAssumptionsPriceControl_FO!AJ$15 -> 1.490599145 | CM62: =+Y62*KeyAssumptionsPriceControl_FO!AK$15 -> 1.53531712 | CN62: =+Z62*KeyAssumptionsPriceControl_FO!AL$15 -> 1.581376633 | CP62: 0.00676516875 | CQ62: 0.02049846131 | CR62: 0.03435379508 | CS62: 0.0483348313 | CT62: 0.0627352986 | CU62: 0.08175054512 | CV62: 0.1055190142 | CW62: 0.1300005374 | CX62: 0.1552165063 | CY62: 0.1811889542
C63: Growth Program | E63: Water | F63: Growth | G63: Pipelines/network | H63: Capital Programs / Allocation | J63: Straight line | K63: Ongoing | L63: 60 | M63: 60 | Q63: 1.897452495 | R63: 1.7833773 | S63: 1.658372745 | T63: 1.629683175 | U63: 1.67818221 | V63: 1.31793369 | W63: 1.366432725 | X63: 1.35891879 | Y63: 1.38897453 | Z63: 1.41219942 | AB63: 0 | AC63: 0 | AD63: 0 | AE63: 0 | AF63: 0 | AG63: 0 | AH63: 0 | AI63: 0 | AJ63: 0 | AK63: 0 | AM63: 0 | AN63: 0 | AO63: 0 | AP63: 0 | AQ63: 0 | AR63: 0 | AS63: 0 | AT63: 0 | AU63: 0 | AV63: 0 | AX63: 1.897452495 | AY63: 1.7833773 | AZ63: 1.658372745 | BA63: 1.629683175 | BB63: 1.67818221 | BC63: 1.31793369 | BD63: 1.366432725 | BE63: 1.35891879 | BF63: 1.38897453 | BG63: 1.41219942 | BI63: 0.01581210412 | BJ63: 0.04648568575 | BK63: 0.07516693612 | BL63: 0.1025674021 | BM63: 0.130132947 | BN63: 0.1551005795 | BO63: 0.1774702996 | BP63: 0.2001815622 | BQ63: 0.2230806732 | BR63: 0.2464237895 | BT63: =+IF($K63="Ongoing",AX63,IF(RIGHT($K63,2)=RIGHT(BT$39,2),SUM($AX63:AX63),0)+IF(RIGHT(BT$39,2)>RIGHT($K63,2),AX63,0)) -> 1.897452495 | BU63: =+IF($K63="Ongoing",AY63,IF(RIGHT($K63,2)=RIGHT(BU$39,2),SUM($AX63:AY63),0)+IF(RIGHT(BU$39,2)>RIGHT($K63,2),AY63,0)) -> 1.7833773 | BV63: =+IF($K63="Ongoing",AZ63,IF(RIGHT($K63,2)=RIGHT(BV$39,2),SUM($AX63:AZ63),0)+IF(RIGHT(BV$39,2)>RIGHT($K63,2),AZ63,0)) -> 1.658372745 | BW63: =+IF($K63="Ongoing",BA63,IF(RIGHT($K63,2)=RIGHT(BW$39,2),SUM($AX63:BA63),0)+IF(RIGHT(BW$39,2)>RIGHT($K63,2),BA63,0)) -> 1.629683175 | BX63: =+IF($K63="Ongoing",BB63,IF(RIGHT($K63,2)=RIGHT(BX$39,2),SUM($AX63:BB63),0)+IF(RIGHT(BX$39,2)>RIGHT($K63,2),BB63,0)) -> 1.67818221 | BY63: =+IF($K63="Ongoing",BC63,IF(RIGHT($K63,2)=RIGHT(BY$39,2),SUM($AX63:BC63),0)+IF(RIGHT(BY$39,2)>RIGHT($K63,2),BC63,0)) -> 1.31793369 | BZ63: =+IF($K63="Ongoing",BD63,IF(RIGHT($K63,2)=RIGHT(BZ$39,2),SUM($AX63:BD63),0)+IF(RIGHT(BZ$39,2)>RIGHT($K63,2),BD63,0)) -> 1.366432725 | CA63: =+IF($K63="Ongoing",BE63,IF(RIGHT($K63,2)=RIGHT(CA$39,2),SUM($AX63:BE63),0)+IF(RIGHT(CA$39,2)>RIGHT($K63,2),BE63,0)) -> 1.35891879 | CB63: =+IF($K63="Ongoing",BF63,IF(RIGHT($K63,2)=RIGHT(CB$39,2),SUM($AX63:BF63),0)+IF(RIGHT(CB$39,2)>RIGHT($K63,2),BF63,0)) -> 1.38897453 | CC63: =+IF($K63="Ongoing",BG63,IF(RIGHT($K63,2)=RIGHT(CC$39,2),SUM($AX63:BG63),0)+IF(RIGHT(CC$39,2)>RIGHT($K63,2),BG63,0)) -> 1.41219942 | CE63: =+Q63*KeyAssumptionsPriceControl_FO!AC$15 -> 1.95437607 | CF63: =+R63*KeyAssumptionsPriceControl_FO!AD$15 -> 1.891984978 | CG63: =+S63*KeyAssumptionsPriceControl_FO!AE$15 -> 1.812148675 | CH63: =+T63*KeyAssumptionsPriceControl_FO!AF$15 -> 1.834222771 | CI63: =+U63*KeyAssumptionsPriceControl_FO!AG$15 -> 1.945473128 | CJ63: =+V63*KeyAssumptionsPriceControl_FO!AH$15 -> 1.573681749 | CK63: =+W63*KeyAssumptionsPriceControl_FO!AI$15 -> 1.680539897 | CL63: =+X63*KeyAssumptionsPriceControl_FO!AJ$15 -> 1.721437666 | CM63: =+Y63*KeyAssumptionsPriceControl_FO!AK$15 -> 1.81229672 | CN63: =+Z63*KeyAssumptionsPriceControl_FO!AL$15 -> 1.897877931 | CP63: 0.01628646725 | CQ63: 0.04833947598 | CR63: 0.07920725641 | CS63: 0.1095936851 | CT63: 0.1410911509 | CU63: 0.1704174416 | CV63: 0.1975359553 | CW63: 0.2258857683 | CX63: 0.2553335549 | CY63: 0.286251677
C64: IT Program | E64: Water | F64: Improvements / Compliance | G64: Corporate | H64: Capital Programs / Allocation | J64: Straight line | K64: Ongoing | L64: 10 | M64: 10 | Q64: 0.6904824953 | R64: 0.4467429146 | S64: 0.6081844845 | T64: 0.4635321981 | U64: 0.3723749252 | V64: 0.2049840001 | W64: 0.2998628252 | X64: 0.1729062584 | Y64: 0.2210219251 | Z64: 0.2277275779 | AB64: 0 | AC64: 0 | AD64: 0 | AE64: 0 | AF64: 0 | AG64: 0 | AH64: 0 | AI64: 0 | AJ64: 0 | AK64: 0 | AM64: 0 | AN64: 0 | AO64: 0 | AP64: 0 | AQ64: 0 | AR64: 0 | AS64: 0 | AT64: 0 | AU64: 0 | AV64: 0 | AX64: 0.6904824953 | AY64: 0.4467429146 | AZ64: 0.6081844845 | BA64: 0.4635321981 | BB64: 0.3723749252 | BC64: 0.2049840001 | BD64: 0.2998628252 | BE64: 0.1729062584 | BF64: 0.2210219251 | BG64: 0.2277275779 | BI64: 0.03452412476 | BJ64: 0.09138539526 | BK64: 0.1441317652 | BL64: 0.1977175993 | BM64: 0.2395129555 | BN64: 0.2683809018 | BO64: 0.293623243 | BP64: 0.3172616972 | BQ64: 0.3369581064 | BR64: 0.3593955815 | BT64: =+IF($K64="Ongoing",AX64,IF(RIGHT($K64,2)=RIGHT(BT$39,2),SUM($AX64:AX64),0)+IF(RIGHT(BT$39,2)>RIGHT($K64,2),AX64,0)) -> 0.6904824953 | BU64: =+IF($K64="Ongoing",AY64,IF(RIGHT($K64,2)=RIGHT(BU$39,2),SUM($AX64:AY64),0)+IF(RIGHT(BU$39,2)>RIGHT($K64,2),AY64,0)) -> 0.4467429146 | BV64: =+IF($K64="Ongoing",AZ64,IF(RIGHT($K64,2)=RIGHT(BV$39,2),SUM($AX64:AZ64),0)+IF(RIGHT(BV$39,2)>RIGHT($K64,2),AZ64,0)) -> 0.6081844845 | BW64: =+IF($K64="Ongoing",BA64,IF(RIGHT($K64,2)=RIGHT(BW$39,2),SUM($AX64:BA64),0)+IF(RIGHT(BW$39,2)>RIGHT($K64,2),BA64,0)) -> 0.4635321981 | BX64: =+IF($K64="Ongoing",BB64,IF(RIGHT($K64,2)=RIGHT(BX$39,2),SUM($AX64:BB64),0)+IF(RIGHT(BX$39,2)>RIGHT($K64,2),BB64,0)) -> 0.3723749252 | BY64: =+IF($K64="Ongoing",BC64,IF(RIGHT($K64,2)=RIGHT(BY$39,2),SUM($AX64:BC64),0)+IF(RIGHT(BY$39,2)>RIGHT($K64,2),BC64,0)) -> 0.2049840001 | BZ64: =+IF($K64="Ongoing",BD64,IF(RIGHT($K64,2)=RIGHT(BZ$39,2),SUM($AX64:BD64),0)+IF(RIGHT(BZ$39,2)>RIGHT($K64,2),BD64,0)) -> 0.2998628252 | CA64: =+IF($K64="Ongoing",BE64,IF(RIGHT($K64,2)=RIGHT(CA$39,2),SUM($AX64:BE64),0)+IF(RIGHT(CA$39,2)>RIGHT($K64,2),BE64,0)) -> 0.1729062584 | CB64: =+IF($K64="Ongoing",BF64,IF(RIGHT($K64,2)=RIGHT(CB$39,2),SUM($AX64:BF64),0)+IF(RIGHT(CB$39,2)>RIGHT($K64,2),BF64,0)) -> 0.2210219251 | CC64: =+IF($K64="Ongoing",BG64,IF(RIGHT($K64,2)=RIGHT(CC$39,2),SUM($AX64:BG64),0)+IF(RIGHT(CC$39,2)>RIGHT($K64,2),BG64,0)) -> 0.2277275779 | CE64: =+Q64*KeyAssumptionsPriceControl_FO!AC$15 -> 0.7111969701 | CF64: =+R64*KeyAssumptionsPriceControl_FO!AD$15 -> 0.4739495581 | CG64: =+S64*KeyAssumptionsPriceControl_FO!AE$15 -> 0.6645796072 | CH64: =+T64*KeyAssumptionsPriceControl_FO!AF$15 -> 0.5217095726 | CI64: =+U64*KeyAssumptionsPriceControl_FO!AG$15 -> 0.4316845967 | CJ64: =+V64*KeyAssumptionsPriceControl_FO!AH$15 -> 0.2447616161 | CK64: =+W64*KeyAssumptionsPriceControl_FO!AI$15 -> 0.3687934519 | CL64: =+X64*KeyAssumptionsPriceControl_FO!AJ$15 -> 0.2190324751 | CM64: =+Y64*KeyAssumptionsPriceControl_FO!AK$15 -> 0.2883834809 | CN64: =+Z64*KeyAssumptionsPriceControl_FO!AL$15 -> 0.306046822 | CP64: 0.03555984851 | CQ64: 0.09481717492 | CR64: 0.1517436332 | CS64: 0.2110580922 | CT64: 0.2587278006 | CU64: 0.2925501113 | CV64: 0.3232278647 | CW64: 0.352619161 | CX64: 0.3779899588 | CY64: 0.407711474
C65: IT Program | E65: Sewerage | F65: Improvements / Compliance | G65: Corporate | H65: Capital Programs / Allocation | J65: Straight line | K65: Ongoing | L65: 10 | M65: 10 | Q65: 0.6904824953 | R65: 0.4467429146 | S65: 0.6081844845 | T65: 0.4635321981 | U65: 0.3723749252 | V65: 0.2049840001 | W65: 0.2998628252 | X65: 0.1729062584 | Y65: 0.2210219251 | Z65: 0.2277275779 | AB65: 0 | AC65: 0 | AD65: 0 | AE65: 0 | AF65: 0 | AG65: 0 | AH65: 0 | AI65: 0 | AJ65: 0 | AK65: 0 | AM65: 0 | AN65: 0 | AO65: 0 | AP65: 0 | AQ65: 0 | AR65: 0 | AS65: 0 | AT65: 0 | AU65: 0 | AV65: 0 | AX65: 0.6904824953 | AY65: 0.4467429146 | AZ65: 0.6081844845 | BA65: 0.4635321981 | BB65: 0.3723749252 | BC65: 0.2049840001 | BD65: 0.2998628252 | BE65: 0.1729062584 | BF65: 0.2210219251 | BG65: 0.2277275779 | BI65: 0.03452412476 | BJ65: 0.09138539526 | BK65: 0.1441317652 | BL65: 0.1977175993 | BM65: 0.2395129555 | BN65: 0.2683809018 | BO65: 0.293623243 | BP65: 0.3172616972 | BQ65: 0.3369581064 | BR65: 0.3593955815 | BT65: =+IF($K65="Ongoing",AX65,IF(RIGHT($K65,2)=RIGHT(BT$39,2),SUM($AX65:AX65),0)+IF(RIGHT(BT$39,2)>RIGHT($K65,2),AX65,0)) -> 0.6904824953 | BU65: =+IF($K65="Ongoing",AY65,IF(RIGHT($K65,2)=RIGHT(BU$39,2),SUM($AX65:AY65),0)+IF(RIGHT(BU$39,2)>RIGHT($K65,2),AY65,0)) -> 0.4467429146 | BV65: =+IF($K65="Ongoing",AZ65,IF(RIGHT($K65,2)=RIGHT(BV$39,2),SUM($AX65:AZ65),0)+IF(RIGHT(BV$39,2)>RIGHT($K65,2),AZ65,0)) -> 0.6081844845 | BW65: =+IF($K65="Ongoing",BA65,IF(RIGHT($K65,2)=RIGHT(BW$39,2),SUM($AX65:BA65),0)+IF(RIGHT(BW$39,2)>RIGHT($K65,2),BA65,0)) -> 0.4635321981 | BX65: =+IF($K65="Ongoing",BB65,IF(RIGHT($K65,2)=RIGHT(BX$39,2),SUM($AX65:BB65),0)+IF(RIGHT(BX$39,2)>RIGHT($K65,2),BB65,0)) -> 0.3723749252 | BY65: =+IF($K65="Ongoing",BC65,IF(RIGHT($K65,2)=RIGHT(BY$39,2),SUM($AX65:BC65),0)+IF(RIGHT(BY$39,2)>RIGHT($K65,2),BC65,0)) -> 0.2049840001 | BZ65: =+IF($K65="Ongoing",BD65,IF(RIGHT($K65,2)=RIGHT(BZ$39,2),SUM($AX65:BD65),0)+IF(RIGHT(BZ$39,2)>RIGHT($K65,2),BD65,0)) -> 0.2998628252 | CA65: =+IF($K65="Ongoing",BE65,IF(RIGHT($K65,2)=RIGHT(CA$39,2),SUM($AX65:BE65),0)+IF(RIGHT(CA$39,2)>RIGHT($K65,2),BE65,0)) -> 0.1729062584 | CB65: =+IF($K65="Ongoing",BF65,IF(RIGHT($K65,2)=RIGHT(CB$39,2),SUM($AX65:BF65),0)+IF(RIGHT(CB$39,2)>RIGHT($K65,2),BF65,0)) -> 0.2210219251 | CC65: =+IF($K65="Ongoing",BG65,IF(RIGHT($K65,2)=RIGHT(CC$39,2),SUM($AX65:BG65),0)+IF(RIGHT(CC$39,2)>RIGHT($K65,2),BG65,0)) -> 0.2277275779 | CE65: =+Q65*KeyAssumptionsPriceControl_FO!AC$15 -> 0.7111969701 | CF65: =+R65*KeyAssumptionsPriceControl_FO!AD$15 -> 0.4739495581 | CG65: =+S65*KeyAssumptionsPriceControl_FO!AE$15 -> 0.6645796072 | CH65: =+T65*KeyAssumptionsPriceControl_FO!AF$15 -> 0.5217095726 | CI65: =+U65*KeyAssumptionsPriceControl_FO!AG$15 -> 0.4316845967 | CJ65: =+V65*KeyAssumptionsPriceControl_FO!AH$15 -> 0.2447616161 | CK65: =+W65*KeyAssumptionsPriceControl_FO!AI$15 -> 0.3687934519 | CL65: =+X65*KeyAssumptionsPriceControl_FO!AJ$15 -> 0.2190324751 | CM65: =+Y65*KeyAssumptionsPriceControl_FO!AK$15 -> 0.2883834809 | CN65: =+Z65*KeyAssumptionsPriceControl_FO!AL$15 -> 0.306046822 | CP65: 0.03555984851 | CQ65: 0.09481717492 | CR65: 0.1517436332 | CS65: 0.2110580922 | CT65: 0.2587278006 | CU65: 0.2925501113 | CV65: 0.3232278647 | CW65: 0.352619161 | CX65: 0.3779899588 | CY65: 0.407711474
C66: IT Program | E66: Water | F66: Renewals | G66: Corporate | H66: Capital Programs / Allocation | J66: Straight line | K66: Ongoing | L66: 10 | M66: 10 | Q66: 0.4925114171 | R66: 0.7858356826 | S66: 0.4525650144 | T66: 0.6805308506 | U66: 0.4706739463 | V66: 0.4618236186 | W66: 0.3748153462 | X66: 0.3723676669 | Y66: 0.5769468061 | Z66: 0.4242977503 | AB66: 0 | AC66: 0 | AD66: 0 | AE66: 0 | AF66: 0 | AG66: 0 | AH66: 0 | AI66: 0 | AJ66: 0 | AK66: 0 | AM66: 0 | AN66: 0 | AO66: 0 | AP66: 0 | AQ66: 0 | AR66: 0 | AS66: 0 | AT66: 0 | AU66: 0 | AV66: 0 | AX66: 0.4925114171 | AY66: 0.7858356826 | AZ66: 0.4525650144 | BA66: 0.6805308506 | BB66: 0.4706739463 | BC66: 0.4618236186 | BD66: 0.3748153462 | BE66: 0.3723676669 | BF66: 0.5769468061 | BG66: 0.4242977503 | BI66: 0.02462557086 | BJ66: 0.08854292584 | BK66: 0.1504629607 | BL66: 0.2071177539 | BM66: 0.2646779938 | BN66: 0.311302872 | BO66: 0.3531348203 | BP66: 0.3904939709 | BQ66: 0.4379596946 | BR66: 0.4880219224 | BT66: =+IF($K66="Ongoing",AX66,IF(RIGHT($K66,2)=RIGHT(BT$39,2),SUM($AX66:AX66),0)+IF(RIGHT(BT$39,2)>RIGHT($K66,2),AX66,0)) -> 0.4925114171 | BU66: =+IF($K66="Ongoing",AY66,IF(RIGHT($K66,2)=RIGHT(BU$39,2),SUM($AX66:AY66),0)+IF(RIGHT(BU$39,2)>RIGHT($K66,2),AY66,0)) -> 0.7858356826 | BV66: =+IF($K66="Ongoing",AZ66,IF(RIGHT($K66,2)=RIGHT(BV$39,2),SUM($AX66:AZ66),0)+IF(RIGHT(BV$39,2)>RIGHT($K66,2),AZ66,0)) -> 0.4525650144 | BW66: =+IF($K66="Ongoing",BA66,IF(RIGHT($K66,2)=RIGHT(BW$39,2),SUM($AX66:BA66),0)+IF(RIGHT(BW$39,2)>RIGHT($K66,2),BA66,0)) -> 0.6805308506 | BX66: =+IF($K66="Ongoing",BB66,IF(RIGHT($K66,2)=RIGHT(BX$39,2),SUM($AX66:BB66),0)+IF(RIGHT(BX$39,2)>RIGHT($K66,2),BB66,0)) -> 0.4706739463 | BY66: =+IF($K66="Ongoing",BC66,IF(RIGHT($K66,2)=RIGHT(BY$39,2),SUM($AX66:BC66),0)+IF(RIGHT(BY$39,2)>RIGHT($K66,2),BC66,0)) -> 0.4618236186 | BZ66: =+IF($K66="Ongoing",BD66,IF(RIGHT($K66,2)=RIGHT(BZ$39,2),SUM($AX66:BD66),0)+IF(RIGHT(BZ$39,2)>RIGHT($K66,2),BD66,0)) -> 0.3748153462 | CA66: =+IF($K66="Ongoing",BE66,IF(RIGHT($K66,2)=RIGHT(CA$39,2),SUM($AX66:BE66),0)+IF(RIGHT(CA$39,2)>RIGHT($K66,2),BE66,0)) -> 0.3723676669 | CB66: =+IF($K66="Ongoing",BF66,IF(RIGHT($K66,2)=RIGHT(CB$39,2),SUM($AX66:BF66),0)+IF(RIGHT(CB$39,2)>RIGHT($K66,2),BF66,0)) -> 0.5769468061 | CC66: =+IF($K66="Ongoing",BG66,IF(RIGHT($K66,2)=RIGHT(CC$39,2),SUM($AX66:BG66),0)+IF(RIGHT(CC$39,2)>RIGHT($K66,2),BG66,0)) -> 0.4242977503 | CE66: =+Q66*KeyAssumptionsPriceControl_FO!AC$15 -> 0.5072867596 | CF66: =+R66*KeyAssumptionsPriceControl_FO!AD$15 -> 0.8336930757 | CG66: =+S66*KeyAssumptionsPriceControl_FO!AE$15 -> 0.4945300105 | CH66: =+T66*KeyAssumptionsPriceControl_FO!AF$15 -> 0.7659434678 | CI66: =+U66*KeyAssumptionsPriceControl_FO!AG$15 -> 0.5456401034 | CJ66: =+V66*KeyAssumptionsPriceControl_FO!AH$15 -> 0.5514415523 | CK66: =+W66*KeyAssumptionsPriceControl_FO!AI$15 -> 0.4609755986 | CL66: =+X66*KeyAssumptionsPriceControl_FO!AJ$15 -> 0.4717042198 | CM66: =+Y66*KeyAssumptionsPriceControl_FO!AK$15 -> 0.7527847211 | CN66: =+Z66*KeyAssumptionsPriceControl_FO!AL$15 -> 0.5702206964 | CP66: 0.02536433798 | CQ66: 0.09241332975 | CR66: 0.1588244841 | CS66: 0.221848158 | CT66: 0.2874273365 | CU66: 0.3422814193 | CV66: 0.3929022769 | CW66: 0.4395362678 | CX66: 0.5007607148 | CY66: 0.5669109857
C67: IT Program | E67: Sewerage | F67: Renewals | G67: Corporate | H67: Capital Programs / Allocation | J67: Straight line | K67: Ongoing | L67: 10 | M67: 10 | Q67: 0.4925114171 | R67: 0.7858356826 | S67: 0.4525650144 | T67: 0.6805308506 | U67: 0.4706739463 | V67: 0.4618236186 | W67: 0.3748153462 | X67: 0.3723676669 | Y67: 0.5769468061 | Z67: 0.4242977503 | AB67: 0 | AC67: 0 | AD67: 0 | AE67: 0 | AF67: 0 | AG67: 0 | AH67: 0 | AI67: 0 | AJ67: 0 | AK67: 0 | AM67: 0 | AN67: 0 | AO67: 0 | AP67: 0 | AQ67: 0 | AR67: 0 | AS67: 0 | AT67: 0 | AU67: 0 | AV67: 0 | AX67: 0.4925114171 | AY67: 0.7858356826 | AZ67: 0.4525650144 | BA67: 0.6805308506 | BB67: 0.4706739463 | BC67: 0.4618236186 | BD67: 0.3748153462 | BE67: 0.3723676669 | BF67: 0.5769468061 | BG67: 0.4242977503 | BI67: 0.02462557086 | BJ67: 0.08854292584 | BK67: 0.1504629607 | BL67: 0.2071177539 | BM67: 0.2646779938 | BN67: 0.311302872 | BO67: 0.3531348203 | BP67: 0.3904939709 | BQ67: 0.4379596946 | BR67: 0.4880219224 | BT67: =+IF($K67="Ongoing",AX67,IF(RIGHT($K67,2)=RIGHT(BT$39,2),SUM($AX67:AX67),0)+IF(RIGHT(BT$39,2)>RIGHT($K67,2),AX67,0)) -> 0.4925114171 | BU67: =+IF($K67="Ongoing",AY67,IF(RIGHT($K67,2)=RIGHT(BU$39,2),SUM($AX67:AY67),0)+IF(RIGHT(BU$39,2)>RIGHT($K67,2),AY67,0)) -> 0.7858356826 | BV67: =+IF($K67="Ongoing",AZ67,IF(RIGHT($K67,2)=RIGHT(BV$39,2),SUM($AX67:AZ67),0)+IF(RIGHT(BV$39,2)>RIGHT($K67,2),AZ67,0)) -> 0.4525650144 | BW67: =+IF($K67="Ongoing",BA67,IF(RIGHT($K67,2)=RIGHT(BW$39,2),SUM($AX67:BA67),0)+IF(RIGHT(BW$39,2)>RIGHT($K67,2),BA67,0)) -> 0.6805308506 | BX67: =+IF($K67="Ongoing",BB67,IF(RIGHT($K67,2)=RIGHT(BX$39,2),SUM($AX67:BB67),0)+IF(RIGHT(BX$39,2)>RIGHT($K67,2),BB67,0)) -> 0.4706739463 | BY67: =+IF($K67="Ongoing",BC67,IF(RIGHT($K67,2)=RIGHT(BY$39,2),SUM($AX67:BC67),0)+IF(RIGHT(BY$39,2)>RIGHT($K67,2),BC67,0)) -> 0.4618236186 | BZ67: =+IF($K67="Ongoing",BD67,IF(RIGHT($K67,2)=RIGHT(BZ$39,2),SUM($AX67:BD67),0)+IF(RIGHT(BZ$39,2)>RIGHT($K67,2),BD67,0)) -> 0.3748153462 | CA67: =+IF($K67="Ongoing",BE67,IF(RIGHT($K67,2)=RIGHT(CA$39,2),SUM($AX67:BE67),0)+IF(RIGHT(CA$39,2)>RIGHT($K67,2),BE67,0)) -> 0.3723676669 | CB67: =+IF($K67="Ongoing",BF67,IF(RIGHT($K67,2)=RIGHT(CB$39,2),SUM($AX67:BF67),0)+IF(RIGHT(CB$39,2)>RIGHT($K67,2),BF67,0)) -> 0.5769468061 | CC67: =+IF($K67="Ongoing",BG67,IF(RIGHT($K67,2)=RIGHT(CC$39,2),SUM($AX67:BG67),0)+IF(RIGHT(CC$39,2)>RIGHT($K67,2),BG67,0)) -> 0.4242977503 | CE67: =+Q67*KeyAssumptionsPriceControl_FO!AC$15 -> 0.5072867596 | CF67: =+R67*KeyAssumptionsPriceControl_FO!AD$15 -> 0.8336930757 | CG67: =+S67*KeyAssumptionsPriceControl_FO!AE$15 -> 0.4945300105 | CH67: =+T67*KeyAssumptionsPriceControl_FO!AF$15 -> 0.7659434678 | CI67: =+U67*KeyAssumptionsPriceControl_FO!AG$15 -> 0.5456401034 | CJ67: =+V67*KeyAssumptionsPriceControl_FO!AH$15 -> 0.5514415523 | CK67: =+W67*KeyAssumptionsPriceControl_FO!AI$15 -> 0.4609755986 | CL67: =+X67*KeyAssumptionsPriceControl_FO!AJ$15 -> 0.4717042198 | CM67: =+Y67*KeyAssumptionsPriceControl_FO!AK$15 -> 0.7527847211 | CN67: =+Z67*KeyAssumptionsPriceControl_FO!AL$15 -> 0.5702206964 | CP67: 0.02536433798 | CQ67: 0.09241332975 | CR67: 0.1588244841 | CS67: 0.221848158 | CT67: 0.2874273365 | CU67: 0.3422814193 | CV67: 0.3929022769 | CW67: 0.4395362678 | CX67: 0.5007607148 | CY67: 0.5669109857
C68: IT Program | E68: Sewerage | F68: Improvements / Compliance | G68: Treatment | H68: Capital Programs / Allocation | J68: Straight line | K68: Ongoing | L68: 60 | M68: 60 | Q68: 0.4288817481 | R68: 0.2875756323 | S68: 0.470855745 | T68: 0.4436458422 | U68: 0.512376804 | V68: 1.47357198 | W68: 1.47357198 | X68: 1.91946885 | Y68: 2.09885748 | Z68: 0.4676505 | AB68: 0 | AC68: 0 | AD68: 0 | AE68: 0 | AF68: 0 | AG68: 0 | AH68: 0 | AI68: 0 | AJ68: 0 | AK68: 0 | AM68: 0 | AN68: 0 | AO68: 0 | AP68: 0 | AQ68: 0 | AR68: 0 | AS68: 0 | AT68: 0 | AU68: 0 | AV68: 0 | AX68: 0.4288817481 | AY68: 0.2875756323 | AZ68: 0.470855745 | BA68: 0.4436458422 | BB68: 0.512376804 | BC68: 1.47357198 | BD68: 1.47357198 | BE68: 1.91946885 | BF68: 2.09885748 | BG68: 0.4676505 | BI68: 0.003574014567 | BJ68: 0.009544492738 | BK68: 0.01586475421 | BL68: 0.02348560078 | BM68: 0.03145245616 | BN68: 0.04800202936 | BO68: 0.07256156236 | BP68: 0.1008369026 | BQ68: 0.1343229554 | BR68: 0.1557105219 | BT68: =+IF($K68="Ongoing",AX68,IF(RIGHT($K68,2)=RIGHT(BT$39,2),SUM($AX68:AX68),0)+IF(RIGHT(BT$39,2)>RIGHT($K68,2),AX68,0)) -> 0.4288817481 | BU68: =+IF($K68="Ongoing",AY68,IF(RIGHT($K68,2)=RIGHT(BU$39,2),SUM($AX68:AY68),0)+IF(RIGHT(BU$39,2)>RIGHT($K68,2),AY68,0)) -> 0.2875756323 | BV68: =+IF($K68="Ongoing",AZ68,IF(RIGHT($K68,2)=RIGHT(BV$39,2),SUM($AX68:AZ68),0)+IF(RIGHT(BV$39,2)>RIGHT($K68,2),AZ68,0)) -> 0.470855745 | BW68: =+IF($K68="Ongoing",BA68,IF(RIGHT($K68,2)=RIGHT(BW$39,2),SUM($AX68:BA68),0)+IF(RIGHT(BW$39,2)>RIGHT($K68,2),BA68,0)) -> 0.4436458422 | BX68: =+IF($K68="Ongoing",BB68,IF(RIGHT($K68,2)=RIGHT(BX$39,2),SUM($AX68:BB68),0)+IF(RIGHT(BX$39,2)>RIGHT($K68,2),BB68,0)) -> 0.512376804 | BY68: =+IF($K68="Ongoing",BC68,IF(RIGHT($K68,2)=RIGHT(BY$39,2),SUM($AX68:BC68),0)+IF(RIGHT(BY$39,2)>RIGHT($K68,2),BC68,0)) -> 1.47357198 | BZ68: =+IF($K68="Ongoing",BD68,IF(RIGHT($K68,2)=RIGHT(BZ$39,2),SUM($AX68:BD68),0)+IF(RIGHT(BZ$39,2)>RIGHT($K68,2),BD68,0)) -> 1.47357198 | CA68: =+IF($K68="Ongoing",BE68,IF(RIGHT($K68,2)=RIGHT(CA$39,2),SUM($AX68:BE68),0)+IF(RIGHT(CA$39,2)>RIGHT($K68,2),BE68,0)) -> 1.91946885 | CB68: =+IF($K68="Ongoing",BF68,IF(RIGHT($K68,2)=RIGHT(CB$39,2),SUM($AX68:BF68),0)+IF(RIGHT(CB$39,2)>RIGHT($K68,2),BF68,0)) -> 2.09885748 | CC68: =+IF($K68="Ongoing",BG68,IF(RIGHT($K68,2)=RIGHT(CC$39,2),SUM($AX68:BG68),0)+IF(RIGHT(CC$39,2)>RIGHT($K68,2),BG68,0)) -> 0.4676505 | CE68: =+Q68*KeyAssumptionsPriceControl_FO!AC$15 -> 0.4417482005 | CF68: =+R68*KeyAssumptionsPriceControl_FO!AD$15 -> 0.3050889883 | CG68: =+S68*KeyAssumptionsPriceControl_FO!AE$15 -> 0.5145167857 | CH68: =+T68*KeyAssumptionsPriceControl_FO!AF$15 -> 0.4993273039 | CI68: =+U68*KeyAssumptionsPriceControl_FO!AG$15 -> 0.5939851451 | CJ68: =+V68*KeyAssumptionsPriceControl_FO!AH$15 -> 1.759522007 | CK68: =+W68*KeyAssumptionsPriceControl_FO!AI$15 -> 1.812307667 | CL68: =+X68*KeyAssumptionsPriceControl_FO!AJ$15 -> 2.431525711 | CM68: =+Y68*KeyAssumptionsPriceControl_FO!AK$15 -> 2.738532957 | CN68: =+Z68*KeyAssumptionsPriceControl_FO!AL$15 -> 0.6284831668 | CP68: 0.003681235005 | CQ68: 0.009904878245 | CR68: 0.01673492636 | CS68: 0.02518362711 | CT68: 0.03429456418 | CU68: 0.05390712378 | CV68: 0.08367237107 | CW68: 0.1190376492 | CX68: 0.1621214715 | CY68: 0.1901799391
C69: Safety Program | E69: Water | F69: Improvements / Compliance | G69: Corporate | H69: Capital Programs / Allocation | J69: Straight line | K69: Ongoing | L69: 10 | M69: 10 | Q69: 0.28668552 | R69: 0.2784885 | S69: 0.304761 | T69: 0.16877454 | U69: 0.16257423 | V69: 0.304761 | W69: 0.304761 | X69: 0.304761 | Y69: 0.300715035 | Z69: 0.300715035 | AB69: 0 | AC69: 0 | AD69: 0 | AE69: 0 | AF69: 0 | AG69: 0 | AH69: 0 | AI69: 0 | AJ69: 0 | AK69: 0 | AM69: 0 | AN69: 0 | AO69: 0 | AP69: 0 | AQ69: 0 | AR69: 0 | AS69: 0 | AT69: 0 | AU69: 0 | AV69: 0 | AX69: 0.28668552 | AY69: 0.2784885 | AZ69: 0.304761 | BA69: 0.16877454 | BB69: 0.16257423 | BC69: 0.304761 | BD69: 0.304761 | BE69: 0.304761 | BF69: 0.300715035 | BG69: 0.300715035 | BI69: 0.014334276 | BJ69: 0.042592977 | BK69: 0.071755452 | BL69: 0.095432229 | BM69: 0.1119996675 | BN69: 0.135366429 | BO69: 0.165842529 | BP69: 0.196318629 | BQ69: 0.2265924307 | BR69: 0.2566639343 | BT69: =+IF($K69="Ongoing",AX69,IF(RIGHT($K69,2)=RIGHT(BT$39,2),SUM($AX69:AX69),0)+IF(RIGHT(BT$39,2)>RIGHT($K69,2),AX69,0)) -> 0.28668552 | BU69: =+IF($K69="Ongoing",AY69,IF(RIGHT($K69,2)=RIGHT(BU$39,2),SUM($AX69:AY69),0)+IF(RIGHT(BU$39,2)>RIGHT($K69,2),AY69,0)) -> 0.2784885 | BV69: =+IF($K69="Ongoing",AZ69,IF(RIGHT($K69,2)=RIGHT(BV$39,2),SUM($AX69:AZ69),0)+IF(RIGHT(BV$39,2)>RIGHT($K69,2),AZ69,0)) -> 0.304761 | BW69: =+IF($K69="Ongoing",BA69,IF(RIGHT($K69,2)=RIGHT(BW$39,2),SUM($AX69:BA69),0)+IF(RIGHT(BW$39,2)>RIGHT($K69,2),BA69,0)) -> 0.16877454 | BX69: =+IF($K69="Ongoing",BB69,IF(RIGHT($K69,2)=RIGHT(BX$39,2),SUM($AX69:BB69),0)+IF(RIGHT(BX$39,2)>RIGHT($K69,2),BB69,0)) -> 0.16257423 | BY69: =+IF($K69="Ongoing",BC69,IF(RIGHT($K69,2)=RIGHT(BY$39,2),SUM($AX69:BC69),0)+IF(RIGHT(BY$39,2)>RIGHT($K69,2),BC69,0)) -> 0.304761 | BZ69: =+IF($K69="Ongoing",BD69,IF(RIGHT($K69,2)=RIGHT(BZ$39,2),SUM($AX69:BD69),0)+IF(RIGHT(BZ$39,2)>RIGHT($K69,2),BD69,0)) -> 0.304761 | CA69: =+IF($K69="Ongoing",BE69,IF(RIGHT($K69,2)=RIGHT(CA$39,2),SUM($AX69:BE69),0)+IF(RIGHT(CA$39,2)>RIGHT($K69,2),BE69,0)) -> 0.304761 | CB69: =+IF($K69="Ongoing",BF69,IF(RIGHT($K69,2)=RIGHT(CB$39,2),SUM($AX69:BF69),0)+IF(RIGHT(CB$39,2)>RIGHT($K69,2),BF69,0)) -> 0.300715035 | CC69: =+IF($K69="Ongoing",BG69,IF(RIGHT($K69,2)=RIGHT(CC$39,2),SUM($AX69:BG69),0)+IF(RIGHT(CC$39,2)>RIGHT($K69,2),BG69,0)) -> 0.300715035 | CE69: =+Q69*KeyAssumptionsPriceControl_FO!AC$15 -> 0.2952860856 | CF69: =+R69*KeyAssumptionsPriceControl_FO!AD$15 -> 0.2954484497 | CG69: =+S69*KeyAssumptionsPriceControl_FO!AE$15 -> 0.3330205732 | CH69: =+T69*KeyAssumptionsPriceControl_FO!AF$15 -> 0.1899572317 | CI69: =+U69*KeyAssumptionsPriceControl_FO!AG$15 -> 0.18846809 | CJ69: =+V69*KeyAssumptionsPriceControl_FO!AH$15 -> 0.3639005719 | CK69: =+W69*KeyAssumptionsPriceControl_FO!AI$15 -> 0.3748175891 | CL69: =+X69*KeyAssumptionsPriceControl_FO!AJ$15 -> 0.3860621168 | CM69: =+Y69*KeyAssumptionsPriceControl_FO!AK$15 -> 0.3923649136 | CN69: =+Z69*KeyAssumptionsPriceControl_FO!AL$15 -> 0.4041358611 | CP69: 0.01476430428 | CQ69: 0.04430103104 | CR69: 0.07572448219 | CS69: 0.1018733724 | CT69: 0.1207946385 | CU69: 0.1484130716 | CV69: 0.1853489797 | CW69: 0.223392965 | CX69: 0.2623143165 | CY69: 0.3021393552
C70: Safety Program | E70: Sewerage | F70: Improvements / Compliance | G70: Corporate | H70: Capital Programs / Allocation | J70: Straight line | K70: Ongoing | L70: 10 | M70: 10 | Q70: 0.28668552 | R70: 0.2784885 | S70: 0.304761 | T70: 0.16877454 | U70: 0.16257423 | V70: 0.304761 | W70: 0.304761 | X70: 0.304761 | Y70: 0.300715035 | Z70: 0.300715035 | AB70: 0 | AC70: 0 | AD70: 0 | AE70: 0 | AF70: 0 | AG70: 0 | AH70: 0 | AI70: 0 | AJ70: 0 | AK70: 0 | AM70: 0 | AN70: 0 | AO70: 0 | AP70: 0 | AQ70: 0 | AR70: 0 | AS70: 0 | AT70: 0 | AU70: 0 | AV70: 0 | AX70: 0.28668552 | AY70: 0.2784885 | AZ70: 0.304761 | BA70: 0.16877454 | BB70: 0.16257423 | BC70: 0.304761 | BD70: 0.304761 | BE70: 0.304761 | BF70: 0.300715035 | BG70: 0.300715035 | BI70: 0.014334276 | BJ70: 0.042592977 | BK70: 0.071755452 | BL70: 0.095432229 | BM70: 0.1119996675 | BN70: 0.135366429 | BO70: 0.165842529 | BP70: 0.196318629 | BQ70: 0.2265924307 | BR70: 0.2566639343 | BT70: =+IF($K70="Ongoing",AX70,IF(RIGHT($K70,2)=RIGHT(BT$39,2),SUM($AX70:AX70),0)+IF(RIGHT(BT$39,2)>RIGHT($K70,2),AX70,0)) -> 0.28668552 | BU70: =+IF($K70="Ongoing",AY70,IF(RIGHT($K70,2)=RIGHT(BU$39,2),SUM($AX70:AY70),0)+IF(RIGHT(BU$39,2)>RIGHT($K70,2),AY70,0)) -> 0.2784885 | BV70: =+IF($K70="Ongoing",AZ70,IF(RIGHT($K70,2)=RIGHT(BV$39,2),SUM($AX70:AZ70),0)+IF(RIGHT(BV$39,2)>RIGHT($K70,2),AZ70,0)) -> 0.304761 | BW70: =+IF($K70="Ongoing",BA70,IF(RIGHT($K70,2)=RIGHT(BW$39,2),SUM($AX70:BA70),0)+IF(RIGHT(BW$39,2)>RIGHT($K70,2),BA70,0)) -> 0.16877454 | BX70: =+IF($K70="Ongoing",BB70,IF(RIGHT($K70,2)=RIGHT(BX$39,2),SUM($AX70:BB70),0)+IF(RIGHT(BX$39,2)>RIGHT($K70,2),BB70,0)) -> 0.16257423 | BY70: =+IF($K70="Ongoing",BC70,IF(RIGHT($K70,2)=RIGHT(BY$39,2),SUM($AX70:BC70),0)+IF(RIGHT(BY$39,2)>RIGHT($K70,2),BC70,0)) -> 0.304761 | BZ70: =+IF($K70="Ongoing",BD70,IF(RIGHT($K70,2)=RIGHT(BZ$39,2),SUM($AX70:BD70),0)+IF(RIGHT(BZ$39,2)>RIGHT($K70,2),BD70,0)) -> 0.304761 | CA70: =+IF($K70="Ongoing",BE70,IF(RIGHT($K70,2)=RIGHT(CA$39,2),SUM($AX70:BE70),0)+IF(RIGHT(CA$39,2)>RIGHT($K70,2),BE70,0)) -> 0.304761 | CB70: =+IF($K70="Ongoing",BF70,IF(RIGHT($K70,2)=RIGHT(CB$39,2),SUM($AX70:BF70),0)+IF(RIGHT(CB$39,2)>RIGHT($K70,2),BF70,0)) -> 0.300715035 | CC70: =+IF($K70="Ongoing",BG70,IF(RIGHT($K70,2)=RIGHT(CC$39,2),SUM($AX70:BG70),0)+IF(RIGHT(CC$39,2)>RIGHT($K70,2),BG70,0)) -> 0.300715035 | CE70: =+Q70*KeyAssumptionsPriceControl_FO!AC$15 -> 0.2952860856 | CF70: =+R70*KeyAssumptionsPriceControl_FO!AD$15 -> 0.2954484497 | CG70: =+S70*KeyAssumptionsPriceControl_FO!AE$15 -> 0.3330205732 | CH70: =+T70*KeyAssumptionsPriceControl_FO!AF$15 -> 0.1899572317 | CI70: =+U70*KeyAssumptionsPriceControl_FO!AG$15 -> 0.18846809 | CJ70: =+V70*KeyAssumptionsPriceControl_FO!AH$15 -> 0.3639005719 | CK70: =+W70*KeyAssumptionsPriceControl_FO!AI$15 -> 0.3748175891 | CL70: =+X70*KeyAssumptionsPriceControl_FO!AJ$15 -> 0.3860621168 | CM70: =+Y70*KeyAssumptionsPriceControl_FO!AK$15 -> 0.3923649136 | CN70: =+Z70*KeyAssumptionsPriceControl_FO!AL$15 -> 0.4041358611 | CP70: 0.01476430428 | CQ70: 0.04430103104 | CR70: 0.07572448219 | CS70: 0.1018733724 | CT70: 0.1207946385 | CU70: 0.1484130716 | CV70: 0.1853489797 | CW70: 0.223392965 | CX70: 0.2623143165 | CY70: 0.3021393552
C71: Sewer Facility Reliability Program | E71: Sewerage | F71: Improvements / Compliance | G71: Pipelines/network | H71: Capital Programs / Allocation | J71: Straight line | K71: Ongoing | L71: 60 | M71: 60 | Q71: 0.157635 | R71: 0.157635 | S71: 0.157635 | T71: 0.157635 | U71: 0.157635 | V71: 1.57635 | W71: 1.57635 | X71: 1.57635 | Y71: 1.57635 | Z71: 1.57635 | AB71: 0 | AC71: 0 | AD71: 0 | AE71: 0 | AF71: 0 | AG71: 0 | AH71: 0 | AI71: 0 | AJ71: 0 | AK71: 0 | AM71: 0 | AN71: 0 | AO71: 0 | AP71: 0 | AQ71: 0 | AR71: 0 | AS71: 0 | AT71: 0 | AU71: 0 | AV71: 0 | AX71: 0.157635 | AY71: 0.157635 | AZ71: 0.157635 | BA71: 0.157635 | BB71: 0.157635 | BC71: 1.57635 | BD71: 1.57635 | BE71: 1.57635 | BF71: 1.57635 | BG71: 1.57635 | BI71: 0.001313625 | BJ71: 0.003940875 | BK71: 0.006568125 | BL71: 0.009195375 | BM71: 0.011822625 | BN71: 0.0262725 | BO71: 0.052545 | BP71: 0.0788175 | BQ71: 0.10509 | BR71: 0.1313625 | BT71: =+IF($K71="Ongoing",AX71,IF(RIGHT($K71,2)=RIGHT(BT$39,2),SUM($AX71:AX71),0)+IF(RIGHT(BT$39,2)>RIGHT($K71,2),AX71,0)) -> 0.157635 | BU71: =+IF($K71="Ongoing",AY71,IF(RIGHT($K71,2)=RIGHT(BU$39,2),SUM($AX71:AY71),0)+IF(RIGHT(BU$39,2)>RIGHT($K71,2),AY71,0)) -> 0.157635 | BV71: =+IF($K71="Ongoing",AZ71,IF(RIGHT($K71,2)=RIGHT(BV$39,2),SUM($AX71:AZ71),0)+IF(RIGHT(BV$39,2)>RIGHT($K71,2),AZ71,0)) -> 0.157635 | BW71: =+IF($K71="Ongoing",BA71,IF(RIGHT($K71,2)=RIGHT(BW$39,2),SUM($AX71:BA71),0)+IF(RIGHT(BW$39,2)>RIGHT($K71,2),BA71,0)) -> 0.157635 | BX71: =+IF($K71="Ongoing",BB71,IF(RIGHT($K71,2)=RIGHT(BX$39,2),SUM($AX71:BB71),0)+IF(RIGHT(BX$39,2)>RIGHT($K71,2),BB71,0)) -> 0.157635 | BY71: =+IF($K71="Ongoing",BC71,IF(RIGHT($K71,2)=RIGHT(BY$39,2),SUM($AX71:BC71),0)+IF(RIGHT(BY$39,2)>RIGHT($K71,2),BC71,0)) -> 1.57635 | BZ71: =+IF($K71="Ongoing",BD71,IF(RIGHT($K71,2)=RIGHT(BZ$39,2),SUM($AX71:BD71),0)+IF(RIGHT(BZ$39,2)>RIGHT($K71,2),BD71,0)) -> 1.57635 | CA71: =+IF($K71="Ongoing",BE71,IF(RIGHT($K71,2)=RIGHT(CA$39,2),SUM($AX71:BE71),0)+IF(RIGHT(CA$39,2)>RIGHT($K71,2),BE71,0)) -> 1.57635 | CB71: =+IF($K71="Ongoing",BF71,IF(RIGHT($K71,2)=RIGHT(CB$39,2),SUM($AX71:BF71),0)+IF(RIGHT(CB$39,2)>RIGHT($K71,2),BF71,0)) -> 1.57635 | CC71: =+IF($K71="Ongoing",BG71,IF(RIGHT($K71,2)=RIGHT(CC$39,2),SUM($AX71:BG71),0)+IF(RIGHT(CC$39,2)>RIGHT($K71,2),BG71,0)) -> 1.57635 | CE71: =+Q71*KeyAssumptionsPriceControl_FO!AC$15 -> 0.16236405 | CF71: =+R71*KeyAssumptionsPriceControl_FO!AD$15 -> 0.1672349715 | CG71: =+S71*KeyAssumptionsPriceControl_FO!AE$15 -> 0.1722520206 | CH71: =+T71*KeyAssumptionsPriceControl_FO!AF$15 -> 0.1774195813 | CI71: =+U71*KeyAssumptionsPriceControl_FO!AG$15 -> 0.1827421687 | CJ71: =+V71*KeyAssumptionsPriceControl_FO!AH$15 -> 1.882244338 | CK71: =+W71*KeyAssumptionsPriceControl_FO!AI$15 -> 1.938711668 | CL71: =+X71*KeyAssumptionsPriceControl_FO!AJ$15 -> 1.996873018 | CM71: =+Y71*KeyAssumptionsPriceControl_FO!AK$15 -> 2.056779208 | CN71: =+Z71*KeyAssumptionsPriceControl_FO!AL$15 -> 2.118482585 | CP71: 0.00135303375 | CQ71: 0.004099692263 | CR71: 0.00692875053 | CS71: 0.009842680546 | CT71: 0.01284402846 | CU71: 0.03005224935 | CV71: 0.06189354939 | CW71: 0.09469008844 | CX71: 0.1284705237 | CY71: 0.1632643719
C72: Sewer Facility Reliability Program | E72: Sewerage | F72: Renewals | G72: Pipelines/network | H72: Capital Programs / Allocation | J72: Straight line | K72: Ongoing | L72: 60 | M72: 60 | Q72: 2.320965195 | R72: 2.43031134 | S72: 2.409542929 | T72: 2.808474718 | U72: 3.855861068 | V72: 4.713013923 | W72: 4.713013923 | X72: 4.713013923 | Y72: 5.572124673 | Z72: 5.572124673 | AB72: 0 | AC72: 0 | AD72: 0 | AE72: 0 | AF72: 0 | AG72: 0 | AH72: 0 | AI72: 0 | AJ72: 0 | AK72: 0 | AM72: 0 | AN72: 0 | AO72: 0 | AP72: 0 | AQ72: 0 | AR72: 0 | AS72: 0 | AT72: 0 | AU72: 0 | AV72: 0 | AX72: 2.320965195 | AY72: 2.43031134 | AZ72: 2.409542929 | BA72: 2.808474718 | BB72: 3.855861068 | BC72: 4.713013923 | BD72: 4.713013923 | BE72: 4.713013923 | BF72: 5.572124673 | BG72: 5.572124673 | BI72: 0.01934137663 | BJ72: 0.05893534775 | BK72: 0.09926746666 | BL72: 0.142750947 | BM72: 0.1982870786 | BN72: 0.2696943702 | BO72: 0.3482446022 | BP72: 0.4267948343 | BQ72: 0.5125043226 | BR72: 0.6053730671 | BT72: =+IF($K72="Ongoing",AX72,IF(RIGHT($K72,2)=RIGHT(BT$39,2),SUM($AX72:AX72),0)+IF(RIGHT(BT$39,2)>RIGHT($K72,2),AX72,0)) -> 2.320965195 | BU72: =+IF($K72="Ongoing",AY72,IF(RIGHT($K72,2)=RIGHT(BU$39,2),SUM($AX72:AY72),0)+IF(RIGHT(BU$39,2)>RIGHT($K72,2),AY72,0)) -> 2.43031134 | BV72: =+IF($K72="Ongoing",AZ72,IF(RIGHT($K72,2)=RIGHT(BV$39,2),SUM($AX72:AZ72),0)+IF(RIGHT(BV$39,2)>RIGHT($K72,2),AZ72,0)) -> 2.409542929 | BW72: =+IF($K72="Ongoing",BA72,IF(RIGHT($K72,2)=RIGHT(BW$39,2),SUM($AX72:BA72),0)+IF(RIGHT(BW$39,2)>RIGHT($K72,2),BA72,0)) -> 2.808474718 | BX72: =+IF($K72="Ongoing",BB72,IF(RIGHT($K72,2)=RIGHT(BX$39,2),SUM($AX72:BB72),0)+IF(RIGHT(BX$39,2)>RIGHT($K72,2),BB72,0)) -> 3.855861068 | BY72: =+IF($K72="Ongoing",BC72,IF(RIGHT($K72,2)=RIGHT(BY$39,2),SUM($AX72:BC72),0)+IF(RIGHT(BY$39,2)>RIGHT($K72,2),BC72,0)) -> 4.713013923 | BZ72: =+IF($K72="Ongoing",BD72,IF(RIGHT($K72,2)=RIGHT(BZ$39,2),SUM($AX72:BD72),0)+IF(RIGHT(BZ$39,2)>RIGHT($K72,2),BD72,0)) -> 4.713013923 | CA72: =+IF($K72="Ongoing",BE72,IF(RIGHT($K72,2)=RIGHT(CA$39,2),SUM($AX72:BE72),0)+IF(RIGHT(CA$39,2)>RIGHT($K72,2),BE72,0)) -> 4.713013923 | CB72: =+IF($K72="Ongoing",BF72,IF(RIGHT($K72,2)=RIGHT(CB$39,2),SUM($AX72:BF72),0)+IF(RIGHT(CB$39,2)>RIGHT($K72,2),BF72,0)) -> 5.572124673 | CC72: =+IF($K72="Ongoing",BG72,IF(RIGHT($K72,2)=RIGHT(CC$39,2),SUM($AX72:BG72),0)+IF(RIGHT(CC$39,2)>RIGHT($K72,2),BG72,0)) -> 5.572124673 | CE72: =+Q72*KeyAssumptionsPriceControl_FO!AC$15 -> 2.390594151 | CF72: =+R72*KeyAssumptionsPriceControl_FO!AD$15 -> 2.578317301 | CG72: =+S72*KeyAssumptionsPriceControl_FO!AE$15 -> 2.632972616 | CH72: =+T72*KeyAssumptionsPriceControl_FO!AF$15 -> 3.160963038 | CI72: =+U72*KeyAssumptionsPriceControl_FO!AG$15 -> 4.46999977 | CJ72: =+V72*KeyAssumptionsPriceControl_FO!AH$15 -> 5.627585098 | CK72: =+W72*KeyAssumptionsPriceControl_FO!AI$15 -> 5.796412651 | CL72: =+X72*KeyAssumptionsPriceControl_FO!AJ$15 -> 5.970305031 | CM72: =+Y72*KeyAssumptionsPriceControl_FO!AK$15 -> 7.27035885 | CN72: =+Z72*KeyAssumptionsPriceControl_FO!AL$15 -> 7.488469616 | CP72: 0.01992161792 | CQ72: 0.06132921335 | CR72: 0.1047566293 | CS72: 0.1530394264 | CT72: 0.2166307832 | CU72: 0.3007773237 | CV72: 0.395977305 | CW72: 0.4940332857 | CX72: 0.6043721513 | CY72: 0.7273623885
C73: Sewer Facility Reliability Program | E73: Sewerage | F73: Renewals | G73: Treatment | H73: Capital Programs / Allocation | J73: Straight line | K73: Ongoing | L73: 60 | M73: 60 | Q73: 3.285891066 | R73: 3.35110992 | S73: 3.13346853 | T73: 3.25474239 | U73: 3.25474239 | V73: 3.44936907 | W73: 3.44936907 | X73: 3.44936907 | Y73: 3.44957925 | Z73: 3.44957925 | AB73: 0 | AC73: 0 | AD73: 0 | AE73: 0 | AF73: 0 | AG73: 0 | AH73: 0 | AI73: 0 | AJ73: 0 | AK73: 0 | AM73: 0 | AN73: 0 | AO73: 0 | AP73: 0 | AQ73: 0 | AR73: 0 | AS73: 0 | AT73: 0 | AU73: 0 | AV73: 0 | AX73: 3.285891066 | AY73: 3.35110992 | AZ73: 3.13346853 | BA73: 3.25474239 | BB73: 3.25474239 | BC73: 3.44936907 | BD73: 3.44936907 | BE73: 3.44936907 | BF73: 3.44957925 | BG73: 3.44957925 | BI73: 0.02738242555 | BJ73: 0.0826907671 | BK73: 0.1367289208 | BL73: 0.1899640118 | BM73: 0.2442097183 | BN73: 0.3000773139 | BO73: 0.3575667983 | BP73: 0.4150562829 | BQ73: 0.4725475188 | BR73: 0.5300405063 | BT73: =+IF($K73="Ongoing",AX73,IF(RIGHT($K73,2)=RIGHT(BT$39,2),SUM($AX73:AX73),0)+IF(RIGHT(BT$39,2)>RIGHT($K73,2),AX73,0)) -> 3.285891066 | BU73: =+IF($K73="Ongoing",AY73,IF(RIGHT($K73,2)=RIGHT(BU$39,2),SUM($AX73:AY73),0)+IF(RIGHT(BU$39,2)>RIGHT($K73,2),AY73,0)) -> 3.35110992 | BV73: =+IF($K73="Ongoing",AZ73,IF(RIGHT($K73,2)=RIGHT(BV$39,2),SUM($AX73:AZ73),0)+IF(RIGHT(BV$39,2)>RIGHT($K73,2),AZ73,0)) -> 3.13346853 | BW73: =+IF($K73="Ongoing",BA73,IF(RIGHT($K73,2)=RIGHT(BW$39,2),SUM($AX73:BA73),0)+IF(RIGHT(BW$39,2)>RIGHT($K73,2),BA73,0)) -> 3.25474239 | BX73: =+IF($K73="Ongoing",BB73,IF(RIGHT($K73,2)=RIGHT(BX$39,2),SUM($AX73:BB73),0)+IF(RIGHT(BX$39,2)>RIGHT($K73,2),BB73,0)) -> 3.25474239 | BY73: =+IF($K73="Ongoing",BC73,IF(RIGHT($K73,2)=RIGHT(BY$39,2),SUM($AX73:BC73),0)+IF(RIGHT(BY$39,2)>RIGHT($K73,2),BC73,0)) -> 3.44936907 | BZ73: =+IF($K73="Ongoing",BD73,IF(RIGHT($K73,2)=RIGHT(BZ$39,2),SUM($AX73:BD73),0)+IF(RIGHT(BZ$39,2)>RIGHT($K73,2),BD73,0)) -> 3.44936907 | CA73: =+IF($K73="Ongoing",BE73,IF(RIGHT($K73,2)=RIGHT(CA$39,2),SUM($AX73:BE73),0)+IF(RIGHT(CA$39,2)>RIGHT($K73,2),BE73,0)) -> 3.44936907 | CB73: =+IF($K73="Ongoing",BF73,IF(RIGHT($K73,2)=RIGHT(CB$39,2),SUM($AX73:BF73),0)+IF(RIGHT(CB$39,2)>RIGHT($K73,2),BF73,0)) -> 3.44957925 | CC73: =+IF($K73="Ongoing",BG73,IF(RIGHT($K73,2)=RIGHT(CC$39,2),SUM($AX73:BG73),0)+IF(RIGHT(CC$39,2)>RIGHT($K73,2),BG73,0)) -> 3.44957925 | CE73: =+Q73*KeyAssumptionsPriceControl_FO!AC$15 -> 3.384467798 | CF73: =+R73*KeyAssumptionsPriceControl_FO!AD$15 -> 3.555192514 | CG73: =+S73*KeyAssumptionsPriceControl_FO!AE$15 -> 3.424025666 | CH73: =+T73*KeyAssumptionsPriceControl_FO!AF$15 -> 3.663241234 | CI73: =+U73*KeyAssumptionsPriceControl_FO!AG$15 -> 3.773138471 | CJ73: =+V73*KeyAssumptionsPriceControl_FO!AH$15 -> 4.11872706 | CK73: =+W73*KeyAssumptionsPriceControl_FO!AI$15 -> 4.242288871 | CL73: =+X73*KeyAssumptionsPriceControl_FO!AJ$15 -> 4.369557538 | CM73: =+Y73*KeyAssumptionsPriceControl_FO!AK$15 -> 4.500918501 | CN73: =+Z73*KeyAssumptionsPriceControl_FO!AL$15 -> 4.635946056 | CP73: 0.02820389832 | CQ73: 0.08603440092 | CR73: 0.1441945524 | CS73: 0.2032551099 | CT73: 0.2652249408 | CU73: 0.3309904869 | CV73: 0.4006656197 | CW73: 0.4724310064 | CX73: 0.54635164 | CY73: 0.622492178
C74: Sewer Network Reliability and Renewal Program | E74: Sewerage | F74: Renewals | G74: Pipelines/network | H74: Capital Programs / Allocation | J74: Straight line | K74: Ongoing | L74: 60 | M74: 60 | Q74: 1.89162 | R74: 1.89162 | S74: 1.99671 | T74: 1.99671 | U74: 2.1018 | V74: 2.858448 | W74: 2.858448 | X74: 2.858448 | Y74: 2.858448 | Z74: 2.858448 | AB74: 0 | AC74: 0 | AD74: 0 | AE74: 0 | AF74: 0 | AG74: 0 | AH74: 0 | AI74: 0 | AJ74: 0 | AK74: 0 | AM74: 0 | AN74: 0 | AO74: 0 | AP74: 0 | AQ74: 0 | AR74: 0 | AS74: 0 | AT74: 0 | AU74: 0 | AV74: 0 | AX74: 1.89162 | AY74: 1.89162 | AZ74: 1.99671 | BA74: 1.99671 | BB74: 2.1018 | BC74: 2.858448 | BD74: 2.858448 | BE74: 2.858448 | BF74: 2.858448 | BG74: 2.858448 | BI74: 0.0157635 | BJ74: 0.0472905 | BK74: 0.07969325 | BL74: 0.11297175 | BM74: 0.147126 | BN74: 0.1884614 | BO74: 0.2361022 | BP74: 0.283743 | BQ74: 0.3313838 | BR74: 0.3790246 | BT74: =+IF($K74="Ongoing",AX74,IF(RIGHT($K74,2)=RIGHT(BT$39,2),SUM($AX74:AX74),0)+IF(RIGHT(BT$39,2)>RIGHT($K74,2),AX74,0)) -> 1.89162 | BU74: =+IF($K74="Ongoing",AY74,IF(RIGHT($K74,2)=RIGHT(BU$39,2),SUM($AX74:AY74),0)+IF(RIGHT(BU$39,2)>RIGHT($K74,2),AY74,0)) -> 1.89162 | BV74: =+IF($K74="Ongoing",AZ74,IF(RIGHT($K74,2)=RIGHT(BV$39,2),SUM($AX74:AZ74),0)+IF(RIGHT(BV$39,2)>RIGHT($K74,2),AZ74,0)) -> 1.99671 | BW74: =+IF($K74="Ongoing",BA74,IF(RIGHT($K74,2)=RIGHT(BW$39,2),SUM($AX74:BA74),0)+IF(RIGHT(BW$39,2)>RIGHT($K74,2),BA74,0)) -> 1.99671 | BX74: =+IF($K74="Ongoing",BB74,IF(RIGHT($K74,2)=RIGHT(BX$39,2),SUM($AX74:BB74),0)+IF(RIGHT(BX$39,2)>RIGHT($K74,2),BB74,0)) -> 2.1018 | BY74: =+IF($K74="Ongoing",BC74,IF(RIGHT($K74,2)=RIGHT(BY$39,2),SUM($AX74:BC74),0)+IF(RIGHT(BY$39,2)>RIGHT($K74,2),BC74,0)) -> 2.858448 | BZ74: =+IF($K74="Ongoing",BD74,IF(RIGHT($K74,2)=RIGHT(BZ$39,2),SUM($AX74:BD74),0)+IF(RIGHT(BZ$39,2)>RIGHT($K74,2),BD74,0)) -> 2.858448 | CA74: =+IF($K74="Ongoing",BE74,IF(RIGHT($K74,2)=RIGHT(CA$39,2),SUM($AX74:BE74),0)+IF(RIGHT(CA$39,2)>RIGHT($K74,2),BE74,0)) -> 2.858448 | CB74: =+IF($K74="Ongoing",BF74,IF(RIGHT($K74,2)=RIGHT(CB$39,2),SUM($AX74:BF74),0)+IF(RIGHT(CB$39,2)>RIGHT($K74,2),BF74,0)) -> 2.858448 | CC74: =+IF($K74="Ongoing",BG74,IF(RIGHT($K74,2)=RIGHT(CC$39,2),SUM($AX74:BG74),0)+IF(RIGHT(CC$39,2)>RIGHT($K74,2),BG74,0)) -> 2.858448 | CE74: =+Q74*KeyAssumptionsPriceControl_FO!AC$15 -> 1.9483686 | CF74: =+R74*KeyAssumptionsPriceControl_FO!AD$15 -> 2.006819658 | CG74: =+S74*KeyAssumptionsPriceControl_FO!AE$15 -> 2.181858928 | CH74: =+T74*KeyAssumptionsPriceControl_FO!AF$15 -> 2.247314696 | CI74: =+U74*KeyAssumptionsPriceControl_FO!AG$15 -> 2.436562249 | CJ74: =+V74*KeyAssumptionsPriceControl_FO!AH$15 -> 3.413136399 | CK74: =+W74*KeyAssumptionsPriceControl_FO!AI$15 -> 3.515530491 | CL74: =+X74*KeyAssumptionsPriceControl_FO!AJ$15 -> 3.620996406 | CM74: =+Y74*KeyAssumptionsPriceControl_FO!AK$15 -> 3.729626298 | CN74: =+Z74*KeyAssumptionsPriceControl_FO!AL$15 -> 3.841515087 | CP74: 0.016236405 | CQ74: 0.04919630715 | CR74: 0.08410196203 | CS74: 0.1210117422 | CT74: 0.1600440501 | CU74: 0.2087915389 | CV74: 0.2665304296 | CW74: 0.3260014871 | CX74: 0.3872566763 | CY74: 0.4503495211
C75: Water Facility Reliability Program | E75: Water | F75: Improvements / Compliance | G75: Pipelines/network | H75: Capital Programs / Allocation | J75: Straight line | K75: Ongoing | L75: 60 | M75: 60 | Q75: 0.42036 | R75: 0.42036 | S75: 0.42036 | T75: 0.42036 | U75: 0.42036 | V75: 0.45073101 | W75: 0.45073101 | X75: 0.45073101 | Y75: 0.409851 | Z75: 0.409851 | AB75: 0 | AC75: 0 | AD75: 0 | AE75: 0 | AF75: 0 | AG75: 0 | AH75: 0 | AI75: 0 | AJ75: 0 | AK75: 0 | AM75: 0 | AN75: 0 | AO75: 0 | AP75: 0 | AQ75: 0 | AR75: 0 | AS75: 0 | AT75: 0 | AU75: 0 | AV75: 0 | AX75: 0.42036 | AY75: 0.42036 | AZ75: 0.42036 | BA75: 0.42036 | BB75: 0.42036 | BC75: 0.45073101 | BD75: 0.45073101 | BE75: 0.45073101 | BF75: 0.409851 | BG75: 0.409851 | BI75: 0.003503 | BJ75: 0.010509 | BK75: 0.017515 | BL75: 0.024521 | BM75: 0.031527 | BN75: 0.03878609175 | BO75: 0.04629827525 | BP75: 0.05381045875 | BQ75: 0.0609819755 | BR75: 0.0678128255 | BT75: =+IF($K75="Ongoing",AX75,IF(RIGHT($K75,2)=RIGHT(BT$39,2),SUM($AX75:AX75),0)+IF(RIGHT(BT$39,2)>RIGHT($K75,2),AX75,0)) -> 0.42036 | BU75: =+IF($K75="Ongoing",AY75,IF(RIGHT($K75,2)=RIGHT(BU$39,2),SUM($AX75:AY75),0)+IF(RIGHT(BU$39,2)>RIGHT($K75,2),AY75,0)) -> 0.42036 | BV75: =+IF($K75="Ongoing",AZ75,IF(RIGHT($K75,2)=RIGHT(BV$39,2),SUM($AX75:AZ75),0)+IF(RIGHT(BV$39,2)>RIGHT($K75,2),AZ75,0)) -> 0.42036 | BW75: =+IF($K75="Ongoing",BA75,IF(RIGHT($K75,2)=RIGHT(BW$39,2),SUM($AX75:BA75),0)+IF(RIGHT(BW$39,2)>RIGHT($K75,2),BA75,0)) -> 0.42036 | BX75: =+IF($K75="Ongoing",BB75,IF(RIGHT($K75,2)=RIGHT(BX$39,2),SUM($AX75:BB75),0)+IF(RIGHT(BX$39,2)>RIGHT($K75,2),BB75,0)) -> 0.42036 | BY75: =+IF($K75="Ongoing",BC75,IF(RIGHT($K75,2)=RIGHT(BY$39,2),SUM($AX75:BC75),0)+IF(RIGHT(BY$39,2)>RIGHT($K75,2),BC75,0)) -> 0.45073101 | BZ75: =+IF($K75="Ongoing",BD75,IF(RIGHT($K75,2)=RIGHT(BZ$39,2),SUM($AX75:BD75),0)+IF(RIGHT(BZ$39,2)>RIGHT($K75,2),BD75,0)) -> 0.45073101 | CA75: =+IF($K75="Ongoing",BE75,IF(RIGHT($K75,2)=RIGHT(CA$39,2),SUM($AX75:BE75),0)+IF(RIGHT(CA$39,2)>RIGHT($K75,2),BE75,0)) -> 0.45073101 | CB75: =+IF($K75="Ongoing",BF75,IF(RIGHT($K75,2)=RIGHT(CB$39,2),SUM($AX75:BF75),0)+IF(RIGHT(CB$39,2)>RIGHT($K75,2),BF75,0)) -> 0.409851 | CC75: =+IF($K75="Ongoing",BG75,IF(RIGHT($K75,2)=RIGHT(CC$39,2),SUM($AX75:BG75),0)+IF(RIGHT(CC$39,2)>RIGHT($K75,2),BG75,0)) -> 0.409851 | CE75: =+Q75*KeyAssumptionsPriceControl_FO!AC$15 -> 0.4329708 | CF75: =+R75*KeyAssumptionsPriceControl_FO!AD$15 -> 0.445959924 | CG75: =+S75*KeyAssumptionsPriceControl_FO!AE$15 -> 0.4593387217 | CH75: =+T75*KeyAssumptionsPriceControl_FO!AF$15 -> 0.4731188834 | CI75: =+U75*KeyAssumptionsPriceControl_FO!AG$15 -> 0.4873124499 | CJ75: =+V75*KeyAssumptionsPriceControl_FO!AH$15 -> 0.5381963976 | CK75: =+W75*KeyAssumptionsPriceControl_FO!AI$15 -> 0.5543422895 | CL75: =+X75*KeyAssumptionsPriceControl_FO!AJ$15 -> 0.5709725582 | CM75: =+Y75*KeyAssumptionsPriceControl_FO!AK$15 -> 0.5347625942 | CN75: =+Z75*KeyAssumptionsPriceControl_FO!AL$15 -> 0.550805472 | CP75: 0.00360809 | CQ75: 0.0109325127 | CR75: 0.01847666808 | CS75: 0.02624714812 | CT75: 0.03425074257 | CU75: 0.04279664963 | CV75: 0.05190113869 | CW75: 0.06127876242 | CX75: 0.07049322202 | CY75: 0.07953962257
C76: Water Facility Reliability Program | E76: Water | F76: Renewals | G76: Headworks | H76: Capital Programs / Allocation | J76: Straight line | K76: Ongoing | L76: 60 | M76: 60 | Q76: 0.76831299 | R76: 0.89841441 | S76: 0.68686824 | T76: 0.68686824 | U76: 0.68686824 | V76: 0.68686824 | W76: 0.68686824 | X76: 0.68686824 | Y76: 0.68697333 | Z76: 0.68697333 | AB76: 0 | AC76: 0 | AD76: 0 | AE76: 0 | AF76: 0 | AG76: 0 | AH76: 0 | AI76: 0 | AJ76: 0 | AK76: 0 | AM76: 0 | AN76: 0 | AO76: 0 | AP76: 0 | AQ76: 0 | AR76: 0 | AS76: 0 | AT76: 0 | AU76: 0 | AV76: 0 | AX76: 0.76831299 | AY76: 0.89841441 | AZ76: 0.68686824 | BA76: 0.68686824 | BB76: 0.68686824 | BC76: 0.68686824 | BD76: 0.68686824 | BE76: 0.68686824 | BF76: 0.68697333 | BG76: 0.68697333 | BI76: 0.00640260825 | BJ76: 0.02029200325 | BK76: 0.033502692 | BL76: 0.044950496 | BM76: 0.0563983 | BN76: 0.067846104 | BO76: 0.079293908 | BP76: 0.090741712 | BQ76: 0.1021903917 | BR76: 0.1136399472 | BT76: =+IF($K76="Ongoing",AX76,IF(RIGHT($K76,2)=RIGHT(BT$39,2),SUM($AX76:AX76),0)+IF(RIGHT(BT$39,2)>RIGHT($K76,2),AX76,0)) -> 0.76831299 | BU76: =+IF($K76="Ongoing",AY76,IF(RIGHT($K76,2)=RIGHT(BU$39,2),SUM($AX76:AY76),0)+IF(RIGHT(BU$39,2)>RIGHT($K76,2),AY76,0)) -> 0.89841441 | BV76: =+IF($K76="Ongoing",AZ76,IF(RIGHT($K76,2)=RIGHT(BV$39,2),SUM($AX76:AZ76),0)+IF(RIGHT(BV$39,2)>RIGHT($K76,2),AZ76,0)) -> 0.68686824 | BW76: =+IF($K76="Ongoing",BA76,IF(RIGHT($K76,2)=RIGHT(BW$39,2),SUM($AX76:BA76),0)+IF(RIGHT(BW$39,2)>RIGHT($K76,2),BA76,0)) -> 0.68686824 | BX76: =+IF($K76="Ongoing",BB76,IF(RIGHT($K76,2)=RIGHT(BX$39,2),SUM($AX76:BB76),0)+IF(RIGHT(BX$39,2)>RIGHT($K76,2),BB76,0)) -> 0.68686824 | BY76: =+IF($K76="Ongoing",BC76,IF(RIGHT($K76,2)=RIGHT(BY$39,2),SUM($AX76:BC76),0)+IF(RIGHT(BY$39,2)>RIGHT($K76,2),BC76,0)) -> 0.68686824 | BZ76: =+IF($K76="Ongoing",BD76,IF(RIGHT($K76,2)=RIGHT(BZ$39,2),SUM($AX76:BD76),0)+IF(RIGHT(BZ$39,2)>RIGHT($K76,2),BD76,0)) -> 0.68686824 | CA76: =+IF($K76="Ongoing",BE76,IF(RIGHT($K76,2)=RIGHT(CA$39,2),SUM($AX76:BE76),0)+IF(RIGHT(CA$39,2)>RIGHT($K76,2),BE76,0)) -> 0.68686824 | CB76: =+IF($K76="Ongoing",BF76,IF(RIGHT($K76,2)=RIGHT(CB$39,2),SUM($AX76:BF76),0)+IF(RIGHT(CB$39,2)>RIGHT($K76,2),BF76,0)) -> 0.68697333 | CC76: =+IF($K76="Ongoing",BG76,IF(RIGHT($K76,2)=RIGHT(CC$39,2),SUM($AX76:BG76),0)+IF(RIGHT(CC$39,2)>RIGHT($K76,2),BG76,0)) -> 0.68697333 | CE76: =+Q76*KeyAssumptionsPriceControl_FO!AC$15 -> 0.7913623797 | CF76: =+R76*KeyAssumptionsPriceControl_FO!AD$15 -> 0.9531278476 | CG76: =+S76*KeyAssumptionsPriceControl_FO!AE$15 -> 0.7505594713 | CH76: =+T76*KeyAssumptionsPriceControl_FO!AF$15 -> 0.7730762554 | CI76: =+U76*KeyAssumptionsPriceControl_FO!AG$15 -> 0.7962685431 | CJ76: =+V76*KeyAssumptionsPriceControl_FO!AH$15 -> 0.8201565994 | CK76: =+W76*KeyAssumptionsPriceControl_FO!AI$15 -> 0.8447612974 | CL76: =+X76*KeyAssumptionsPriceControl_FO!AJ$15 -> 0.8701041363 | CM76: =+Y76*KeyAssumptionsPriceControl_FO!AK$15 -> 0.896344379 | CN76: =+Z76*KeyAssumptionsPriceControl_FO!AL$15 -> 0.9232347104 | CP76: 0.006594686498 | CQ76: 0.02113210506 | CR76: 0.03532949938 | CS76: 0.04802646377 | CT76: 0.06110433709 | CU76: 0.07457454661 | CV76: 0.08844886242 | CW76: 0.1027394077 | CX76: 0.117459812 | CY76: 0.1326229711
C77: Water Facility Reliability Program | E77: Water | F77: Renewals | G77: Pipelines/network | H77: Capital Programs / Allocation | J77: Straight line | K77: Ongoing | L77: 60 | M77: 60 | Q77: 0.4466325 | R77: 0.505745625 | S77: 0.6262707187 | T77: 0.7044478266 | U77: 1.124807827 | V77: 1.650257827 | W77: 1.650257827 | X77: 1.650257827 | Y77: 1.650257827 | Z77: 1.650257827 | AB77: 0 | AC77: 0 | AD77: 0 | AE77: 0 | AF77: 0 | AG77: 0 | AH77: 0 | AI77: 0 | AJ77: 0 | AK77: 0 | AM77: 0 | AN77: 0 | AO77: 0 | AP77: 0 | AQ77: 0 | AR77: 0 | AS77: 0 | AT77: 0 | AU77: 0 | AV77: 0 | AX77: 0.4466325 | AY77: 0.505745625 | AZ77: 0.6262707187 | BA77: 0.7044478266 | BB77: 1.124807827 | BC77: 1.650257827 | BD77: 1.650257827 | BE77: 1.650257827 | BF77: 1.650257827 | BG77: 1.650257827 | BI77: 0.0037219375 | BJ77: 0.01165842187 | BK77: 0.02109189141 | BL77: 0.03218121262 | BM77: 0.04742500973 | BN77: 0.07055055684 | BO77: 0.09805485395 | BP77: 0.1255591511 | BQ77: 0.1530634482 | BR77: 0.1805677453 | BT77: =+IF($K77="Ongoing",AX77,IF(RIGHT($K77,2)=RIGHT(BT$39,2),SUM($AX77:AX77),0)+IF(RIGHT(BT$39,2)>RIGHT($K77,2),AX77,0)) -> 0.4466325 | BU77: =+IF($K77="Ongoing",AY77,IF(RIGHT($K77,2)=RIGHT(BU$39,2),SUM($AX77:AY77),0)+IF(RIGHT(BU$39,2)>RIGHT($K77,2),AY77,0)) -> 0.505745625 | BV77: =+IF($K77="Ongoing",AZ77,IF(RIGHT($K77,2)=RIGHT(BV$39,2),SUM($AX77:AZ77),0)+IF(RIGHT(BV$39,2)>RIGHT($K77,2),AZ77,0)) -> 0.6262707187 | BW77: =+IF($K77="Ongoing",BA77,IF(RIGHT($K77,2)=RIGHT(BW$39,2),SUM($AX77:BA77),0)+IF(RIGHT(BW$39,2)>RIGHT($K77,2),BA77,0)) -> 0.7044478266 | BX77: =+IF($K77="Ongoing",BB77,IF(RIGHT($K77,2)=RIGHT(BX$39,2),SUM($AX77:BB77),0)+IF(RIGHT(BX$39,2)>RIGHT($K77,2),BB77,0)) -> 1.124807827 | BY77: =+IF($K77="Ongoing",BC77,IF(RIGHT($K77,2)=RIGHT(BY$39,2),SUM($AX77:BC77),0)+IF(RIGHT(BY$39,2)>RIGHT($K77,2),BC77,0)) -> 1.650257827 | BZ77: =+IF($K77="Ongoing",BD77,IF(RIGHT($K77,2)=RIGHT(BZ$39,2),SUM($AX77:BD77),0)+IF(RIGHT(BZ$39,2)>RIGHT($K77,2),BD77,0)) -> 1.650257827 | CA77: =+IF($K77="Ongoing",BE77,IF(RIGHT($K77,2)=RIGHT(CA$39,2),SUM($AX77:BE77),0)+IF(RIGHT(CA$39,2)>RIGHT($K77,2),BE77,0)) -> 1.650257827 | CB77: =+IF($K77="Ongoing",BF77,IF(RIGHT($K77,2)=RIGHT(CB$39,2),SUM($AX77:BF77),0)+IF(RIGHT(CB$39,2)>RIGHT($K77,2),BF77,0)) -> 1.650257827 | CC77: =+IF($K77="Ongoing",BG77,IF(RIGHT($K77,2)=RIGHT(CC$39,2),SUM($AX77:BG77),0)+IF(RIGHT(CC$39,2)>RIGHT($K77,2),BG77,0)) -> 1.650257827 | CE77: =+Q77*KeyAssumptionsPriceControl_FO!AC$15 -> 0.460031475 | CF77: =+R77*KeyAssumptionsPriceControl_FO!AD$15 -> 0.5365455336 | CG77: =+S77*KeyAssumptionsPriceControl_FO!AE$15 -> 0.6843429237 | CH77: =+T77*KeyAssumptionsPriceControl_FO!AF$15 -> 0.792862235 | CI77: =+U77*KeyAssumptionsPriceControl_FO!AG$15 -> 1.303960552 | CJ77: =+V77*KeyAssumptionsPriceControl_FO!AH$15 -> 1.970494148 | CK77: =+W77*KeyAssumptionsPriceControl_FO!AI$15 -> 2.029608972 | CL77: =+X77*KeyAssumptionsPriceControl_FO!AJ$15 -> 2.090497241 | CM77: =+Y77*KeyAssumptionsPriceControl_FO!AK$15 -> 2.153212159 | CN77: =+Z77*KeyAssumptionsPriceControl_FO!AL$15 -> 2.217808523 | CP77: 0.003833595625 | CQ77: 0.01213840403 | CR77: 0.02231247451 | CS77: 0.0346225175 | CT77: 0.05209604072 | CU77: 0.07938316322 | CV77: 0.1127173559 | CW77: 0.1470515743 | CX77: 0.1824158193 | CY77: 0.2188409917
C78: Water Facility Reliability Program | E78: Water | F78: Renewals | G78: Treatment | H78: Capital Programs / Allocation | J78: Straight line | K78: Ongoing | L78: 60 | M78: 60 | Q78: 1.66945974 | R78: 1.66945974 | S78: 1.704950735 | T78: 1.741151087 | U78: 1.77807656 | V78: 1.920829765 | W78: 1.959246466 | X78: 1.998431228 | Y78: 2.038399853 | Z78: 2.07916785 | AB78: 0 | AC78: 0 | AD78: 0 | AE78: 0 | AF78: 0 | AG78: 0 | AH78: 0 | AI78: 0 | AJ78: 0 | AK78: 0 | AM78: 0 | AN78: 0 | AO78: 0 | AP78: 0 | AQ78: 0 | AR78: 0 | AS78: 0 | AT78: 0 | AU78: 0 | AV78: 0 | AX78: 1.66945974 | AY78: 1.66945974 | AZ78: 1.704950735 | BA78: 1.741151087 | BB78: 1.77807656 | BC78: 1.920829765 | BD78: 1.959246466 | BE78: 1.998431228 | BF78: 2.038399853 | BG78: 2.07916785 | BI78: 0.0139121645 | BJ78: 0.0417364935 | BK78: 0.06985658079 | BL78: 0.09857409597 | BM78: 0.127900993 | BN78: 0.1587252124 | BO78: 0.191059181 | BP78: 0.2240398285 | BQ78: 0.2576800875 | BR78: 0.2919931517 | BT78: =+IF($K78="Ongoing",AX78,IF(RIGHT($K78,2)=RIGHT(BT$39,2),SUM($AX78:AX78),0)+IF(RIGHT(BT$39,2)>RIGHT($K78,2),AX78,0)) -> 1.66945974 | BU78: =+IF($K78="Ongoing",AY78,IF(RIGHT($K78,2)=RIGHT(BU$39,2),SUM($AX78:AY78),0)+IF(RIGHT(BU$39,2)>RIGHT($K78,2),AY78,0)) -> 1.66945974 | BV78: =+IF($K78="Ongoing",AZ78,IF(RIGHT($K78,2)=RIGHT(BV$39,2),SUM($AX78:AZ78),0)+IF(RIGHT(BV$39,2)>RIGHT($K78,2),AZ78,0)) -> 1.704950735 | BW78: =+IF($K78="Ongoing",BA78,IF(RIGHT($K78,2)=RIGHT(BW$39,2),SUM($AX78:BA78),0)+IF(RIGHT(BW$39,2)>RIGHT($K78,2),BA78,0)) -> 1.741151087 | BX78: =+IF($K78="Ongoing",BB78,IF(RIGHT($K78,2)=RIGHT(BX$39,2),SUM($AX78:BB78),0)+IF(RIGHT(BX$39,2)>RIGHT($K78,2),BB78,0)) -> 1.77807656 | BY78: =+IF($K78="Ongoing",BC78,IF(RIGHT($K78,2)=RIGHT(BY$39,2),SUM($AX78:BC78),0)+IF(RIGHT(BY$39,2)>RIGHT($K78,2),BC78,0)) -> 1.920829765 | BZ78: =+IF($K78="Ongoing",BD78,IF(RIGHT($K78,2)=RIGHT(BZ$39,2),SUM($AX78:BD78),0)+IF(RIGHT(BZ$39,2)>RIGHT($K78,2),BD78,0)) -> 1.959246466 | CA78: =+IF($K78="Ongoing",BE78,IF(RIGHT($K78,2)=RIGHT(CA$39,2),SUM($AX78:BE78),0)+IF(RIGHT(CA$39,2)>RIGHT($K78,2),BE78,0)) -> 1.998431228 | CB78: =+IF($K78="Ongoing",BF78,IF(RIGHT($K78,2)=RIGHT(CB$39,2),SUM($AX78:BF78),0)+IF(RIGHT(CB$39,2)>RIGHT($K78,2),BF78,0)) -> 2.038399853 | CC78: =+IF($K78="Ongoing",BG78,IF(RIGHT($K78,2)=RIGHT(CC$39,2),SUM($AX78:BG78),0)+IF(RIGHT(CC$39,2)>RIGHT($K78,2),BG78,0)) -> 2.07916785 | CE78: =+Q78*KeyAssumptionsPriceControl_FO!AC$15 -> 1.719543532 | CF78: =+R78*KeyAssumptionsPriceControl_FO!AD$15 -> 1.771129838 | CG78: =+S78*KeyAssumptionsPriceControl_FO!AE$15 -> 1.863045702 | CH78: =+T78*KeyAssumptionsPriceControl_FO!AF$15 -> 1.959680888 | CI78: =+U78*KeyAssumptionsPriceControl_FO!AG$15 -> 2.061278059 | CJ78: =+V78*KeyAssumptionsPriceControl_FO!AH$15 -> 2.293571193 | CK78: =+W78*KeyAssumptionsPriceControl_FO!AI$15 -> 2.409626024 | CL78: =+X78*KeyAssumptionsPriceControl_FO!AJ$15 -> 2.53155289 | CM78: =+Y78*KeyAssumptionsPriceControl_FO!AK$15 -> 2.659649466 | CN78: =+Z78*KeyAssumptionsPriceControl_FO!AL$15 -> 2.794227729 | CP78: 0.01432952944 | CQ78: 0.04341847419 | CR78: 0.07370327035 | CS78: 0.1055593253 | CT78: 0.1390673165 | CU78: 0.1753577269 | CV78: 0.2145510371 | CW78: 0.255727528 | CX78: 0.2989875476 | CY78: 0.3444365243
C79: Water Network Reliability and Renewal Program | E79: Water | F79: Improvements / Compliance | G79: Pipelines/network | H79: Capital Programs / Allocation | J79: Straight line | K79: Ongoing | L79: 60 | M79: 60 | Q79: 0.147126 | R79: 0.1492278 | S79: 0.15143469 | T79: 0.1537519245 | U79: 0.2062969245 | V79: 0.2624149845 | W79: 0.2624149845 | X79: 0.2624149845 | Y79: 0.2624149845 | Z79: 0.2624149845 | AB79: 0 | AC79: 0 | AD79: 0 | AE79: 0 | AF79: 0 | AG79: 0 | AH79: 0 | AI79: 0 | AJ79: 0 | AK79: 0 | AM79: 0 | AN79: 0 | AO79: 0 | AP79: 0 | AQ79: 0 | AR79: 0 | AS79: 0 | AT79: 0 | AU79: 0 | AV79: 0 | AX79: 0.147126 | AY79: 0.1492278 | AZ79: 0.15143469 | BA79: 0.1537519245 | BB79: 0.2062969245 | BC79: 0.2624149845 | BD79: 0.2624149845 | BE79: 0.2624149845 | BF79: 0.2624149845 | BG79: 0.2624149845 | BI79: 0.00122605 | BJ79: 0.003695665 | BK79: 0.00620118575 | BL79: 0.008744407538 | BM79: 0.01174481461 | BN79: 0.01565074719 | BO79: 0.02002433026 | BP79: 0.02439791334 | BQ79: 0.02877149641 | BR79: 0.03314507949 | BT79: =+IF($K79="Ongoing",AX79,IF(RIGHT($K79,2)=RIGHT(BT$39,2),SUM($AX79:AX79),0)+IF(RIGHT(BT$39,2)>RIGHT($K79,2),AX79,0)) -> 0.147126 | BU79: =+IF($K79="Ongoing",AY79,IF(RIGHT($K79,2)=RIGHT(BU$39,2),SUM($AX79:AY79),0)+IF(RIGHT(BU$39,2)>RIGHT($K79,2),AY79,0)) -> 0.1492278 | BV79: =+IF($K79="Ongoing",AZ79,IF(RIGHT($K79,2)=RIGHT(BV$39,2),SUM($AX79:AZ79),0)+IF(RIGHT(BV$39,2)>RIGHT($K79,2),AZ79,0)) -> 0.15143469 | BW79: =+IF($K79="Ongoing",BA79,IF(RIGHT($K79,2)=RIGHT(BW$39,2),SUM($AX79:BA79),0)+IF(RIGHT(BW$39,2)>RIGHT($K79,2),BA79,0)) -> 0.1537519245 | BX79: =+IF($K79="Ongoing",BB79,IF(RIGHT($K79,2)=RIGHT(BX$39,2),SUM($AX79:BB79),0)+IF(RIGHT(BX$39,2)>RIGHT($K79,2),BB79,0)) -> 0.2062969245 | BY79: =+IF($K79="Ongoing",BC79,IF(RIGHT($K79,2)=RIGHT(BY$39,2),SUM($AX79:BC79),0)+IF(RIGHT(BY$39,2)>RIGHT($K79,2),BC79,0)) -> 0.2624149845 | BZ79: =+IF($K79="Ongoing",BD79,IF(RIGHT($K79,2)=RIGHT(BZ$39,2),SUM($AX79:BD79),0)+IF(RIGHT(BZ$39,2)>RIGHT($K79,2),BD79,0)) -> 0.2624149845 | CA79: =+IF($K79="Ongoing",BE79,IF(RIGHT($K79,2)=RIGHT(CA$39,2),SUM($AX79:BE79),0)+IF(RIGHT(CA$39,2)>RIGHT($K79,2),BE79,0)) -> 0.2624149845 | CB79: =+IF($K79="Ongoing",BF79,IF(RIGHT($K79,2)=RIGHT(CB$39,2),SUM($AX79:BF79),0)+IF(RIGHT(CB$39,2)>RIGHT($K79,2),BF79,0)) -> 0.2624149845 | CC79: =+IF($K79="Ongoing",BG79,IF(RIGHT($K79,2)=RIGHT(CC$39,2),SUM($AX79:BG79),0)+IF(RIGHT(CC$39,2)>RIGHT($K79,2),BG79,0)) -> 0.2624149845 | CE79: =+Q79*KeyAssumptionsPriceControl_FO!AC$15 -> 0.15153978 | CF79: =+R79*KeyAssumptionsPriceControl_FO!AD$15 -> 0.158315773 | CG79: =+S79*KeyAssumptionsPriceControl_FO!AE$15 -> 0.1654767745 | CH79: =+T79*KeyAssumptionsPriceControl_FO!AF$15 -> 0.1730491456 | CI79: =+U79*KeyAssumptionsPriceControl_FO!AG$15 -> 0.2391546762 | CJ79: =+V79*KeyAssumptionsPriceControl_FO!AH$15 -> 0.3133372149 | CK79: =+W79*KeyAssumptionsPriceControl_FO!AI$15 -> 0.3227373313 | CL79: =+X79*KeyAssumptionsPriceControl_FO!AJ$15 -> 0.3324194513 | CM79: =+Y79*KeyAssumptionsPriceControl_FO!AK$15 -> 0.3423920348 | CN79: =+Z79*KeyAssumptionsPriceControl_FO!AL$15 -> 0.3526637959 | CP79: 0.0012628315 | CQ79: 0.003844961108 | CR79: 0.006543232338 | CS79: 0.009364281672 | CT79: 0.01279931352 | CU79: 0.01740341261 | CV79: 0.02270403383 | CW79: 0.02816367369 | CX79: 0.03378710274 | CY79: 0.03957923466
C80: Water Network Reliability and Renewal Program | E80: Water | F80: Improvements / Compliance | G80: Treatment | H80: Capital Programs / Allocation | J80: Straight line | K80: Ongoing | L80: 60 | M80: 60 | Q80: 0.021018 | R80: 0.021018 | S80: 0.021018 | T80: 0.021018 | U80: 0.021018 | V80: 0.03425934 | W80: 0.03425934 | X80: 0.03425934 | Y80: 0.03425934 | Z80: 0.03425934 | AB80: 0 | AC80: 0 | AD80: 0 | AE80: 0 | AF80: 0 | AG80: 0 | AH80: 0 | AI80: 0 | AJ80: 0 | AK80: 0 | AM80: 0 | AN80: 0 | AO80: 0 | AP80: 0 | AQ80: 0 | AR80: 0 | AS80: 0 | AT80: 0 | AU80: 0 | AV80: 0 | AX80: 0.021018 | AY80: 0.021018 | AZ80: 0.021018 | BA80: 0.021018 | BB80: 0.021018 | BC80: 0.03425934 | BD80: 0.03425934 | BE80: 0.03425934 | BF80: 0.03425934 | BG80: 0.03425934 | BI80: 0.00017515 | BJ80: 0.00052545 | BK80: 0.00087575 | BL80: 0.00122605 | BM80: 0.00157635 | BN80: 0.0020369945 | BO80: 0.0026079835 | BP80: 0.0031789725 | BQ80: 0.0037499615 | BR80: 0.0043209505 | BT80: =+IF($K80="Ongoing",AX80,IF(RIGHT($K80,2)=RIGHT(BT$39,2),SUM($AX80:AX80),0)+IF(RIGHT(BT$39,2)>RIGHT($K80,2),AX80,0)) -> 0.021018 | BU80: =+IF($K80="Ongoing",AY80,IF(RIGHT($K80,2)=RIGHT(BU$39,2),SUM($AX80:AY80),0)+IF(RIGHT(BU$39,2)>RIGHT($K80,2),AY80,0)) -> 0.021018 | BV80: =+IF($K80="Ongoing",AZ80,IF(RIGHT($K80,2)=RIGHT(BV$39,2),SUM($AX80:AZ80),0)+IF(RIGHT(BV$39,2)>RIGHT($K80,2),AZ80,0)) -> 0.021018 | BW80: =+IF($K80="Ongoing",BA80,IF(RIGHT($K80,2)=RIGHT(BW$39,2),SUM($AX80:BA80),0)+IF(RIGHT(BW$39,2)>RIGHT($K80,2),BA80,0)) -> 0.021018 | BX80: =+IF($K80="Ongoing",BB80,IF(RIGHT($K80,2)=RIGHT(BX$39,2),SUM($AX80:BB80),0)+IF(RIGHT(BX$39,2)>RIGHT($K80,2),BB80,0)) -> 0.021018 | BY80: =+IF($K80="Ongoing",BC80,IF(RIGHT($K80,2)=RIGHT(BY$39,2),SUM($AX80:BC80),0)+IF(RIGHT(BY$39,2)>RIGHT($K80,2),BC80,0)) -> 0.03425934 | BZ80: =+IF($K80="Ongoing",BD80,IF(RIGHT($K80,2)=RIGHT(BZ$39,2),SUM($AX80:BD80),0)+IF(RIGHT(BZ$39,2)>RIGHT($K80,2),BD80,0)) -> 0.03425934 | CA80: =+IF($K80="Ongoing",BE80,IF(RIGHT($K80,2)=RIGHT(CA$39,2),SUM($AX80:BE80),0)+IF(RIGHT(CA$39,2)>RIGHT($K80,2),BE80,0)) -> 0.03425934 | CB80: =+IF($K80="Ongoing",BF80,IF(RIGHT($K80,2)=RIGHT(CB$39,2),SUM($AX80:BF80),0)+IF(RIGHT(CB$39,2)>RIGHT($K80,2),BF80,0)) -> 0.03425934 | CC80: =+IF($K80="Ongoing",BG80,IF(RIGHT($K80,2)=RIGHT(CC$39,2),SUM($AX80:BG80),0)+IF(RIGHT(CC$39,2)>RIGHT($K80,2),BG80,0)) -> 0.03425934 | CE80: =+Q80*KeyAssumptionsPriceControl_FO!AC$15 -> 0.02164854 | CF80: =+R80*KeyAssumptionsPriceControl_FO!AD$15 -> 0.0222979962 | CG80: =+S80*KeyAssumptionsPriceControl_FO!AE$15 -> 0.02296693609 | CH80: =+T80*KeyAssumptionsPriceControl_FO!AF$15 -> 0.02365594417 | CI80: =+U80*KeyAssumptionsPriceControl_FO!AG$15 -> 0.02436562249 | CJ80: =+V80*KeyAssumptionsPriceControl_FO!AH$15 -> 0.0409074436 | CK80: =+W80*KeyAssumptionsPriceControl_FO!AI$15 -> 0.04213466691 | CL80: =+X80*KeyAssumptionsPriceControl_FO!AJ$15 -> 0.04339870692 | CM80: =+Y80*KeyAssumptionsPriceControl_FO!AK$15 -> 0.04470066813 | CN80: =+Z80*KeyAssumptionsPriceControl_FO!AL$15 -> 0.04604168817 | CP80: 0.0001804045 | CQ80: 0.000546625635 | CR80: 0.000923833404 | CS80: 0.001312357406 | CT80: 0.001712537128 | CU80: 0.002256479346 | CV80: 0.002948496933 | CW80: 0.003661275049 | CX80: 0.004395436507 | CY80: 0.00515162281
C81: Water Network Reliability and Renewal Program | E81: Water | F81: Renewals | G81: Pipelines/network | H81: Capital Programs / Allocation | J81: Straight line | K81: Ongoing | L81: 60 | M81: 60 | Q81: 1.83671573 | R81: 2.19840661 | S81: 2.209741092 | T81: 2.237106002 | U81: 2.187082637 | V81: 3.825276 | W81: 3.825276 | X81: 3.825276 | Y81: 3.825276 | Z81: 3.825276 | AB81: 0 | AC81: 0 | AD81: 0 | AE81: 0 | AF81: 0 | AG81: 0 | AH81: 0 | AI81: 0 | AJ81: 0 | AK81: 0 | AM81: 0 | AN81: 0 | AO81: 0 | AP81: 0 | AQ81: 0 | AR81: 0 | AS81: 0 | AT81: 0 | AU81: 0 | AV81: 0 | AX81: 1.83671573 | AY81: 2.19840661 | AZ81: 2.209741092 | BA81: 2.237106002 | BB81: 2.187082637 | BC81: 3.825276 | BD81: 3.825276 | BE81: 3.825276 | BF81: 3.825276 | BG81: 3.825276 | BI81: 0.01530596441 | BJ81: 0.04893198391 | BK81: 0.08566654808 | BL81: 0.1227236072 | BM81: 0.1595918459 | BN81: 0.2096948345 | BO81: 0.2734494345 | BP81: 0.3372040345 | BQ81: 0.4009586345 | BR81: 0.4647132345 | BT81: =+IF($K81="Ongoing",AX81,IF(RIGHT($K81,2)=RIGHT(BT$39,2),SUM($AX81:AX81),0)+IF(RIGHT(BT$39,2)>RIGHT($K81,2),AX81,0)) -> 1.83671573 | BU81: =+IF($K81="Ongoing",AY81,IF(RIGHT($K81,2)=RIGHT(BU$39,2),SUM($AX81:AY81),0)+IF(RIGHT(BU$39,2)>RIGHT($K81,2),AY81,0)) -> 2.19840661 | BV81: =+IF($K81="Ongoing",AZ81,IF(RIGHT($K81,2)=RIGHT(BV$39,2),SUM($AX81:AZ81),0)+IF(RIGHT(BV$39,2)>RIGHT($K81,2),AZ81,0)) -> 2.209741092 | BW81: =+IF($K81="Ongoing",BA81,IF(RIGHT($K81,2)=RIGHT(BW$39,2),SUM($AX81:BA81),0)+IF(RIGHT(BW$39,2)>RIGHT($K81,2),BA81,0)) -> 2.237106002 | BX81: =+IF($K81="Ongoing",BB81,IF(RIGHT($K81,2)=RIGHT(BX$39,2),SUM($AX81:BB81),0)+IF(RIGHT(BX$39,2)>RIGHT($K81,2),BB81,0)) -> 2.187082637 | BY81: =+IF($K81="Ongoing",BC81,IF(RIGHT($K81,2)=RIGHT(BY$39,2),SUM($AX81:BC81),0)+IF(RIGHT(BY$39,2)>RIGHT($K81,2),BC81,0)) -> 3.825276 | BZ81: =+IF($K81="Ongoing",BD81,IF(RIGHT($K81,2)=RIGHT(BZ$39,2),SUM($AX81:BD81),0)+IF(RIGHT(BZ$39,2)>RIGHT($K81,2),BD81,0)) -> 3.825276 | CA81: =+IF($K81="Ongoing",BE81,IF(RIGHT($K81,2)=RIGHT(CA$39,2),SUM($AX81:BE81),0)+IF(RIGHT(CA$39,2)>RIGHT($K81,2),BE81,0)) -> 3.825276 | CB81: =+IF($K81="Ongoing",BF81,IF(RIGHT($K81,2)=RIGHT(CB$39,2),SUM($AX81:BF81),0)+IF(RIGHT(CB$39,2)>RIGHT($K81,2),BF81,0)) -> 3.825276 | CC81: =+IF($K81="Ongoing",BG81,IF(RIGHT($K81,2)=RIGHT(CC$39,2),SUM($AX81:BG81),0)+IF(RIGHT(CC$39,2)>RIGHT($K81,2),BG81,0)) -> 3.825276 | CE81: =+Q81*KeyAssumptionsPriceControl_FO!AC$15 -> 1.891817201 | CF81: =+R81*KeyAssumptionsPriceControl_FO!AD$15 -> 2.332289572 | CG81: =+S81*KeyAssumptionsPriceControl_FO!AE$15 -> 2.414643754 | CH81: =+T81*KeyAssumptionsPriceControl_FO!AF$15 -> 2.517882514 | CI81: =+U81*KeyAssumptionsPriceControl_FO!AG$15 -> 2.535428199 | CJ81: =+V81*KeyAssumptionsPriceControl_FO!AH$15 -> 4.567579593 | CK81: =+W81*KeyAssumptionsPriceControl_FO!AI$15 -> 4.70460698 | CL81: =+X81*KeyAssumptionsPriceControl_FO!AJ$15 -> 4.84574519 | CM81: =+Y81*KeyAssumptionsPriceControl_FO!AK$15 -> 4.991117546 | CN81: =+Z81*KeyAssumptionsPriceControl_FO!AL$15 -> 5.140851072 | CP81: 0.01576514334 | CQ81: 0.05096603313 | CR81: 0.09052381084 | CS81: 0.1316281964 | CT81: 0.173739119 | CU81: 0.2329308506 | CV81: 0.3101990721 | CW81: 0.3897853402 | CX81: 0.4717591963 | CY81: 0.5561922681
C82: Other Projects - Corporate | E82: Water | F82: Improvements / Compliance | G82: Corporate | H82: Other Capital expenditure | J82: Straight line | K82: Ongoing | L82: 10 | M82: 10 | Q82: 1.002190785 | R82: 0.3940875 | S82: 0.1103445 | T82: 0 | U82: 0 | V82: 0 | W82: 0 | X82: 0 | Y82: 0 | Z82: 0 | AB82: 0 | AC82: 0 | AD82: 0 | AE82: 0 | AF82: 0 | AG82: 0 | AH82: 0 | AI82: 0 | AJ82: 0 | AK82: 0 | AM82: 0 | AN82: 0 | AO82: 0 | AP82: 0 | AQ82: 0 | AR82: 0 | AS82: 0 | AT82: 0 | AU82: 0 | AV82: 0 | AX82: 1.002190785 | AY82: 0.3940875 | AZ82: 0.1103445 | BA82: 0 | BB82: 0 | BC82: 0 | BD82: 0 | BE82: 0 | BF82: 0 | BG82: 0 | BI82: 0.05010953925 | BJ82: 0.1199234535 | BK82: 0.1451450535 | BL82: 0.1506622785 | BM82: 0.1506622785 | BN82: 0.1506622785 | BO82: 0.1506622785 | BP82: 0.1506622785 | BQ82: 0.1506622785 | BR82: 0.1506622785 | BT82: =+IF($K82="Ongoing",AX82,IF(RIGHT($K82,2)=RIGHT(BT$39,2),SUM($AX82:AX82),0)+IF(RIGHT(BT$39,2)>RIGHT($K82,2),AX82,0)) -> 1.002190785 | BU82: =+IF($K82="Ongoing",AY82,IF(RIGHT($K82,2)=RIGHT(BU$39,2),SUM($AX82:AY82),0)+IF(RIGHT(BU$39,2)>RIGHT($K82,2),AY82,0)) -> 0.3940875 | BV82: =+IF($K82="Ongoing",AZ82,IF(RIGHT($K82,2)=RIGHT(BV$39,2),SUM($AX82:AZ82),0)+IF(RIGHT(BV$39,2)>RIGHT($K82,2),AZ82,0)) -> 0.1103445 | BW82: =+IF($K82="Ongoing",BA82,IF(RIGHT($K82,2)=RIGHT(BW$39,2),SUM($AX82:BA82),0)+IF(RIGHT(BW$39,2)>RIGHT($K82,2),BA82,0)) -> 0 | BX82: =+IF($K82="Ongoing",BB82,IF(RIGHT($K82,2)=RIGHT(BX$39,2),SUM($AX82:BB82),0)+IF(RIGHT(BX$39,2)>RIGHT($K82,2),BB82,0)) -> 0 | BY82: =+IF($K82="Ongoing",BC82,IF(RIGHT($K82,2)=RIGHT(BY$39,2),SUM($AX82:BC82),0)+IF(RIGHT(BY$39,2)>RIGHT($K82,2),BC82,0)) -> 0 | BZ82: =+IF($K82="Ongoing",BD82,IF(RIGHT($K82,2)=RIGHT(BZ$39,2),SUM($AX82:BD82),0)+IF(RIGHT(BZ$39,2)>RIGHT($K82,2),BD82,0)) -> 0 | CA82: =+IF($K82="Ongoing",BE82,IF(RIGHT($K82,2)=RIGHT(CA$39,2),SUM($AX82:BE82),0)+IF(RIGHT(CA$39,2)>RIGHT($K82,2),BE82,0)) -> 0 | CB82: =+IF($K82="Ongoing",BF82,IF(RIGHT($K82,2)=RIGHT(CB$39,2),SUM($AX82:BF82),0)+IF(RIGHT(CB$39,2)>RIGHT($K82,2),BF82,0)) -> 0 | CC82: =+IF($K82="Ongoing",BG82,IF(RIGHT($K82,2)=RIGHT(CC$39,2),SUM($AX82:BG82),0)+IF(RIGHT(CC$39,2)>RIGHT($K82,2),BG82,0)) -> 0 | CE82: =+Q82*KeyAssumptionsPriceControl_FO!AC$15 -> 1.032256509 | CF82: =+R82*KeyAssumptionsPriceControl_FO!AD$15 -> 0.4180874287 | CG82: =+S82*KeyAssumptionsPriceControl_FO!AE$15 -> 0.1205764145 | CH82: =+T82*KeyAssumptionsPriceControl_FO!AF$15 -> 0 | CI82: =+U82*KeyAssumptionsPriceControl_FO!AG$15 -> 0 | CJ82: =+V82*KeyAssumptionsPriceControl_FO!AH$15 -> 0 | CK82: =+W82*KeyAssumptionsPriceControl_FO!AI$15 -> 0 | CL82: =+X82*KeyAssumptionsPriceControl_FO!AJ$15 -> 0 | CM82: =+Y82*KeyAssumptionsPriceControl_FO!AK$15 -> 0 | CN82: =+Z82*KeyAssumptionsPriceControl_FO!AL$15 -> 0 | CP82: 0.05161282543 | CQ82: 0.1241300223 | CR82: 0.1510632145 | CS82: 0.1570920352 | CT82: 0.1570920352 | CU82: 0.1570920352 | CV82: 0.1570920352 | CW82: 0.1570920352 | CX82: 0.1570920352 | CY82: 0.1570920352
C83: Other Projects - Corporate | E83: Sewerage | F83: Improvements / Compliance | G83: Corporate | H83: Other Capital expenditure | J83: Straight line | K83: Ongoing | L83: 10 | M83: 10 | Q83: 1.002190785 | R83: 0.3940875 | S83: 0.1103445 | T83: 0 | U83: 0 | V83: 0 | W83: 0 | X83: 0 | Y83: 0 | Z83: 0 | AB83: 0 | AC83: 0 | AD83: 0 | AE83: 0 | AF83: 0 | AG83: 0 | AH83: 0 | AI83: 0 | AJ83: 0 | AK83: 0 | AM83: 0 | AN83: 0 | AO83: 0 | AP83: 0 | AQ83: 0 | AR83: 0 | AS83: 0 | AT83: 0 | AU83: 0 | AV83: 0 | AX83: 1.002190785 | AY83: 0.3940875 | AZ83: 0.1103445 | BA83: 0 | BB83: 0 | BC83: 0 | BD83: 0 | BE83: 0 | BF83: 0 | BG83: 0 | BI83: 0.05010953925 | BJ83: 0.1199234535 | BK83: 0.1451450535 | BL83: 0.1506622785 | BM83: 0.1506622785 | BN83: 0.1506622785 | BO83: 0.1506622785 | BP83: 0.1506622785 | BQ83: 0.1506622785 | BR83: 0.1506622785 | BT83: =+IF($K83="Ongoing",AX83,IF(RIGHT($K83,2)=RIGHT(BT$39,2),SUM($AX83:AX83),0)+IF(RIGHT(BT$39,2)>RIGHT($K83,2),AX83,0)) -> 1.002190785 | BU83: =+IF($K83="Ongoing",AY83,IF(RIGHT($K83,2)=RIGHT(BU$39,2),SUM($AX83:AY83),0)+IF(RIGHT(BU$39,2)>RIGHT($K83,2),AY83,0)) -> 0.3940875 | BV83: =+IF($K83="Ongoing",AZ83,IF(RIGHT($K83,2)=RIGHT(BV$39,2),SUM($AX83:AZ83),0)+IF(RIGHT(BV$39,2)>RIGHT($K83,2),AZ83,0)) -> 0.1103445 | BW83: =+IF($K83="Ongoing",BA83,IF(RIGHT($K83,2)=RIGHT(BW$39,2),SUM($AX83:BA83),0)+IF(RIGHT(BW$39,2)>RIGHT($K83,2),BA83,0)) -> 0 | BX83: =+IF($K83="Ongoing",BB83,IF(RIGHT($K83,2)=RIGHT(BX$39,2),SUM($AX83:BB83),0)+IF(RIGHT(BX$39,2)>RIGHT($K83,2),BB83,0)) -> 0 | BY83: =+IF($K83="Ongoing",BC83,IF(RIGHT($K83,2)=RIGHT(BY$39,2),SUM($AX83:BC83),0)+IF(RIGHT(BY$39,2)>RIGHT($K83,2),BC83,0)) -> 0 | BZ83: =+IF($K83="Ongoing",BD83,IF(RIGHT($K83,2)=RIGHT(BZ$39,2),SUM($AX83:BD83),0)+IF(RIGHT(BZ$39,2)>RIGHT($K83,2),BD83,0)) -> 0 | CA83: =+IF($K83="Ongoing",BE83,IF(RIGHT($K83,2)=RIGHT(CA$39,2),SUM($AX83:BE83),0)+IF(RIGHT(CA$39,2)>RIGHT($K83,2),BE83,0)) -> 0 | CB83: =+IF($K83="Ongoing",BF83,IF(RIGHT($K83,2)=RIGHT(CB$39,2),SUM($AX83:BF83),0)+IF(RIGHT(CB$39,2)>RIGHT($K83,2),BF83,0)) -> 0 | CC83: =+IF($K83="Ongoing",BG83,IF(RIGHT($K83,2)=RIGHT(CC$39,2),SUM($AX83:BG83),0)+IF(RIGHT(CC$39,2)>RIGHT($K83,2),BG83,0)) -> 0 | CE83: =+Q83*KeyAssumptionsPriceControl_FO!AC$15 -> 1.032256509 | CF83: =+R83*KeyAssumptionsPriceControl_FO!AD$15 -> 0.4180874287 | CG83: =+S83*KeyAssumptionsPriceControl_FO!AE$15 -> 0.1205764145 | CH83: =+T83*KeyAssumptionsPriceControl_FO!AF$15 -> 0 | CI83: =+U83*KeyAssumptionsPriceControl_FO!AG$15 -> 0 | CJ83: =+V83*KeyAssumptionsPriceControl_FO!AH$15 -> 0 | CK83: =+W83*KeyAssumptionsPriceControl_FO!AI$15 -> 0 | CL83: =+X83*KeyAssumptionsPriceControl_FO!AJ$15 -> 0 | CM83: =+Y83*KeyAssumptionsPriceControl_FO!AK$15 -> 0 | CN83: =+Z83*KeyAssumptionsPriceControl_FO!AL$15 -> 0 | CP83: 0.05161282543 | CQ83: 0.1241300223 | CR83: 0.1510632145 | CS83: 0.1570920352 | CT83: 0.1570920352 | CU83: 0.1570920352 | CV83: 0.1570920352 | CW83: 0.1570920352 | CX83: 0.1570920352 | CY83: 0.1570920352
C84: Other Projects - Corporate | E84: Water | F84: Renewals | G84: Corporate | H84: Other Capital expenditure | J84: Straight line | K84: Ongoing | L84: 10 | M84: 10 | Q84: 0.06116238 | R84: 0.052545 | S84: 0.052545 | T84: 0 | U84: 0 | V84: 0.054278985 | W84: 0.25179564 | X84: 0 | Y84: 0 | Z84: 0 | AB84: 0 | AC84: 0 | AD84: 0 | AE84: 0 | AF84: 0 | AG84: 0 | AH84: 0 | AI84: 0 | AJ84: 0 | AK84: 0 | AM84: 0 | AN84: 0 | AO84: 0 | AP84: 0 | AQ84: 0 | AR84: 0 | AS84: 0 | AT84: 0 | AU84: 0 | AV84: 0 | AX84: 0.06116238 | AY84: 0.052545 | AZ84: 0.052545 | BA84: 0 | BB84: 0 | BC84: 0.054278985 | BD84: 0.25179564 | BE84: 0 | BF84: 0 | BG84: 0 | BI84: 0.003058119 | BJ84: 0.008743488 | BK84: 0.013997988 | BL84: 0.016625238 | BM84: 0.016625238 | BN84: 0.01933918725 | BO84: 0.0346429185 | BP84: 0.0472327005 | BQ84: 0.0472327005 | BR84: 0.0472327005 | BT84: =+IF($K84="Ongoing",AX84,IF(RIGHT($K84,2)=RIGHT(BT$39,2),SUM($AX84:AX84),0)+IF(RIGHT(BT$39,2)>RIGHT($K84,2),AX84,0)) -> 0.06116238 | BU84: =+IF($K84="Ongoing",AY84,IF(RIGHT($K84,2)=RIGHT(BU$39,2),SUM($AX84:AY84),0)+IF(RIGHT(BU$39,2)>RIGHT($K84,2),AY84,0)) -> 0.052545 | BV84: =+IF($K84="Ongoing",AZ84,IF(RIGHT($K84,2)=RIGHT(BV$39,2),SUM($AX84:AZ84),0)+IF(RIGHT(BV$39,2)>RIGHT($K84,2),AZ84,0)) -> 0.052545 | BW84: =+IF($K84="Ongoing",BA84,IF(RIGHT($K84,2)=RIGHT(BW$39,2),SUM($AX84:BA84),0)+IF(RIGHT(BW$39,2)>RIGHT($K84,2),BA84,0)) -> 0 | BX84: =+IF($K84="Ongoing",BB84,IF(RIGHT($K84,2)=RIGHT(BX$39,2),SUM($AX84:BB84),0)+IF(RIGHT(BX$39,2)>RIGHT($K84,2),BB84,0)) -> 0 | BY84: =+IF($K84="Ongoing",BC84,IF(RIGHT($K84,2)=RIGHT(BY$39,2),SUM($AX84:BC84),0)+IF(RIGHT(BY$39,2)>RIGHT($K84,2),BC84,0)) -> 0.054278985 | BZ84: =+IF($K84="Ongoing",BD84,IF(RIGHT($K84,2)=RIGHT(BZ$39,2),SUM($AX84:BD84),0)+IF(RIGHT(BZ$39,2)>RIGHT($K84,2),BD84,0)) -> 0.25179564 | CA84: =+IF($K84="Ongoing",BE84,IF(RIGHT($K84,2)=RIGHT(CA$39,2),SUM($AX84:BE84),0)+IF(RIGHT(CA$39,2)>RIGHT($K84,2),BE84,0)) -> 0 | CB84: =+IF($K84="Ongoing",BF84,IF(RIGHT($K84,2)=RIGHT(CB$39,2),SUM($AX84:BF84),0)+IF(RIGHT(CB$39,2)>RIGHT($K84,2),BF84,0)) -> 0 | CC84: =+IF($K84="Ongoing",BG84,IF(RIGHT($K84,2)=RIGHT(CC$39,2),SUM($AX84:BG84),0)+IF(RIGHT(CC$39,2)>RIGHT($K84,2),BG84,0)) -> 0 | CE84: =+Q84*KeyAssumptionsPriceControl_FO!AC$15 -> 0.0629972514 | CF84: =+R84*KeyAssumptionsPriceControl_FO!AD$15 -> 0.0557449905 | CG84: =+S84*KeyAssumptionsPriceControl_FO!AE$15 -> 0.05741734022 | CH84: =+T84*KeyAssumptionsPriceControl_FO!AF$15 -> 0 | CI84: =+U84*KeyAssumptionsPriceControl_FO!AG$15 -> 0 | CJ84: =+V84*KeyAssumptionsPriceControl_FO!AH$15 -> 0.06481194669 | CK84: =+W84*KeyAssumptionsPriceControl_FO!AI$15 -> 0.3096768771 | CL84: =+X84*KeyAssumptionsPriceControl_FO!AJ$15 -> 0 | CM84: =+Y84*KeyAssumptionsPriceControl_FO!AK$15 -> 0 | CN84: =+Z84*KeyAssumptionsPriceControl_FO!AL$15 -> 0 | CP84: 0.00314986257 | CQ84: 0.009086974665 | CR84: 0.0147450912 | CS84: 0.01761595821 | CT84: 0.01761595821 | CU84: 0.02085655555 | CV84: 0.03958099673 | CW84: 0.05506484059 | CX84: 0.05506484059 | CY84: 0.05506484059
C85: Other Projects - Corporate | E85: Sewerage | F85: Renewals | G85: Corporate | H85: Other Capital expenditure | J85: Straight line | K85: Ongoing | L85: 10 | M85: 10 | Q85: 0.06116238 | R85: 0.052545 | S85: 0.052545 | T85: 0 | U85: 0 | V85: 0.054278985 | W85: 0.25179564 | X85: 0 | Y85: 0 | Z85: 0 | AB85: 0 | AC85: 0 | AD85: 0 | AE85: 0 | AF85: 0 | AG85: 0 | AH85: 0 | AI85: 0 | AJ85: 0 | AK85: 0 | AM85: 0 | AN85: 0 | AO85: 0 | AP85: 0 | AQ85: 0 | AR85: 0 | AS85: 0 | AT85: 0 | AU85: 0 | AV85: 0 | AX85: =+Q85-AB85-AM85 -> 0.06116238 | AY85: =+R85-AC85-AN85 -> 0.052545 | AZ85: =+S85-AD85-AO85 -> 0.052545 | BA85: =+T85-AE85-AP85 -> 0 | BB85: =+U85-AF85-AQ85 -> 0 | BC85: =+V85-AG85-AR85 -> 0.054278985 | BD85: =+W85-AH85-AS85 -> 0.25179564 | BE85: =+X85-AI85-AT85 -> 0 | BF85: 0 | BG85: 0 | BI85: 0.003058119 | BJ85: 0.008743488 | BK85: 0.013997988 | BL85: 0.016625238 | BM85: 0.016625238 | BN85: 0.01933918725 | BO85: 0.0346429185 | BP85: 0.0472327005 | BQ85: 0.0472327005 | BR85: 0.0472327005 | BT85: =+IF($K85="Ongoing",AX85,IF(RIGHT($K85,2)=RIGHT(BT$39,2),SUM($AX85:AX85),0)+IF(RIGHT(BT$39,2)>RIGHT($K85,2),AX85,0)) -> 0.06116238 | BU85: =+IF($K85="Ongoing",AY85,IF(RIGHT($K85,2)=RIGHT(BU$39,2),SUM($AX85:AY85),0)+IF(RIGHT(BU$39,2)>RIGHT($K85,2),AY85,0)) -> 0.052545 | BV85: =+IF($K85="Ongoing",AZ85,IF(RIGHT($K85,2)=RIGHT(BV$39,2),SUM($AX85:AZ85),0)+IF(RIGHT(BV$39,2)>RIGHT($K85,2),AZ85,0)) -> 0.052545 | BW85: =+IF($K85="Ongoing",BA85,IF(RIGHT($K85,2)=RIGHT(BW$39,2),SUM($AX85:BA85),0)+IF(RIGHT(BW$39,2)>RIGHT($K85,2),BA85,0)) -> 0 | BX85: =+IF($K85="Ongoing",BB85,IF(RIGHT($K85,2)=RIGHT(BX$39,2),SUM($AX85:BB85),0)+IF(RIGHT(BX$39,2)>RIGHT($K85,2),BB85,0)) -> 0 | BY85: =+IF($K85="Ongoing",BC85,IF(RIGHT($K85,2)=RIGHT(BY$39,2),SUM($AX85:BC85),0)+IF(RIGHT(BY$39,2)>RIGHT($K85,2),BC85,0)) -> 0.054278985 | BZ85: =+IF($K85="Ongoing",BD85,IF(RIGHT($K85,2)=RIGHT(BZ$39,2),SUM($AX85:BD85),0)+IF(RIGHT(BZ$39,2)>RIGHT($K85,2),BD85,0)) -> 0.25179564 | CA85: =+IF($K85="Ongoing",BE85,IF(RIGHT($K85,2)=RIGHT(CA$39,2),SUM($AX85:BE85),0)+IF(RIGHT(CA$39,2)>RIGHT($K85,2),BE85,0)) -> 0 | CB85: =+IF($K85="Ongoing",BF85,IF(RIGHT($K85,2)=RIGHT(CB$39,2),SUM($AX85:BF85),0)+IF(RIGHT(CB$39,2)>RIGHT($K85,2),BF85,0)) -> 0 | CC85: =+IF($K85="Ongoing",BG85,IF(RIGHT($K85,2)=RIGHT(CC$39,2),SUM($AX85:BG85),0)+IF(RIGHT(CC$39,2)>RIGHT($K85,2),BG85,0)) -> 0 | CE85: =+Q85*KeyAssumptionsPriceControl_FO!AC$15 -> 0.0629972514 | CF85: =+R85*KeyAssumptionsPriceControl_FO!AD$15 -> 0.0557449905 | CG85: =+S85*KeyAssumptionsPriceControl_FO!AE$15 -> 0.05741734022 | CH85: =+T85*KeyAssumptionsPriceControl_FO!AF$15 -> 0 | CI85: =+U85*KeyAssumptionsPriceControl_FO!AG$15 -> 0 | CJ85: =+V85*KeyAssumptionsPriceControl_FO!AH$15 -> 0.06481194669 | CK85: =+W85*KeyAssumptionsPriceControl_FO!AI$15 -> 0.3096768771 | CL85: =+X85*KeyAssumptionsPriceControl_FO!AJ$15 -> 0 | CM85: =+Y85*KeyAssumptionsPriceControl_FO!AK$15 -> 0 | CN85: =+Z85*KeyAssumptionsPriceControl_FO!AL$15 -> 0 | CP85: =IF($M85=0,0, IF($M85<=0.5,CE85, IF($J85="straight line", IF((LEFT(CP$39,4)*1)-INT($M85)<LEFT($CP$39,4)*1,0,((OFFSET(CE85,0,-INT($M85+0.5),1,1))/$M85)*(IF($M85-INT($M85)>0.5,$M85-0.5-INT($M85),IF($M85-INT($M85)<=0.5,$M85-0.5-INT($M85)+1,0)))) +CE85/$M85*0.5, IF($J85="Declining Balance",-$CP$38,0)))) -> 0.00314986257 | CQ85: =IF($M85=0,0, IF($M85<=0.5,CF85, IF(AND($J85="straight line",$M85<1.51),(CE85-((CE85/$M85)*0.5))+CF85/$M85*0.5, IF($J85="straight line", IF((LEFT(CQ$39,4)*1)-INT($M85)<LEFT($CP$39,4)*1,0,((OFFSET(CF85,0,-INT($M85+0.5),1,1))/$M85)*(IF($M85-INT($M85)>0.5,$M85-0.5-INT($M85),IF($M85-INT($M85)<=0.5,$M85-0.5-INT($M85)+1,0)))) +CF85/$M85*0.5 +SUM(OFFSET(CF85,0,MAX(-INT($M85+(0.5-(10^-12))),-CQ$40)+1,1,MIN(INT($M85+(0.5-(10^-12))),CQ$40)-1))*1/$M85, IF($J85="Declining Balance",-$CP$38,0))))) -> 0.009086974665 | CR85: =IF($M85=0,0, IF($M85<=0.5,CG85, IF(AND($J85="straight line",$M85<1.51),(CF85-((CF85/$M85)*0.5))+CG85/$M85*0.5, IF($J85="straight line", IF((LEFT(CR$39,4)*1)-INT($M85)<LEFT($CP$39,4)*1,0,((OFFSET(CG85,0,-INT($M85+0.5),1,1))/$M85)*(IF($M85-INT($M85)>0.5,$M85-0.5-INT($M85),IF($M85-INT($M85)<=0.5,$M85-0.5-INT($M85)+1,0)))) +CG85/$M85*0.5 +SUM(OFFSET(CG85,0,MAX(-INT($M85+(0.5-(10^-12))),-CR$40)+1,1,MIN(INT($M85+(0.5-(10^-12))),CR$40)-1))*1/$M85, IF($J85="Declining Balance",-$CP$38,0))))) -> 0.0147450912 | CS85: =IF($M85=0,0, IF($M85<=0.5,CH85, IF(AND($J85="straight line",$M85<1.51),(CG85-((CG85/$M85)*0.5))+CH85/$M85*0.5, IF($J85="straight line", IF((LEFT(CS$39,4)*1)-INT($M85)<LEFT($CP$39,4)*1,0,((OFFSET(CH85,0,-INT($M85+0.5),1,1))/$M85)*(IF($M85-INT($M85)>0.5,$M85-0.5-INT($M85),IF($M85-INT($M85)<=0.5,$M85-0.5-INT($M85)+1,0)))) +CH85/$M85*0.5 +SUM(OFFSET(CH85,0,MAX(-INT($M85+(0.5-(10^-12))),-CS$40)+1,1,MIN(INT($M85+(0.5-(10^-12))),CS$40)-1))*1/$M85, IF($J85="Declining Balance",-$CP$38,0))))) -> 0.01761595821 | CT85: =IF($M85=0,0, IF($M85<=0.5,CI85, IF(AND($J85="straight line",$M85<1.51),(CH85-((CH85/$M85)*0.5))+CI85/$M85*0.5, IF($J85="straight line", IF((LEFT(CT$39,4)*1)-INT($M85)<LEFT($CP$39,4)*1,0,((OFFSET(CI85,0,-INT($M85+0.5),1,1))/$M85)*(IF($M85-INT($M85)>0.5,$M85-0.5-INT($M85),IF($M85-INT($M85)<=0.5,$M85-0.5-INT($M85)+1,0)))) +CI85/$M85*0.5 +SUM(OFFSET(CI85,0,MAX(-INT($M85+(0.5-(10^-12))),-CT$40)+1,1,MIN(INT($M85+(0.5-(10^-12))),CT$40)-1))*1/$M85, IF($J85="Declining Balance",-$CP$38,0))))) -> 0.01761595821 | CU85: =IF($M85=0,0, IF($M85<=0.5,CJ85, IF(AND($J85="straight line",$M85<1.51),(CI85-((CI85/$M85)*0.5))+CJ85/$M85*0.5, IF($J85="straight line", IF((LEFT(CU$39,4)*1)-INT($M85)<LEFT($CP$39,4)*1,0,((OFFSET(CJ85,0,-INT($M85+0.5),1,1))/$M85)*(IF($M85-INT($M85)>0.5,$M85-0.5-INT($M85),IF($M85-INT($M85)<=0.5,$M85-0.5-INT($M85)+1,0)))) +CJ85/$M85*0.5 +SUM(OFFSET(CJ85,0,MAX(-INT($M85+(0.5-(10^-12))),-CU$40)+1,1,MIN(INT($M85+(0.5-(10^-12))),CU$40)-1))*1/$M85, IF($J85="Declining Balance",-$CP$38,0))))) -> 0.02085655555 | CV85: =IF($M85=0,0, IF($M85<=0.5,CK85, IF(AND($J85="straight line",$M85<1.51),(CJ85-((CJ85/$M85)*0.5))+CK85/$M85*0.5, IF($J85="straight line", IF((LEFT(CV$39,4)*1)-INT($M85)<LEFT($CP$39,4)*1,0,((OFFSET(CK85,0,-INT($M85+0.5),1,1))/$M85)*(IF($M85-INT($M85)>0.5,$M85-0.5-INT($M85),IF($M85-INT($M85)<=0.5,$M85-0.5-INT($M85)+1,0)))) +CK85/$M85*0.5 +SUM(OFFSET(CK85,0,MAX(-INT($M85+(0.5-(10^-12))),-CV$40)+1,1,MIN(INT($M85+(0.5-(10^-12))),CV$40)-1))*1/$M85, IF($J85="Declining Balance",-$CP$38,0))))) -> 0.03958099673 | CW85: =IF($M85=0,0, IF($M85<=0.5,CL85, IF(AND($J85="straight line",$M85<1.51),(CK85-((CK85/$M85)*0.5))+CL85/$M85*0.5, IF($J85="straight line", IF((LEFT(CW$39,4)*1)-INT($M85)<LEFT($CP$39,4)*1,0,((OFFSET(CL85,0,-INT($M85+0.5),1,1))/$M85)*(IF($M85-INT($M85)>0.5,$M85-0.5-INT($M85),IF($M85-INT($M85)<=0.5,$M85-0.5-INT($M85)+1,0)))) +CL85/$M85*0.5 +SUM(OFFSET(CL85,0,MAX(-INT($M85+(0.5-(10^-12))),-CW$40)+1,1,MIN(INT($M85+(0.5-(10^-12))),CW$40)-1))*1/$M85, IF($J85="Declining Balance",-$CP$38,0))))) -> 0.05506484059 | CX85: =IF($M85=0,0, IF($M85<=0.5,CM85, IF(AND($J85="straight line",$M85<1.51),(CL85-((CL85/$M85)*0.5))+CM85/$M85*0.5, IF($J85="straight line", IF((LEFT(CX$39,4)*1)-INT($M85)<LEFT($CP$39,4)*1,0,((OFFSET(CM85,0,-INT($M85+0.5),1,1))/$M85)*(IF($M85-INT($M85)>0.5,$M85-0.5-INT($M85),IF($M85-INT($M85)<=0.5,$M85-0.5-INT($M85)+1,0)))) +CM85/$M85*0.5 +SUM(OFFSET(CM85,0,MAX(-INT($M85+(0.5-(10^-12))),-CX$40)+1,1,MIN(INT($M85+(0.5-(10^-12))),CX$40)-1))*1/$M85, IF($J85="Declining Balance",-$CP$38,0))))) -> 0.05506484059 | CY85: =IF($M85=0,0, IF($M85<=0.5,CN85, IF(AND($J85="straight line",$M85<1.51),(CM85-((CM85/$M85)*0.5))+CN85/$M85*0.5, IF($J85="straight line", IF((LEFT(CY$39,4)*1)-INT($M85)<LEFT($CP$39,4)*1,0,((OFFSET(CN85,0,-INT($M85+0.5),1,1))/$M85)*(IF($M85-INT($M85)>0.5,$M85-0.5-INT($M85),IF($M85-INT($M85)<=0.5,$M85-0.5-INT($M85)+1,0)))) +CN85/$M85*0.5 +SUM(OFFSET(CN85,0,MAX(-INT($M85+(0.5-(10^-12))),-CY$40)+1,1,MIN(INT($M85+(0.5-(10^-12))),CY$40)-1))*1/$M85, IF($J85="Declining Balance",-$CP$38,0))))) -> 0.05506484059
C86: Other Projects - Wastewater | E86: Sewerage | F86: Growth | G86: Pipelines/network | H86: Other Capital expenditure | J86: Straight line | K86: Ongoing | L86: 60 | M86: 60 | Q86: 0.25263636 | R86: 0.96605308 | S86: 0.95849394 | T86: 1.819409508 | U86: 0.10222973 | V86: 0.98248641 | W86: 3.24349776 | X86: 1.85347233 | Y86: 8.775015 | Z86: 5.22307809 | AB86: 0 | AC86: 0 | AD86: 0 | AE86: 0 | AF86: 0 | AG86: 0 | AH86: 0 | AI86: 0 | AJ86: 0 | AK86: 0 | AM86: 0 | AN86: 0 | AO86: 0 | AP86: 0 | AQ86: 0 | AR86: 0 | AS86: 0 | AT86: 0 | AU86: 0 | AV86: 0 | AX86: 0.25263636 | AY86: 0.96605308 | AZ86: 0.95849394 | BA86: 1.819409508 | BB86: 0.10222973 | BC86: 0.98248641 | BD86: 3.24349776 | BE86: 1.85347233 | BF86: 8.775015 | BG86: 5.22307809 | BI86: 0.002105303 | BJ86: 0.01226104833 | BK86: 0.02829894017 | BL86: 0.05144813557 | BM86: 0.06746179589 | BN86: 0.07650109705 | BO86: 0.1117176318 | BP86: 0.1541923826 | BQ86: 0.2427631103 | BR86: 0.3594138861 | BT86: =+IF($K86="Ongoing",AX86,IF(RIGHT($K86,2)=RIGHT(BT$39,2),SUM($AX86:AX86),0)+IF(RIGHT(BT$39,2)>RIGHT($K86,2),AX86,0)) -> 0.25263636 | BU86: =+IF($K86="Ongoing",AY86,IF(RIGHT($K86,2)=RIGHT(BU$39,2),SUM($AX86:AY86),0)+IF(RIGHT(BU$39,2)>RIGHT($K86,2),AY86,0)) -> 0.96605308 | BV86: =+IF($K86="Ongoing",AZ86,IF(RIGHT($K86,2)=RIGHT(BV$39,2),SUM($AX86:AZ86),0)+IF(RIGHT(BV$39,2)>RIGHT($K86,2),AZ86,0)) -> 0.95849394 | BW86: =+IF($K86="Ongoing",BA86,IF(RIGHT($K86,2)=RIGHT(BW$39,2),SUM($AX86:BA86),0)+IF(RIGHT(BW$39,2)>RIGHT($K86,2),BA86,0)) -> 1.819409508 | BX86: =+IF($K86="Ongoing",BB86,IF(RIGHT($K86,2)=RIGHT(BX$39,2),SUM($AX86:BB86),0)+IF(RIGHT(BX$39,2)>RIGHT($K86,2),BB86,0)) -> 0.10222973 | BY86: =+IF($K86="Ongoing",BC86,IF(RIGHT($K86,2)=RIGHT(BY$39,2),SUM($AX86:BC86),0)+IF(RIGHT(BY$39,2)>RIGHT($K86,2),BC86,0)) -> 0.98248641 | BZ86: =+IF($K86="Ongoing",BD86,IF(RIGHT($K86,2)=RIGHT(BZ$39,2),SUM($AX86:BD86),0)+IF(RIGHT(BZ$39,2)>RIGHT($K86,2),BD86,0)) -> 3.24349776 | CA86: =+IF($K86="Ongoing",BE86,IF(RIGHT($K86,2)=RIGHT(CA$39,2),SUM($AX86:BE86),0)+IF(RIGHT(CA$39,2)>RIGHT($K86,2),BE86,0)) -> 1.85347233 | CB86: =+IF($K86="Ongoing",BF86,IF(RIGHT($K86,2)=RIGHT(CB$39,2),SUM($AX86:BF86),0)+IF(RIGHT(CB$39,2)>RIGHT($K86,2),BF86,0)) -> 8.775015 | CC86: =+IF($K86="Ongoing",BG86,IF(RIGHT($K86,2)=RIGHT(CC$39,2),SUM($AX86:BG86),0)+IF(RIGHT(CC$39,2)>RIGHT($K86,2),BG86,0)) -> 5.22307809 | CE86: =+Q86*KeyAssumptionsPriceControl_FO!AC$15 -> 0.2602154508 | CF86: =+R86*KeyAssumptionsPriceControl_FO!AD$15 -> 1.024885713 | CG86: =+S86*KeyAssumptionsPriceControl_FO!AE$15 -> 1.047372208 | CH86: =+T86*KeyAssumptionsPriceControl_FO!AF$15 -> 2.047761431 | CI86: =+U86*KeyAssumptionsPriceControl_FO!AG$15 -> 0.1185122756 | CJ86: =+V86*KeyAssumptionsPriceControl_FO!AH$15 -> 1.173140154 | CK86: =+W86*KeyAssumptionsPriceControl_FO!AI$15 -> 3.989093128 | CL86: =+X86*KeyAssumptionsPriceControl_FO!AJ$15 -> 2.347923294 | CM86: =+Y86*KeyAssumptionsPriceControl_FO!AK$15 -> 11.44940426 | CN86: =+Z86*KeyAssumptionsPriceControl_FO!AL$15 -> 7.019380196 | CP86: 0.00216846209 | CQ86: 0.01287763845 | CR86: 0.03014645445 | CS86: 0.05593923477 | CT86: 0.07399151566 | CU86: 0.0847552859 | CV86: 0.1277738966 | CW86: 0.1805823668 | CX86: 0.2955600964 | CY86: 0.4494666335
C87: Other Projects - Wastewater | E87: Sewerage | F87: Growth | G87: Treatment | H87: Other Capital expenditure | J87: Straight line | K87: Ongoing | L87: 60 | M87: 60 | Q87: 0.38686008 | R87: 0.18642966 | S87: 0.9828386717 | T87: 0.63054 | U87: 0.31527 | V87: 0.42162108 | W87: 11.06515488 | X87: 10.73161236 | Y87: 2.540717685 | Z87: 0 | AB87: 0 | AC87: 0 | AD87: 0 | AE87: 0 | AF87: 0 | AG87: 0 | AH87: 0 | AI87: 0 | AJ87: 0 | AK87: 0 | AM87: 0 | AN87: 0 | AO87: 0 | AP87: 0 | AQ87: 0 | AR87: 0 | AS87: 0 | AT87: 0 | AU87: 0 | AV87: 0 | AX87: 0.38686008 | AY87: 0.18642966 | AZ87: 0.9828386717 | BA87: 0.63054 | BB87: 0.31527 | BC87: 0.42162108 | BD87: 11.06515488 | BE87: 10.73161236 | BF87: 2.540717685 | BG87: 0 | BI87: 0.003223834 | BJ87: 0.0080012485 | BK87: 0.01774515126 | BL87: 0.03118997353 | BM87: 0.03907172353 | BN87: 0.04521248253 | BO87: 0.1409356155 | BP87: 0.3225753425 | BQ87: 0.4331780929 | BR87: 0.4543507403 | BT87: =+IF($K87="Ongoing",AX87,IF(RIGHT($K87,2)=RIGHT(BT$39,2),SUM($AX87:AX87),0)+IF(RIGHT(BT$39,2)>RIGHT($K87,2),AX87,0)) -> 0.38686008 | BU87: =+IF($K87="Ongoing",AY87,IF(RIGHT($K87,2)=RIGHT(BU$39,2),SUM($AX87:AY87),0)+IF(RIGHT(BU$39,2)>RIGHT($K87,2),AY87,0)) -> 0.18642966 | BV87: =+IF($K87="Ongoing",AZ87,IF(RIGHT($K87,2)=RIGHT(BV$39,2),SUM($AX87:AZ87),0)+IF(RIGHT(BV$39,2)>RIGHT($K87,2),AZ87,0)) -> 0.9828386717 | BW87: =+IF($K87="Ongoing",BA87,IF(RIGHT($K87,2)=RIGHT(BW$39,2),SUM($AX87:BA87),0)+IF(RIGHT(BW$39,2)>RIGHT($K87,2),BA87,0)) -> 0.63054 | BX87: =+IF($K87="Ongoing",BB87,IF(RIGHT($K87,2)=RIGHT(BX$39,2),SUM($AX87:BB87),0)+IF(RIGHT(BX$39,2)>RIGHT($K87,2),BB87,0)) -> 0.31527 | BY87: =+IF($K87="Ongoing",BC87,IF(RIGHT($K87,2)=RIGHT(BY$39,2),SUM($AX87:BC87),0)+IF(RIGHT(BY$39,2)>RIGHT($K87,2),BC87,0)) -> 0.42162108 | BZ87: =+IF($K87="Ongoing",BD87,IF(RIGHT($K87,2)=RIGHT(BZ$39,2),SUM($AX87:BD87),0)+IF(RIGHT(BZ$39,2)>RIGHT($K87,2),BD87,0)) -> 11.06515488 | CA87: =+IF($K87="Ongoing",BE87,IF(RIGHT($K87,2)=RIGHT(CA$39,2),SUM($AX87:BE87),0)+IF(RIGHT(CA$39,2)>RIGHT($K87,2),BE87,0)) -> 10.73161236 | CB87: =+IF($K87="Ongoing",BF87,IF(RIGHT($K87,2)=RIGHT(CB$39,2),SUM($AX87:BF87),0)+IF(RIGHT(CB$39,2)>RIGHT($K87,2),BF87,0)) -> 2.540717685 | CC87: =+IF($K87="Ongoing",BG87,IF(RIGHT($K87,2)=RIGHT(CC$39,2),SUM($AX87:BG87),0)+IF(RIGHT(CC$39,2)>RIGHT($K87,2),BG87,0)) -> 0 | CE87: =+Q87*KeyAssumptionsPriceControl_FO!AC$15 -> 0.3984658824 | CF87: =+R87*KeyAssumptionsPriceControl_FO!AD$15 -> 0.1977832263 | CG87: =+S87*KeyAssumptionsPriceControl_FO!AE$15 -> 1.073974353 | CH87: =+T87*KeyAssumptionsPriceControl_FO!AF$15 -> 0.7096783251 | CI87: =+U87*KeyAssumptionsPriceControl_FO!AG$15 -> 0.3654843374 | CJ87: =+V87*KeyAssumptionsPriceControl_FO!AH$15 -> 0.5034376188 | CK87: =+W87*KeyAssumptionsPriceControl_FO!AI$15 -> 13.6087448 | CL87: =+X87*KeyAssumptionsPriceControl_FO!AJ$15 -> 13.59448546 | CM87: =+Y87*KeyAssumptionsPriceControl_FO!AK$15 -> 3.315060304 | CN87: =+Z87*KeyAssumptionsPriceControl_FO!AL$15 -> 0 | CP87: 0.00332054902 | CQ87: 0.008289291592 | CR87: 0.01888727142 | CS87: 0.03375104374 | CT87: 0.04271073259 | CU87: 0.0499517489 | CV87: 0.1675532691 | CW87: 0.3942468546 | CX87: 0.535159736 | CY87: 0.5627852385
C88: Other Projects - Wastewater | E88: Sewerage | F88: Improvements / Compliance | G88: Pipelines/network | H88: Other Capital expenditure | J88: Straight line | K88: Ongoing | L88: 60 | M88: 60 | Q88: 0.25084983 | R88: 0.07923786 | S88: 0.08949236 | T88: 1.568892631 | U88: 0.17329341 | V88: 0.87214191 | W88: 1.06256499 | X88: 0.53133504 | Y88: 0.21722103 | Z88: 1.7697156 | AB88: 0 | AC88: 0 | AD88: 0 | AE88: 0 | AF88: 0 | AG88: 0 | AH88: 0 | AI88: 0 | AJ88: 0 | AK88: 0 | AM88: 0 | AN88: 0 | AO88: 0 | AP88: 0 | AQ88: 0 | AR88: 0 | AS88: 0 | AT88: 0 | AU88: 0 | AV88: 0 | AX88: 0.25084983 | AY88: 0.07923786 | AZ88: 0.08949236 | BA88: 1.568892631 | BB88: 0.17329341 | BC88: 0.87214191 | BD88: 1.06256499 | BE88: 0.53133504 | BF88: 0.21722103 | BG88: 1.7697156 | BI88: 0.00209041525 | BJ88: 0.004841146 | BK88: 0.006247231167 | BL88: 0.02006710609 | BM88: 0.03458532311 | BN88: 0.04329728411 | BO88: 0.05941984161 | BP88: 0.07270234186 | BQ88: 0.07894030911 | BR88: 0.09549811436 | BT88: =+IF($K88="Ongoing",AX88,IF(RIGHT($K88,2)=RIGHT(BT$39,2),SUM($AX88:AX88),0)+IF(RIGHT(BT$39,2)>RIGHT($K88,2),AX88,0)) -> 0.25084983 | BU88: =+IF($K88="Ongoing",AY88,IF(RIGHT($K88,2)=RIGHT(BU$39,2),SUM($AX88:AY88),0)+IF(RIGHT(BU$39,2)>RIGHT($K88,2),AY88,0)) -> 0.07923786 | BV88: =+IF($K88="Ongoing",AZ88,IF(RIGHT($K88,2)=RIGHT(BV$39,2),SUM($AX88:AZ88),0)+IF(RIGHT(BV$39,2)>RIGHT($K88,2),AZ88,0)) -> 0.08949236 | BW88: =+IF($K88="Ongoing",BA88,IF(RIGHT($K88,2)=RIGHT(BW$39,2),SUM($AX88:BA88),0)+IF(RIGHT(BW$39,2)>RIGHT($K88,2),BA88,0)) -> 1.568892631 | BX88: =+IF($K88="Ongoing",BB88,IF(RIGHT($K88,2)=RIGHT(BX$39,2),SUM($AX88:BB88),0)+IF(RIGHT(BX$39,2)>RIGHT($K88,2),BB88,0)) -> 0.17329341 | BY88: =+IF($K88="Ongoing",BC88,IF(RIGHT($K88,2)=RIGHT(BY$39,2),SUM($AX88:BC88),0)+IF(RIGHT(BY$39,2)>RIGHT($K88,2),BC88,0)) -> 0.87214191 | BZ88: =+IF($K88="Ongoing",BD88,IF(RIGHT($K88,2)=RIGHT(BZ$39,2),SUM($AX88:BD88),0)+IF(RIGHT(BZ$39,2)>RIGHT($K88,2),BD88,0)) -> 1.06256499 | CA88: =+IF($K88="Ongoing",BE88,IF(RIGHT($K88,2)=RIGHT(CA$39,2),SUM($AX88:BE88),0)+IF(RIGHT(CA$39,2)>RIGHT($K88,2),BE88,0)) -> 0.53133504 | CB88: =+IF($K88="Ongoing",BF88,IF(RIGHT($K88,2)=RIGHT(CB$39,2),SUM($AX88:BF88),0)+IF(RIGHT(CB$39,2)>RIGHT($K88,2),BF88,0)) -> 0.21722103 | CC88: =+IF($K88="Ongoing",BG88,IF(RIGHT($K88,2)=RIGHT(CC$39,2),SUM($AX88:BG88),0)+IF(RIGHT(CC$39,2)>RIGHT($K88,2),BG88,0)) -> 1.7697156 | CE88: =+Q88*KeyAssumptionsPriceControl_FO!AC$15 -> 0.2583753249 | CF88: =+R88*KeyAssumptionsPriceControl_FO!AD$15 -> 0.08406344567 | CG88: =+S88*KeyAssumptionsPriceControl_FO!AE$15 -> 0.09779071807 | CH88: =+T88*KeyAssumptionsPriceControl_FO!AF$15 -> 1.765802479 | CI88: =+U88*KeyAssumptionsPriceControl_FO!AG$15 -> 0.2008945575 | CJ88: =+V88*KeyAssumptionsPriceControl_FO!AH$15 -> 1.041383051 | CK88: =+W88*KeyAssumptionsPriceControl_FO!AI$15 -> 1.306820912 | CL88: =+X88*KeyAssumptionsPriceControl_FO!AJ$15 -> 0.6730793319 | CM88: =+Y88*KeyAssumptionsPriceControl_FO!AK$15 -> 0.2834241749 | CN88: =+Z88*KeyAssumptionsPriceControl_FO!AL$15 -> 2.378349782 | CP88: 0.002153127707 | CQ88: 0.005006784129 | CR88: 0.006522235493 | CS88: 0.0220521788 | CT88: 0.03844132077 | CU88: 0.04879363417 | CV88: 0.06836200052 | CW88: 0.08486116921 | CX88: 0.09283203177 | CY88: 0.1150134814
C89: Other Projects - Wastewater | E89: Sewerage | F89: Improvements / Compliance | G89: Treatment | H89: Other Capital expenditure | J89: Straight line | K89: Ongoing | L89: 60 | M89: 60 | Q89: 0.2972905 | R89: 0.03699168 | S89: 0 | T89: 0 | U89: 0.28016994 | V89: 2.1343779 | W89: 1.33422264 | X89: 0.97922862 | Y89: 3.51347397 | Z89: 0.11580918 | AB89: 0 | AC89: 0 | AD89: 0 | AE89: 0 | AF89: 0 | AG89: 0 | AH89: 0 | AI89: 0 | AJ89: 0 | AK89: 0 | AM89: 0 | AN89: 0 | AO89: 0 | AP89: 0 | AQ89: 0 | AR89: 0 | AS89: 0 | AT89: 0 | AU89: 0 | AV89: 0 | AX89: 0.2972905 | AY89: 0.03699168 | AZ89: 0 | BA89: 0 | BB89: 0.28016994 | BC89: 2.1343779 | BD89: 1.33422264 | BE89: 0.97922862 | BF89: 3.51347397 | BG89: 0.11580918 | BI89: 0.002477420833 | BJ89: 0.005263105667 | BK89: 0.005571369667 | BL89: 0.005571369667 | BM89: 0.007906119167 | BN89: 0.02802735117 | BO89: 0.05693235567 | BP89: 0.07621111617 | BQ89: 0.1136503044 | BR89: 0.1438943307 | BT89: =+IF($K89="Ongoing",AX89,IF(RIGHT($K89,2)=RIGHT(BT$39,2),SUM($AX89:AX89),0)+IF(RIGHT(BT$39,2)>RIGHT($K89,2),AX89,0)) -> 0.2972905 | BU89: =+IF($K89="Ongoing",AY89,IF(RIGHT($K89,2)=RIGHT(BU$39,2),SUM($AX89:AY89),0)+IF(RIGHT(BU$39,2)>RIGHT($K89,2),AY89,0)) -> 0.03699168 | BV89: =+IF($K89="Ongoing",AZ89,IF(RIGHT($K89,2)=RIGHT(BV$39,2),SUM($AX89:AZ89),0)+IF(RIGHT(BV$39,2)>RIGHT($K89,2),AZ89,0)) -> 0 | BW89: =+IF($K89="Ongoing",BA89,IF(RIGHT($K89,2)=RIGHT(BW$39,2),SUM($AX89:BA89),0)+IF(RIGHT(BW$39,2)>RIGHT($K89,2),BA89,0)) -> 0 | BX89: =+IF($K89="Ongoing",BB89,IF(RIGHT($K89,2)=RIGHT(BX$39,2),SUM($AX89:BB89),0)+IF(RIGHT(BX$39,2)>RIGHT($K89,2),BB89,0)) -> 0.28016994 | BY89: =+IF($K89="Ongoing",BC89,IF(RIGHT($K89,2)=RIGHT(BY$39,2),SUM($AX89:BC89),0)+IF(RIGHT(BY$39,2)>RIGHT($K89,2),BC89,0)) -> 2.1343779 | BZ89: =+IF($K89="Ongoing",BD89,IF(RIGHT($K89,2)=RIGHT(BZ$39,2),SUM($AX89:BD89),0)+IF(RIGHT(BZ$39,2)>RIGHT($K89,2),BD89,0)) -> 1.33422264 | CA89: =+IF($K89="Ongoing",BE89,IF(RIGHT($K89,2)=RIGHT(CA$39,2),SUM($AX89:BE89),0)+IF(RIGHT(CA$39,2)>RIGHT($K89,2),BE89,0)) -> 0.97922862 | CB89: =+IF($K89="Ongoing",BF89,IF(RIGHT($K89,2)=RIGHT(CB$39,2),SUM($AX89:BF89),0)+IF(RIGHT(CB$39,2)>RIGHT($K89,2),BF89,0)) -> 3.51347397 | CC89: =+IF($K89="Ongoing",BG89,IF(RIGHT($K89,2)=RIGHT(CC$39,2),SUM($AX89:BG89),0)+IF(RIGHT(CC$39,2)>RIGHT($K89,2),BG89,0)) -> 0.11580918 | CE89: =+Q89*KeyAssumptionsPriceControl_FO!AC$15 -> 0.306209215 | CF89: =+R89*KeyAssumptionsPriceControl_FO!AD$15 -> 0.03924447331 | CG89: =+S89*KeyAssumptionsPriceControl_FO!AE$15 -> 0 | CH89: =+T89*KeyAssumptionsPriceControl_FO!AF$15 -> 0 | CI89: =+U89*KeyAssumptionsPriceControl_FO!AG$15 -> 0.3247937478 | CJ89: =+V89*KeyAssumptionsPriceControl_FO!AH$15 -> 2.548558833 | CK89: =+W89*KeyAssumptionsPriceControl_FO!AI$15 -> 1.640925556 | CL89: =+X89*KeyAssumptionsPriceControl_FO!AJ$15 -> 1.240457519 | CM89: =+Y89*KeyAssumptionsPriceControl_FO!AK$15 -> 4.584286618 | CN89: =+Z89*KeyAssumptionsPriceControl_FO!AL$15 -> 0.1556378539 | CP89: 0.002551743458 | CQ89: 0.005430524194 | CR89: 0.005757561472 | CS89: 0.005757561472 | CT89: 0.008464176037 | CU89: 0.03240878088 | CV89: 0.06732115079 | CW89: 0.0913326764 | CX89: 0.1398722109 | CY89: 0.1793715815
C90: Other Projects - Wastewater | E90: Sewerage | F90: Renewals | G90: Pipelines/network | H90: Other Capital expenditure | J90: Straight line | K90: Ongoing | L90: 60 | M90: 60 | Q90: 2.2907975 | R90: 0.6017225 | S90: 1.447697 | T90: 0.1708535 | U90: 0.26976603 | V90: 4.10134743 | W90: 5.24640807 | X90: 6.1771902 | Y90: 1.794494 | Z90: 1.933985 | AB90: 0 | AC90: 0 | AD90: 0 | AE90: 0 | AF90: 0 | AG90: 0 | AH90: 0 | AI90: 0 | AJ90: 0 | AK90: 0 | AM90: 0 | AN90: 0 | AO90: 0 | AP90: 0 | AQ90: 0 | AR90: 0 | AS90: 0.21018 | AT90: 1.57635 | AU90: 1.26108 | AV90: 0.052545 | AX90: 2.2907975 | AY90: 0.6017225 | AZ90: 1.447697 | BA90: 0.1708535 | BB90: 0.26976603 | BC90: 4.10134743 | BD90: 5.03622807 | BE90: 4.6008402 | BF90: 0.533414 | BG90: 1.88144 | BI90: 0.01908997917 | BJ90: 0.0431943125 | BK90: 0.06027280833 | BL90: 0.07376072917 | BM90: 0.07743255858 | BN90: 0.1138585041 | BO90: 0.1900049666 | BP90: 0.2703138688 | BQ90: 0.3130993205 | BR90: 0.3332231038 | BT90: =+IF($K90="Ongoing",AX90,IF(RIGHT($K90,2)=RIGHT(BT$39,2),SUM($AX90:AX90),0)+IF(RIGHT(BT$39,2)>RIGHT($K90,2),AX90,0)) -> 2.2907975 | BU90: =+IF($K90="Ongoing",AY90,IF(RIGHT($K90,2)=RIGHT(BU$39,2),SUM($AX90:AY90),0)+IF(RIGHT(BU$39,2)>RIGHT($K90,2),AY90,0)) -> 0.6017225 | BV90: =+IF($K90="Ongoing",AZ90,IF(RIGHT($K90,2)=RIGHT(BV$39,2),SUM($AX90:AZ90),0)+IF(RIGHT(BV$39,2)>RIGHT($K90,2),AZ90,0)) -> 1.447697 | BW90: =+IF($K90="Ongoing",BA90,IF(RIGHT($K90,2)=RIGHT(BW$39,2),SUM($AX90:BA90),0)+IF(RIGHT(BW$39,2)>RIGHT($K90,2),BA90,0)) -> 0.1708535 | BX90: =+IF($K90="Ongoing",BB90,IF(RIGHT($K90,2)=RIGHT(BX$39,2),SUM($AX90:BB90),0)+IF(RIGHT(BX$39,2)>RIGHT($K90,2),BB90,0)) -> 0.26976603 | BY90: =+IF($K90="Ongoing",BC90,IF(RIGHT($K90,2)=RIGHT(BY$39,2),SUM($AX90:BC90),0)+IF(RIGHT(BY$39,2)>RIGHT($K90,2),BC90,0)) -> 4.10134743 | BZ90: =+IF($K90="Ongoing",BD90,IF(RIGHT($K90,2)=RIGHT(BZ$39,2),SUM($AX90:BD90),0)+IF(RIGHT(BZ$39,2)>RIGHT($K90,2),BD90,0)) -> 5.03622807 | CA90: =+IF($K90="Ongoing",BE90,IF(RIGHT($K90,2)=RIGHT(CA$39,2),SUM($AX90:BE90),0)+IF(RIGHT(CA$39,2)>RIGHT($K90,2),BE90,0)) -> 4.6008402 | CB90: =+IF($K90="Ongoing",BF90,IF(RIGHT($K90,2)=RIGHT(CB$39,2),SUM($AX90:BF90),0)+IF(RIGHT(CB$39,2)>RIGHT($K90,2),BF90,0)) -> 0.533414 | CC90: =+IF($K90="Ongoing",BG90,IF(RIGHT($K90,2)=RIGHT(CC$39,2),SUM($AX90:BG90),0)+IF(RIGHT(CC$39,2)>RIGHT($K90,2),BG90,0)) -> 1.88144 | CE90: =+Q90*KeyAssumptionsPriceControl_FO!AC$15 -> 2.359521425 | CF90: =+R90*KeyAssumptionsPriceControl_FO!AD$15 -> 0.6383674003 | CG90: =+S90*KeyAssumptionsPriceControl_FO!AE$15 -> 1.5819376 | CH90: =+T90*KeyAssumptionsPriceControl_FO!AF$15 -> 0.1922971195 | CI90: =+U90*KeyAssumptionsPriceControl_FO!AG$15 -> 0.3127327647 | CJ90: =+V90*KeyAssumptionsPriceControl_FO!AH$15 -> 4.897223318 | CK90: =+W90*KeyAssumptionsPriceControl_FO!AI$15 -> 6.452420173 | CL90: =+X90*KeyAssumptionsPriceControl_FO!AJ$15 -> 7.825079732 | CM90: =+Y90*KeyAssumptionsPriceControl_FO!AK$15 -> 2.34140765 | CN90: =+Z90*KeyAssumptionsPriceControl_FO!AL$15 -> 2.599114119 | CP90: 0.01966267854 | CQ90: 0.04464508542 | CR90: 0.06314762709 | CS90: 0.07793291641 | CT90: 0.08214149878 | CU90: 0.1255577995 | CV90: 0.2201381619 | CW90: 0.3391173278 | CX90: 0.4238380559 | CY90: 0.4650090707
C91: Other Projects - Wastewater | E91: Sewerage | F91: Renewals | G91: Treatment | H91: Other Capital expenditure | J91: Straight line | K91: Ongoing | L91: 60 | M91: 60 | Q91: 0.05800968 | R91: 0.14891253 | S91: 0.11738553 | T91: 0.05433153 | U91: 0.10866306 | V91: 0.58156806 | W91: 3.54836385 | X91: 0.01134972 | Y91: 0 | Z91: 0.21018 | AB91: 0 | AC91: 0 | AD91: 0 | AE91: 0 | AF91: 0 | AG91: 0 | AH91: 0 | AI91: 0 | AJ91: 0 | AK91: 0 | AM91: 0 | AN91: 0 | AO91: 0 | AP91: 0 | AQ91: 0 | AR91: 0 | AS91: 0 | AT91: 0 | AU91: 0 | AV91: 0 | AX91: 0.05800968 | AY91: 0.14891253 | AZ91: 0.11738553 | BA91: 0.05433153 | BB91: 0.10866306 | BC91: 0.58156806 | BD91: 3.54836385 | BE91: 0.01134972 | BF91: 0 | BG91: 0.21018 | BI91: 0.000483414 | BJ91: 0.00220776575 | BK91: 0.00442691625 | BL91: 0.00585789175 | BM91: 0.00721618 | BN91: 0.012968106 | BO91: 0.04738420525 | BP91: 0.077048485 | BQ91: 0.077143066 | BR91: 0.078894566 | BT91: =+IF($K91="Ongoing",AX91,IF(RIGHT($K91,2)=RIGHT(BT$39,2),SUM($AX91:AX91),0)+IF(RIGHT(BT$39,2)>RIGHT($K91,2),AX91,0)) -> 0.05800968 | BU91: =+IF($K91="Ongoing",AY91,IF(RIGHT($K91,2)=RIGHT(BU$39,2),SUM($AX91:AY91),0)+IF(RIGHT(BU$39,2)>RIGHT($K91,2),AY91,0)) -> 0.14891253 | BV91: =+IF($K91="Ongoing",AZ91,IF(RIGHT($K91,2)=RIGHT(BV$39,2),SUM($AX91:AZ91),0)+IF(RIGHT(BV$39,2)>RIGHT($K91,2),AZ91,0)) -> 0.11738553 | BW91: =+IF($K91="Ongoing",BA91,IF(RIGHT($K91,2)=RIGHT(BW$39,2),SUM($AX91:BA91),0)+IF(RIGHT(BW$39,2)>RIGHT($K91,2),BA91,0)) -> 0.05433153 | BX91: =+IF($K91="Ongoing",BB91,IF(RIGHT($K91,2)=RIGHT(BX$39,2),SUM($AX91:BB91),0)+IF(RIGHT(BX$39,2)>RIGHT($K91,2),BB91,0)) -> 0.10866306 | BY91: =+IF($K91="Ongoing",BC91,IF(RIGHT($K91,2)=RIGHT(BY$39,2),SUM($AX91:BC91),0)+IF(RIGHT(BY$39,2)>RIGHT($K91,2),BC91,0)) -> 0.58156806 | BZ91: =+IF($K91="Ongoing",BD91,IF(RIGHT($K91,2)=RIGHT(BZ$39,2),SUM($AX91:BD91),0)+IF(RIGHT(BZ$39,2)>RIGHT($K91,2),BD91,0)) -> 3.54836385 | CA91: =+IF($K91="Ongoing",BE91,IF(RIGHT($K91,2)=RIGHT(CA$39,2),SUM($AX91:BE91),0)+IF(RIGHT(CA$39,2)>RIGHT($K91,2),BE91,0)) -> 0.01134972 | CB91: =+IF($K91="Ongoing",BF91,IF(RIGHT($K91,2)=RIGHT(CB$39,2),SUM($AX91:BF91),0)+IF(RIGHT(CB$39,2)>RIGHT($K91,2),BF91,0)) -> 0 | CC91: =+IF($K91="Ongoing",BG91,IF(RIGHT($K91,2)=RIGHT(CC$39,2),SUM($AX91:BG91),0)+IF(RIGHT(CC$39,2)>RIGHT($K91,2),BG91,0)) -> 0.21018 | CE91: =+Q91*KeyAssumptionsPriceControl_FO!AC$15 -> 0.0597499704 | CF91: =+R91*KeyAssumptionsPriceControl_FO!AD$15 -> 0.1579813031 | CG91: =+S91*KeyAssumptionsPriceControl_FO!AE$15 -> 0.128270338 | CH91: =+T91*KeyAssumptionsPriceControl_FO!AF$15 -> 0.06115061568 | CI91: =+U91*KeyAssumptionsPriceControl_FO!AG$15 -> 0.1259702683 | CJ91: =+V91*KeyAssumptionsPriceControl_FO!AH$15 -> 0.6944226776 | CK91: =+W91*KeyAssumptionsPriceControl_FO!AI$15 -> 4.364039964 | CL91: =+X91*KeyAssumptionsPriceControl_FO!AJ$15 -> 0.01437748573 | CM91: =+Y91*KeyAssumptionsPriceControl_FO!AK$15 -> 0 | CN91: =+Z91*KeyAssumptionsPriceControl_FO!AL$15 -> 0.2824643446 | CP91: 0.00049791642 | CQ91: 0.002312343699 | CR91: 0.004697774042 | CS91: 0.006276281989 | CT91: 0.007835622689 | CU91: 0.01467223057 | CV91: 0.05682608592 | CW91: 0.093312898 | CX91: 0.09343271038 | CY91: 0.09578657992
C92: Other Projects - Water | E92: Water | F92: Growth | G92: Headworks | H92: Other Capital expenditure | J92: Straight line | K92: Ongoing | L92: 60 | M92: 60 | Q92: 0.0052545 | R92: 0.0052545 | S92: 0 | T92: 0 | U92: 0 | V92: 0.021018 | W92: 0 | X92: 0 | Y92: 0.1860093 | Z92: 0.1860093 | AB92: 0 | AC92: 0 | AD92: 0 | AE92: 0 | AF92: 0 | AG92: 0 | AH92: 0 | AI92: 0 | AJ92: 0 | AK92: 0 | AM92: 0 | AN92: 0 | AO92: 0 | AP92: 0 | AQ92: 0 | AR92: 0 | AS92: 0 | AT92: 0 | AU92: 0 | AV92: 0 | AX92: 0.0052545 | AY92: 0.0052545 | AZ92: 0 | BA92: 0 | BB92: 0 | BC92: 0.021018 | BD92: 0 | BE92: 0 | BF92: 0.1860093 | BG92: 0.1860093 | BI92: 4.37875e-05 | BJ92: 0.0001313625 | BK92: 0.00017515 | BL92: 0.00017515 | BM92: 0.00017515 | BN92: 0.0003503 | BO92: 0.00052545 | BP92: 0.00052545 | BQ92: 0.0020755275 | BR92: 0.0051756825 | BT92: =+IF($K92="Ongoing",AX92,IF(RIGHT($K92,2)=RIGHT(BT$39,2),SUM($AX92:AX92),0)+IF(RIGHT(BT$39,2)>RIGHT($K92,2),AX92,0)) -> 0.0052545 | BU92: =+IF($K92="Ongoing",AY92,IF(RIGHT($K92,2)=RIGHT(BU$39,2),SUM($AX92:AY92),0)+IF(RIGHT(BU$39,2)>RIGHT($K92,2),AY92,0)) -> 0.0052545 | BV92: =+IF($K92="Ongoing",AZ92,IF(RIGHT($K92,2)=RIGHT(BV$39,2),SUM($AX92:AZ92),0)+IF(RIGHT(BV$39,2)>RIGHT($K92,2),AZ92,0)) -> 0 | BW92: =+IF($K92="Ongoing",BA92,IF(RIGHT($K92,2)=RIGHT(BW$39,2),SUM($AX92:BA92),0)+IF(RIGHT(BW$39,2)>RIGHT($K92,2),BA92,0)) -> 0 | BX92: =+IF($K92="Ongoing",BB92,IF(RIGHT($K92,2)=RIGHT(BX$39,2),SUM($AX92:BB92),0)+IF(RIGHT(BX$39,2)>RIGHT($K92,2),BB92,0)) -> 0 | BY92: =+IF($K92="Ongoing",BC92,IF(RIGHT($K92,2)=RIGHT(BY$39,2),SUM($AX92:BC92),0)+IF(RIGHT(BY$39,2)>RIGHT($K92,2),BC92,0)) -> 0.021018 | BZ92: =+IF($K92="Ongoing",BD92,IF(RIGHT($K92,2)=RIGHT(BZ$39,2),SUM($AX92:BD92),0)+IF(RIGHT(BZ$39,2)>RIGHT($K92,2),BD92,0)) -> 0 | CA92: =+IF($K92="Ongoing",BE92,IF(RIGHT($K92,2)=RIGHT(CA$39,2),SUM($AX92:BE92),0)+IF(RIGHT(CA$39,2)>RIGHT($K92,2),BE92,0)) -> 0 | CB92: =+IF($K92="Ongoing",BF92,IF(RIGHT($K92,2)=RIGHT(CB$39,2),SUM($AX92:BF92),0)+IF(RIGHT(CB$39,2)>RIGHT($K92,2),BF92,0)) -> 0.1860093 | CC92: =+IF($K92="Ongoing",BG92,IF(RIGHT($K92,2)=RIGHT(CC$39,2),SUM($AX92:BG92),0)+IF(RIGHT(CC$39,2)>RIGHT($K92,2),BG92,0)) -> 0.1860093 | CE92: =+Q92*KeyAssumptionsPriceControl_FO!AC$15 -> 0.005412135 | CF92: =+R92*KeyAssumptionsPriceControl_FO!AD$15 -> 0.00557449905 | CG92: =+S92*KeyAssumptionsPriceControl_FO!AE$15 -> 0 | CH92: =+T92*KeyAssumptionsPriceControl_FO!AF$15 -> 0 | CI92: =+U92*KeyAssumptionsPriceControl_FO!AG$15 -> 0 | CJ92: =+V92*KeyAssumptionsPriceControl_FO!AH$15 -> 0.02509659117 | CK92: =+W92*KeyAssumptionsPriceControl_FO!AI$15 -> 0 | CL92: =+X92*KeyAssumptionsPriceControl_FO!AJ$15 -> 0 | CM92: =+Y92*KeyAssumptionsPriceControl_FO!AK$15 -> 0.2426999466 | CN92: =+Z92*KeyAssumptionsPriceControl_FO!AL$15 -> 0.249980945 | CP92: 4.5101125e-05 | CQ92: 0.0001366564087 | CR92: 0.0001831105675 | CS92: 0.0001831105675 | CT92: 0.0001831105675 | CU92: 0.0003922488272 | CV92: 0.000601387087 | CW92: 0.000601387087 | CX92: 0.002623886642 | CY92: 0.006729560738
C93: Other Projects - Water | E93: Water | F93: Growth | G93: Pipelines/network | H93: Other Capital expenditure | J93: Straight line | K93: Ongoing | L93: 60 | M93: 60 | Q93: 0.15721464 | R93: 0.41247825 | S93: 0.1450578288 | T93: 1.13267158 | U93: 0.4556397639 | V93: 1.9294529 | W93: 3.0875442 | X93: 0.80572503 | Y93: 0.21259707 | Z93: 0.7450881 | AB93: 0 | AC93: 0 | AD93: 0 | AE93: 0 | AF93: 0 | AG93: 0 | AH93: 0 | AI93: 0 | AJ93: 0 | AK93: 0 | AM93: 0 | AN93: 0 | AO93: 0 | AP93: 0 | AQ93: 0 | AR93: 0 | AS93: 0 | AT93: 0 | AU93: 0 | AV93: 0 | AX93: 0.15721464 | AY93: 0.41247825 | AZ93: 0.1450578288 | BA93: 1.13267158 | BB93: 0.4556397639 | BC93: 1.9294529 | BD93: 3.0875442 | BE93: 0.80572503 | BF93: 0.21259707 | BG93: 0.7450881 | BI93: 0.001310122 | BJ93: 0.00605756275 | BK93: 0.01070369674 | BL93: 0.02135144181 | BM93: 0.03458736968 | BN93: 0.05446314188 | BO93: 0.09627145104 | BP93: 0.1287153613 | BQ93: 0.1372013788 | BR93: 0.1451820885 | BT93: =+IF($K93="Ongoing",AX93,IF(RIGHT($K93,2)=RIGHT(BT$39,2),SUM($AX93:AX93),0)+IF(RIGHT(BT$39,2)>RIGHT($K93,2),AX93,0)) -> 0.15721464 | BU93: =+IF($K93="Ongoing",AY93,IF(RIGHT($K93,2)=RIGHT(BU$39,2),SUM($AX93:AY93),0)+IF(RIGHT(BU$39,2)>RIGHT($K93,2),AY93,0)) -> 0.41247825 | BV93: =+IF($K93="Ongoing",AZ93,IF(RIGHT($K93,2)=RIGHT(BV$39,2),SUM($AX93:AZ93),0)+IF(RIGHT(BV$39,2)>RIGHT($K93,2),AZ93,0)) -> 0.1450578288 | BW93: =+IF($K93="Ongoing",BA93,IF(RIGHT($K93,2)=RIGHT(BW$39,2),SUM($AX93:BA93),0)+IF(RIGHT(BW$39,2)>RIGHT($K93,2),BA93,0)) -> 1.13267158 | BX93: =+IF($K93="Ongoing",BB93,IF(RIGHT($K93,2)=RIGHT(BX$39,2),SUM($AX93:BB93),0)+IF(RIGHT(BX$39,2)>RIGHT($K93,2),BB93,0)) -> 0.4556397639 | BY93: =+IF($K93="Ongoing",BC93,IF(RIGHT($K93,2)=RIGHT(BY$39,2),SUM($AX93:BC93),0)+IF(RIGHT(BY$39,2)>RIGHT($K93,2),BC93,0)) -> 1.9294529 | BZ93: =+IF($K93="Ongoing",BD93,IF(RIGHT($K93,2)=RIGHT(BZ$39,2),SUM($AX93:BD93),0)+IF(RIGHT(BZ$39,2)>RIGHT($K93,2),BD93,0)) -> 3.0875442 | CA93: =+IF($K93="Ongoing",BE93,IF(RIGHT($K93,2)=RIGHT(CA$39,2),SUM($AX93:BE93),0)+IF(RIGHT(CA$39,2)>RIGHT($K93,2),BE93,0)) -> 0.80572503 | CB93: =+IF($K93="Ongoing",BF93,IF(RIGHT($K93,2)=RIGHT(CB$39,2),SUM($AX93:BF93),0)+IF(RIGHT(CB$39,2)>RIGHT($K93,2),BF93,0)) -> 0.21259707 | CC93: =+IF($K93="Ongoing",BG93,IF(RIGHT($K93,2)=RIGHT(CC$39,2),SUM($AX93:BG93),0)+IF(RIGHT(CC$39,2)>RIGHT($K93,2),BG93,0)) -> 0.7450881 | CE93: =+Q93*KeyAssumptionsPriceControl_FO!AC$15 -> 0.1619310792 | CF93: =+R93*KeyAssumptionsPriceControl_FO!AD$15 -> 0.4375981754 | CG93: =+S93*KeyAssumptionsPriceControl_FO!AE$15 -> 0.1585086061 | CH93: =+T93*KeyAssumptionsPriceControl_FO!AF$15 -> 1.274831842 | CI93: =+U93*KeyAssumptionsPriceControl_FO!AG$15 -> 0.5282113655 | CJ93: =+V93*KeyAssumptionsPriceControl_FO!AH$15 -> 2.303867666 | CK93: =+W93*KeyAssumptionsPriceControl_FO!AI$15 -> 3.79728992 | CL93: =+X93*KeyAssumptionsPriceControl_FO!AJ$15 -> 1.020668362 | CM93: =+Y93*KeyAssumptionsPriceControl_FO!AK$15 -> 0.2773909559 | CN93: =+Z93*KeyAssumptionsPriceControl_FO!AL$15 -> 1.001336102 | CP93: 0.00134942566 | CQ93: 0.006345502782 | CR93: 0.01131305929 | CS93: 0.02325756303 | CT93: 0.03828292309 | CU93: 0.06188358169 | CV93: 0.1127265616 | CW93: 0.1528762139 | CX93: 0.1636933749 | CY93: 0.1743494337
C94: Other Projects - Water | E94: Water | F94: Growth | G94: Treatment | H94: Other Capital expenditure | J94: Straight line | K94: Ongoing | L94: 60 | M94: 60 | Q94: 4.85098048 | R94: 0.94759653 | S94: 0.94581 | T94: 0.231198 | U94: 0.42277707 | V94: 7.52679894 | W94: 5.88325347 | X94: 9.39336456 | Y94: 9.08954937 | Z94: 1.79241504 | AB94: 0 | AC94: 0 | AD94: 0 | AE94: 0 | AF94: 0 | AG94: 0 | AH94: 0 | AI94: 0 | AJ94: 0 | AK94: 0 | AM94: 0 | AN94: 0 | AO94: 0 | AP94: 0 | AQ94: 0 | AR94: 0 | AS94: 0 | AT94: 0 | AU94: 0 | AV94: 0 | AX94: 4.85098048 | AY94: 0.94759653 | AZ94: 0.94581 | BA94: 0.231198 | BB94: 0.42277707 | BC94: 7.52679894 | BD94: 5.88325347 | BE94: 9.39336456 | BF94: 9.08954937 | BG94: 1.79241504 | BI94: 0.04042483733 | BJ94: 0.08874631242 | BK94: 0.1045247002 | BL94: 0.1143331002 | BM94: 0.1197828924 | BN94: 0.1860293592 | BO94: 0.2977797959 | BP94: 0.4250849462 | BQ94: 0.5791092289 | BR94: 0.6697922657 | BT94: =+IF($K94="Ongoing",AX94,IF(RIGHT($K94,2)=RIGHT(BT$39,2),SUM($AX94:AX94),0)+IF(RIGHT(BT$39,2)>RIGHT($K94,2),AX94,0)) -> 4.85098048 | BU94: =+IF($K94="Ongoing",AY94,IF(RIGHT($K94,2)=RIGHT(BU$39,2),SUM($AX94:AY94),0)+IF(RIGHT(BU$39,2)>RIGHT($K94,2),AY94,0)) -> 0.94759653 | BV94: =+IF($K94="Ongoing",AZ94,IF(RIGHT($K94,2)=RIGHT(BV$39,2),SUM($AX94:AZ94),0)+IF(RIGHT(BV$39,2)>RIGHT($K94,2),AZ94,0)) -> 0.94581 | BW94: =+IF($K94="Ongoing",BA94,IF(RIGHT($K94,2)=RIGHT(BW$39,2),SUM($AX94:BA94),0)+IF(RIGHT(BW$39,2)>RIGHT($K94,2),BA94,0)) -> 0.231198 | BX94: =+IF($K94="Ongoing",BB94,IF(RIGHT($K94,2)=RIGHT(BX$39,2),SUM($AX94:BB94),0)+IF(RIGHT(BX$39,2)>RIGHT($K94,2),BB94,0)) -> 0.42277707 | BY94: =+IF($K94="Ongoing",BC94,IF(RIGHT($K94,2)=RIGHT(BY$39,2),SUM($AX94:BC94),0)+IF(RIGHT(BY$39,2)>RIGHT($K94,2),BC94,0)) -> 7.52679894 | BZ94: =+IF($K94="Ongoing",BD94,IF(RIGHT($K94,2)=RIGHT(BZ$39,2),SUM($AX94:BD94),0)+IF(RIGHT(BZ$39,2)>RIGHT($K94,2),BD94,0)) -> 5.88325347 | CA94: =+IF($K94="Ongoing",BE94,IF(RIGHT($K94,2)=RIGHT(CA$39,2),SUM($AX94:BE94),0)+IF(RIGHT(CA$39,2)>RIGHT($K94,2),BE94,0)) -> 9.39336456 | CB94: =+IF($K94="Ongoing",BF94,IF(RIGHT($K94,2)=RIGHT(CB$39,2),SUM($AX94:BF94),0)+IF(RIGHT(CB$39,2)>RIGHT($K94,2),BF94,0)) -> 9.08954937 | CC94: =+IF($K94="Ongoing",BG94,IF(RIGHT($K94,2)=RIGHT(CC$39,2),SUM($AX94:BG94),0)+IF(RIGHT(CC$39,2)>RIGHT($K94,2),BG94,0)) -> 1.79241504 | CE94: =+Q94*KeyAssumptionsPriceControl_FO!AC$15 -> 4.996509894 | CF94: =+R94*KeyAssumptionsPriceControl_FO!AD$15 -> 1.005305159 | CG94: =+S94*KeyAssumptionsPriceControl_FO!AE$15 -> 1.033512124 | CH94: =+T94*KeyAssumptionsPriceControl_FO!AF$15 -> 0.2602153859 | CI94: =+U94*KeyAssumptionsPriceControl_FO!AG$15 -> 0.4901144965 | CJ94: =+V94*KeyAssumptionsPriceControl_FO!AH$15 -> 8.98739156 | CK94: =+W94*KeyAssumptionsPriceControl_FO!AI$15 -> 7.235659686 | CL94: =+X94*KeyAssumptionsPriceControl_FO!AJ$15 -> 11.89923319 | CM94: =+Y94*KeyAssumptionsPriceControl_FO!AK$15 -> 11.85980027 | CN94: =+Z94*KeyAssumptionsPriceControl_FO!AL$15 -> 2.408855931 | CP94: 0.04163758245 | CQ94: 0.0916527079 | CR94: 0.1086428519 | CS94: 0.1194239145 | CT94: 0.1256766635 | CU94: 0.2046558807 | CV94: 0.3398479744 | CW94: 0.499305415 | CX94: 0.6972973605 | CY94: 0.8162028288
C95: Other Projects - Water | E95: Water | F95: Improvements / Compliance | G95: Headworks | H95: Other Capital expenditure | J95: Straight line | K95: Ongoing | L95: 60 | M95: 60 | Q95: 0.05317554 | R95: 0.0052545 | S95: 0.21018 | T95: 0 | U95: 0.05317554 | V95: 0.05317554 | W95: 1.27516206 | X95: 0.05433153 | Y95: 0.651558 | Z95: 0 | AB95: 0 | AC95: 0 | AD95: 0 | AE95: 0 | AF95: 0 | AG95: 0 | AH95: 0 | AI95: 0 | AJ95: 0 | AK95: 0 | AM95: 0 | AN95: 0 | AO95: 0 | AP95: 0 | AQ95: 0 | AR95: 0 | AS95: 0 | AT95: 0 | AU95: 0 | AV95: 0 | AX95: 0.05317554 | AY95: 0.0052545 | AZ95: 0.21018 | BA95: 0 | BB95: 0.05317554 | BC95: 0.05317554 | BD95: 1.27516206 | BE95: 0.05433153 | BF95: 0.651558 | BG95: 0 | BI95: 0.0004431295 | BJ95: 0.0009300465 | BK95: 0.002725334 | BL95: 0.004476834 | BM95: 0.0049199635 | BN95: 0.0058062225 | BO95: 0.0168757025 | BP95: 0.02795481575 | BQ95: 0.0338372285 | BR95: 0.0392668785 | BT95: =+IF($K95="Ongoing",AX95,IF(RIGHT($K95,2)=RIGHT(BT$39,2),SUM($AX95:AX95),0)+IF(RIGHT(BT$39,2)>RIGHT($K95,2),AX95,0)) -> 0.05317554 | BU95: =+IF($K95="Ongoing",AY95,IF(RIGHT($K95,2)=RIGHT(BU$39,2),SUM($AX95:AY95),0)+IF(RIGHT(BU$39,2)>RIGHT($K95,2),AY95,0)) -> 0.0052545 | BV95: =+IF($K95="Ongoing",AZ95,IF(RIGHT($K95,2)=RIGHT(BV$39,2),SUM($AX95:AZ95),0)+IF(RIGHT(BV$39,2)>RIGHT($K95,2),AZ95,0)) -> 0.21018 | BW95: =+IF($K95="Ongoing",BA95,IF(RIGHT($K95,2)=RIGHT(BW$39,2),SUM($AX95:BA95),0)+IF(RIGHT(BW$39,2)>RIGHT($K95,2),BA95,0)) -> 0 | BX95: =+IF($K95="Ongoing",BB95,IF(RIGHT($K95,2)=RIGHT(BX$39,2),SUM($AX95:BB95),0)+IF(RIGHT(BX$39,2)>RIGHT($K95,2),BB95,0)) -> 0.05317554 | BY95: =+IF($K95="Ongoing",BC95,IF(RIGHT($K95,2)=RIGHT(BY$39,2),SUM($AX95:BC95),0)+IF(RIGHT(BY$39,2)>RIGHT($K95,2),BC95,0)) -> 0.05317554 | BZ95: =+IF($K95="Ongoing",BD95,IF(RIGHT($K95,2)=RIGHT(BZ$39,2),SUM($AX95:BD95),0)+IF(RIGHT(BZ$39,2)>RIGHT($K95,2),BD95,0)) -> 1.27516206 | CA95: =+IF($K95="Ongoing",BE95,IF(RIGHT($K95,2)=RIGHT(CA$39,2),SUM($AX95:BE95),0)+IF(RIGHT(CA$39,2)>RIGHT($K95,2),BE95,0)) -> 0.05433153 | CB95: =+IF($K95="Ongoing",BF95,IF(RIGHT($K95,2)=RIGHT(CB$39,2),SUM($AX95:BF95),0)+IF(RIGHT(CB$39,2)>RIGHT($K95,2),BF95,0)) -> 0.651558 | CC95: =+IF($K95="Ongoing",BG95,IF(RIGHT($K95,2)=RIGHT(CC$39,2),SUM($AX95:BG95),0)+IF(RIGHT(CC$39,2)>RIGHT($K95,2),BG95,0)) -> 0 | CE95: =+Q95*KeyAssumptionsPriceControl_FO!AC$15 -> 0.0547708062 | CF95: =+R95*KeyAssumptionsPriceControl_FO!AD$15 -> 0.00557449905 | CG95: =+S95*KeyAssumptionsPriceControl_FO!AE$15 -> 0.2296693609 | CH95: =+T95*KeyAssumptionsPriceControl_FO!AF$15 -> 0 | CI95: =+U95*KeyAssumptionsPriceControl_FO!AG$15 -> 0.06164502491 | CJ95: =+V95*KeyAssumptionsPriceControl_FO!AH$15 -> 0.06349437566 | CK95: =+W95*KeyAssumptionsPriceControl_FO!AI$15 -> 1.568288492 | CL95: =+X95*KeyAssumptionsPriceControl_FO!AJ$15 -> 0.06882555668 | CM95: =+Y95*KeyAssumptionsPriceControl_FO!AK$15 -> 0.8501354061 | CN95: =+Z95*KeyAssumptionsPriceControl_FO!AL$15 -> 0 | CP95: 0.000456423385 | CQ95: 0.0009593009287 | CR95: 0.002919666428 | CS95: 0.004833577769 | CT95: 0.005347286309 | CU95: 0.006390114647 | CV95: 0.01998830521 | CW95: 0.03363092228 | CX95: 0.0412889303 | CY95: 0.04837339202
C96: Other Projects - Water | E96: Water | F96: Improvements / Compliance | G96: Pipelines/network | H96: Other Capital expenditure | J96: Straight line | K96: Ongoing | L96: 60 | M96: 60 | Q96: 0.17875809 | R96: 0.399342 | S96: 0.2712131193 | T96: 1.418132801 | U96: 0.0052545 | V96: 0.010509 | W96: 0.05601297 | X96: 0.39240606 | Y96: 0.31527 | Z96: 0.76106178 | AB96: 0 | AC96: 0 | AD96: 0 | AE96: 0 | AF96: 0 | AG96: 0 | AH96: 0 | AI96: 0 | AJ96: 0 | AK96: 0 | AM96: 0 | AN96: 0 | AO96: 0 | AP96: 0 | AQ96: 0 | AR96: 0 | AS96: 0 | AT96: 0 | AU96: 0 | AV96: 0 | AX96: 0.17875809 | AY96: 0.399342 | AZ96: 0.2712131193 | BA96: 1.418132801 | BB96: 0.0052545 | BC96: 0.010509 | BD96: 0.05601297 | BE96: 0.39240606 | BF96: 0.31527 | BG96: 0.76106178 | BI96: 0.00148965075 | BJ96: 0.0063071515 | BK96: 0.01189511083 | BL96: 0.0259729935 | BM96: 0.03783455435 | BN96: 0.03796591685 | BO96: 0.03852026659 | BP96: 0.04225709184 | BQ96: 0.04815439234 | BR96: 0.05712382384 | BT96: =+IF($K96="Ongoing",AX96,IF(RIGHT($K96,2)=RIGHT(BT$39,2),SUM($AX96:AX96),0)+IF(RIGHT(BT$39,2)>RIGHT($K96,2),AX96,0)) -> 0.17875809 | BU96: =+IF($K96="Ongoing",AY96,IF(RIGHT($K96,2)=RIGHT(BU$39,2),SUM($AX96:AY96),0)+IF(RIGHT(BU$39,2)>RIGHT($K96,2),AY96,0)) -> 0.399342 | BV96: =+IF($K96="Ongoing",AZ96,IF(RIGHT($K96,2)=RIGHT(BV$39,2),SUM($AX96:AZ96),0)+IF(RIGHT(BV$39,2)>RIGHT($K96,2),AZ96,0)) -> 0.2712131193 | BW96: =+IF($K96="Ongoing",BA96,IF(RIGHT($K96,2)=RIGHT(BW$39,2),SUM($AX96:BA96),0)+IF(RIGHT(BW$39,2)>RIGHT($K96,2),BA96,0)) -> 1.418132801 | BX96: =+IF($K96="Ongoing",BB96,IF(RIGHT($K96,2)=RIGHT(BX$39,2),SUM($AX96:BB96),0)+IF(RIGHT(BX$39,2)>RIGHT($K96,2),BB96,0)) -> 0.0052545 | BY96: =+IF($K96="Ongoing",BC96,IF(RIGHT($K96,2)=RIGHT(BY$39,2),SUM($AX96:BC96),0)+IF(RIGHT(BY$39,2)>RIGHT($K96,2),BC96,0)) -> 0.010509 | BZ96: =+IF($K96="Ongoing",BD96,IF(RIGHT($K96,2)=RIGHT(BZ$39,2),SUM($AX96:BD96),0)+IF(RIGHT(BZ$39,2)>RIGHT($K96,2),BD96,0)) -> 0.05601297 | CA96: =+IF($K96="Ongoing",BE96,IF(RIGHT($K96,2)=RIGHT(CA$39,2),SUM($AX96:BE96),0)+IF(RIGHT(CA$39,2)>RIGHT($K96,2),BE96,0)) -> 0.39240606 | CB96: =+IF($K96="Ongoing",BF96,IF(RIGHT($K96,2)=RIGHT(CB$39,2),SUM($AX96:BF96),0)+IF(RIGHT(CB$39,2)>RIGHT($K96,2),BF96,0)) -> 0.31527 | CC96: =+IF($K96="Ongoing",BG96,IF(RIGHT($K96,2)=RIGHT(CC$39,2),SUM($AX96:BG96),0)+IF(RIGHT(CC$39,2)>RIGHT($K96,2),BG96,0)) -> 0.76106178 | CE96: =+Q96*KeyAssumptionsPriceControl_FO!AC$15 -> 0.1841208327 | CF96: =+R96*KeyAssumptionsPriceControl_FO!AD$15 -> 0.4236619278 | CG96: =+S96*KeyAssumptionsPriceControl_FO!AE$15 -> 0.2963618982 | CH96: =+T96*KeyAssumptionsPriceControl_FO!AF$15 -> 1.596120962 | CI96: =+U96*KeyAssumptionsPriceControl_FO!AG$15 -> 0.006091405623 | CJ96: =+V96*KeyAssumptionsPriceControl_FO!AH$15 -> 0.01254829558 | CK96: =+W96*KeyAssumptionsPriceControl_FO!AI$15 -> 0.06888888793 | CL96: =+X96*KeyAssumptionsPriceControl_FO!AJ$15 -> 0.4970882566 | CM96: =+Y96*KeyAssumptionsPriceControl_FO!AK$15 -> 0.4113558417 | CN96: =+Z96*KeyAssumptionsPriceControl_FO!AL$15 -> 1.022803392 | CP96: 0.001534340273 | CQ96: 0.00659919661 | CR96: 0.01259939516 | CS96: 0.02837008566 | CT96: 0.04172185539 | CU96: 0.04187718623 | CV96: 0.04255582943 | CW96: 0.04727230563 | CX96: 0.05484267312 | CY96: 0.06679400006
C97: Other Projects - Water | E97: Water | F97: Improvements / Compliance | G97: Treatment | H97: Other Capital expenditure | J97: Straight line | K97: Ongoing | L97: 60 | M97: 60 | Q97: 0.828261615 | R97: 2.822640362 | S97: 1.103089373 | T97: 1.356109734 | U97: 0.853835232 | V97: 1.960416118 | W97: 7.83162207 | X97: 1.71012957 | Y97: 5.75199606 | Z97: 0.87813204 | AB97: 0 | AC97: 0 | AD97: 0 | AE97: 0 | AF97: 0 | AG97: 0 | AH97: 0 | AI97: 0 | AJ97: 0 | AK97: 0 | AM97: 0 | AN97: 0 | AO97: 0 | AP97: 0 | AQ97: 0 | AR97: 0 | AS97: 0 | AT97: 0 | AU97: 0 | AV97: 0 | AX97: 0.828261615 | AY97: 2.822640362 | AZ97: 1.103089373 | BA97: 1.356109734 | BB97: 0.853835232 | BC97: 1.960416118 | BD97: 7.83162207 | BE97: 1.71012957 | BF97: 5.75199606 | BG97: 0.87813204 | BI97: 0.006902180125 | BJ97: 0.03732636327 | BK97: 0.07004077773 | BL97: 0.09053410362 | BM97: 0.1089503117 | BN97: 0.1324024063 | BO97: 0.2140027245 | BP97: 0.2935173215 | BQ97: 0.3557017017 | BR97: 0.4109527692 | BT97: =+IF($K97="Ongoing",AX97,IF(RIGHT($K97,2)=RIGHT(BT$39,2),SUM($AX97:AX97),0)+IF(RIGHT(BT$39,2)>RIGHT($K97,2),AX97,0)) -> 0.828261615 | BU97: =+IF($K97="Ongoing",AY97,IF(RIGHT($K97,2)=RIGHT(BU$39,2),SUM($AX97:AY97),0)+IF(RIGHT(BU$39,2)>RIGHT($K97,2),AY97,0)) -> 2.822640362 | BV97: =+IF($K97="Ongoing",AZ97,IF(RIGHT($K97,2)=RIGHT(BV$39,2),SUM($AX97:AZ97),0)+IF(RIGHT(BV$39,2)>RIGHT($K97,2),AZ97,0)) -> 1.103089373 | BW97: =+IF($K97="Ongoing",BA97,IF(RIGHT($K97,2)=RIGHT(BW$39,2),SUM($AX97:BA97),0)+IF(RIGHT(BW$39,2)>RIGHT($K97,2),BA97,0)) -> 1.356109734 | BX97: =+IF($K97="Ongoing",BB97,IF(RIGHT($K97,2)=RIGHT(BX$39,2),SUM($AX97:BB97),0)+IF(RIGHT(BX$39,2)>RIGHT($K97,2),BB97,0)) -> 0.853835232 | BY97: =+IF($K97="Ongoing",BC97,IF(RIGHT($K97,2)=RIGHT(BY$39,2),SUM($AX97:BC97),0)+IF(RIGHT(BY$39,2)>RIGHT($K97,2),BC97,0)) -> 1.960416118 | BZ97: =+IF($K97="Ongoing",BD97,IF(RIGHT($K97,2)=RIGHT(BZ$39,2),SUM($AX97:BD97),0)+IF(RIGHT(BZ$39,2)>RIGHT($K97,2),BD97,0)) -> 7.83162207 | CA97: =+IF($K97="Ongoing",BE97,IF(RIGHT($K97,2)=RIGHT(CA$39,2),SUM($AX97:BE97),0)+IF(RIGHT(CA$39,2)>RIGHT($K97,2),BE97,0)) -> 1.71012957 | CB97: =+IF($K97="Ongoing",BF97,IF(RIGHT($K97,2)=RIGHT(CB$39,2),SUM($AX97:BF97),0)+IF(RIGHT(CB$39,2)>RIGHT($K97,2),BF97,0)) -> 5.75199606 | CC97: =+IF($K97="Ongoing",BG97,IF(RIGHT($K97,2)=RIGHT(CC$39,2),SUM($AX97:BG97),0)+IF(RIGHT(CC$39,2)>RIGHT($K97,2),BG97,0)) -> 0.87813204 | CE97: =+Q97*KeyAssumptionsPriceControl_FO!AC$15 -> 0.8531094634 | CF97: =+R97*KeyAssumptionsPriceControl_FO!AD$15 -> 2.99453916 | CG97: =+S97*KeyAssumptionsPriceControl_FO!AE$15 -> 1.205375541 | CH97: =+T97*KeyAssumptionsPriceControl_FO!AF$15 -> 1.526313453 | CI97: =+U97*KeyAssumptionsPriceControl_FO!AG$15 -> 0.9898290482 | CJ97: =+V97*KeyAssumptionsPriceControl_FO!AH$15 -> 2.340839367 | CK97: =+W97*KeyAssumptionsPriceControl_FO!AI$15 -> 9.631907308 | CL97: =+X97*KeyAssumptionsPriceControl_FO!AJ$15 -> 2.166340975 | CM97: =+Y97*KeyAssumptionsPriceControl_FO!AK$15 -> 7.505050213 | CN97: =+Z97*KeyAssumptionsPriceControl_FO!AL$15 -> 1.180136032 | CP97: 0.007109245529 | CQ97: 0.03917298406 | CR97: 0.07417227324 | CS97: 0.09693634819 | CT97: 0.1179042024 | CU97: 0.1456597725 | CV97: 0.2454326615 | CW97: 0.3437513971 | CX97: 0.4243463237 | CY97: 0.4967228757
